Workbook

Sheet RegressionAnalysis
B2: Training Dataset for Regression Analysis
B4: Employee Name | C4: Experience (Years) | D4: Salary | H4: SUMMARY OUTPUT
B5: Natalia Austin | C5: 0 | D5: 3000
B6: Kane Richardson | C6: 2 | D6: 3500 | H6: Regression Statistics
B7: Billy Doctorove | C7: 4 | D7: 4200 | H7: Multiple R | I7: 0.9572503398
B8: Harry Wills | C8: 6 | D8: 5500 | H8: R Square | I8: 0.916328213
B9: Peter Simpson | C9: 8 | D9: 7000 | H9: Adjusted R Square | I9: 0.9058692396
B10: Richard John | C10: 10 | D10: 8500 | H10: Standard Error | I10: 1687.301054
B11: Alfred Moyes | C11: 12 | D11: 9800 | H11: Observations | I11: 10
B12: John Foster | C12: 14 | D12: 12000
B13: Angela Moor | C13: 16 | D13: 15000 | H13: ANOVA
B14: Ben Hockley | C14: 18 | D14: 20000 | I14: df | J14: SS | K14: MS | L14: F | M14: Significance F
H15: Regression | I15: 1 | J15: 249429121.2 | K15: 249429121.2 | L15: 87.61167849 | M15: 1.387565086e-05
H16: Residual | I16: 8 | J16: 22775878.79 | K16: 2846984.848
H17: Total | I17: 9 | J17: 272205000
I19: Coefficients | J19: Standard Error | K19: t Stat | L19: P-value | M19: Lower 95% | N19: Upper 95% | O19: Lower 95.0% | P19: Upper 95.0%
H20: Intercept | I20: 1025.454545 | J20: 991.7176295 | K20: 1.034018671 | L20: 0.3313703843 | M20: -1261.450409 | N20: 3312.3595 | O20: -1261.450409 | P20: 3312.3595
H21: Experience (Years) | I21: 869.3939394 | J21: 92.88286609 | K21: 9.36011103 | L21: 1.387565086e-05 | M21: 655.2056661 | N21: 1083.582213 | O21: 655.2056661 | P21: 1083.582213
H24: RESIDUAL OUTPUT
H26: Observation | I26: Predicted Salary | J26: Residuals
H27: 1 | I27: 1025.454545 | J27: 1974.545455
H28: 2 | I28: 2764.242424 | J28: 735.7575758
H29: 3 | I29: 4503.030303 | J29: -303.030303
H30: 4 | I30: 6241.818182 | J30: -741.8181818
H31: 5 | I31: 7980.606061 | J31: -980.6060606
H32: 6 | I32: 9719.393939 | J32: -1219.393939
H33: 7 | I33: 11458.18182 | J33: -1658.181818
H34: 8 | I34: 13196.9697 | J34: -1196.969697
H35: 9 | I35: 14935.75758 | J35: 64.24242424
H36: 10 | I36: 16674.54545 | J36: 3325.454545

Sheet CalculationOfRegressionAnalysis
B2: Test Dataset for Regression Analysis
B4: Employee Name | C4: Experience (Years) | D4: Salary | E4: Modeled Salary | F4: Error
B5: Natalia Austin | C5: 0 | D5: 3000 | E5: =C5*869.3939394+1025.454545 -> 1025.454545 | F5: =D5-E5 -> 1974.545455
B6: Kane Richardson | C6: 2 | D6: 3500 | E6: =C6*869.3939394+1025.454545 -> 2764.242424 | F6: =D6-E6 -> 735.7575762
B7: Billy Doctorove | C7: 4 | D7: 4200 | E7: 4503.030303 | F7: -303.0303026
B8: Harry Wills | C8: 6 | D8: 5500 | E8: 6241.818181 | F8: -741.8181814
B9: Peter Simpson | C9: 8 | D9: 7000 | E9: 7980.60606 | F9: -980.6060602
B10: Richard John | C10: 10 | D10: 8500 | E10: 9719.393939 | F10: -1219.393939
B11: Alfred Moyes | C11: 12 | D11: 9800 | E11: 11458.18182 | F11: -1658.181818
B12: John Foster | C12: 14 | D12: 12000 | E12: 13196.9697 | F12: -1196.969697
B13: Angela Moor | C13: 16 | D13: 15000 | E13: 14935.75758 | F13: 64.2424246
B14: Ben Hockley | C14: 18 | D14: 20000 | E14: 16674.54545 | F14: 3325.454546
C15: 20 | D15: - | E15: =C15*869.3939394+1025.454545 -> 18413.33333 | F15: -
C16: 21 | D16: - | E16: =C16*869.3939394+1025.454545 -> 19282.72727 | F16: -
C17: 5 | D17: - | E17: =C17*869.3939394+1025.454545 -> 5372.424242 | F17: -
C18: 3 | D18: - | E18: =C18*869.3939394+1025.454545 -> 3633.636363 | F18: -

Sheet BettingAlgorithm
B2: Creating Betting Algorithm
B4: Team | C4: Opponent | D4: FTHG | E4: FTAG | F4: FTR | G4: HTHG | H4: HTAG | I4: HTR | J4: HS | K4: AS | L4: HST | M4: AST | N4: HF | O4: AF | P4: HC | Q4: AC | R4: HY | S4: AY
B5: Minnesota | C5: Miami | D5: 78 | E5: 60 | F5: H | G5: 12 | H5: 13 | I5: H | J5: 8 | K5: 13 | L5: 6 | M5: 12 | N5: 16 | O5: 9 | P5: 78 | Q5: 60 | R5: 8 | S5: 13
B6: Memphis | C6: Golden St. | D6: 58 | E6: 69 | F6: H | G6: 19 | H6: 10 | I6: H | J6: 12 | K6: 12 | L6: 4 | M6: 1 | N6: 1 | O6: 7 | P6: 58 | Q6: 69 | R6: 12 | S6: 12
B7: Philadelphia | C7: New York | D7: 73 | E7: 68 | F7: A | G7: 12 | H7: 6 | I7: A | J7: 15 | K7: 10 | L7: 6 | M7: 11 | N7: 8 | O7: 1 | P7: 73 | Q7: 68 | R7: 15 | S7: 10
B8: Houston | C8: Chicago | D8: 62 | E8: 66 | F8: A | G8: 24 | H8: 10 | I8: H | J8: 6 | K8: 13 | L8: 2 | M8: 9 | N8: 2 | O8: 6 | P8: 62 | Q8: 66 | R8: 6 | S8: 13
B9: Milwaukee | C9: Boston | D9: 49 | E9: 61 | F9: A | G9: 35 | H9: 9 | I9: A | J9: 15 | K9: 15 | L9: 5 | M9: 3 | N9: 6 | O9: 3 | P9: 49 | Q9: 61 | R9: 15 | S9: 15
B10: Charlotte | C10: Portland | D10: 64 | E10: 57 | F10: H | G10: 25 | H10: 10 | I10: H | J10: 19 | K10: 17 | L10: 6 | M10: 4 | N10: 7 | O10: 3 | P10: 64 | Q10: 57 | R10: 19 | S10: 17
B11: Portland | C11: Minnesota | D11: 69 | E11: 77 | F11: A | G11: 22 | H11: 20 | I11: H | J11: 11 | K11: 16 | L11: 7 | M11: 8 | N11: -0.066 | O11: 2 | P11: 69 | Q11: 77 | R11: 11 | S11: 16
B12: Boston | C12: Memphis | D12: 77 | E12: 69 | F12: H | G12: 5 | H12: 10 | I12: A | J12: 9 | K12: 7 | L12: 8 | M12: 3 | N12: 4 | O12: 3 | P12: 77 | Q12: 69 | R12: 9 | S12: 7
B13: Chicago | C13: Philadelphia | D13: 61 | E13: 49 | F13: H | G13: 30 | H13: 14 | I13: H | J13: 19 | K13: 11 | L13: 4 | M13: 4 | N13: 3 | O13: 2 | P13: 61 | Q13: 49 | R13: 19 | S13: 11
B14: New York | C14: Houston | D14: 66 | E14: 62 | F14: A | G14: 21 | H14: 6 | I14: A | J14: 18 | K14: 20 | L14: 3 | M14: 5 | N14: 2 | O14: 1 | P14: 66 | Q14: 62 | R14: 18 | S14: 20
B15: Golden St. | C15: Milwaukee | D15: 69 | E15: 58 | F15: H | G15: 10 | H15: 5 | I15: A | J15: 12 | K15: 18 | L15: 9 | M15: 6 | N15: 8 | O15: 4 | P15: 69 | Q15: 58 | R15: 12 | S15: 18
B16: Miami | C16: Charlotte | D16: 60 | E16: 78 | F16: A | G16: 24 | H16: 17 | I16: A | J16: 24 | K16: 14 | L16: 11 | M16: 9 | N16: 7 | O16: 3 | P16: 60 | Q16: 78 | R16: 24 | S16: 14
B17: Miami | C17: Minnesota | D17: 64.04545455 | E17: 64.86363636 | F17: H | G17: 21.07575758 | H17: 11.56060606 | I17: H | J17: 19.36363636 | K17: 16.10606061 | L17: 8.166666667 | M17: 5.090909091 | N17: 3.371787879 | O17: 1.075757576 | P17: 64.04545455 | Q17: 64.86363636 | R17: 19.36363636 | S17: 16.10606061
B18: Golden St. | C18: Memphis | D18: 63.82167832 | E18: 64.91958042 | F18: H | G18: 21.25407925 | H18: 11.67249417 | I18: H | J18: 20.18881119 | K18: 16.45571096 | L18: 8.512820513 | M18: 4.912587413 | N18: 3.070857809 | O18: 0.6771561772 | P18: 63.82167832 | Q18: 64.91958042 | R18: 20.18881119 | S18: 16.45571096
B19: New York | C19: Philadelphia | D19: 63.5979021 | E19: 64.97552448 | F19: A | G19: 21.43240093 | H19: 11.78438228 | I19: A | J19: 21.01398601 | K19: 16.80536131 | L19: 8.858974359 | M19: 4.734265734 | N19: 2.769927739 | O19: 0.2785547786 | P19: 63.5979021 | Q19: 64.97552448 | R19: 21.01398601 | S19: 16.80536131
B20: Chicago | C20: Houston | D20: 63.37412587 | E20: 65.03146853 | F20: H | G20: 21.61072261 | H20: 11.8962704 | I20: H | J20: 21.83916084 | K20: 17.15501166 | L20: 9.205128205 | M20: 4.555944056 | N20: 2.468997669 | O20: -0.12004662 | P20: 63.37412587 | Q20: 65.03146853 | R20: 21.83916084 | S20: 17.15501166
B21: Boston | C21: Milwaukee | D21: 63.15034965 | E21: 65.08741259 | F21: A | G21: 21.78904429 | H21: 12.00815851 | I21: A | J21: 22.66433566 | K21: 17.504662 | L21: 9.551282051 | M21: 4.377622378 | N21: 2.168067599 | O21: -0.5186480186 | P21: 63.15034965 | Q21: 65.08741259 | R21: 22.66433566 | S21: 17.504662
B22: Portland | C22: Charlotte | D22: 62.92657343 | E22: 65.14335664 | F22: H | G22: 21.96736597 | H22: 12.12004662 | I22: H | J22: 23.48951049 | K22: 17.85431235 | L22: 9.897435897 | M22: 4.199300699 | N22: 1.867137529 | O22: -0.9172494172 | P22: 62.92657343 | Q22: 65.14335664 | R22: 23.48951049 | S22: 17.85431235
B23: Minnesota | C23: Portland | D23: 62.7027972 | E23: 65.1993007 | F23: H | G23: 22.14568765 | H23: 12.23193473 | I23: H | J23: 24.31468531 | K23: 18.2039627 | L23: 10.24358974 | M23: 4.020979021 | N23: 1.566207459 | O23: -1.315850816 | P23: 62.7027972 | Q23: 65.1993007 | R23: 24.31468531 | S23: 18.2039627
B24: Memphis | C24: Boston | D24: 62.47902098 | E24: 65.25524476 | F24: A | G24: 22.32400932 | H24: 12.34382284 | I24: A | J24: 25.13986014 | K24: 18.55361305 | L24: 10.58974359 | M24: 3.842657343 | N24: 1.265277389 | O24: -1.714452214 | P24: 62.47902098 | Q24: 65.25524476 | R24: 25.13986014 | S24: 18.55361305
B25: Philadelphia | C25: Chicago | D25: 62.25524476 | E25: 65.31118881 | F25: H | G25: 22.502331 | H25: 12.45571096 | I25: H | J25: 25.96503497 | K25: 18.9032634 | L25: 10.93589744 | M25: 3.664335664 | N25: 0.9643473193 | O25: -2.113053613 | P25: 62.25524476 | Q25: 65.31118881 | R25: 25.96503497 | S25: 18.9032634
B26: Houston | C26: New York | D26: 62.03146853 | E26: 65.36713287 | F26: H | G26: 22.68065268 | H26: 12.56759907 | I26: A | J26: 26.79020979 | K26: 19.25291375 | L26: 11.28205128 | M26: 3.486013986 | N26: 0.6634172494 | O26: -2.511655012 | P26: 62.03146853 | Q26: 65.36713287 | R26: 26.79020979 | S26: 19.25291375
B27: Milwaukee | C27: Golden St. | D27: 61.80769231 | E27: 65.42307692 | F27: H | G27: 22.85897436 | H27: 12.67948718 | I27: A | J27: 27.61538462 | K27: 19.6025641 | L27: 11.62820513 | M27: 3.307692308 | N27: 0.3624871795 | O27: -2.91025641 | P27: 61.80769231 | Q27: 65.42307692 | R27: 27.61538462 | S27: 19.6025641
B28: Charlotte | C28: Miami | D28: 61.58391608 | E28: 65.47902098 | F28: A | G28: 23.03729604 | H28: 12.79137529 | I28: A | J28: 28.44055944 | K28: 19.95221445 | L28: 11.97435897 | M28: 3.129370629 | N28: 0.06155710956 | O28: -3.308857809 | P28: 61.58391608 | Q28: 65.47902098 | R28: 28.44055944 | S28: 19.95221445

Sheet CalculationOfBettingAlgorithm
B2: Creating Betting Algorithm
B4: Team | C4: Games Played | D4: Home Won | E4: Draw | F4: Away | G4: H% | H4: D% | I4: A%
B5: New York | C5: =COUNTIFS(BettingAlgorithm!B:B,CalculationOfBettingAlgorithm!B5) -> 2 | D5: =COUNTIFS(BettingAlgorithm!B:B,CalculationOfBettingAlgorithm!B5,BettingAlgorithm!F:F,"H") -> 0 | E5: =COUNTIFS(BettingAlgorithm!B:B,CalculationOfBettingAlgorithm!B5,BettingAlgorithm!F:F,"D") -> 0 | F5: =COUNTIFS(BettingAlgorithm!B:B,CalculationOfBettingAlgorithm!B5,BettingAlgorithm!F:F,"A") -> 2 | G5: =IFERROR(SUM(D5/C5),"") -> 0 | H5: =IFERROR(SUM(E5/C5),"") -> 0 | I5: =IFERROR(SUM(F5/C5),"") -> 1
B6: Miami | C6: =COUNTIFS(BettingAlgorithm!C:C,CalculationOfBettingAlgorithm!B6) -> 2 | D6: =COUNTIFS(BettingAlgorithm!B:B,CalculationOfBettingAlgorithm!B6,BettingAlgorithm!F:F,"H") -> 1 | E6: =COUNTIFS(BettingAlgorithm!B:B,CalculationOfBettingAlgorithm!B6,BettingAlgorithm!F:F,"D") -> 0 | F6: =COUNTIFS(BettingAlgorithm!B:B,CalculationOfBettingAlgorithm!B6,BettingAlgorithm!F:F,"A") -> 1 | G6: =IFERROR(SUM(D6/C6),"") -> 0.5 | H6: =IFERROR(SUM(E6/C6),"") -> 0 | I6: =IFERROR(SUM(F6/C6),"") -> 0.5
B8: Fair Value % Home Team | G8: =IFERROR(SUM(1/G5),"") ->  | I8: 1
B9: Fair Value % Away Team | G9: 2 | I9: 2
B10: Fair Value % Combined | G10: =SUM(G5:G6)/2 -> 0.25 | H10: =SUM(H5:H6)/2 -> 0 | I10: =SUM(I5:I6)/2 -> 0.75
B12: Betfair Odds | G12: =IFERROR(1/G10,"") -> 4 | H12: =IFERROR(1/H10,"") ->  | I12: =IFERROR(1/I10,"") -> 1.333333333

Sheet LotteryPredictionAlgorithm(1)
B2: Building Lottery Prediction Algorithm
B4: Serial Number | C4: Lottery Number
B5: 1 | C5: =COUNTIF($K$56:$AO$6000,B5) -> 3779
B6: 2 | C6: =COUNTIF($K$56:$AO$6000,B6) -> 3746
B7: 3 | C7: 3644
B8: 4 | C8: 3705
B9: 5 | C9: 3662
B10: 6 | C10: 3744
B11: 7 | C11: 3733
B12: 8 | C12: 3770
B13: 9 | C13: 3678
B14: 10 | C14: 3600
B15: 11 | C15: 3693
B16: 12 | C16: 3661
B17: 13 | C17: 3572
B18: 14 | C18: 3714
B19: 15 | C19: 3610
B20: 16 | C20: 3631
B21: 17 | C21: 3677
B22: 18 | C22: 3653
B23: 19 | C23: 3679
B24: 20 | C24: 3665
B25: 21 | C25: 3760
B26: 22 | C26: 3756
B27: 23 | C27: 3753
B28: 24 | C28: 3534
B29: 25 | C29: 3742
B30: 26 | C30: 3680
B31: 27 | C31: 3743
B32: 28 | C32: 3697
B33: 29 | C33: 3623
B34: 30 | C34: 3702
B35: 31 | C35: 3638
B36: 32 | C36: 3768
B37: 33 | C37: 3642
B38: 34 | C38: 3677
B39: 35 | C39: 3676
B40: 36 | C40: 3660
B41: 37 | C41: 3763
B42: 38 | C42: 3750
B43: 39 | C43: 3680
B44: 40 | C44: 3691
B45: 41 | C45: 3656
B46: 42 | C46: 3730
B47: 43 | C47: 3640
B48: 44 | C48: 3721
B49: 45 | C49: 3674
B50: 46 | C50: 3629
B51: 47 | C51: 3612
B52: 48 | C52: 3674
B53: 49 | C53: 3696
B54: 50 | C54: 3712
K55: =RANDBETWEEN(1,50) -> 15
K56: 47 | L56: 10 | M56: 41 | N56: 19 | O56: 23 | P56: 14 | Q56: 23 | R56: 19 | S56: 25 | T56: 28 | U56: 10 | V56: 28 | W56: 13 | X56: 36 | Y56: 22 | Z56: 32 | AA56: 30 | AB56: 9 | AC56: 44 | AD56: 4 | AE56: 31 | AF56: 49 | AG56: 15 | AH56: 30 | AI56: 15 | AJ56: 49 | AK56: 40 | AL56: 10 | AM56: 13 | AN56: 36 | AO56: 28
K57: 48 | L57: 30 | M57: 19 | N57: 25 | O57: 26 | P57: 7 | Q57: 33 | R57: 9 | S57: 6 | T57: 1 | U57: 6 | V57: 26 | W57: 8 | X57: 36 | Y57: 41 | Z57: 45 | AA57: 39 | AB57: 30 | AC57: 3 | AD57: 21 | AE57: 15 | AF57: 2 | AG57: 28 | AH57: 35 | AI57: 20 | AJ57: 15 | AK57: 42 | AL57: 5 | AM57: 39 | AN57: 10 | AO57: 30
K58: 30 | L58: 15 | M58: 43 | N58: 36 | O58: 18 | P58: 3 | Q58: 9 | R58: 42 | S58: 6 | T58: 32 | U58: 7 | V58: 8 | W58: 16 | X58: 15 | Y58: 11 | Z58: 11 | AA58: 2 | AB58: 42 | AC58: 31 | AD58: 30 | AE58: 29 | AF58: 36 | AG58: 29 | AH58: 37 | AI58: 48 | AJ58: 24 | AK58: 15 | AL58: 39 | AM58: 6 | AN58: 12 | AO58: 32
K59: 6 | L59: 49 | M59: 5 | N59: 29 | O59: 7 | P59: 10 | Q59: 33 | R59: 17 | S59: 40 | T59: 37 | U59: 19 | V59: 17 | W59: 47 | X59: 3 | Y59: 30 | Z59: 28 | AA59: 7 | AB59: 32 | AC59: 47 | AD59: 48 | AE59: 45 | AF59: 40 | AG59: 32 | AH59: 44 | AI59: 5 | AJ59: 49 | AK59: 34 | AL59: 28 | AM59: 43 | AN59: 29 | AO59: 39
K60: 3 | L60: 12 | M60: 16 | N60: 28 | O60: 11 | P60: 24 | Q60: 48 | R60: 50 | S60: 32 | T60: 34 | U60: 8 | V60: 42 | W60: 30 | X60: 36 | Y60: 26 | Z60: 29 | AA60: 24 | AB60: 22 | AC60: 24 | AD60: 24 | AE60: 19 | AF60: 6 | AG60: 8 | AH60: 5 | AI60: 12 | AJ60: 37 | AK60: 13 | AL60: 36 | AM60: 5 | AN60: 44 | AO60: 49
K61: 49 | L61: 37 | M61: 42 | N61: 16 | O61: 11 | P61: 48 | Q61: 38 | R61: 23 | S61: 34 | T61: 43 | U61: 39 | V61: 27 | W61: 16 | X61: 47 | Y61: 6 | Z61: 7 | AA61: 1 | AB61: 27 | AC61: 1 | AD61: 49 | AE61: 9 | AF61: 9 | AG61: 26 | AH61: 49 | AI61: 26 | AJ61: 6 | AK61: 29 | AL61: 49 | AM61: 50 | AN61: 38 | AO61: 30
K62: 7 | L62: 6 | M62: 21 | N62: 47 | O62: 26 | P62: 21 | Q62: 37 | R62: 9 | S62: 7 | T62: 18 | U62: 8 | V62: 35 | W62: 37 | X62: 20 | Y62: 26 | Z62: 17 | AA62: 38 | AB62: 17 | AC62: 39 | AD62: 31 | AE62: 41 | AF62: 6 | AG62: 25 | AH62: 35 | AI62: 4 | AJ62: 22 | AK62: 47 | AL62: 8 | AM62: 24 | AN62: 33 | AO62: 20
K63: 45 | L63: 11 | M63: 12 | N63: 1 | O63: 36 | P63: 21 | Q63: 3 | R63: 49 | S63: 34 | T63: 19 | U63: 29 | V63: 27 | W63: 22 | X63: 28 | Y63: 27 | Z63: 43 | AA63: 30 | AB63: 37 | AC63: 21 | AD63: 2 | AE63: 34 | AF63: 22 | AG63: 50 | AH63: 38 | AI63: 30 | AJ63: 25 | AK63: 2 | AL63: 44 | AM63: 6 | AN63: 40 | AO63: 19
K64: 21 | L64: 10 | M64: 38 | N64: 10 | O64: 24 | P64: 44 | Q64: 38 | R64: 35 | S64: 17 | T64: 21 | U64: 13 | V64: 38 | W64: 48 | X64: 27 | Y64: 22 | Z64: 28 | AA64: 28 | AB64: 21 | AC64: 28 | AD64: 2 | AE64: 2 | AF64: 13 | AG64: 38 | AH64: 48 | AI64: 37 | AJ64: 48 | AK64: 7 | AL64: 20 | AM64: 21 | AN64: 47 | AO64: 29
K65: 42 | L65: 44 | M65: 7 | N65: 22 | O65: 32 | P65: 19 | Q65: 19 | R65: 50 | S65: 49 | T65: 9 | U65: 4 | V65: 17 | W65: 50 | X65: 42 | Y65: 7 | Z65: 50 | AA65: 27 | AB65: 28 | AC65: 42 | AD65: 17 | AE65: 12 | AF65: 43 | AG65: 18 | AH65: 9 | AI65: 50 | AJ65: 3 | AK65: 14 | AL65: 27 | AM65: 34 | AN65: 35 | AO65: 33
K66: 26 | L66: 21 | M66: 1 | N66: 11 | O66: 48 | P66: 39 | Q66: 25 | R66: 15 | S66: 48 | T66: 27 | U66: 30 | V66: 49 | W66: 31 | X66: 43 | Y66: 9 | Z66: 2 | AA66: 39 | AB66: 43 | AC66: 24 | AD66: 1 | AE66: 16 | AF66: 27 | AG66: 41 | AH66: 43 | AI66: 33 | AJ66: 30 | AK66: 49 | AL66: 45 | AM66: 32 | AN66: 5 | AO66: 38
K67: 15 | L67: 12 | M67: 15 | N67: 37 | O67: 2 | P67: 14 | Q67: 21 | R67: 19 | S67: 16 | T67: 37 | U67: 47 | V67: 18 | W67: 15 | X67: 10 | Y67: 43 | Z67: 44 | AA67: 20 | AB67: 38 | AC67: 12 | AD67: 40 | AE67: 29 | AF67: 47 | AG67: 8 | AH67: 25 | AI67: 8 | AJ67: 8 | AK67: 17 | AL67: 32 | AM67: 18 | AN67: 34 | AO67: 22
K68: 41 | L68: 3 | M68: 34 | N68: 21 | O68: 27 | P68: 13 | Q68: 46 | R68: 28 | S68: 4 | T68: 32 | U68: 47 | V68: 40 | W68: 12 | X68: 40 | Y68: 9 | Z68: 24 | AA68: 30 | AB68: 48 | AC68: 5 | AD68: 16 | AE68: 48 | AF68: 24 | AG68: 9 | AH68: 38 | AI68: 28 | AJ68: 1 | AK68: 33 | AL68: 42 | AM68: 44 | AN68: 44 | AO68: 23
K69: 37 | L69: 43 | M69: 23 | N69: 19 | O69: 47 | P69: 17 | Q69: 32 | R69: 18 | S69: 25 | T69: 40 | U69: 15 | V69: 46 | W69: 17 | X69: 18 | Y69: 9 | Z69: 16 | AA69: 23 | AB69: 25 | AC69: 31 | AD69: 14 | AE69: 3 | AF69: 28 | AG69: 48 | AH69: 47 | AI69: 19 | AJ69: 23 | AK69: 21 | AL69: 47 | AM69: 14 | AN69: 41 | AO69: 35
K70: 25 | L70: 41 | M70: 1 | N70: 16 | O70: 45 | P70: 30 | Q70: 24 | R70: 22 | S70: 13 | T70: 38 | U70: 12 | V70: 34 | W70: 12 | X70: 25 | Y70: 16 | Z70: 8 | AA70: 14 | AB70: 44 | AC70: 42 | AD70: 46 | AE70: 32 | AF70: 35 | AG70: 23 | AH70: 19 | AI70: 39 | AJ70: 26 | AK70: 49 | AL70: 4 | AM70: 44 | AN70: 50 | AO70: 21
K71: 19 | L71: 7 | M71: 1 | N71: 35 | O71: 14 | P71: 18 | Q71: 29 | R71: 30 | S71: 9 | T71: 24 | U71: 3 | V71: 43 | W71: 6 | X71: 6 | Y71: 43 | Z71: 11 | AA71: 14 | AB71: 35 | AC71: 17 | AD71: 46 | AE71: 28 | AF71: 4 | AG71: 15 | AH71: 17 | AI71: 12 | AJ71: 35 | AK71: 35 | AL71: 39 | AM71: 9 | AN71: 22 | AO71: 13
K72: 45 | L72: 6 | M72: 48 | N72: 18 | O72: 16 | P72: 21 | Q72: 16 | R72: 4 | S72: 44 | T72: 35 | U72: 29 | V72: 6 | W72: 1 | X72: 31 | Y72: 49 | Z72: 41 | AA72: 32 | AB72: 35 | AC72: 24 | AD72: 46 | AE72: 10 | AF72: 5 | AG72: 6 | AH72: 16 | AI72: 48 | AJ72: 7 | AK72: 28 | AL72: 25 | AM72: 14 | AN72: 45 | AO72: 40
K73: 25 | L73: 21 | M73: 1 | N73: 21 | O73: 39 | P73: 23 | Q73: 33 | R73: 32 | S73: 23 | T73: 1 | U73: 43 | V73: 16 | W73: 22 | X73: 7 | Y73: 27 | Z73: 16 | AA73: 35 | AB73: 5 | AC73: 7 | AD73: 12 | AE73: 26 | AF73: 32 | AG73: 4 | AH73: 3 | AI73: 14 | AJ73: 45 | AK73: 40 | AL73: 44 | AM73: 34 | AN73: 17 | AO73: 49
K74: 44 | L74: 1 | M74: 41 | N74: 42 | O74: 14 | P74: 35 | Q74: 42 | R74: 45 | S74: 7 | T74: 45 | U74: 6 | V74: 37 | W74: 20 | X74: 26 | Y74: 35 | Z74: 9 | AA74: 42 | AB74: 23 | AC74: 15 | AD74: 45 | AE74: 32 | AF74: 50 | AG74: 44 | AH74: 17 | AI74: 38 | AJ74: 24 | AK74: 41 | AL74: 20 | AM74: 11 | AN74: 42 | AO74: 37
K75: 9 | L75: 11 | M75: 24 | N75: 20 | O75: 15 | P75: 40 | Q75: 25 | R75: 2 | S75: 46 | T75: 9 | U75: 16 | V75: 17 | W75: 42 | X75: 16 | Y75: 10 | Z75: 25 | AA75: 42 | AB75: 17 | AC75: 6 | AD75: 4 | AE75: 23 | AF75: 34 | AG75: 18 | AH75: 22 | AI75: 27 | AJ75: 16 | AK75: 4 | AL75: 40 | AM75: 9 | AN75: 32 | AO75: 7
K76: 22 | L76: 45 | M76: 40 | N76: 21 | O76: 21 | P76: 43 | Q76: 14 | R76: 3 | S76: 36 | T76: 10 | U76: 1 | V76: 11 | W76: 2 | X76: 12 | Y76: 35 | Z76: 34 | AA76: 48 | AB76: 44 | AC76: 38 | AD76: 41 | AE76: 27 | AF76: 50 | AG76: 49 | AH76: 20 | AI76: 24 | AJ76: 1 | AK76: 18 | AL76: 25 | AM76: 18 | AN76: 19 | AO76: 15
K77: 40 | L77: 29 | M77: 29 | N77: 30 | O77: 14 | P77: 39 | Q77: 38 | R77: 4 | S77: 32 | T77: 11 | U77: 43 | V77: 34 | W77: 9 | X77: 5 | Y77: 27 | Z77: 6 | AA77: 28 | AB77: 36 | AC77: 26 | AD77: 46 | AE77: 18 | AF77: 8 | AG77: 31 | AH77: 22 | AI77: 43 | AJ77: 37 | AK77: 47 | AL77: 6 | AM77: 49 | AN77: 45 | AO77: 28
K78: 1 | L78: 21 | M78: 40 | N78: 19 | O78: 1 | P78: 17 | Q78: 11 | R78: 17 | S78: 25 | T78: 24 | U78: 12 | V78: 25 | W78: 18 | X78: 13 | Y78: 15 | Z78: 16 | AA78: 18 | AB78: 10 | AC78: 3 | AD78: 12 | AE78: 18 | AF78: 36 | AG78: 22 | AH78: 18 | AI78: 41 | AJ78: 27 | AK78: 17 | AL78: 9 | AM78: 7 | AN78: 2 | AO78: 34
K79: 6 | L79: 31 | M79: 40 | N79: 26 | O79: 44 | P79: 2 | Q79: 20 | R79: 43 | S79: 45 | T79: 48 | U79: 36 | V79: 17 | W79: 30 | X79: 8 | Y79: 1 | Z79: 15 | AA79: 49 | AB79: 14 | AC79: 44 | AD79: 13 | AE79: 5 | AF79: 5 | AG79: 9 | AH79: 20 | AI79: 11 | AJ79: 7 | AK79: 40 | AL79: 39 | AM79: 26 | AN79: 35 | AO79: 33
K80: 13 | L80: 4 | M80: 40 | N80: 26 | O80: 36 | P80: 10 | Q80: 30 | R80: 3 | S80: 40 | T80: 40 | U80: 29 | V80: 23 | W80: 13 | X80: 14 | Y80: 8 | Z80: 1 | AA80: 12 | AB80: 8 | AC80: 36 | AD80: 10 | AE80: 10 | AF80: 43 | AG80: 46 | AH80: 7 | AI80: 43 | AJ80: 38 | AK80: 25 | AL80: 3 | AM80: 42 | AN80: 23 | AO80: 50
K81: 4 | L81: 6 | M81: 49 | N81: 46 | O81: 24 | P81: 38 | Q81: 29 | R81: 32 | S81: 3 | T81: 50 | U81: 48 | V81: 30 | W81: 4 | X81: 23 | Y81: 19 | Z81: 50 | AA81: 37 | AB81: 22 | AC81: 43 | AD81: 5 | AE81: 39 | AF81: 49 | AG81: 33 | AH81: 36 | AI81: 43 | AJ81: 5 | AK81: 16 | AL81: 46 | AM81: 45 | AN81: 3 | AO81: 16
K82: 31 | L82: 32 | M82: 19 | N82: 19 | O82: 2 | P82: 30 | Q82: 39 | R82: 3 | S82: 27 | T82: 8 | U82: 31 | V82: 18 | W82: 18 | X82: 6 | Y82: 4 | Z82: 1 | AA82: 50 | AB82: 12 | AC82: 14 | AD82: 13 | AE82: 43 | AF82: 43 | AG82: 17 | AH82: 26 | AI82: 8 | AJ82: 18 | AK82: 14 | AL82: 46 | AM82: 2 | AN82: 15 | AO82: 6
K83: 42 | L83: 39 | M83: 4 | N83: 6 | O83: 27 | P83: 48 | Q83: 42 | R83: 46 | S83: 44 | T83: 18 | U83: 20 | V83: 27 | W83: 29 | X83: 8 | Y83: 13 | Z83: 15 | AA83: 11 | AB83: 14 | AC83: 18 | AD83: 15 | AE83: 42 | AF83: 40 | AG83: 40 | AH83: 46 | AI83: 11 | AJ83: 40 | AK83: 24 | AL83: 11 | AM83: 26 | AN83: 31 | AO83: 1
K84: 22 | L84: 30 | M84: 30 | N84: 41 | O84: 17 | P84: 33 | Q84: 34 | R84: 43 | S84: 23 | T84: 42 | U84: 44 | V84: 1 | W84: 38 | X84: 39 | Y84: 10 | Z84: 26 | AA84: 44 | AB84: 49 | AC84: 33 | AD84: 15 | AE84: 19 | AF84: 20 | AG84: 10 | AH84: 4 | AI84: 7 | AJ84: 5 | AK84: 14 | AL84: 25 | AM84: 40 | AN84: 23 | AO84: 41
K85: 37 | L85: 44 | M85: 23 | N85: 18 | O85: 49 | P85: 26 | Q85: 14 | R85: 16 | S85: 37 | T85: 40 | U85: 4 | V85: 29 | W85: 17 | X85: 4 | Y85: 41 | Z85: 27 | AA85: 19 | AB85: 37 | AC85: 9 | AD85: 10 | AE85: 41 | AF85: 22 | AG85: 11 | AH85: 21 | AI85: 10 | AJ85: 19 | AK85: 21 | AL85: 37 | AM85: 7 | AN85: 40 | AO85: 11
K86: 28 | L86: 41 | M86: 6 | N86: 9 | O86: 18 | P86: 12 | Q86: 6 | R86: 10 | S86: 17 | T86: 46 | U86: 22 | V86: 31 | W86: 48 | X86: 47 | Y86: 27 | Z86: 25 | AA86: 4 | AB86: 16 | AC86: 48 | AD86: 32 | AE86: 28 | AF86: 10 | AG86: 27 | AH86: 28 | AI86: 43 | AJ86: 18 | AK86: 34 | AL86: 11 | AM86: 12 | AN86: 35 | AO86: 15
K87: 6 | L87: 18 | M87: 11 | N87: 42 | O87: 35 | P87: 14 | Q87: 32 | R87: 35 | S87: 40 | T87: 29 | U87: 15 | V87: 18 | W87: 12 | X87: 3 | Y87: 33 | Z87: 13 | AA87: 24 | AB87: 19 | AC87: 39 | AD87: 50 | AE87: 48 | AF87: 29 | AG87: 4 | AH87: 42 | AI87: 3 | AJ87: 19 | AK87: 8 | AL87: 4 | AM87: 36 | AN87: 9 | AO87: 31
K88: 18 | L88: 50 | M88: 6 | N88: 21 | O88: 22 | P88: 19 | Q88: 3 | R88: 36 | S88: 41 | T88: 42 | U88: 13 | V88: 2 | W88: 30 | X88: 12 | Y88: 35 | Z88: 26 | AA88: 29 | AB88: 9 | AC88: 32 | AD88: 26 | AE88: 3 | AF88: 22 | AG88: 25 | AH88: 46 | AI88: 22 | AJ88: 18 | AK88: 48 | AL88: 11 | AM88: 34 | AN88: 36 | AO88: 8
K89: 41 | L89: 38 | M89: 3 | N89: 22 | O89: 22 | P89: 2 | Q89: 40 | R89: 36 | S89: 30 | T89: 42 | U89: 8 | V89: 20 | W89: 8 | X89: 21 | Y89: 49 | Z89: 17 | AA89: 31 | AB89: 16 | AC89: 12 | AD89: 23 | AE89: 41 | AF89: 19 | AG89: 26 | AH89: 1 | AI89: 13 | AJ89: 39 | AK89: 43 | AL89: 20 | AM89: 7 | AN89: 23 | AO89: 20
K90: 19 | L90: 26 | M90: 47 | N90: 48 | O90: 11 | P90: 16 | Q90: 31 | R90: 25 | S90: 49 | T90: 35 | U90: 26 | V90: 47 | W90: 33 | X90: 2 | Y90: 14 | Z90: 7 | AA90: 30 | AB90: 2 | AC90: 22 | AD90: 16 | AE90: 38 | AF90: 2 | AG90: 12 | AH90: 8 | AI90: 22 | AJ90: 27 | AK90: 17 | AL90: 48 | AM90: 3 | AN90: 11 | AO90: 4
K91: 2 | L91: 24 | M91: 28 | N91: 23 | O91: 11 | P91: 4 | Q91: 19 | R91: 12 | S91: 48 | T91: 45 | U91: 42 | V91: 29 | W91: 37 | X91: 8 | Y91: 39 | Z91: 46 | AA91: 46 | AB91: 43 | AC91: 26 | AD91: 9 | AE91: 13 | AF91: 45 | AG91: 35 | AH91: 35 | AI91: 19 | AJ91: 33 | AK91: 27 | AL91: 24 | AM91: 7 | AN91: 1 | AO91: 49
K92: 31 | L92: 44 | M92: 12 | N92: 47 | O92: 10 | P92: 31 | Q92: 28 | R92: 14 | S92: 22 | T92: 41 | U92: 38 | V92: 17 | W92: 19 | X92: 29 | Y92: 24 | Z92: 25 | AA92: 44 | AB92: 43 | AC92: 34 | AD92: 44 | AE92: 11 | AF92: 23 | AG92: 8 | AH92: 24 | AI92: 21 | AJ92: 1 | AK92: 34 | AL92: 7 | AM92: 29 | AN92: 18 | AO92: 9
K93: 44 | L93: 50 | M93: 21 | N93: 14 | O93: 46 | P93: 17 | Q93: 28 | R93: 34 | S93: 37 | T93: 8 | U93: 1 | V93: 43 | W93: 2 | X93: 35 | Y93: 39 | Z93: 47 | AA93: 15 | AB93: 32 | AC93: 23 | AD93: 40 | AE93: 43 | AF93: 27 | AG93: 46 | AH93: 20 | AI93: 2 | AJ93: 16 | AK93: 46 | AL93: 35 | AM93: 14 | AN93: 50 | AO93: 39
K94: 36 | L94: 42 | M94: 46 | N94: 18 | O94: 35 | P94: 43 | Q94: 48 | R94: 50 | S94: 7 | T94: 50 | U94: 15 | V94: 9 | W94: 36 | X94: 29 | Y94: 35 | Z94: 2 | AA94: 21 | AB94: 39 | AC94: 35 | AD94: 37 | AE94: 16 | AF94: 39 | AG94: 7 | AH94: 1 | AI94: 39 | AJ94: 14 | AK94: 21 | AL94: 12 | AM94: 18 | AN94: 35 | AO94: 47
K95: 45 | L95: 41 | M95: 32 | N95: 10 | O95: 49 | P95: 5 | Q95: 39 | R95: 46 | S95: 34 | T95: 7 | U95: 30 | V95: 13 | W95: 20 | X95: 6 | Y95: 32 | Z95: 13 | AA95: 21 | AB95: 21 | AC95: 37 | AD95: 18 | AE95: 44 | AF95: 29 | AG95: 13 | AH95: 24 | AI95: 29 | AJ95: 31 | AK95: 22 | AL95: 47 | AM95: 5 | AN95: 19 | AO95: 1
K96: 6 | L96: 21 | M96: 22 | N96: 13 | O96: 2 | P96: 5 | Q96: 18 | R96: 47 | S96: 20 | T96: 42 | U96: 35 | V96: 29 | W96: 38 | X96: 27 | Y96: 25 | Z96: 1 | AA96: 1 | AB96: 20 | AC96: 47 | AD96: 13 | AE96: 43 | AF96: 16 | AG96: 46 | AH96: 18 | AI96: 4 | AJ96: 24 | AK96: 29 | AL96: 27 | AM96: 32 | AN96: 10 | AO96: 24
K97: 10 | L97: 21 | M97: 35 | N97: 9 | O97: 28 | P97: 50 | Q97: 40 | R97: 7 | S97: 30 | T97: 47 | U97: 25 | V97: 42 | W97: 1 | X97: 34 | Y97: 2 | Z97: 39 | AA97: 5 | AB97: 25 | AC97: 20 | AD97: 12 | AE97: 23 | AF97: 19 | AG97: 14 | AH97: 27 | AI97: 28 | AJ97: 49 | AK97: 13 | AL97: 22 | AM97: 45 | AN97: 19 | AO97: 45
K98: 2 | L98: 12 | M98: 27 | N98: 10 | O98: 17 | P98: 18 | Q98: 27 | R98: 20 | S98: 19 | T98: 38 | U98: 43 | V98: 50 | W98: 25 | X98: 22 | Y98: 3 | Z98: 10 | AA98: 32 | AB98: 8 | AC98: 16 | AD98: 41 | AE98: 27 | AF98: 29 | AG98: 13 | AH98: 21 | AI98: 33 | AJ98: 29 | AK98: 26 | AL98: 48 | AM98: 27 | AN98: 37 | AO98: 45
K99: 50 | L99: 39 | M99: 37 | N99: 10 | O99: 30 | P99: 18 | Q99: 40 | R99: 46 | S99: 20 | T99: 5 | U99: 28 | V99: 40 | W99: 4 | X99: 34 | Y99: 1 | Z99: 20 | AA99: 44 | AB99: 1 | AC99: 21 | AD99: 21 | AE99: 24 | AF99: 8 | AG99: 35 | AH99: 7 | AI99: 17 | AJ99: 49 | AK99: 2 | AL99: 44 | AM99: 31 | AN99: 15 | AO99: 1
K100: 44 | L100: 28 | M100: 15 | N100: 11 | O100: 32 | P100: 3 | Q100: 44 | R100: 9 | S100: 2 | T100: 1 | U100: 44 | V100: 17 | W100: 7 | X100: 4 | Y100: 30 | Z100: 44 | AA100: 37 | AB100: 19 | AC100: 37 | AD100: 25 | AE100: 22 | AF100: 5 | AG100: 49 | AH100: 22 | AI100: 24 | AJ100: 2 | AK100: 39 | AL100: 40 | AM100: 24 | AN100: 48 | AO100: 39
K101: 25 | L101: 17 | M101: 7 | N101: 22 | O101: 10 | P101: 36 | Q101: 13 | R101: 47 | S101: 27 | T101: 30 | U101: 34 | V101: 32 | W101: 27 | X101: 20 | Y101: 49 | Z101: 26 | AA101: 25 | AB101: 1 | AC101: 28 | AD101: 44 | AE101: 36 | AF101: 5 | AG101: 6 | AH101: 43 | AI101: 26 | AJ101: 23 | AK101: 29 | AL101: 33 | AM101: 1 | AN101: 50 | AO101: 22
K102: 22 | L102: 7 | M102: 33 | N102: 35 | O102: 11 | P102: 38 | Q102: 20 | R102: 31 | S102: 44 | T102: 47 | U102: 25 | V102: 22 | W102: 4 | X102: 22 | Y102: 15 | Z102: 42 | AA102: 19 | AB102: 33 | AC102: 44 | AD102: 38 | AE102: 8 | AF102: 47 | AG102: 16 | AH102: 19 | AI102: 25 | AJ102: 43 | AK102: 43 | AL102: 13 | AM102: 35 | AN102: 3 | AO102: 12
K103: 39 | L103: 13 | M103: 12 | N103: 13 | O103: 4 | P103: 32 | Q103: 49 | R103: 22 | S103: 36 | T103: 25 | U103: 40 | V103: 21 | W103: 42 | X103: 12 | Y103: 34 | Z103: 30 | AA103: 26 | AB103: 2 | AC103: 18 | AD103: 5 | AE103: 5 | AF103: 46 | AG103: 18 | AH103: 31 | AI103: 38 | AJ103: 24 | AK103: 10 | AL103: 22 | AM103: 31 | AN103: 28 | AO103: 49
K104: 29 | L104: 42 | M104: 38 | N104: 20 | O104: 1 | P104: 17 | Q104: 2 | R104: 5 | S104: 42 | T104: 49 | U104: 48 | V104: 40 | W104: 13 | X104: 3 | Y104: 27 | Z104: 47 | AA104: 24 | AB104: 43 | AC104: 18 | AD104: 9 | AE104: 42 | AF104: 26 | AG104: 26 | AH104: 47 | AI104: 23 | AJ104: 12 | AK104: 46 | AL104: 6 | AM104: 23 | AN104: 21 | AO104: 44
K105: 17 | L105: 33 | M105: 50 | N105: 22 | O105: 31 | P105: 22 | Q105: 24 | R105: 4 | S105: 20 | T105: 31 | U105: 41 | V105: 23 | W105: 46 | X105: 12 | Y105: 46 | Z105: 20 | AA105: 44 | AB105: 46 | AC105: 27 | AD105: 26 | AE105: 39 | AF105: 29 | AG105: 49 | AH105: 21 | AI105: 24 | AJ105: 23 | AK105: 11 | AL105: 2 | AM105: 40 | AN105: 2 | AO105: 17
K106: 28 | L106: 29 | M106: 4 | N106: 40 | O106: 17 | P106: 19 | Q106: 32 | R106: 6 | S106: 45 | T106: 2 | U106: 21 | V106: 11 | W106: 23 | X106: 9 | Y106: 50 | Z106: 47 | AA106: 38 | AB106: 49 | AC106: 3 | AD106: 16 | AE106: 25 | AF106: 28 | AG106: 48 | AH106: 37 | AI106: 44 | AJ106: 18 | AK106: 42 | AL106: 14 | AM106: 10 | AN106: 37 | AO106: 10
K107: 36 | L107: 35 | M107: 20 | N107: 31 | O107: 47 | P107: 5 | Q107: 29 | R107: 25 | S107: 50 | T107: 2 | U107: 30 | V107: 9 | W107: 2 | X107: 2 | Y107: 27 | Z107: 1 | AA107: 21 | AB107: 25 | AC107: 14 | AD107: 10 | AE107: 31 | AF107: 34 | AG107: 30 | AH107: 28 | AI107: 7 | AJ107: 20 | AK107: 30 | AL107: 50 | AM107: 35 | AN107: 20 | AO107: 2
K108: 37 | L108: 3 | M108: 27 | N108: 18 | O108: 2 | P108: 22 | Q108: 9 | R108: 38 | S108: 38 | T108: 24 | U108: 25 | V108: 12 | W108: 49 | X108: 41 | Y108: 36 | Z108: 41 | AA108: 23 | AB108: 3 | AC108: 8 | AD108: 20 | AE108: 11 | AF108: 13 | AG108: 6 | AH108: 49 | AI108: 2 | AJ108: 22 | AK108: 4 | AL108: 33 | AM108: 37 | AN108: 21 | AO108: 45
K109: 37 | L109: 41 | M109: 2 | N109: 37 | O109: 30 | P109: 20 | Q109: 18 | R109: 35 | S109: 16 | T109: 7 | U109: 37 | V109: 27 | W109: 19 | X109: 32 | Y109: 46 | Z109: 37 | AA109: 40 | AB109: 9 | AC109: 26 | AD109: 37 | AE109: 6 | AF109: 24 | AG109: 46 | AH109: 47 | AI109: 17 | AJ109: 13 | AK109: 28 | AL109: 7 | AM109: 46 | AN109: 25 | AO109: 25
K110: 40 | L110: 6 | M110: 12 | N110: 28 | O110: 19 | P110: 3 | Q110: 13 | R110: 4 | S110: 29 | T110: 10 | U110: 38 | V110: 15 | W110: 29 | X110: 39 | Y110: 33 | Z110: 23 | AA110: 43 | AB110: 9 | AC110: 20 | AD110: 48 | AE110: 18 | AF110: 18 | AG110: 10 | AH110: 50 | AI110: 26 | AJ110: 27 | AK110: 34 | AL110: 7 | AM110: 42 | AN110: 12 | AO110: 38
K111: 25 | L111: 3 | M111: 31 | N111: 5 | O111: 16 | P111: 3 | Q111: 44 | R111: 48 | S111: 9 | T111: 26 | U111: 21 | V111: 20 | W111: 22 | X111: 12 | Y111: 44 | Z111: 45 | AA111: 3 | AB111: 50 | AC111: 10 | AD111: 36 | AE111: 29 | AF111: 34 | AG111: 24 | AH111: 33 | AI111: 6 | AJ111: 4 | AK111: 2 | AL111: 21 | AM111: 30 | AN111: 7 | AO111: 27
K112: 36 | L112: 4 | M112: 9 | N112: 12 | O112: 24 | P112: 47 | Q112: 27 | R112: 39 | S112: 47 | T112: 46 | U112: 18 | V112: 34 | W112: 22 | X112: 49 | Y112: 43 | Z112: 22 | AA112: 27 | AB112: 8 | AC112: 23 | AD112: 27 | AE112: 6 | AF112: 8 | AG112: 46 | AH112: 39 | AI112: 18 | AJ112: 16 | AK112: 17 | AL112: 6 | AM112: 23 | AN112: 16 | AO112: 38
K113: 41 | L113: 44 | M113: 32 | N113: 35 | O113: 20 | P113: 28 | Q113: 20 | R113: 44 | S113: 1 | T113: 32 | U113: 29 | V113: 39 | W113: 1 | X113: 25 | Y113: 31 | Z113: 36 | AA113: 38 | AB113: 27 | AC113: 11 | AD113: 11 | AE113: 15 | AF113: 26 | AG113: 24 | AH113: 20 | AI113: 11 | AJ113: 26 | AK113: 44 | AL113: 28 | AM113: 13 | AN113: 43 | AO113: 26
K114: 26 | L114: 49 | M114: 37 | N114: 38 | O114: 38 | P114: 11 | Q114: 13 | R114: 22 | S114: 8 | T114: 18 | U114: 3 | V114: 3 | W114: 34 | X114: 41 | Y114: 25 | Z114: 42 | AA114: 44 | AB114: 27 | AC114: 48 | AD114: 34 | AE114: 22 | AF114: 10 | AG114: 19 | AH114: 44 | AI114: 49 | AJ114: 3 | AK114: 33 | AL114: 14 | AM114: 40 | AN114: 22 | AO114: 47
K115: 8 | L115: 28 | M115: 40 | N115: 36 | O115: 5 | P115: 42 | Q115: 8 | R115: 40 | S115: 20 | T115: 42 | U115: 23 | V115: 8 | W115: 6 | X115: 6 | Y115: 4 | Z115: 4 | AA115: 26 | AB115: 39 | AC115: 15 | AD115: 8 | AE115: 8 | AF115: 39 | AG115: 36 | AH115: 33 | AI115: 17 | AJ115: 13 | AK115: 37 | AL115: 7 | AM115: 31 | AN115: 21 | AO115: 1
K116: 23 | L116: 3 | M116: 10 | N116: 12 | O116: 1 | P116: 3 | Q116: 18 | R116: 17 | S116: 30 | T116: 23 | U116: 11 | V116: 33 | W116: 15 | X116: 5 | Y116: 7 | Z116: 14 | AA116: 8 | AB116: 25 | AC116: 3 | AD116: 49 | AE116: 20 | AF116: 12 | AG116: 48 | AH116: 11 | AI116: 37 | AJ116: 44 | AK116: 30 | AL116: 45 | AM116: 27 | AN116: 44 | AO116: 30
K117: 33 | L117: 14 | M117: 40 | N117: 18 | O117: 24 | P117: 48 | Q117: 48 | R117: 32 | S117: 3 | T117: 50 | U117: 9 | V117: 16 | W117: 32 | X117: 11 | Y117: 49 | Z117: 23 | AA117: 43 | AB117: 28 | AC117: 49 | AD117: 17 | AE117: 20 | AF117: 49 | AG117: 2 | AH117: 18 | AI117: 5 | AJ117: 14 | AK117: 14 | AL117: 49 | AM117: 33 | AN117: 17 | AO117: 1
K118: 50 | L118: 42 | M118: 17 | N118: 37 | O118: 39 | P118: 6 | Q118: 6 | R118: 31 | S118: 19 | T118: 29 | U118: 11 | V118: 39 | W118: 33 | X118: 15 | Y118: 26 | Z118: 31 | AA118: 15 | AB118: 6 | AC118: 23 | AD118: 39 | AE118: 10 | AF118: 38 | AG118: 17 | AH118: 48 | AI118: 3 | AJ118: 18 | AK118: 37 | AL118: 44 | AM118: 49 | AN118: 33 | AO118: 40
K119: 38 | L119: 11 | M119: 48 | N119: 23 | O119: 16 | P119: 5 | Q119: 45 | R119: 38 | S119: 30 | T119: 16 | U119: 28 | V119: 23 | W119: 7 | X119: 8 | Y119: 5 | Z119: 13 | AA119: 35 | AB119: 2 | AC119: 46 | AD119: 37 | AE119: 37 | AF119: 17 | AG119: 32 | AH119: 6 | AI119: 14 | AJ119: 18 | AK119: 38 | AL119: 19 | AM119: 21 | AN119: 23 | AO119: 40
K120: 18 | L120: 36 | M120: 28 | N120: 20 | O120: 2 | P120: 40 | Q120: 22 | R120: 50 | S120: 37 | T120: 11 | U120: 22 | V120: 17 | W120: 50 | X120: 7 | Y120: 22 | Z120: 24 | AA120: 14 | AB120: 4 | AC120: 34 | AD120: 36 | AE120: 25 | AF120: 26 | AG120: 30 | AH120: 37 | AI120: 41 | AJ120: 8 | AK120: 3 | AL120: 4 | AM120: 39 | AN120: 12 | AO120: 7
K121: 11 | L121: 4 | M121: 25 | N121: 20 | O121: 47 | P121: 3 | Q121: 23 | R121: 44 | S121: 14 | T121: 15 | U121: 8 | V121: 11 | W121: 9 | X121: 14 | Y121: 8 | Z121: 31 | AA121: 6 | AB121: 6 | AC121: 20 | AD121: 4 | AE121: 5 | AF121: 2 | AG121: 23 | AH121: 27 | AI121: 38 | AJ121: 45 | AK121: 20 | AL121: 40 | AM121: 5 | AN121: 38 | AO121: 31
K122: 22 | L122: 5 | M122: 46 | N122: 1 | O122: 12 | P122: 40 | Q122: 32 | R122: 1 | S122: 19 | T122: 35 | U122: 48 | V122: 37 | W122: 41 | X122: 40 | Y122: 29 | Z122: 46 | AA122: 6 | AB122: 9 | AC122: 37 | AD122: 30 | AE122: 39 | AF122: 14 | AG122: 13 | AH122: 21 | AI122: 24 | AJ122: 50 | AK122: 42 | AL122: 25 | AM122: 16 | AN122: 26 | AO122: 1
K123: 49 | L123: 35 | M123: 10 | N123: 49 | O123: 43 | P123: 7 | Q123: 21 | R123: 14 | S123: 7 | T123: 50 | U123: 25 | V123: 46 | W123: 46 | X123: 13 | Y123: 48 | Z123: 7 | AA123: 42 | AB123: 23 | AC123: 42 | AD123: 30 | AE123: 22 | AF123: 8 | AG123: 28 | AH123: 12 | AI123: 1 | AJ123: 5 | AK123: 41 | AL123: 27 | AM123: 30 | AN123: 47 | AO123: 46
K124: 42 | L124: 35 | M124: 49 | N124: 2 | O124: 40 | P124: 33 | Q124: 3 | R124: 41 | S124: 3 | T124: 9 | U124: 29 | V124: 29 | W124: 6 | X124: 16 | Y124: 49 | Z124: 11 | AA124: 14 | AB124: 45 | AC124: 31 | AD124: 14 | AE124: 10 | AF124: 42 | AG124: 1 | AH124: 41 | AI124: 28 | AJ124: 41 | AK124: 30 | AL124: 27 | AM124: 1 | AN124: 20 | AO124: 46
K125: 26 | L125: 35 | M125: 31 | N125: 21 | O125: 17 | P125: 31 | Q125: 1 | R125: 21 | S125: 18 | T125: 10 | U125: 19 | V125: 11 | W125: 6 | X125: 43 | Y125: 41 | Z125: 44 | AA125: 11 | AB125: 36 | AC125: 41 | AD125: 2 | AE125: 26 | AF125: 44 | AG125: 21 | AH125: 31 | AI125: 48 | AJ125: 13 | AK125: 2 | AL125: 29 | AM125: 30 | AN125: 34 | AO125: 39
K126: 5 | L126: 3 | M126: 4 | N126: 47 | O126: 7 | P126: 39 | Q126: 32 | R126: 45 | S126: 43 | T126: 15 | U126: 40 | V126: 35 | W126: 34 | X126: 42 | Y126: 34 | Z126: 23 | AA126: 16 | AB126: 20 | AC126: 29 | AD126: 12 | AE126: 36 | AF126: 3 | AG126: 34 | AH126: 33 | AI126: 6 | AJ126: 13 | AK126: 23 | AL126: 13 | AM126: 3 | AN126: 42 | AO126: 27
K127: 11 | L127: 13 | M127: 12 | N127: 44 | O127: 27 | P127: 25 | Q127: 15 | R127: 27 | S127: 43 | T127: 21 | U127: 32 | V127: 38 | W127: 5 | X127: 6 | Y127: 25 | Z127: 35 | AA127: 1 | AB127: 26 | AC127: 49 | AD127: 33 | AE127: 33 | AF127: 16 | AG127: 24 | AH127: 40 | AI127: 14 | AJ127: 30 | AK127: 45 | AL127: 6 | AM127: 42 | AN127: 7 | AO127: 9
K128: 24 | L128: 43 | M128: 37 | N128: 7 | O128: 45 | P128: 22 | Q128: 39 | R128: 37 | S128: 48 | T128: 49 | U128: 36 | V128: 23 | W128: 28 | X128: 15 | Y128: 29 | Z128: 6 | AA128: 49 | AB128: 20 | AC128: 22 | AD128: 12 | AE128: 6 | AF128: 38 | AG128: 29 | AH128: 10 | AI128: 41 | AJ128: 6 | AK128: 49 | AL128: 44 | AM128: 36 | AN128: 8 | AO128: 39
K129: 8 | L129: 27 | M129: 48 | N129: 25 | O129: 18 | P129: 5 | Q129: 5 | R129: 1 | S129: 40 | T129: 15 | U129: 19 | V129: 17 | W129: 40 | X129: 25 | Y129: 39 | Z129: 14 | AA129: 10 | AB129: 20 | AC129: 16 | AD129: 37 | AE129: 32 | AF129: 24 | AG129: 30 | AH129: 2 | AI129: 1 | AJ129: 13 | AK129: 15 | AL129: 28 | AM129: 9 | AN129: 38 | AO129: 14
K130: 4 | L130: 34 | M130: 14 | N130: 24 | O130: 10 | P130: 35 | Q130: 32 | R130: 49 | S130: 1 | T130: 6 | U130: 4 | V130: 1 | W130: 45 | X130: 23 | Y130: 39 | Z130: 47 | AA130: 37 | AB130: 31 | AC130: 35 | AD130: 15 | AE130: 31 | AF130: 27 | AG130: 13 | AH130: 31 | AI130: 19 | AJ130: 7 | AK130: 13 | AL130: 33 | AM130: 45 | AN130: 27 | AO130: 23
K131: 37 | L131: 33 | M131: 33 | N131: 35 | O131: 27 | P131: 34 | Q131: 28 | R131: 6 | S131: 19 | T131: 15 | U131: 15 | V131: 2 | W131: 9 | X131: 26 | Y131: 35 | Z131: 42 | AA131: 6 | AB131: 42 | AC131: 2 | AD131: 19 | AE131: 44 | AF131: 2 | AG131: 29 | AH131: 31 | AI131: 34 | AJ131: 3 | AK131: 19 | AL131: 12 | AM131: 44 | AN131: 42 | AO131: 39
K132: 1 | L132: 39 | M132: 5 | N132: 44 | O132: 5 | P132: 9 | Q132: 37 | R132: 16 | S132: 23 | T132: 34 | U132: 49 | V132: 22 | W132: 25 | X132: 31 | Y132: 42 | Z132: 19 | AA132: 46 | AB132: 14 | AC132: 24 | AD132: 2 | AE132: 18 | AF132: 42 | AG132: 19 | AH132: 10 | AI132: 18 | AJ132: 25 | AK132: 47 | AL132: 22 | AM132: 43 | AN132: 11 | AO132: 37
K133: 30 | L133: 1 | M133: 4 | N133: 14 | O133: 28 | P133: 32 | Q133: 34 | R133: 17 | S133: 30 | T133: 32 | U133: 34 | V133: 14 | W133: 33 | X133: 31 | Y133: 40 | Z133: 43 | AA133: 7 | AB133: 8 | AC133: 4 | AD133: 50 | AE133: 30 | AF133: 14 | AG133: 22 | AH133: 27 | AI133: 32 | AJ133: 27 | AK133: 2 | AL133: 35 | AM133: 5 | AN133: 39 | AO133: 8
K134: 22 | L134: 8 | M134: 10 | N134: 9 | O134: 50 | P134: 22 | Q134: 23 | R134: 14 | S134: 41 | T134: 17 | U134: 19 | V134: 45 | W134: 19 | X134: 36 | Y134: 30 | Z134: 37 | AA134: 28 | AB134: 18 | AC134: 26 | AD134: 14 | AE134: 27 | AF134: 4 | AG134: 47 | AH134: 34 | AI134: 47 | AJ134: 4 | AK134: 2 | AL134: 46 | AM134: 36 | AN134: 14 | AO134: 14
K135: 30 | L135: 10 | M135: 16 | N135: 14 | O135: 2 | P135: 1 | Q135: 1 | R135: 29 | S135: 35 | T135: 44 | U135: 40 | V135: 34 | W135: 43 | X135: 1 | Y135: 4 | Z135: 19 | AA135: 48 | AB135: 6 | AC135: 24 | AD135: 27 | AE135: 37 | AF135: 11 | AG135: 12 | AH135: 12 | AI135: 14 | AJ135: 20 | AK135: 41 | AL135: 47 | AM135: 25 | AN135: 50 | AO135: 41
K136: 4 | L136: 45 | M136: 27 | N136: 19 | O136: 14 | P136: 49 | Q136: 17 | R136: 19 | S136: 6 | T136: 15 | U136: 37 | V136: 38 | W136: 11 | X136: 41 | Y136: 10 | Z136: 5 | AA136: 27 | AB136: 10 | AC136: 23 | AD136: 1 | AE136: 1 | AF136: 28 | AG136: 20 | AH136: 39 | AI136: 36 | AJ136: 25 | AK136: 1 | AL136: 48 | AM136: 45 | AN136: 18 | AO136: 36
K137: 8 | L137: 50 | M137: 43 | N137: 4 | O137: 6 | P137: 23 | Q137: 41 | R137: 2 | S137: 8 | T137: 4 | U137: 27 | V137: 31 | W137: 50 | X137: 39 | Y137: 42 | Z137: 48 | AA137: 30 | AB137: 12 | AC137: 43 | AD137: 29 | AE137: 8 | AF137: 18 | AG137: 35 | AH137: 3 | AI137: 12 | AJ137: 33 | AK137: 39 | AL137: 22 | AM137: 15 | AN137: 50 | AO137: 26
K138: 12 | L138: 35 | M138: 41 | N138: 25 | O138: 23 | P138: 14 | Q138: 44 | R138: 6 | S138: 40 | T138: 8 | U138: 19 | V138: 8 | W138: 8 | X138: 41 | Y138: 13 | Z138: 27 | AA138: 11 | AB138: 46 | AC138: 23 | AD138: 1 | AE138: 27 | AF138: 1 | AG138: 24 | AH138: 25 | AI138: 45 | AJ138: 29 | AK138: 13 | AL138: 50 | AM138: 9 | AN138: 18 | AO138: 21
K139: 9 | L139: 32 | M139: 16 | N139: 21 | O139: 5 | P139: 24 | Q139: 17 | R139: 5 | S139: 47 | T139: 4 | U139: 7 | V139: 21 | W139: 36 | X139: 26 | Y139: 23 | Z139: 19 | AA139: 39 | AB139: 28 | AC139: 33 | AD139: 5 | AE139: 34 | AF139: 30 | AG139: 41 | AH139: 10 | AI139: 14 | AJ139: 3 | AK139: 15 | AL139: 27 | AM139: 8 | AN139: 24 | AO139: 12
K140: 37 | L140: 45 | M140: 13 | N140: 6 | O140: 50 | P140: 15 | Q140: 17 | R140: 15 | S140: 18 | T140: 31 | U140: 17 | V140: 17 | W140: 24 | X140: 29 | Y140: 10 | Z140: 3 | AA140: 15 | AB140: 46 | AC140: 24 | AD140: 21 | AE140: 10 | AF140: 49 | AG140: 33 | AH140: 41 | AI140: 45 | AJ140: 37 | AK140: 11 | AL140: 5 | AM140: 29 | AN140: 48 | AO140: 2
K141: 30 | L141: 46 | M141: 9 | N141: 35 | O141: 41 | P141: 26 | Q141: 31 | R141: 34 | S141: 6 | T141: 41 | U141: 12 | V141: 36 | W141: 11 | X141: 43 | Y141: 11 | Z141: 19 | AA141: 10 | AB141: 50 | AC141: 41 | AD141: 28 | AE141: 35 | AF141: 35 | AG141: 14 | AH141: 23 | AI141: 44 | AJ141: 34 | AK141: 9 | AL141: 48 | AM141: 11 | AN141: 48 | AO141: 34
K142: 9 | L142: 50 | M142: 8 | N142: 15 | O142: 10 | P142: 47 | Q142: 10 | R142: 11 | S142: 2 | T142: 2 | U142: 8 | V142: 50 | W142: 32 | X142: 23 | Y142: 7 | Z142: 23 | AA142: 9 | AB142: 14 | AC142: 24 | AD142: 12 | AE142: 27 | AF142: 40 | AG142: 18 | AH142: 40 | AI142: 24 | AJ142: 12 | AK142: 36 | AL142: 5 | AM142: 27 | AN142: 40 | AO142: 1
K143: 49 | L143: 42 | M143: 22 | N143: 29 | O143: 35 | P143: 14 | Q143: 2 | R143: 15 | S143: 16 | T143: 16 | U143: 39 | V143: 13 | W143: 9 | X143: 22 | Y143: 39 | Z143: 42 | AA143: 42 | AB143: 30 | AC143: 46 | AD143: 23 | AE143: 7 | AF143: 4 | AG143: 34 | AH143: 3 | AI143: 40 | AJ143: 5 | AK143: 40 | AL143: 42 | AM143: 10 | AN143: 7 | AO143: 46
K144: 31 | L144: 42 | M144: 8 | N144: 42 | O144: 11 | P144: 43 | Q144: 13 | R144: 35 | S144: 49 | T144: 29 | U144: 47 | V144: 12 | W144: 49 | X144: 21 | Y144: 5 | Z144: 2 | AA144: 3 | AB144: 16 | AC144: 17 | AD144: 24 | AE144: 47 | AF144: 28 | AG144: 19 | AH144: 3 | AI144: 40 | AJ144: 35 | AK144: 42 | AL144: 46 | AM144: 20 | AN144: 24 | AO144: 49
K145: 3 | L145: 9 | M145: 34 | N145: 40 | O145: 35 | P145: 34 | Q145: 1 | R145: 32 | S145: 34 | T145: 45 | U145: 26 | V145: 34 | W145: 25 | X145: 10 | Y145: 1 | Z145: 42 | AA145: 2 | AB145: 46 | AC145: 23 | AD145: 14 | AE145: 33 | AF145: 26 | AG145: 48 | AH145: 4 | AI145: 42 | AJ145: 36 | AK145: 7 | AL145: 18 | AM145: 36 | AN145: 15 | AO145: 50
K146: 27 | L146: 33 | M146: 19 | N146: 31 | O146: 13 | P146: 20 | Q146: 48 | R146: 23 | S146: 46 | T146: 34 | U146: 5 | V146: 8 | W146: 38 | X146: 20 | Y146: 24 | Z146: 46 | AA146: 3 | AB146: 38 | AC146: 39 | AD146: 12 | AE146: 23 | AF146: 20 | AG146: 21 | AH146: 23 | AI146: 13 | AJ146: 39 | AK146: 18 | AL146: 34 | AM146: 26 | AN146: 38 | AO146: 49
K147: 5 | L147: 15 | M147: 27 | N147: 18 | O147: 39 | P147: 41 | Q147: 38 | R147: 35 | S147: 23 | T147: 11 | U147: 43 | V147: 26 | W147: 17 | X147: 26 | Y147: 37 | Z147: 28 | AA147: 36 | AB147: 7 | AC147: 18 | AD147: 45 | AE147: 5 | AF147: 11 | AG147: 48 | AH147: 10 | AI147: 26 | AJ147: 8 | AK147: 42 | AL147: 42 | AM147: 37 | AN147: 25 | AO147: 6
K148: 37 | L148: 21 | M148: 40 | N148: 8 | O148: 8 | P148: 12 | Q148: 7 | R148: 27 | S148: 30 | T148: 49 | U148: 38 | V148: 48 | W148: 42 | X148: 42 | Y148: 17 | Z148: 11 | AA148: 1 | AB148: 12 | AC148: 37 | AD148: 25 | AE148: 29 | AF148: 18 | AG148: 38 | AH148: 2 | AI148: 20 | AJ148: 50 | AK148: 11 | AL148: 33 | AM148: 19 | AN148: 37 | AO148: 27
K149: 34 | L149: 31 | M149: 41 | N149: 20 | O149: 7 | P149: 44 | Q149: 39 | R149: 1 | S149: 32 | T149: 5 | U149: 47 | V149: 46 | W149: 19 | X149: 38 | Y149: 12 | Z149: 12 | AA149: 28 | AB149: 28 | AC149: 2 | AD149: 39 | AE149: 49 | AF149: 30 | AG149: 29 | AH149: 38 | AI149: 5 | AJ149: 22 | AK149: 40 | AL149: 27 | AM149: 17 | AN149: 18 | AO149: 50
K150: 2 | L150: 38 | M150: 25 | N150: 32 | O150: 27 | P150: 48 | Q150: 38 | R150: 48 | S150: 27 | T150: 19 | U150: 28 | V150: 37 | W150: 16 | X150: 15 | Y150: 6 | Z150: 8 | AA150: 17 | AB150: 20 | AC150: 26 | AD150: 45 | AE150: 36 | AF150: 41 | AG150: 35 | AH150: 25 | AI150: 4 | AJ150: 30 | AK150: 37 | AL150: 46 | AM150: 6 | AN150: 34 | AO150: 10
K151: 49 | L151: 46 | M151: 26 | N151: 8 | O151: 21 | P151: 39 | Q151: 37 | R151: 34 | S151: 2 | T151: 48 | U151: 15 | V151: 39 | W151: 42 | X151: 10 | Y151: 46 | Z151: 12 | AA151: 49 | AB151: 9 | AC151: 8 | AD151: 15 | AE151: 28 | AF151: 12 | AG151: 47 | AH151: 31 | AI151: 11 | AJ151: 12 | AK151: 29 | AL151: 16 | AM151: 24 | AN151: 32 | AO151: 9
K152: 4 | L152: 9 | M152: 42 | N152: 40 | O152: 13 | P152: 35 | Q152: 49 | R152: 26 | S152: 13 | T152: 10 | U152: 33 | V152: 10 | W152: 26 | X152: 15 | Y152: 31 | Z152: 44 | AA152: 42 | AB152: 12 | AC152: 41 | AD152: 40 | AE152: 7 | AF152: 50 | AG152: 6 | AH152: 35 | AI152: 1 | AJ152: 2 | AK152: 23 | AL152: 25 | AM152: 14 | AN152: 1 | AO152: 40
K153: 42 | L153: 8 | M153: 26 | N153: 12 | O153: 44 | P153: 36 | Q153: 41 | R153: 14 | S153: 48 | T153: 1 | U153: 16 | V153: 10 | W153: 1 | X153: 30 | Y153: 5 | Z153: 28 | AA153: 12 | AB153: 22 | AC153: 28 | AD153: 39 | AE153: 26 | AF153: 21 | AG153: 11 | AH153: 1 | AI153: 1 | AJ153: 18 | AK153: 7 | AL153: 13 | AM153: 43 | AN153: 35 | AO153: 38
K154: 28 | L154: 6 | M154: 17 | N154: 30 | O154: 7 | P154: 17 | Q154: 19 | R154: 2 | S154: 1 | T154: 34 | U154: 16 | V154: 25 | W154: 50 | X154: 3 | Y154: 27 | Z154: 12 | AA154: 33 | AB154: 16 | AC154: 22 | AD154: 17 | AE154: 16 | AF154: 35 | AG154: 33 | AH154: 50 | AI154: 1 | AJ154: 31 | AK154: 2 | AL154: 35 | AM154: 22 | AN154: 26 | AO154: 23
K155: 43 | L155: 5 | M155: 23 | N155: 28 | O155: 16 | P155: 22 | Q155: 31 | R155: 22 | S155: 4 | T155: 46 | U155: 46 | V155: 29 | W155: 25 | X155: 35 | Y155: 22 | Z155: 47 | AA155: 32 | AB155: 50 | AC155: 30 | AD155: 35 | AE155: 21 | AF155: 48 | AG155: 49 | AH155: 36 | AI155: 26 | AJ155: 22 | AK155: 32 | AL155: 10 | AM155: 18 | AN155: 34 | AO155: 10
K156: 45 | L156: 29 | M156: 17 | N156: 9 | O156: 2 | P156: 41 | Q156: 8 | R156: 1 | S156: 42 | T156: 24 | U156: 38 | V156: 42 | W156: 11 | X156: 37 | Y156: 16 | Z156: 25 | AA156: 12 | AB156: 41 | AC156: 15 | AD156: 1 | AE156: 11 | AF156: 48 | AG156: 1 | AH156: 2 | AI156: 39 | AJ156: 5 | AK156: 30 | AL156: 5 | AM156: 22 | AN156: 42 | AO156: 32
K157: 1 | L157: 5 | M157: 23 | N157: 35 | O157: 15 | P157: 9 | Q157: 25 | R157: 32 | S157: 21 | T157: 42 | U157: 35 | V157: 19 | W157: 33 | X157: 25 | Y157: 35 | Z157: 1 | AA157: 11 | AB157: 14 | AC157: 31 | AD157: 43 | AE157: 30 | AF157: 16 | AG157: 14 | AH157: 24 | AI157: 14 | AJ157: 27 | AK157: 20 | AL157: 19 | AM157: 10 | AN157: 19 | AO157: 42
K158: 8 | L158: 11 | M158: 26 | N158: 24 | O158: 18 | P158: 32 | Q158: 4 | R158: 44 | S158: 28 | T158: 29 | U158: 30 | V158: 50 | W158: 45 | X158: 25 | Y158: 17 | Z158: 36 | AA158: 9 | AB158: 28 | AC158: 25 | AD158: 5 | AE158: 15 | AF158: 15 | AG158: 31 | AH158: 14 | AI158: 19 | AJ158: 36 | AK158: 23 | AL158: 24 | AM158: 23 | AN158: 6 | AO158: 8
K159: 23 | L159: 5 | M159: 9 | N159: 44 | O159: 18 | P159: 3 | Q159: 23 | R159: 34 | S159: 44 | T159: 49 | U159: 2 | V159: 41 | W159: 14 | X159: 8 | Y159: 14 | Z159: 37 | AA159: 12 | AB159: 27 | AC159: 28 | AD159: 14 | AE159: 3 | AF159: 40 | AG159: 1 | AH159: 36 | AI159: 27 | AJ159: 5 | AK159: 9 | AL159: 33 | AM159: 17 | AN159: 27 | AO159: 47
K160: 49 | L160: 15 | M160: 50 | N160: 44 | O160: 4 | P160: 42 | Q160: 12 | R160: 8 | S160: 31 | T160: 20 | U160: 4 | V160: 37 | W160: 10 | X160: 34 | Y160: 21 | Z160: 27 | AA160: 23 | AB160: 16 | AC160: 4 | AD160: 44 | AE160: 25 | AF160: 45 | AG160: 32 | AH160: 36 | AI160: 30 | AJ160: 30 | AK160: 31 | AL160: 10 | AM160: 22 | AN160: 28 | AO160: 30
K161: 23 | L161: 13 | M161: 9 | N161: 22 | O161: 9 | P161: 14 | Q161: 17 | R161: 46 | S161: 10 | T161: 31 | U161: 26 | V161: 15 | W161: 39 | X161: 22 | Y161: 9 | Z161: 7 | AA161: 7 | AB161: 32 | AC161: 20 | AD161: 27 | AE161: 14 | AF161: 6 | AG161: 28 | AH161: 24 | AI161: 39 | AJ161: 23 | AK161: 18 | AL161: 30 | AM161: 50 | AN161: 38 | AO161: 39
K162: 25 | L162: 15 | M162: 46 | N162: 29 | O162: 21 | P162: 6 | Q162: 47 | R162: 29 | S162: 17 | T162: 16 | U162: 2 | V162: 49 | W162: 47 | X162: 9 | Y162: 3 | Z162: 43 | AA162: 17 | AB162: 17 | AC162: 35 | AD162: 22 | AE162: 48 | AF162: 50 | AG162: 43 | AH162: 46 | AI162: 4 | AJ162: 46 | AK162: 22 | AL162: 42 | AM162: 47 | AN162: 50 | AO162: 36
K163: 2 | L163: 6 | M163: 20 | N163: 3 | O163: 32 | P163: 37 | Q163: 20 | R163: 26 | S163: 16 | T163: 29 | U163: 26 | V163: 18 | W163: 1 | X163: 31 | Y163: 28 | Z163: 37 | AA163: 21 | AB163: 18 | AC163: 34 | AD163: 26 | AE163: 33 | AF163: 40 | AG163: 28 | AH163: 25 | AI163: 4 | AJ163: 37 | AK163: 21 | AL163: 21 | AM163: 38 | AN163: 5 | AO163: 43
K164: 39 | L164: 45 | M164: 6 | N164: 39 | O164: 43 | P164: 21 | Q164: 35 | R164: 44 | S164: 41 | T164: 40 | U164: 8 | V164: 46 | W164: 3 | X164: 7 | Y164: 7 | Z164: 25 | AA164: 37 | AB164: 32 | AC164: 11 | AD164: 25 | AE164: 28 | AF164: 45 | AG164: 38 | AH164: 30 | AI164: 23 | AJ164: 33 | AK164: 15 | AL164: 17 | AM164: 23 | AN164: 34 | AO164: 40
K165: 8 | L165: 25 | M165: 1 | N165: 16 | O165: 5 | P165: 5 | Q165: 13 | R165: 16 | S165: 8 | T165: 29 | U165: 11 | V165: 38 | W165: 43 | X165: 47 | Y165: 30 | Z165: 14 | AA165: 12 | AB165: 8 | AC165: 32 | AD165: 35 | AE165: 20 | AF165: 34 | AG165: 39 | AH165: 48 | AI165: 37 | AJ165: 22 | AK165: 3 | AL165: 21 | AM165: 13 | AN165: 1 | AO165: 37
K166: 14 | L166: 5 | M166: 35 | N166: 19 | O166: 24 | P166: 13 | Q166: 33 | R166: 10 | S166: 33 | T166: 4 | U166: 8 | V166: 8 | W166: 29 | X166: 6 | Y166: 50 | Z166: 38 | AA166: 46 | AB166: 35 | AC166: 42 | AD166: 44 | AE166: 24 | AF166: 42 | AG166: 26 | AH166: 32 | AI166: 39 | AJ166: 34 | AK166: 32 | AL166: 12 | AM166: 13 | AN166: 46 | AO166: 47
K167: 7 | L167: 23 | M167: 24 | N167: 50 | O167: 11 | P167: 21 | Q167: 17 | R167: 32 | S167: 31 | T167: 20 | U167: 16 | V167: 20 | W167: 7 | X167: 47 | Y167: 13 | Z167: 14 | AA167: 10 | AB167: 27 | AC167: 25 | AD167: 50 | AE167: 36 | AF167: 39 | AG167: 5 | AH167: 7 | AI167: 29 | AJ167: 8 | AK167: 26 | AL167: 21 | AM167: 36 | AN167: 25 | AO167: 31
K168: 29 | L168: 3 | M168: 8 | N168: 5 | O168: 23 | P168: 28 | Q168: 18 | R168: 36 | S168: 22 | T168: 28 | U168: 43 | V168: 27 | W168: 5 | X168: 16 | Y168: 9 | Z168: 22 | AA168: 8 | AB168: 10 | AC168: 23 | AD168: 37 | AE168: 29 | AF168: 1 | AG168: 4 | AH168: 4 | AI168: 49 | AJ168: 36 | AK168: 26 | AL168: 18 | AM168: 12 | AN168: 2 | AO168: 1
K169: 32 | L169: 32 | M169: 46 | N169: 14 | O169: 20 | P169: 2 | Q169: 13 | R169: 33 | S169: 45 | T169: 49 | U169: 33 | V169: 34 | W169: 4 | X169: 48 | Y169: 48 | Z169: 36 | AA169: 18 | AB169: 12 | AC169: 8 | AD169: 12 | AE169: 3 | AF169: 20 | AG169: 11 | AH169: 35 | AI169: 44 | AJ169: 1 | AK169: 39 | AL169: 7 | AM169: 16 | AN169: 19 | AO169: 22
K170: 6 | L170: 23 | M170: 50 | N170: 20 | O170: 46 | P170: 40 | Q170: 46 | R170: 27 | S170: 32 | T170: 5 | U170: 7 | V170: 22 | W170: 34 | X170: 31 | Y170: 30 | Z170: 35 | AA170: 20 | AB170: 4 | AC170: 1 | AD170: 8 | AE170: 34 | AF170: 22 | AG170: 31 | AH170: 49 | AI170: 20 | AJ170: 49 | AK170: 15 | AL170: 50 | AM170: 16 | AN170: 33 | AO170: 47
K171: 17 | L171: 36 | M171: 27 | N171: 45 | O171: 45 | P171: 10 | Q171: 38 | R171: 22 | S171: 3 | T171: 27 | U171: 26 | V171: 17 | W171: 38 | X171: 39 | Y171: 17 | Z171: 24 | AA171: 18 | AB171: 4 | AC171: 43 | AD171: 5 | AE171: 43 | AF171: 40 | AG171: 22 | AH171: 41 | AI171: 5 | AJ171: 48 | AK171: 21 | AL171: 44 | AM171: 9 | AN171: 3 | AO171: 9
K172: 12 | L172: 16 | M172: 28 | N172: 41 | O172: 9 | P172: 47 | Q172: 4 | R172: 12 | S172: 6 | T172: 49 | U172: 32 | V172: 34 | W172: 28 | X172: 24 | Y172: 7 | Z172: 35 | AA172: 40 | AB172: 36 | AC172: 7 | AD172: 10 | AE172: 39 | AF172: 2 | AG172: 11 | AH172: 2 | AI172: 30 | AJ172: 48 | AK172: 33 | AL172: 39 | AM172: 45 | AN172: 32 | AO172: 5
K173: 1 | L173: 17 | M173: 39 | N173: 49 | O173: 40 | P173: 23 | Q173: 13 | R173: 5 | S173: 41 | T173: 11 | U173: 30 | V173: 11 | W173: 33 | X173: 12 | Y173: 1 | Z173: 6 | AA173: 42 | AB173: 26 | AC173: 1 | AD173: 45 | AE173: 20 | AF173: 18 | AG173: 22 | AH173: 20 | AI173: 6 | AJ173: 1 | AK173: 22 | AL173: 50 | AM173: 23 | AN173: 35 | AO173: 19
K174: 47 | L174: 20 | M174: 37 | N174: 28 | O174: 49 | P174: 42 | Q174: 45 | R174: 13 | S174: 11 | T174: 3 | U174: 28 | V174: 11 | W174: 22 | X174: 32 | Y174: 24 | Z174: 4 | AA174: 13 | AB174: 6 | AC174: 27 | AD174: 3 | AE174: 44 | AF174: 4 | AG174: 14 | AH174: 3 | AI174: 38 | AJ174: 48 | AK174: 15 | AL174: 30 | AM174: 16 | AN174: 21 | AO174: 46
K175: 24 | L175: 11 | M175: 43 | N175: 4 | O175: 5 | P175: 12 | Q175: 29 | R175: 1 | S175: 19 | T175: 13 | U175: 46 | V175: 48 | W175: 2 | X175: 8 | Y175: 43 | Z175: 11 | AA175: 44 | AB175: 18 | AC175: 26 | AD175: 16 | AE175: 22 | AF175: 27 | AG175: 17 | AH175: 28 | AI175: 48 | AJ175: 29 | AK175: 26 | AL175: 30 | AM175: 38 | AN175: 45 | AO175: 2
K176: 1 | L176: 1 | M176: 20 | N176: 19 | O176: 8 | P176: 28 | Q176: 43 | R176: 25 | S176: 19 | T176: 22 | U176: 3 | V176: 4 | W176: 18 | X176: 28 | Y176: 47 | Z176: 44 | AA176: 22 | AB176: 49 | AC176: 18 | AD176: 33 | AE176: 2 | AF176: 20 | AG176: 38 | AH176: 42 | AI176: 18 | AJ176: 14 | AK176: 50 | AL176: 43 | AM176: 39 | AN176: 16 | AO176: 22
K177: 24 | L177: 44 | M177: 2 | N177: 21 | O177: 14 | P177: 20 | Q177: 40 | R177: 11 | S177: 43 | T177: 35 | U177: 42 | V177: 47 | W177: 40 | X177: 26 | Y177: 30 | Z177: 10 | AA177: 19 | AB177: 50 | AC177: 49 | AD177: 38 | AE177: 11 | AF177: 48 | AG177: 5 | AH177: 5 | AI177: 28 | AJ177: 2 | AK177: 17 | AL177: 40 | AM177: 24 | AN177: 25 | AO177: 17
K178: 43 | L178: 43 | M178: 42 | N178: 41 | O178: 17 | P178: 1 | Q178: 47 | R178: 22 | S178: 27 | T178: 9 | U178: 43 | V178: 4 | W178: 18 | X178: 44 | Y178: 17 | Z178: 38 | AA178: 19 | AB178: 14 | AC178: 37 | AD178: 8 | AE178: 31 | AF178: 33 | AG178: 46 | AH178: 38 | AI178: 21 | AJ178: 2 | AK178: 27 | AL178: 21 | AM178: 24 | AN178: 28 | AO178: 8
K179: 29 | L179: 29 | M179: 24 | N179: 31 | O179: 8 | P179: 45 | Q179: 16 | R179: 16 | S179: 43 | T179: 31 | U179: 2 | V179: 48 | W179: 33 | X179: 49 | Y179: 32 | Z179: 25 | AA179: 31 | AB179: 39 | AC179: 29 | AD179: 23 | AE179: 22 | AF179: 39 | AG179: 16 | AH179: 1 | AI179: 34 | AJ179: 38 | AK179: 4 | AL179: 27 | AM179: 18 | AN179: 28 | AO179: 6
K180: 28 | L180: 2 | M180: 20 | N180: 3 | O180: 30 | P180: 15 | Q180: 17 | R180: 17 | S180: 35 | T180: 13 | U180: 39 | V180: 14 | W180: 48 | X180: 32 | Y180: 21 | Z180: 49 | AA180: 29 | AB180: 42 | AC180: 15 | AD180: 30 | AE180: 14 | AF180: 30 | AG180: 46 | AH180: 37 | AI180: 32 | AJ180: 17 | AK180: 2 | AL180: 40 | AM180: 32 | AN180: 48 | AO180: 36
K181: 16 | L181: 35 | M181: 12 | N181: 26 | O181: 43 | P181: 41 | Q181: 43 | R181: 32 | S181: 13 | T181: 32 | U181: 2 | V181: 11 | W181: 4 | X181: 49 | Y181: 28 | Z181: 44 | AA181: 38 | AB181: 27 | AC181: 2 | AD181: 38 | AE181: 36 | AF181: 42 | AG181: 40 | AH181: 34 | AI181: 35 | AJ181: 47 | AK181: 6 | AL181: 1 | AM181: 21 | AN181: 31 | AO181: 23
K182: 13 | L182: 18 | M182: 40 | N182: 43 | O182: 9 | P182: 22 | Q182: 33 | R182: 2 | S182: 4 | T182: 47 | U182: 3 | V182: 44 | W182: 42 | X182: 7 | Y182: 8 | Z182: 39 | AA182: 37 | AB182: 2 | AC182: 22 | AD182: 21 | AE182: 3 | AF182: 35 | AG182: 46 | AH182: 4 | AI182: 4 | AJ182: 47 | AK182: 26 | AL182: 3 | AM182: 2 | AN182: 47 | AO182: 40
K183: 6 | L183: 3 | M183: 27 | N183: 24 | O183: 42 | P183: 21 | Q183: 43 | R183: 45 | S183: 37 | T183: 11 | U183: 4 | V183: 1 | W183: 40 | X183: 28 | Y183: 11 | Z183: 17 | AA183: 8 | AB183: 5 | AC183: 31 | AD183: 39 | AE183: 47 | AF183: 27 | AG183: 13 | AH183: 36 | AI183: 23 | AJ183: 4 | AK183: 35 | AL183: 36 | AM183: 9 | AN183: 26 | AO183: 11
K184: 30 | L184: 46 | M184: 6 | N184: 32 | O184: 44 | P184: 39 | Q184: 35 | R184: 40 | S184: 10 | T184: 44 | U184: 30 | V184: 26 | W184: 48 | X184: 3 | Y184: 33 | Z184: 23 | AA184: 21 | AB184: 4 | AC184: 15 | AD184: 46 | AE184: 47 | AF184: 27 | AG184: 42 | AH184: 9 | AI184: 33 | AJ184: 1 | AK184: 1 | AL184: 23 | AM184: 14 | AN184: 15 | AO184: 44
K185: 22 | L185: 20 | M185: 15 | N185: 38 | O185: 19 | P185: 4 | Q185: 27 | R185: 43 | S185: 21 | T185: 45 | U185: 1 | V185: 12 | W185: 17 | X185: 38 | Y185: 9 | Z185: 15 | AA185: 33 | AB185: 36 | AC185: 42 | AD185: 36 | AE185: 41 | AF185: 23 | AG185: 2 | AH185: 11 | AI185: 14 | AJ185: 35 | AK185: 49 | AL185: 45 | AM185: 18 | AN185: 25 | AO185: 48
K186: 27 | L186: 10 | M186: 26 | N186: 27 | O186: 26 | P186: 8 | Q186: 14 | R186: 13 | S186: 27 | T186: 38 | U186: 25 | V186: 7 | W186: 31 | X186: 32 | Y186: 9 | Z186: 38 | AA186: 18 | AB186: 6 | AC186: 8 | AD186: 23 | AE186: 43 | AF186: 50 | AG186: 13 | AH186: 15 | AI186: 19 | AJ186: 16 | AK186: 25 | AL186: 9 | AM186: 5 | AN186: 31 | AO186: 25
K187: 42 | L187: 22 | M187: 22 | N187: 19 | O187: 2 | P187: 47 | Q187: 27 | R187: 11 | S187: 48 | T187: 17 | U187: 37 | V187: 11 | W187: 45 | X187: 20 | Y187: 19 | Z187: 39 | AA187: 37 | AB187: 47 | AC187: 32 | AD187: 2 | AE187: 1 | AF187: 36 | AG187: 43 | AH187: 27 | AI187: 17 | AJ187: 2 | AK187: 46 | AL187: 21 | AM187: 26 | AN187: 31 | AO187: 46
K188: 35 | L188: 27 | M188: 27 | N188: 8 | O188: 39 | P188: 17 | Q188: 14 | R188: 8 | S188: 25 | T188: 15 | U188: 35 | V188: 39 | W188: 22 | X188: 12 | Y188: 5 | Z188: 13 | AA188: 1 | AB188: 33 | AC188: 23 | AD188: 14 | AE188: 24 | AF188: 35 | AG188: 45 | AH188: 42 | AI188: 41 | AJ188: 44 | AK188: 48 | AL188: 33 | AM188: 27 | AN188: 43 | AO188: 50
K189: 7 | L189: 16 | M189: 44 | N189: 24 | O189: 25 | P189: 34 | Q189: 12 | R189: 18 | S189: 6 | T189: 19 | U189: 41 | V189: 33 | W189: 32 | X189: 21 | Y189: 1 | Z189: 33 | AA189: 11 | AB189: 29 | AC189: 22 | AD189: 45 | AE189: 32 | AF189: 20 | AG189: 17 | AH189: 44 | AI189: 50 | AJ189: 17 | AK189: 22 | AL189: 10 | AM189: 20 | AN189: 8 | AO189: 22
K190: 6 | L190: 3 | M190: 48 | N190: 46 | O190: 47 | P190: 20 | Q190: 45 | R190: 48 | S190: 21 | T190: 50 | U190: 4 | V190: 46 | W190: 16 | X190: 12 | Y190: 9 | Z190: 17 | AA190: 5 | AB190: 5 | AC190: 19 | AD190: 44 | AE190: 24 | AF190: 24 | AG190: 13 | AH190: 5 | AI190: 13 | AJ190: 3 | AK190: 31 | AL190: 11 | AM190: 4 | AN190: 27 | AO190: 8
K191: 29 | L191: 31 | M191: 21 | N191: 6 | O191: 44 | P191: 5 | Q191: 49 | R191: 40 | S191: 29 | T191: 22 | U191: 8 | V191: 8 | W191: 14 | X191: 22 | Y191: 32 | Z191: 37 | AA191: 4 | AB191: 7 | AC191: 23 | AD191: 36 | AE191: 21 | AF191: 8 | AG191: 37 | AH191: 21 | AI191: 44 | AJ191: 1 | AK191: 38 | AL191: 18 | AM191: 9 | AN191: 5 | AO191: 24
K192: 44 | L192: 7 | M192: 15 | N192: 26 | O192: 40 | P192: 25 | Q192: 47 | R192: 18 | S192: 13 | T192: 35 | U192: 4 | V192: 36 | W192: 15 | X192: 26 | Y192: 41 | Z192: 19 | AA192: 33 | AB192: 44 | AC192: 6 | AD192: 18 | AE192: 44 | AF192: 22 | AG192: 29 | AH192: 1 | AI192: 18 | AJ192: 46 | AK192: 43 | AL192: 2 | AM192: 49 | AN192: 43 | AO192: 1
K193: 4 | L193: 37 | M193: 29 | N193: 46 | O193: 37 | P193: 26 | Q193: 11 | R193: 41 | S193: 10 | T193: 46 | U193: 49 | V193: 18 | W193: 18 | X193: 36 | Y193: 25 | Z193: 41 | AA193: 14 | AB193: 47 | AC193: 36 | AD193: 11 | AE193: 44 | AF193: 25 | AG193: 7 | AH193: 6 | AI193: 2 | AJ193: 46 | AK193: 37 | AL193: 41 | AM193: 27 | AN193: 28 | AO193: 19
K194: 5 | L194: 50 | M194: 11 | N194: 20 | O194: 1 | P194: 1 | Q194: 41 | R194: 43 | S194: 39 | T194: 29 | U194: 20 | V194: 32 | W194: 35 | X194: 50 | Y194: 34 | Z194: 27 | AA194: 10 | AB194: 16 | AC194: 41 | AD194: 23 | AE194: 50 | AF194: 29 | AG194: 46 | AH194: 8 | AI194: 26 | AJ194: 47 | AK194: 32 | AL194: 17 | AM194: 44 | AN194: 40 | AO194: 17
K195: 46 | L195: 13 | M195: 1 | N195: 3 | O195: 42 | P195: 10 | Q195: 23 | R195: 39 | S195: 20 | T195: 32 | U195: 49 | V195: 48 | W195: 32 | X195: 11 | Y195: 19 | Z195: 38 | AA195: 37 | AB195: 32 | AC195: 36 | AD195: 30 | AE195: 7 | AF195: 39 | AG195: 24 | AH195: 50 | AI195: 1 | AJ195: 2 | AK195: 15 | AL195: 39 | AM195: 13 | AN195: 30 | AO195: 44
K196: 22 | L196: 50 | M196: 16 | N196: 29 | O196: 29 | P196: 30 | Q196: 36 | R196: 27 | S196: 4 | T196: 17 | U196: 10 | V196: 36 | W196: 24 | X196: 17 | Y196: 4 | Z196: 29 | AA196: 2 | AB196: 2 | AC196: 4 | AD196: 14 | AE196: 28 | AF196: 42 | AG196: 17 | AH196: 43 | AI196: 18 | AJ196: 32 | AK196: 50 | AL196: 13 | AM196: 30 | AN196: 50 | AO196: 33
K197: 47 | L197: 29 | M197: 29 | N197: 44 | O197: 8 | P197: 22 | Q197: 39 | R197: 43 | S197: 34 | T197: 49 | U197: 27 | V197: 35 | W197: 49 | X197: 15 | Y197: 22 | Z197: 11 | AA197: 43 | AB197: 8 | AC197: 30 | AD197: 25 | AE197: 23 | AF197: 46 | AG197: 31 | AH197: 34 | AI197: 27 | AJ197: 44 | AK197: 19 | AL197: 31 | AM197: 34 | AN197: 27 | AO197: 28
K198: 11 | L198: 23 | M198: 25 | N198: 20 | O198: 4 | P198: 1 | Q198: 13 | R198: 37 | S198: 32 | T198: 2 | U198: 29 | V198: 4 | W198: 10 | X198: 15 | Y198: 33 | Z198: 39 | AA198: 11 | AB198: 35 | AC198: 27 | AD198: 47 | AE198: 6 | AF198: 4 | AG198: 18 | AH198: 18 | AI198: 16 | AJ198: 32 | AK198: 21 | AL198: 13 | AM198: 7 | AN198: 8 | AO198: 29
K199: 40 | L199: 34 | M199: 19 | N199: 46 | O199: 48 | P199: 4 | Q199: 39 | R199: 8 | S199: 36 | T199: 18 | U199: 15 | V199: 44 | W199: 47 | X199: 4 | Y199: 34 | Z199: 31 | AA199: 26 | AB199: 37 | AC199: 44 | AD199: 19 | AE199: 3 | AF199: 9 | AG199: 49 | AH199: 38 | AI199: 1 | AJ199: 47 | AK199: 15 | AL199: 25 | AM199: 48 | AN199: 42 | AO199: 21
K200: 11 | L200: 25 | M200: 47 | N200: 45 | O200: 28 | P200: 35 | Q200: 30 | R200: 35 | S200: 41 | T200: 46 | U200: 33 | V200: 27 | W200: 23 | X200: 14 | Y200: 22 | Z200: 17 | AA200: 21 | AB200: 41 | AC200: 15 | AD200: 4 | AE200: 42 | AF200: 15 | AG200: 3 | AH200: 17 | AI200: 11 | AJ200: 49 | AK200: 20 | AL200: 50 | AM200: 42 | AN200: 27 | AO200: 23
K201: 15 | L201: 2 | M201: 24 | N201: 21 | O201: 34 | P201: 3 | Q201: 23 | R201: 31 | S201: 15 | T201: 2 | U201: 25 | V201: 8 | W201: 13 | X201: 22 | Y201: 20 | Z201: 15 | AA201: 22 | AB201: 12 | AC201: 39 | AD201: 34 | AE201: 40 | AF201: 25 | AG201: 29 | AH201: 41 | AI201: 50 | AJ201: 45 | AK201: 27 | AL201: 16 | AM201: 42 | AN201: 26 | AO201: 20
K202: 43 | L202: 11 | M202: 18 | N202: 15 | O202: 40 | P202: 48 | Q202: 45 | R202: 50 | S202: 5 | T202: 44 | U202: 3 | V202: 9 | W202: 28 | X202: 9 | Y202: 33 | Z202: 26 | AA202: 1 | AB202: 37 | AC202: 35 | AD202: 22 | AE202: 39 | AF202: 34 | AG202: 28 | AH202: 17 | AI202: 39 | AJ202: 2 | AK202: 17 | AL202: 32 | AM202: 2 | AN202: 25 | AO202: 9
... 2048 more rows

Sheet LotteryPredictionAlgorithm(2)
B2: Building Lottery Prediction Algorithm
B4: Serial Number | C4: Lottery Number
B5: 1 | C5: =COUNTIF($K$30:$AO$6000,B5) -> 3651
B6: 2 | C6: =COUNTIF($K$30:$AO$6000,B6) -> 3609
B7: 4 | C7: 3642
B8: 6 | C8: 3709
B9: 7 | C9: 3735
B10: 8 | C10: 3689
B11: 11 | C11: 3639
B12: 14 | C12: 3584 | I12: `
B13: 21 | C13: 3660
B14: 22 | C14: 3653
B15: 23 | C15: 3602
B16: 25 | C16: 3714
B17: 27 | C17: 3701
B18: 28 | C18: 3752
B19: 30 | C19: 3672
B20: 32 | C20: 3680
B21: 37 | C21: 3632
B22: 38 | C22: 3801
B23: 40 | C23: 3677
B24: 41 | C24: 3760
B25: 42 | C25: 3624
B26: 44 | C26: 3692
B27: 49 | C27: 3745
B28: 50 | C28: 3706
K55: =RANDBETWEEN(1,50) -> 43
K56: 19 | L56: 41 | M56: 43 | N56: 49 | O56: 8 | P56: 6 | Q56: 14 | R56: 14 | S56: 34 | T56: 45 | U56: 40 | V56: 34 | W56: 10 | X56: 44 | Y56: 23 | Z56: 40 | AA56: 6 | AB56: 28 | AC56: 18 | AD56: 46 | AE56: 21 | AF56: 40 | AG56: 12 | AH56: 20 | AI56: 12 | AJ56: 4 | AK56: 16 | AL56: 38 | AM56: 14 | AN56: 11 | AO56: 8
K57: 2 | L57: 49 | M57: 3 | N57: 26 | O57: 26 | P57: 41 | Q57: 8 | R57: 16 | S57: 37 | T57: 22 | U57: 6 | V57: 46 | W57: 35 | X57: 5 | Y57: 20 | Z57: 45 | AA57: 39 | AB57: 46 | AC57: 49 | AD57: 20 | AE57: 41 | AF57: 44 | AG57: 36 | AH57: 20 | AI57: 2 | AJ57: 16 | AK57: 12 | AL57: 45 | AM57: 30 | AN57: 4 | AO57: 34
K58: 6 | L58: 48 | M58: 32 | N58: 17 | O58: 21 | P58: 29 | Q58: 41 | R58: 36 | S58: 49 | T58: 27 | U58: 32 | V58: 25 | W58: 35 | X58: 2 | Y58: 49 | Z58: 25 | AA58: 38 | AB58: 12 | AC58: 25 | AD58: 1 | AE58: 22 | AF58: 33 | AG58: 28 | AH58: 29 | AI58: 13 | AJ58: 32 | AK58: 17 | AL58: 3 | AM58: 42 | AN58: 12 | AO58: 42
K59: 17 | L59: 28 | M59: 26 | N59: 8 | O59: 30 | P59: 33 | Q59: 20 | R59: 9 | S59: 3 | T59: 43 | U59: 41 | V59: 50 | W59: 12 | X59: 48 | Y59: 17 | Z59: 44 | AA59: 32 | AB59: 43 | AC59: 36 | AD59: 2 | AE59: 26 | AF59: 46 | AG59: 16 | AH59: 31 | AI59: 50 | AJ59: 1 | AK59: 3 | AL59: 10 | AM59: 40 | AN59: 12 | AO59: 34
K60: 48 | L60: 39 | M60: 30 | N60: 5 | O60: 37 | P60: 21 | Q60: 3 | R60: 18 | S60: 46 | T60: 34 | U60: 23 | V60: 7 | W60: 41 | X60: 33 | Y60: 47 | Z60: 25 | AA60: 28 | AB60: 45 | AC60: 39 | AD60: 4 | AE60: 26 | AF60: 6 | AG60: 47 | AH60: 44 | AI60: 10 | AJ60: 36 | AK60: 28 | AL60: 2 | AM60: 12 | AN60: 39 | AO60: 19
K61: 47 | L61: 20 | M61: 24 | N61: 8 | O61: 43 | P61: 10 | Q61: 16 | R61: 42 | S61: 32 | T61: 17 | U61: 32 | V61: 46 | W61: 12 | X61: 41 | Y61: 46 | Z61: 33 | AA61: 49 | AB61: 2 | AC61: 30 | AD61: 26 | AE61: 47 | AF61: 26 | AG61: 28 | AH61: 31 | AI61: 21 | AJ61: 6 | AK61: 11 | AL61: 43 | AM61: 17 | AN61: 9 | AO61: 14
K62: 1 | L62: 34 | M62: 25 | N62: 21 | O62: 6 | P62: 7 | Q62: 16 | R62: 49 | S62: 10 | T62: 30 | U62: 36 | V62: 9 | W62: 38 | X62: 17 | Y62: 19 | Z62: 28 | AA62: 43 | AB62: 25 | AC62: 27 | AD62: 45 | AE62: 48 | AF62: 25 | AG62: 24 | AH62: 39 | AI62: 35 | AJ62: 4 | AK62: 13 | AL62: 6 | AM62: 13 | AN62: 38 | AO62: 23
K63: 28 | L63: 5 | M63: 26 | N63: 43 | O63: 47 | P63: 38 | Q63: 20 | R63: 36 | S63: 7 | T63: 20 | U63: 31 | V63: 16 | W63: 30 | X63: 1 | Y63: 18 | Z63: 46 | AA63: 11 | AB63: 42 | AC63: 28 | AD63: 34 | AE63: 19 | AF63: 45 | AG63: 35 | AH63: 21 | AI63: 47 | AJ63: 8 | AK63: 4 | AL63: 26 | AM63: 37 | AN63: 4 | AO63: 46
K64: 26 | L64: 3 | M64: 11 | N64: 8 | O64: 21 | P64: 24 | Q64: 1 | R64: 39 | S64: 25 | T64: 4 | U64: 3 | V64: 1 | W64: 49 | X64: 26 | Y64: 8 | Z64: 47 | AA64: 48 | AB64: 17 | AC64: 43 | AD64: 4 | AE64: 8 | AF64: 33 | AG64: 14 | AH64: 42 | AI64: 7 | AJ64: 11 | AK64: 31 | AL64: 36 | AM64: 2 | AN64: 47 | AO64: 24
K65: 18 | L65: 50 | M65: 50 | N65: 15 | O65: 26 | P65: 27 | Q65: 16 | R65: 50 | S65: 46 | T65: 47 | U65: 41 | V65: 48 | W65: 7 | X65: 44 | Y65: 10 | Z65: 28 | AA65: 39 | AB65: 18 | AC65: 37 | AD65: 31 | AE65: 24 | AF65: 34 | AG65: 29 | AH65: 4 | AI65: 5 | AJ65: 2 | AK65: 44 | AL65: 13 | AM65: 13 | AN65: 43 | AO65: 10
K66: 14 | L66: 29 | M66: 22 | N66: 28 | O66: 25 | P66: 29 | Q66: 43 | R66: 44 | S66: 1 | T66: 5 | U66: 25 | V66: 47 | W66: 34 | X66: 13 | Y66: 27 | Z66: 8 | AA66: 50 | AB66: 24 | AC66: 31 | AD66: 24 | AE66: 2 | AF66: 19 | AG66: 34 | AH66: 34 | AI66: 21 | AJ66: 46 | AK66: 2 | AL66: 20 | AM66: 9 | AN66: 35 | AO66: 12
K67: 5 | L67: 48 | M67: 14 | N67: 19 | O67: 31 | P67: 14 | Q67: 49 | R67: 17 | S67: 36 | T67: 14 | U67: 45 | V67: 12 | W67: 16 | X67: 1 | Y67: 17 | Z67: 24 | AA67: 26 | AB67: 49 | AC67: 47 | AD67: 31 | AE67: 7 | AF67: 11 | AG67: 1 | AH67: 7 | AI67: 30 | AJ67: 21 | AK67: 8 | AL67: 40 | AM67: 35 | AN67: 18 | AO67: 47
K68: 6 | L68: 26 | M68: 47 | N68: 14 | O68: 4 | P68: 50 | Q68: 22 | R68: 37 | S68: 44 | T68: 39 | U68: 21 | V68: 5 | W68: 40 | X68: 45 | Y68: 39 | Z68: 28 | AA68: 10 | AB68: 13 | AC68: 44 | AD68: 31 | AE68: 36 | AF68: 7 | AG68: 15 | AH68: 32 | AI68: 18 | AJ68: 28 | AK68: 9 | AL68: 25 | AM68: 4 | AN68: 10 | AO68: 49
K69: 5 | L69: 9 | M69: 41 | N69: 10 | O69: 1 | P69: 43 | Q69: 19 | R69: 46 | S69: 7 | T69: 33 | U69: 49 | V69: 4 | W69: 25 | X69: 7 | Y69: 12 | Z69: 40 | AA69: 30 | AB69: 20 | AC69: 24 | AD69: 19 | AE69: 32 | AF69: 18 | AG69: 26 | AH69: 16 | AI69: 3 | AJ69: 13 | AK69: 21 | AL69: 39 | AM69: 1 | AN69: 34 | AO69: 37
K70: 38 | L70: 18 | M70: 26 | N70: 7 | O70: 37 | P70: 34 | Q70: 23 | R70: 48 | S70: 18 | T70: 13 | U70: 26 | V70: 40 | W70: 36 | X70: 33 | Y70: 33 | Z70: 8 | AA70: 38 | AB70: 48 | AC70: 41 | AD70: 20 | AE70: 9 | AF70: 42 | AG70: 26 | AH70: 1 | AI70: 5 | AJ70: 35 | AK70: 6 | AL70: 38 | AM70: 9 | AN70: 23 | AO70: 29
K71: 37 | L71: 24 | M71: 11 | N71: 49 | O71: 48 | P71: 12 | Q71: 25 | R71: 16 | S71: 10 | T71: 7 | U71: 13 | V71: 23 | W71: 18 | X71: 21 | Y71: 25 | Z71: 14 | AA71: 7 | AB71: 15 | AC71: 33 | AD71: 20 | AE71: 18 | AF71: 39 | AG71: 38 | AH71: 44 | AI71: 6 | AJ71: 33 | AK71: 34 | AL71: 38 | AM71: 47 | AN71: 4 | AO71: 40
K72: 37 | L72: 31 | M72: 34 | N72: 45 | O72: 43 | P72: 15 | Q72: 32 | R72: 47 | S72: 19 | T72: 4 | U72: 28 | V72: 31 | W72: 6 | X72: 19 | Y72: 26 | Z72: 34 | AA72: 17 | AB72: 40 | AC72: 16 | AD72: 10 | AE72: 48 | AF72: 42 | AG72: 50 | AH72: 4 | AI72: 26 | AJ72: 40 | AK72: 28 | AL72: 15 | AM72: 29 | AN72: 11 | AO72: 36
K73: 33 | L73: 50 | M73: 38 | N73: 15 | O73: 23 | P73: 40 | Q73: 1 | R73: 7 | S73: 20 | T73: 42 | U73: 40 | V73: 43 | W73: 20 | X73: 1 | Y73: 31 | Z73: 24 | AA73: 26 | AB73: 20 | AC73: 42 | AD73: 27 | AE73: 8 | AF73: 41 | AG73: 2 | AH73: 7 | AI73: 43 | AJ73: 7 | AK73: 2 | AL73: 4 | AM73: 6 | AN73: 28 | AO73: 2
K74: 34 | L74: 23 | M74: 5 | N74: 33 | O74: 8 | P74: 30 | Q74: 6 | R74: 42 | S74: 6 | T74: 5 | U74: 22 | V74: 48 | W74: 27 | X74: 5 | Y74: 22 | Z74: 4 | AA74: 35 | AB74: 25 | AC74: 24 | AD74: 44 | AE74: 39 | AF74: 3 | AG74: 38 | AH74: 32 | AI74: 25 | AJ74: 4 | AK74: 32 | AL74: 3 | AM74: 13 | AN74: 34 | AO74: 6
K75: 26 | L75: 18 | M75: 37 | N75: 49 | O75: 29 | P75: 35 | Q75: 25 | R75: 49 | S75: 15 | T75: 48 | U75: 1 | V75: 40 | W75: 38 | X75: 16 | Y75: 6 | Z75: 34 | AA75: 2 | AB75: 9 | AC75: 41 | AD75: 18 | AE75: 18 | AF75: 49 | AG75: 3 | AH75: 36 | AI75: 30 | AJ75: 45 | AK75: 2 | AL75: 1 | AM75: 9 | AN75: 37 | AO75: 16
K76: 28 | L76: 36 | M76: 5 | N76: 50 | O76: 17 | P76: 22 | Q76: 41 | R76: 42 | S76: 31 | T76: 27 | U76: 41 | V76: 37 | W76: 37 | X76: 11 | Y76: 7 | Z76: 20 | AA76: 44 | AB76: 5 | AC76: 4 | AD76: 21 | AE76: 13 | AF76: 33 | AG76: 44 | AH76: 13 | AI76: 50 | AJ76: 47 | AK76: 32 | AL76: 39 | AM76: 41 | AN76: 45 | AO76: 30
K77: 49 | L77: 6 | M77: 24 | N77: 35 | O77: 7 | P77: 40 | Q77: 36 | R77: 2 | S77: 14 | T77: 22 | U77: 39 | V77: 28 | W77: 47 | X77: 33 | Y77: 25 | Z77: 15 | AA77: 35 | AB77: 2 | AC77: 20 | AD77: 25 | AE77: 20 | AF77: 23 | AG77: 38 | AH77: 38 | AI77: 29 | AJ77: 35 | AK77: 44 | AL77: 20 | AM77: 45 | AN77: 20 | AO77: 10
K78: 1 | L78: 5 | M78: 36 | N78: 34 | O78: 18 | P78: 25 | Q78: 3 | R78: 44 | S78: 28 | T78: 36 | U78: 13 | V78: 35 | W78: 38 | X78: 29 | Y78: 4 | Z78: 6 | AA78: 49 | AB78: 31 | AC78: 27 | AD78: 27 | AE78: 1 | AF78: 35 | AG78: 35 | AH78: 43 | AI78: 6 | AJ78: 34 | AK78: 13 | AL78: 4 | AM78: 49 | AN78: 28 | AO78: 5
K79: 31 | L79: 26 | M79: 46 | N79: 24 | O79: 11 | P79: 7 | Q79: 8 | R79: 8 | S79: 1 | T79: 27 | U79: 9 | V79: 35 | W79: 37 | X79: 28 | Y79: 33 | Z79: 43 | AA79: 7 | AB79: 26 | AC79: 8 | AD79: 9 | AE79: 18 | AF79: 18 | AG79: 36 | AH79: 4 | AI79: 19 | AJ79: 10 | AK79: 29 | AL79: 19 | AM79: 12 | AN79: 20 | AO79: 28
K80: 33 | L80: 5 | M80: 42 | N80: 42 | O80: 24 | P80: 12 | Q80: 14 | R80: 25 | S80: 13 | T80: 25 | U80: 35 | V80: 7 | W80: 1 | X80: 1 | Y80: 30 | Z80: 4 | AA80: 47 | AB80: 28 | AC80: 14 | AD80: 37 | AE80: 10 | AF80: 24 | AG80: 14 | AH80: 32 | AI80: 1 | AJ80: 24 | AK80: 2 | AL80: 2 | AM80: 44 | AN80: 8 | AO80: 35
K81: 14 | L81: 28 | M81: 7 | N81: 14 | O81: 14 | P81: 31 | Q81: 32 | R81: 37 | S81: 46 | T81: 8 | U81: 15 | V81: 44 | W81: 41 | X81: 19 | Y81: 19 | Z81: 12 | AA81: 6 | AB81: 42 | AC81: 27 | AD81: 8 | AE81: 23 | AF81: 18 | AG81: 27 | AH81: 11 | AI81: 47 | AJ81: 46 | AK81: 49 | AL81: 26 | AM81: 24 | AN81: 44 | AO81: 17
K82: 22 | L82: 6 | M82: 6 | N82: 30 | O82: 14 | P82: 14 | Q82: 25 | R82: 16 | S82: 36 | T82: 38 | U82: 27 | V82: 10 | W82: 48 | X82: 5 | Y82: 40 | Z82: 16 | AA82: 3 | AB82: 24 | AC82: 12 | AD82: 32 | AE82: 35 | AF82: 35 | AG82: 9 | AH82: 45 | AI82: 10 | AJ82: 33 | AK82: 40 | AL82: 43 | AM82: 46 | AN82: 5 | AO82: 37
K83: 30 | L83: 40 | M83: 2 | N83: 36 | O83: 32 | P83: 23 | Q83: 27 | R83: 36 | S83: 17 | T83: 2 | U83: 38 | V83: 7 | W83: 22 | X83: 2 | Y83: 25 | Z83: 27 | AA83: 29 | AB83: 2 | AC83: 20 | AD83: 3 | AE83: 37 | AF83: 31 | AG83: 32 | AH83: 33 | AI83: 26 | AJ83: 39 | AK83: 47 | AL83: 39 | AM83: 44 | AN83: 1 | AO83: 34
K84: 4 | L84: 39 | M84: 16 | N84: 19 | O84: 34 | P84: 47 | Q84: 44 | R84: 23 | S84: 46 | T84: 49 | U84: 32 | V84: 26 | W84: 28 | X84: 20 | Y84: 47 | Z84: 20 | AA84: 7 | AB84: 3 | AC84: 35 | AD84: 46 | AE84: 31 | AF84: 35 | AG84: 45 | AH84: 30 | AI84: 23 | AJ84: 36 | AK84: 16 | AL84: 18 | AM84: 21 | AN84: 30 | AO84: 42
K85: 36 | L85: 34 | M85: 20 | N85: 37 | O85: 26 | P85: 8 | Q85: 37 | R85: 34 | S85: 10 | T85: 21 | U85: 31 | V85: 19 | W85: 39 | X85: 20 | Y85: 14 | Z85: 3 | AA85: 4 | AB85: 4 | AC85: 50 | AD85: 13 | AE85: 31 | AF85: 2 | AG85: 37 | AH85: 38 | AI85: 47 | AJ85: 33 | AK85: 34 | AL85: 14 | AM85: 24 | AN85: 30 | AO85: 41
K86: 9 | L86: 13 | M86: 11 | N86: 27 | O86: 34 | P86: 22 | Q86: 28 | R86: 7 | S86: 38 | T86: 37 | U86: 37 | V86: 1 | W86: 14 | X86: 45 | Y86: 48 | Z86: 36 | AA86: 20 | AB86: 8 | AC86: 23 | AD86: 4 | AE86: 31 | AF86: 34 | AG86: 22 | AH86: 44 | AI86: 8 | AJ86: 40 | AK86: 47 | AL86: 23 | AM86: 3 | AN86: 6 | AO86: 45
K87: 35 | L87: 38 | M87: 13 | N87: 4 | O87: 24 | P87: 30 | Q87: 6 | R87: 40 | S87: 31 | T87: 28 | U87: 15 | V87: 34 | W87: 22 | X87: 32 | Y87: 12 | Z87: 44 | AA87: 34 | AB87: 33 | AC87: 1 | AD87: 50 | AE87: 33 | AF87: 22 | AG87: 3 | AH87: 21 | AI87: 43 | AJ87: 21 | AK87: 17 | AL87: 38 | AM87: 16 | AN87: 46 | AO87: 6
K88: 3 | L88: 28 | M88: 24 | N88: 32 | O88: 27 | P88: 46 | Q88: 5 | R88: 18 | S88: 41 | T88: 50 | U88: 25 | V88: 1 | W88: 28 | X88: 25 | Y88: 16 | Z88: 21 | AA88: 4 | AB88: 1 | AC88: 48 | AD88: 24 | AE88: 18 | AF88: 10 | AG88: 18 | AH88: 15 | AI88: 28 | AJ88: 37 | AK88: 28 | AL88: 46 | AM88: 4 | AN88: 13 | AO88: 39
K89: 42 | L89: 49 | M89: 48 | N89: 31 | O89: 47 | P89: 45 | Q89: 17 | R89: 15 | S89: 29 | T89: 33 | U89: 35 | V89: 33 | W89: 7 | X89: 25 | Y89: 2 | Z89: 25 | AA89: 26 | AB89: 27 | AC89: 2 | AD89: 10 | AE89: 46 | AF89: 39 | AG89: 1 | AH89: 2 | AI89: 39 | AJ89: 50 | AK89: 28 | AL89: 37 | AM89: 2 | AN89: 11 | AO89: 46
K90: 15 | L90: 17 | M90: 48 | N90: 50 | O90: 23 | P90: 24 | Q90: 19 | R90: 12 | S90: 45 | T90: 10 | U90: 29 | V90: 4 | W90: 9 | X90: 47 | Y90: 21 | Z90: 9 | AA90: 27 | AB90: 33 | AC90: 20 | AD90: 17 | AE90: 18 | AF90: 48 | AG90: 20 | AH90: 11 | AI90: 26 | AJ90: 4 | AK90: 39 | AL90: 35 | AM90: 29 | AN90: 36 | AO90: 30
K91: 32 | L91: 8 | M91: 18 | N91: 40 | O91: 27 | P91: 28 | Q91: 50 | R91: 37 | S91: 20 | T91: 16 | U91: 15 | V91: 34 | W91: 36 | X91: 34 | Y91: 16 | Z91: 8 | AA91: 3 | AB91: 10 | AC91: 40 | AD91: 4 | AE91: 19 | AF91: 26 | AG91: 39 | AH91: 22 | AI91: 8 | AJ91: 5 | AK91: 6 | AL91: 38 | AM91: 44 | AN91: 10 | AO91: 6
K92: 44 | L92: 21 | M92: 10 | N92: 34 | O92: 41 | P92: 20 | Q92: 2 | R92: 43 | S92: 17 | T92: 16 | U92: 40 | V92: 35 | W92: 17 | X92: 27 | Y92: 19 | Z92: 24 | AA92: 40 | AB92: 30 | AC92: 21 | AD92: 4 | AE92: 35 | AF92: 50 | AG92: 5 | AH92: 41 | AI92: 10 | AJ92: 40 | AK92: 36 | AL92: 24 | AM92: 10 | AN92: 42 | AO92: 37
K93: 50 | L93: 42 | M93: 22 | N93: 21 | O93: 49 | P93: 14 | Q93: 46 | R93: 11 | S93: 34 | T93: 5 | U93: 42 | V93: 18 | W93: 29 | X93: 23 | Y93: 32 | Z93: 9 | AA93: 13 | AB93: 1 | AC93: 4 | AD93: 40 | AE93: 32 | AF93: 41 | AG93: 11 | AH93: 1 | AI93: 29 | AJ93: 4 | AK93: 44 | AL93: 16 | AM93: 10 | AN93: 18 | AO93: 18
K94: 2 | L94: 27 | M94: 31 | N94: 28 | O94: 14 | P94: 24 | Q94: 13 | R94: 4 | S94: 15 | T94: 2 | U94: 5 | V94: 37 | W94: 14 | X94: 29 | Y94: 6 | Z94: 24 | AA94: 42 | AB94: 22 | AC94: 22 | AD94: 14 | AE94: 42 | AF94: 20 | AG94: 47 | AH94: 16 | AI94: 44 | AJ94: 49 | AK94: 46 | AL94: 5 | AM94: 35 | AN94: 42 | AO94: 21
K95: 20 | L95: 26 | M95: 32 | N95: 21 | O95: 36 | P95: 18 | Q95: 36 | R95: 22 | S95: 27 | T95: 6 | U95: 31 | V95: 31 | W95: 33 | X95: 3 | Y95: 1 | Z95: 50 | AA95: 3 | AB95: 7 | AC95: 30 | AD95: 49 | AE95: 17 | AF95: 16 | AG95: 37 | AH95: 48 | AI95: 29 | AJ95: 35 | AK95: 48 | AL95: 45 | AM95: 36 | AN95: 28 | AO95: 23
K96: 47 | L96: 9 | M96: 16 | N96: 14 | O96: 9 | P96: 1 | Q96: 4 | R96: 22 | S96: 14 | T96: 24 | U96: 41 | V96: 50 | W96: 39 | X96: 43 | Y96: 1 | Z96: 46 | AA96: 48 | AB96: 37 | AC96: 39 | AD96: 17 | AE96: 13 | AF96: 4 | AG96: 50 | AH96: 38 | AI96: 50 | AJ96: 4 | AK96: 43 | AL96: 12 | AM96: 1 | AN96: 18 | AO96: 23
K97: 1 | L97: 24 | M97: 13 | N97: 6 | O97: 2 | P97: 42 | Q97: 33 | R97: 3 | S97: 37 | T97: 8 | U97: 2 | V97: 28 | W97: 31 | X97: 16 | Y97: 21 | Z97: 44 | AA97: 31 | AB97: 43 | AC97: 17 | AD97: 38 | AE97: 3 | AF97: 19 | AG97: 11 | AH97: 24 | AI97: 49 | AJ97: 25 | AK97: 48 | AL97: 40 | AM97: 43 | AN97: 45 | AO97: 46
K98: 35 | L98: 29 | M98: 21 | N98: 46 | O98: 34 | P98: 16 | Q98: 42 | R98: 15 | S98: 37 | T98: 7 | U98: 2 | V98: 1 | W98: 40 | X98: 19 | Y98: 4 | Z98: 48 | AA98: 38 | AB98: 41 | AC98: 41 | AD98: 1 | AE98: 13 | AF98: 13 | AG98: 23 | AH98: 3 | AI98: 10 | AJ98: 26 | AK98: 24 | AL98: 33 | AM98: 15 | AN98: 34 | AO98: 25
K99: 26 | L99: 2 | M99: 28 | N99: 3 | O99: 36 | P99: 15 | Q99: 18 | R99: 23 | S99: 47 | T99: 20 | U99: 43 | V99: 44 | W99: 45 | X99: 29 | Y99: 36 | Z99: 3 | AA99: 20 | AB99: 26 | AC99: 19 | AD99: 32 | AE99: 12 | AF99: 13 | AG99: 19 | AH99: 41 | AI99: 28 | AJ99: 19 | AK99: 45 | AL99: 2 | AM99: 5 | AN99: 44 | AO99: 7
K100: 17 | L100: 16 | M100: 27 | N100: 29 | O100: 48 | P100: 36 | Q100: 38 | R100: 18 | S100: 14 | T100: 34 | U100: 41 | V100: 25 | W100: 12 | X100: 8 | Y100: 20 | Z100: 8 | AA100: 45 | AB100: 5 | AC100: 50 | AD100: 42 | AE100: 33 | AF100: 48 | AG100: 24 | AH100: 1 | AI100: 43 | AJ100: 25 | AK100: 48 | AL100: 44 | AM100: 26 | AN100: 48 | AO100: 47
K101: 41 | L101: 29 | M101: 13 | N101: 20 | O101: 27 | P101: 44 | Q101: 2 | R101: 30 | S101: 38 | T101: 48 | U101: 32 | V101: 5 | W101: 8 | X101: 37 | Y101: 24 | Z101: 43 | AA101: 7 | AB101: 15 | AC101: 7 | AD101: 11 | AE101: 37 | AF101: 27 | AG101: 19 | AH101: 45 | AI101: 46 | AJ101: 38 | AK101: 19 | AL101: 19 | AM101: 15 | AN101: 33 | AO101: 34
K102: 16 | L102: 33 | M102: 15 | N102: 9 | O102: 26 | P102: 29 | Q102: 2 | R102: 34 | S102: 6 | T102: 16 | U102: 49 | V102: 21 | W102: 38 | X102: 48 | Y102: 25 | Z102: 13 | AA102: 17 | AB102: 11 | AC102: 37 | AD102: 6 | AE102: 11 | AF102: 34 | AG102: 44 | AH102: 37 | AI102: 50 | AJ102: 32 | AK102: 22 | AL102: 49 | AM102: 27 | AN102: 33 | AO102: 49
K103: 46 | L103: 4 | M103: 34 | N103: 6 | O103: 48 | P103: 25 | Q103: 17 | R103: 9 | S103: 29 | T103: 30 | U103: 34 | V103: 48 | W103: 31 | X103: 41 | Y103: 26 | Z103: 17 | AA103: 50 | AB103: 31 | AC103: 40 | AD103: 34 | AE103: 37 | AF103: 30 | AG103: 24 | AH103: 27 | AI103: 16 | AJ103: 28 | AK103: 47 | AL103: 5 | AM103: 9 | AN103: 18 | AO103: 1
K104: 50 | L104: 28 | M104: 18 | N104: 21 | O104: 24 | P104: 5 | Q104: 4 | R104: 21 | S104: 12 | T104: 12 | U104: 18 | V104: 26 | W104: 4 | X104: 7 | Y104: 47 | Z104: 37 | AA104: 24 | AB104: 6 | AC104: 40 | AD104: 12 | AE104: 25 | AF104: 11 | AG104: 50 | AH104: 28 | AI104: 47 | AJ104: 10 | AK104: 7 | AL104: 47 | AM104: 37 | AN104: 23 | AO104: 44
K105: 25 | L105: 41 | M105: 8 | N105: 43 | O105: 45 | P105: 1 | Q105: 20 | R105: 17 | S105: 25 | T105: 25 | U105: 8 | V105: 17 | W105: 40 | X105: 16 | Y105: 36 | Z105: 1 | AA105: 34 | AB105: 30 | AC105: 40 | AD105: 9 | AE105: 4 | AF105: 18 | AG105: 49 | AH105: 16 | AI105: 10 | AJ105: 9 | AK105: 17 | AL105: 8 | AM105: 12 | AN105: 4 | AO105: 49
K106: 13 | L106: 34 | M106: 18 | N106: 33 | O106: 8 | P106: 31 | Q106: 12 | R106: 47 | S106: 37 | T106: 39 | U106: 8 | V106: 39 | W106: 25 | X106: 9 | Y106: 46 | Z106: 46 | AA106: 43 | AB106: 5 | AC106: 28 | AD106: 49 | AE106: 30 | AF106: 13 | AG106: 31 | AH106: 35 | AI106: 45 | AJ106: 14 | AK106: 8 | AL106: 33 | AM106: 33 | AN106: 5 | AO106: 20
K107: 29 | L107: 49 | M107: 3 | N107: 15 | O107: 19 | P107: 32 | Q107: 1 | R107: 4 | S107: 46 | T107: 28 | U107: 3 | V107: 49 | W107: 40 | X107: 3 | Y107: 33 | Z107: 18 | AA107: 39 | AB107: 43 | AC107: 10 | AD107: 1 | AE107: 9 | AF107: 20 | AG107: 16 | AH107: 37 | AI107: 26 | AJ107: 45 | AK107: 3 | AL107: 15 | AM107: 19 | AN107: 3 | AO107: 16
K108: 16 | L108: 28 | M108: 11 | N108: 6 | O108: 31 | P108: 41 | Q108: 49 | R108: 6 | S108: 39 | T108: 8 | U108: 6 | V108: 6 | W108: 37 | X108: 22 | Y108: 42 | Z108: 19 | AA108: 35 | AB108: 48 | AC108: 43 | AD108: 47 | AE108: 32 | AF108: 49 | AG108: 11 | AH108: 45 | AI108: 43 | AJ108: 47 | AK108: 43 | AL108: 25 | AM108: 32 | AN108: 43 | AO108: 34
K109: 7 | L109: 46 | M109: 3 | N109: 48 | O109: 16 | P109: 50 | Q109: 48 | R109: 3 | S109: 5 | T109: 31 | U109: 46 | V109: 21 | W109: 35 | X109: 48 | Y109: 26 | Z109: 28 | AA109: 49 | AB109: 23 | AC109: 22 | AD109: 30 | AE109: 22 | AF109: 1 | AG109: 49 | AH109: 20 | AI109: 8 | AJ109: 11 | AK109: 25 | AL109: 35 | AM109: 39 | AN109: 17 | AO109: 46
K110: 40 | L110: 19 | M110: 20 | N110: 44 | O110: 44 | P110: 4 | Q110: 19 | R110: 21 | S110: 7 | T110: 11 | U110: 48 | V110: 18 | W110: 47 | X110: 43 | Y110: 14 | Z110: 8 | AA110: 26 | AB110: 5 | AC110: 33 | AD110: 37 | AE110: 23 | AF110: 39 | AG110: 30 | AH110: 47 | AI110: 24 | AJ110: 8 | AK110: 12 | AL110: 2 | AM110: 32 | AN110: 15 | AO110: 36
K111: 29 | L111: 14 | M111: 35 | N111: 11 | O111: 44 | P111: 50 | Q111: 22 | R111: 38 | S111: 40 | T111: 14 | U111: 31 | V111: 38 | W111: 31 | X111: 29 | Y111: 47 | Z111: 49 | AA111: 34 | AB111: 42 | AC111: 6 | AD111: 8 | AE111: 22 | AF111: 50 | AG111: 15 | AH111: 24 | AI111: 49 | AJ111: 25 | AK111: 36 | AL111: 28 | AM111: 41 | AN111: 46 | AO111: 48
K112: 17 | L112: 1 | M112: 23 | N112: 44 | O112: 17 | P112: 42 | Q112: 50 | R112: 38 | S112: 32 | T112: 20 | U112: 34 | V112: 32 | W112: 5 | X112: 45 | Y112: 11 | Z112: 19 | AA112: 48 | AB112: 11 | AC112: 18 | AD112: 42 | AE112: 47 | AF112: 47 | AG112: 44 | AH112: 28 | AI112: 12 | AJ112: 11 | AK112: 9 | AL112: 37 | AM112: 41 | AN112: 23 | AO112: 44
K113: 14 | L113: 2 | M113: 38 | N113: 43 | O113: 38 | P113: 3 | Q113: 28 | R113: 4 | S113: 39 | T113: 43 | U113: 26 | V113: 3 | W113: 46 | X113: 29 | Y113: 38 | Z113: 26 | AA113: 34 | AB113: 15 | AC113: 44 | AD113: 18 | AE113: 32 | AF113: 32 | AG113: 15 | AH113: 50 | AI113: 20 | AJ113: 10 | AK113: 42 | AL113: 32 | AM113: 4 | AN113: 45 | AO113: 30
K114: 50 | L114: 19 | M114: 27 | N114: 25 | O114: 35 | P114: 12 | Q114: 43 | R114: 48 | S114: 14 | T114: 50 | U114: 20 | V114: 31 | W114: 47 | X114: 22 | Y114: 13 | Z114: 1 | AA114: 2 | AB114: 23 | AC114: 49 | AD114: 4 | AE114: 46 | AF114: 33 | AG114: 4 | AH114: 17 | AI114: 47 | AJ114: 12 | AK114: 45 | AL114: 5 | AM114: 15 | AN114: 44 | AO114: 46
K115: 29 | L115: 6 | M115: 36 | N115: 38 | O115: 38 | P115: 38 | Q115: 20 | R115: 50 | S115: 16 | T115: 50 | U115: 46 | V115: 45 | W115: 38 | X115: 38 | Y115: 43 | Z115: 28 | AA115: 5 | AB115: 5 | AC115: 33 | AD115: 20 | AE115: 13 | AF115: 21 | AG115: 35 | AH115: 17 | AI115: 46 | AJ115: 25 | AK115: 17 | AL115: 45 | AM115: 11 | AN115: 12 | AO115: 38
K116: 46 | L116: 20 | M116: 43 | N116: 35 | O116: 16 | P116: 35 | Q116: 42 | R116: 29 | S116: 4 | T116: 40 | U116: 5 | V116: 48 | W116: 35 | X116: 8 | Y116: 11 | Z116: 49 | AA116: 36 | AB116: 25 | AC116: 25 | AD116: 38 | AE116: 8 | AF116: 38 | AG116: 11 | AH116: 33 | AI116: 45 | AJ116: 4 | AK116: 28 | AL116: 15 | AM116: 5 | AN116: 10 | AO116: 8
K117: 28 | L117: 36 | M117: 33 | N117: 49 | O117: 16 | P117: 49 | Q117: 12 | R117: 34 | S117: 1 | T117: 43 | U117: 22 | V117: 45 | W117: 49 | X117: 6 | Y117: 22 | Z117: 19 | AA117: 39 | AB117: 5 | AC117: 46 | AD117: 20 | AE117: 47 | AF117: 6 | AG117: 33 | AH117: 35 | AI117: 47 | AJ117: 11 | AK117: 15 | AL117: 24 | AM117: 28 | AN117: 28 | AO117: 37
K118: 5 | L118: 48 | M118: 39 | N118: 12 | O118: 22 | P118: 23 | Q118: 41 | R118: 33 | S118: 27 | T118: 28 | U118: 1 | V118: 5 | W118: 46 | X118: 7 | Y118: 14 | Z118: 18 | AA118: 50 | AB118: 44 | AC118: 25 | AD118: 41 | AE118: 18 | AF118: 3 | AG118: 32 | AH118: 40 | AI118: 22 | AJ118: 14 | AK118: 34 | AL118: 17 | AM118: 3 | AN118: 21 | AO118: 19
K119: 36 | L119: 8 | M119: 33 | N119: 25 | O119: 13 | P119: 44 | Q119: 19 | R119: 11 | S119: 49 | T119: 23 | U119: 43 | V119: 41 | W119: 5 | X119: 24 | Y119: 24 | Z119: 5 | AA119: 35 | AB119: 18 | AC119: 15 | AD119: 44 | AE119: 8 | AF119: 34 | AG119: 42 | AH119: 15 | AI119: 17 | AJ119: 19 | AK119: 9 | AL119: 39 | AM119: 20 | AN119: 21 | AO119: 4
K120: 18 | L120: 42 | M120: 2 | N120: 39 | O120: 48 | P120: 4 | Q120: 20 | R120: 24 | S120: 3 | T120: 50 | U120: 12 | V120: 47 | W120: 45 | X120: 41 | Y120: 48 | Z120: 6 | AA120: 44 | AB120: 49 | AC120: 11 | AD120: 31 | AE120: 2 | AF120: 21 | AG120: 18 | AH120: 34 | AI120: 41 | AJ120: 33 | AK120: 43 | AL120: 26 | AM120: 21 | AN120: 43 | AO120: 9
K121: 44 | L121: 33 | M121: 17 | N121: 40 | O121: 28 | P121: 36 | Q121: 42 | R121: 8 | S121: 11 | T121: 2 | U121: 31 | V121: 10 | W121: 5 | X121: 19 | Y121: 47 | Z121: 3 | AA121: 13 | AB121: 45 | AC121: 36 | AD121: 2 | AE121: 21 | AF121: 22 | AG121: 19 | AH121: 20 | AI121: 41 | AJ121: 1 | AK121: 6 | AL121: 49 | AM121: 29 | AN121: 10 | AO121: 42
K122: 31 | L122: 46 | M122: 28 | N122: 12 | O122: 23 | P122: 21 | Q122: 6 | R122: 2 | S122: 48 | T122: 3 | U122: 48 | V122: 49 | W122: 49 | X122: 8 | Y122: 8 | Z122: 34 | AA122: 8 | AB122: 47 | AC122: 37 | AD122: 27 | AE122: 6 | AF122: 26 | AG122: 42 | AH122: 38 | AI122: 13 | AJ122: 20 | AK122: 23 | AL122: 46 | AM122: 25 | AN122: 22 | AO122: 3
K123: 4 | L123: 11 | M123: 49 | N123: 10 | O123: 33 | P123: 1 | Q123: 35 | R123: 7 | S123: 41 | T123: 9 | U123: 41 | V123: 3 | W123: 8 | X123: 9 | Y123: 5 | Z123: 20 | AA123: 35 | AB123: 49 | AC123: 11 | AD123: 31 | AE123: 17 | AF123: 35 | AG123: 12 | AH123: 29 | AI123: 18 | AJ123: 10 | AK123: 40 | AL123: 28 | AM123: 1 | AN123: 14 | AO123: 50
K124: 30 | L124: 15 | M124: 49 | N124: 39 | O124: 30 | P124: 12 | Q124: 28 | R124: 17 | S124: 42 | T124: 26 | U124: 12 | V124: 45 | W124: 10 | X124: 22 | Y124: 45 | Z124: 48 | AA124: 25 | AB124: 9 | AC124: 28 | AD124: 8 | AE124: 42 | AF124: 24 | AG124: 38 | AH124: 9 | AI124: 4 | AJ124: 7 | AK124: 11 | AL124: 38 | AM124: 36 | AN124: 28 | AO124: 39
K125: 13 | L125: 26 | M125: 42 | N125: 24 | O125: 7 | P125: 46 | Q125: 45 | R125: 18 | S125: 26 | T125: 41 | U125: 34 | V125: 7 | W125: 2 | X125: 42 | Y125: 47 | Z125: 19 | AA125: 7 | AB125: 24 | AC125: 31 | AD125: 44 | AE125: 7 | AF125: 30 | AG125: 14 | AH125: 22 | AI125: 43 | AJ125: 47 | AK125: 50 | AL125: 48 | AM125: 37 | AN125: 26 | AO125: 11
K126: 14 | L126: 9 | M126: 9 | N126: 26 | O126: 31 | P126: 42 | Q126: 14 | R126: 20 | S126: 32 | T126: 5 | U126: 8 | V126: 48 | W126: 20 | X126: 25 | Y126: 47 | Z126: 50 | AA126: 35 | AB126: 38 | AC126: 10 | AD126: 40 | AE126: 2 | AF126: 26 | AG126: 28 | AH126: 14 | AI126: 3 | AJ126: 29 | AK126: 3 | AL126: 48 | AM126: 11 | AN126: 34 | AO126: 46
K127: 13 | L127: 4 | M127: 1 | N127: 47 | O127: 13 | P127: 47 | Q127: 13 | R127: 33 | S127: 32 | T127: 41 | U127: 12 | V127: 5 | W127: 45 | X127: 35 | Y127: 28 | Z127: 37 | AA127: 18 | AB127: 50 | AC127: 38 | AD127: 49 | AE127: 1 | AF127: 50 | AG127: 31 | AH127: 9 | AI127: 23 | AJ127: 37 | AK127: 4 | AL127: 36 | AM127: 50 | AN127: 7 | AO127: 24
K128: 39 | L128: 25 | M128: 2 | N128: 23 | O128: 12 | P128: 22 | Q128: 7 | R128: 17 | S128: 50 | T128: 13 | U128: 8 | V128: 26 | W128: 33 | X128: 20 | Y128: 43 | Z128: 6 | AA128: 50 | AB128: 22 | AC128: 8 | AD128: 3 | AE128: 40 | AF128: 5 | AG128: 28 | AH128: 46 | AI128: 14 | AJ128: 37 | AK128: 30 | AL128: 10 | AM128: 17 | AN128: 41 | AO128: 5
K129: 21 | L129: 19 | M129: 22 | N129: 41 | O129: 39 | P129: 6 | Q129: 35 | R129: 7 | S129: 48 | T129: 19 | U129: 15 | V129: 40 | W129: 47 | X129: 15 | Y129: 47 | Z129: 31 | AA129: 22 | AB129: 16 | AC129: 37 | AD129: 13 | AE129: 25 | AF129: 38 | AG129: 40 | AH129: 13 | AI129: 19 | AJ129: 15 | AK129: 24 | AL129: 28 | AM129: 14 | AN129: 37 | AO129: 40
K130: 33 | L130: 38 | M130: 35 | N130: 45 | O130: 15 | P130: 26 | Q130: 7 | R130: 3 | S130: 7 | T130: 41 | U130: 5 | V130: 1 | W130: 25 | X130: 3 | Y130: 22 | Z130: 28 | AA130: 28 | AB130: 47 | AC130: 3 | AD130: 47 | AE130: 27 | AF130: 13 | AG130: 4 | AH130: 19 | AI130: 18 | AJ130: 4 | AK130: 35 | AL130: 26 | AM130: 12 | AN130: 26 | AO130: 19
K131: 30 | L131: 23 | M131: 22 | N131: 34 | O131: 2 | P131: 37 | Q131: 39 | R131: 5 | S131: 39 | T131: 6 | U131: 40 | V131: 23 | W131: 10 | X131: 49 | Y131: 42 | Z131: 19 | AA131: 26 | AB131: 35 | AC131: 19 | AD131: 12 | AE131: 28 | AF131: 36 | AG131: 7 | AH131: 44 | AI131: 40 | AJ131: 16 | AK131: 31 | AL131: 42 | AM131: 36 | AN131: 16 | AO131: 40
K132: 2 | L132: 6 | M132: 20 | N132: 33 | O132: 7 | P132: 33 | Q132: 14 | R132: 32 | S132: 35 | T132: 19 | U132: 1 | V132: 39 | W132: 43 | X132: 12 | Y132: 19 | Z132: 25 | AA132: 17 | AB132: 38 | AC132: 27 | AD132: 3 | AE132: 8 | AF132: 18 | AG132: 13 | AH132: 34 | AI132: 3 | AJ132: 15 | AK132: 18 | AL132: 19 | AM132: 31 | AN132: 50 | AO132: 8
K133: 7 | L133: 27 | M133: 13 | N133: 13 | O133: 27 | P133: 30 | Q133: 23 | R133: 15 | S133: 3 | T133: 24 | U133: 8 | V133: 46 | W133: 11 | X133: 22 | Y133: 27 | Z133: 23 | AA133: 41 | AB133: 37 | AC133: 48 | AD133: 29 | AE133: 30 | AF133: 44 | AG133: 47 | AH133: 26 | AI133: 47 | AJ133: 33 | AK133: 27 | AL133: 32 | AM133: 8 | AN133: 50 | AO133: 10
K134: 27 | L134: 26 | M134: 7 | N134: 9 | O134: 27 | P134: 36 | Q134: 30 | R134: 34 | S134: 14 | T134: 34 | U134: 9 | V134: 34 | W134: 35 | X134: 29 | Y134: 33 | Z134: 27 | AA134: 13 | AB134: 40 | AC134: 38 | AD134: 21 | AE134: 45 | AF134: 18 | AG134: 5 | AH134: 36 | AI134: 16 | AJ134: 8 | AK134: 19 | AL134: 35 | AM134: 48 | AN134: 39 | AO134: 39
K135: 26 | L135: 37 | M135: 24 | N135: 13 | O135: 48 | P135: 28 | Q135: 39 | R135: 33 | S135: 48 | T135: 35 | U135: 29 | V135: 11 | W135: 47 | X135: 32 | Y135: 21 | Z135: 12 | AA135: 21 | AB135: 27 | AC135: 47 | AD135: 4 | AE135: 15 | AF135: 17 | AG135: 10 | AH135: 42 | AI135: 1 | AJ135: 28 | AK135: 50 | AL135: 31 | AM135: 16 | AN135: 20 | AO135: 15
K136: 46 | L136: 43 | M136: 14 | N136: 18 | O136: 37 | P136: 42 | Q136: 25 | R136: 47 | S136: 42 | T136: 42 | U136: 29 | V136: 34 | W136: 6 | X136: 15 | Y136: 20 | Z136: 26 | AA136: 18 | AB136: 11 | AC136: 31 | AD136: 15 | AE136: 20 | AF136: 20 | AG136: 29 | AH136: 9 | AI136: 12 | AJ136: 45 | AK136: 14 | AL136: 8 | AM136: 2 | AN136: 32 | AO136: 29
K137: 37 | L137: 27 | M137: 39 | N137: 18 | O137: 25 | P137: 30 | Q137: 25 | R137: 34 | S137: 44 | T137: 23 | U137: 4 | V137: 1 | W137: 41 | X137: 35 | Y137: 13 | Z137: 34 | AA137: 46 | AB137: 32 | AC137: 17 | AD137: 46 | AE137: 28 | AF137: 23 | AG137: 42 | AH137: 1 | AI137: 43 | AJ137: 12 | AK137: 7 | AL137: 9 | AM137: 26 | AN137: 50 | AO137: 14
K138: 29 | L138: 47 | M138: 30 | N138: 19 | O138: 24 | P138: 26 | Q138: 28 | R138: 32 | S138: 37 | T138: 1 | U138: 46 | V138: 2 | W138: 11 | X138: 29 | Y138: 33 | Z138: 29 | AA138: 46 | AB138: 16 | AC138: 21 | AD138: 24 | AE138: 44 | AF138: 16 | AG138: 26 | AH138: 30 | AI138: 50 | AJ138: 33 | AK138: 18 | AL138: 3 | AM138: 29 | AN138: 39 | AO138: 15
K139: 7 | L139: 40 | M139: 37 | N139: 6 | O139: 7 | P139: 24 | Q139: 23 | R139: 45 | S139: 21 | T139: 36 | U139: 32 | V139: 32 | W139: 28 | X139: 9 | Y139: 26 | Z139: 3 | AA139: 27 | AB139: 18 | AC139: 47 | AD139: 33 | AE139: 13 | AF139: 43 | AG139: 7 | AH139: 34 | AI139: 23 | AJ139: 4 | AK139: 19 | AL139: 28 | AM139: 29 | AN139: 25 | AO139: 48
K140: 5 | L140: 18 | M140: 41 | N140: 13 | O140: 9 | P140: 11 | Q140: 41 | R140: 7 | S140: 46 | T140: 7 | U140: 46 | V140: 16 | W140: 38 | X140: 6 | Y140: 41 | Z140: 47 | AA140: 5 | AB140: 45 | AC140: 28 | AD140: 21 | AE140: 40 | AF140: 13 | AG140: 45 | AH140: 28 | AI140: 33 | AJ140: 25 | AK140: 20 | AL140: 10 | AM140: 32 | AN140: 2 | AO140: 4
K141: 5 | L141: 42 | M141: 38 | N141: 42 | O141: 32 | P141: 7 | Q141: 14 | R141: 41 | S141: 49 | T141: 7 | U141: 28 | V141: 10 | W141: 19 | X141: 30 | Y141: 32 | Z141: 42 | AA141: 45 | AB141: 1 | AC141: 34 | AD141: 29 | AE141: 18 | AF141: 49 | AG141: 10 | AH141: 37 | AI141: 3 | AJ141: 2 | AK141: 40 | AL141: 7 | AM141: 11 | AN141: 27 | AO141: 41
K142: 36 | L142: 1 | M142: 2 | N142: 42 | O142: 28 | P142: 18 | Q142: 17 | R142: 40 | S142: 22 | T142: 27 | U142: 4 | V142: 24 | W142: 5 | X142: 11 | Y142: 6 | Z142: 2 | AA142: 26 | AB142: 1 | AC142: 14 | AD142: 41 | AE142: 16 | AF142: 10 | AG142: 34 | AH142: 24 | AI142: 40 | AJ142: 43 | AK142: 4 | AL142: 44 | AM142: 27 | AN142: 50 | AO142: 13
K143: 16 | L143: 2 | M143: 15 | N143: 43 | O143: 36 | P143: 22 | Q143: 29 | R143: 28 | S143: 32 | T143: 7 | U143: 10 | V143: 39 | W143: 30 | X143: 43 | Y143: 41 | Z143: 26 | AA143: 29 | AB143: 12 | AC143: 16 | AD143: 23 | AE143: 41 | AF143: 47 | AG143: 37 | AH143: 12 | AI143: 37 | AJ143: 29 | AK143: 28 | AL143: 37 | AM143: 45 | AN143: 24 | AO143: 46
K144: 35 | L144: 4 | M144: 38 | N144: 36 | O144: 31 | P144: 48 | Q144: 10 | R144: 15 | S144: 5 | T144: 34 | U144: 47 | V144: 23 | W144: 43 | X144: 29 | Y144: 29 | Z144: 19 | AA144: 49 | AB144: 39 | AC144: 33 | AD144: 48 | AE144: 7 | AF144: 47 | AG144: 50 | AH144: 8 | AI144: 38 | AJ144: 6 | AK144: 38 | AL144: 11 | AM144: 23 | AN144: 35 | AO144: 10
K145: 45 | L145: 14 | M145: 17 | N145: 13 | O145: 28 | P145: 17 | Q145: 45 | R145: 30 | S145: 24 | T145: 28 | U145: 48 | V145: 50 | W145: 5 | X145: 45 | Y145: 49 | Z145: 42 | AA145: 49 | AB145: 20 | AC145: 14 | AD145: 45 | AE145: 31 | AF145: 8 | AG145: 41 | AH145: 41 | AI145: 26 | AJ145: 34 | AK145: 41 | AL145: 30 | AM145: 17 | AN145: 27 | AO145: 45
K146: 44 | L146: 20 | M146: 2 | N146: 26 | O146: 48 | P146: 37 | Q146: 46 | R146: 9 | S146: 19 | T146: 21 | U146: 26 | V146: 23 | W146: 33 | X146: 7 | Y146: 31 | Z146: 50 | AA146: 35 | AB146: 15 | AC146: 42 | AD146: 31 | AE146: 5 | AF146: 4 | AG146: 33 | AH146: 32 | AI146: 18 | AJ146: 35 | AK146: 48 | AL146: 14 | AM146: 33 | AN146: 8 | AO146: 38
K147: 38 | L147: 17 | M147: 43 | N147: 13 | O147: 37 | P147: 31 | Q147: 26 | R147: 16 | S147: 22 | T147: 6 | U147: 16 | V147: 47 | W147: 4 | X147: 26 | Y147: 15 | Z147: 13 | AA147: 6 | AB147: 17 | AC147: 34 | AD147: 26 | AE147: 18 | AF147: 41 | AG147: 47 | AH147: 48 | AI147: 24 | AJ147: 18 | AK147: 47 | AL147: 38 | AM147: 8 | AN147: 38 | AO147: 7
K148: 12 | L148: 12 | M148: 50 | N148: 8 | O148: 11 | P148: 46 | Q148: 10 | R148: 26 | S148: 47 | T148: 26 | U148: 7 | V148: 50 | W148: 28 | X148: 27 | Y148: 5 | Z148: 1 | AA148: 44 | AB148: 13 | AC148: 40 | AD148: 16 | AE148: 12 | AF148: 41 | AG148: 46 | AH148: 31 | AI148: 28 | AJ148: 49 | AK148: 8 | AL148: 14 | AM148: 46 | AN148: 2 | AO148: 25
K149: 2 | L149: 18 | M149: 8 | N149: 38 | O149: 8 | P149: 11 | Q149: 21 | R149: 34 | S149: 13 | T149: 31 | U149: 12 | V149: 38 | W149: 2 | X149: 11 | Y149: 8 | Z149: 46 | AA149: 43 | AB149: 26 | AC149: 31 | AD149: 43 | AE149: 22 | AF149: 16 | AG149: 42 | AH149: 18 | AI149: 41 | AJ149: 30 | AK149: 10 | AL149: 43 | AM149: 20 | AN149: 48 | AO149: 9
K150: 46 | L150: 27 | M150: 1 | N150: 26 | O150: 22 | P150: 22 | Q150: 34 | R150: 42 | S150: 28 | T150: 32 | U150: 46 | V150: 34 | W150: 23 | X150: 44 | Y150: 22 | Z150: 33 | AA150: 23 | AB150: 36 | AC150: 22 | AD150: 44 | AE150: 36 | AF150: 36 | AG150: 4 | AH150: 13 | AI150: 47 | AJ150: 35 | AK150: 47 | AL150: 8 | AM150: 7 | AN150: 43 | AO150: 30
K151: 23 | L151: 23 | M151: 1 | N151: 28 | O151: 10 | P151: 8 | Q151: 13 | R151: 16 | S151: 19 | T151: 10 | U151: 34 | V151: 31 | W151: 4 | X151: 48 | Y151: 32 | Z151: 27 | AA151: 38 | AB151: 3 | AC151: 36 | AD151: 35 | AE151: 8 | AF151: 44 | AG151: 7 | AH151: 28 | AI151: 40 | AJ151: 30 | AK151: 22 | AL151: 27 | AM151: 4 | AN151: 17 | AO151: 41
K152: 23 | L152: 19 | M152: 10 | N152: 36 | O152: 50 | P152: 39 | Q152: 44 | R152: 8 | S152: 30 | T152: 6 | U152: 28 | V152: 45 | W152: 45 | X152: 35 | Y152: 21 | Z152: 4 | AA152: 47 | AB152: 32 | AC152: 28 | AD152: 11 | AE152: 32 | AF152: 30 | AG152: 46 | AH152: 19 | AI152: 33 | AJ152: 6 | AK152: 8 | AL152: 20 | AM152: 27 | AN152: 9 | AO152: 41
K153: 37 | L153: 6 | M153: 35 | N153: 5 | O153: 21 | P153: 37 | Q153: 36 | R153: 36 | S153: 30 | T153: 39 | U153: 8 | V153: 15 | W153: 17 | X153: 18 | Y153: 21 | Z153: 23 | AA153: 21 | AB153: 16 | AC153: 27 | AD153: 2 | AE153: 17 | AF153: 22 | AG153: 41 | AH153: 22 | AI153: 18 | AJ153: 7 | AK153: 1 | AL153: 32 | AM153: 39 | AN153: 5 | AO153: 33
K154: 5 | L154: 47 | M154: 11 | N154: 10 | O154: 42 | P154: 30 | Q154: 6 | R154: 35 | S154: 42 | T154: 30 | U154: 41 | V154: 15 | W154: 40 | X154: 40 | Y154: 50 | Z154: 29 | AA154: 49 | AB154: 29 | AC154: 47 | AD154: 30 | AE154: 40 | AF154: 30 | AG154: 44 | AH154: 8 | AI154: 40 | AJ154: 39 | AK154: 18 | AL154: 17 | AM154: 39 | AN154: 38 | AO154: 17
K155: 17 | L155: 20 | M155: 42 | N155: 47 | O155: 19 | P155: 36 | Q155: 7 | R155: 36 | S155: 34 | T155: 39 | U155: 32 | V155: 39 | W155: 4 | X155: 49 | Y155: 6 | Z155: 32 | AA155: 17 | AB155: 50 | AC155: 31 | AD155: 7 | AE155: 14 | AF155: 13 | AG155: 35 | AH155: 38 | AI155: 5 | AJ155: 50 | AK155: 16 | AL155: 6 | AM155: 16 | AN155: 28 | AO155: 33
K156: 19 | L156: 26 | M156: 7 | N156: 26 | O156: 47 | P156: 24 | Q156: 31 | R156: 7 | S156: 4 | T156: 41 | U156: 18 | V156: 42 | W156: 35 | X156: 14 | Y156: 7 | Z156: 44 | AA156: 48 | AB156: 11 | AC156: 27 | AD156: 47 | AE156: 21 | AF156: 47 | AG156: 45 | AH156: 34 | AI156: 34 | AJ156: 6 | AK156: 7 | AL156: 29 | AM156: 14 | AN156: 45 | AO156: 18
K157: 36 | L157: 12 | M157: 22 | N157: 12 | O157: 4 | P157: 16 | Q157: 16 | R157: 47 | S157: 31 | T157: 42 | U157: 38 | V157: 7 | W157: 5 | X157: 38 | Y157: 13 | Z157: 24 | AA157: 40 | AB157: 16 | AC157: 12 | AD157: 34 | AE157: 1 | AF157: 21 | AG157: 37 | AH157: 45 | AI157: 28 | AJ157: 29 | AK157: 45 | AL157: 18 | AM157: 27 | AN157: 38 | AO157: 4
K158: 40 | L158: 16 | M158: 44 | N158: 37 | O158: 23 | P158: 31 | Q158: 45 | R158: 2 | S158: 24 | T158: 37 | U158: 15 | V158: 32 | W158: 7 | X158: 49 | Y158: 7 | Z158: 10 | AA158: 41 | AB158: 15 | AC158: 34 | AD158: 14 | AE158: 12 | AF158: 21 | AG158: 9 | AH158: 2 | AI158: 10 | AJ158: 6 | AK158: 4 | AL158: 11 | AM158: 35 | AN158: 23 | AO158: 36
K159: 26 | L159: 19 | M159: 33 | N159: 1 | O159: 42 | P159: 36 | Q159: 30 | R159: 6 | S159: 41 | T159: 8 | U159: 25 | V159: 39 | W159: 32 | X159: 26 | Y159: 28 | Z159: 48 | AA159: 6 | AB159: 39 | AC159: 14 | AD159: 38 | AE159: 5 | AF159: 50 | AG159: 6 | AH159: 8 | AI159: 11 | AJ159: 18 | AK159: 26 | AL159: 1 | AM159: 18 | AN159: 41 | AO159: 44
K160: 5 | L160: 1 | M160: 24 | N160: 20 | O160: 6 | P160: 46 | Q160: 9 | R160: 13 | S160: 21 | T160: 5 | U160: 31 | V160: 41 | W160: 38 | X160: 21 | Y160: 31 | Z160: 14 | AA160: 25 | AB160: 33 | AC160: 14 | AD160: 43 | AE160: 9 | AF160: 48 | AG160: 9 | AH160: 45 | AI160: 1 | AJ160: 14 | AK160: 1 | AL160: 44 | AM160: 8 | AN160: 47 | AO160: 18
K161: 11 | L161: 42 | M161: 36 | N161: 47 | O161: 39 | P161: 48 | Q161: 40 | R161: 42 | S161: 1 | T161: 35 | U161: 15 | V161: 37 | W161: 44 | X161: 9 | Y161: 29 | Z161: 33 | AA161: 49 | AB161: 42 | AC161: 46 | AD161: 11 | AE161: 3 | AF161: 32 | AG161: 42 | AH161: 16 | AI161: 24 | AJ161: 28 | AK161: 12 | AL161: 23 | AM161: 20 | AN161: 19 | AO161: 23
K162: 16 | L162: 16 | M162: 37 | N162: 8 | O162: 45 | P162: 32 | Q162: 31 | R162: 5 | S162: 15 | T162: 19 | U162: 41 | V162: 44 | W162: 45 | X162: 11 | Y162: 43 | Z162: 36 | AA162: 14 | AB162: 29 | AC162: 47 | AD162: 26 | AE162: 21 | AF162: 2 | AG162: 28 | AH162: 33 | AI162: 18 | AJ162: 40 | AK162: 1 | AL162: 5 | AM162: 46 | AN162: 36 | AO162: 29
K163: 45 | L163: 48 | M163: 20 | N163: 30 | O163: 36 | P163: 40 | Q163: 49 | R163: 14 | S163: 7 | T163: 50 | U163: 26 | V163: 22 | W163: 18 | X163: 12 | Y163: 41 | Z163: 30 | AA163: 28 | AB163: 26 | AC163: 23 | AD163: 50 | AE163: 35 | AF163: 5 | AG163: 45 | AH163: 2 | AI163: 25 | AJ163: 23 | AK163: 43 | AL163: 34 | AM163: 26 | AN163: 29 | AO163: 16
K164: 35 | L164: 9 | M164: 18 | N164: 28 | O164: 9 | P164: 30 | Q164: 44 | R164: 37 | S164: 37 | T164: 35 | U164: 13 | V164: 41 | W164: 21 | X164: 4 | Y164: 45 | Z164: 22 | AA164: 21 | AB164: 40 | AC164: 39 | AD164: 5 | AE164: 2 | AF164: 41 | AG164: 41 | AH164: 18 | AI164: 34 | AJ164: 28 | AK164: 6 | AL164: 25 | AM164: 46 | AN164: 39 | AO164: 34
K165: 36 | L165: 12 | M165: 19 | N165: 32 | O165: 21 | P165: 40 | Q165: 16 | R165: 33 | S165: 25 | T165: 3 | U165: 4 | V165: 31 | W165: 34 | X165: 7 | Y165: 32 | Z165: 12 | AA165: 1 | AB165: 3 | AC165: 16 | AD165: 23 | AE165: 24 | AF165: 8 | AG165: 21 | AH165: 10 | AI165: 29 | AJ165: 43 | AK165: 18 | AL165: 13 | AM165: 38 | AN165: 45 | AO165: 25
K166: 44 | L166: 44 | M166: 49 | N166: 42 | O166: 48 | P166: 15 | Q166: 37 | R166: 33 | S166: 2 | T166: 34 | U166: 26 | V166: 46 | W166: 18 | X166: 37 | Y166: 34 | Z166: 2 | AA166: 19 | AB166: 13 | AC166: 18 | AD166: 48 | AE166: 18 | AF166: 22 | AG166: 11 | AH166: 46 | AI166: 49 | AJ166: 34 | AK166: 42 | AL166: 22 | AM166: 3 | AN166: 20 | AO166: 4
K167: 3 | L167: 31 | M167: 18 | N167: 7 | O167: 36 | P167: 27 | Q167: 7 | R167: 36 | S167: 38 | T167: 28 | U167: 20 | V167: 10 | W167: 28 | X167: 32 | Y167: 46 | Z167: 27 | AA167: 10 | AB167: 2 | AC167: 26 | AD167: 7 | AE167: 9 | AF167: 21 | AG167: 18 | AH167: 4 | AI167: 50 | AJ167: 30 | AK167: 48 | AL167: 13 | AM167: 22 | AN167: 16 | AO167: 35
K168: 50 | L168: 28 | M168: 24 | N168: 5 | O168: 23 | P168: 26 | Q168: 41 | R168: 8 | S168: 46 | T168: 47 | U168: 1 | V168: 27 | W168: 14 | X168: 33 | Y168: 6 | Z168: 38 | AA168: 3 | AB168: 25 | AC168: 11 | AD168: 9 | AE168: 47 | AF168: 19 | AG168: 25 | AH168: 43 | AI168: 23 | AJ168: 43 | AK168: 12 | AL168: 24 | AM168: 49 | AN168: 28 | AO168: 40
K169: 15 | L169: 9 | M169: 14 | N169: 31 | O169: 43 | P169: 25 | Q169: 23 | R169: 3 | S169: 13 | T169: 42 | U169: 23 | V169: 42 | W169: 31 | X169: 16 | Y169: 36 | Z169: 33 | AA169: 40 | AB169: 5 | AC169: 35 | AD169: 32 | AE169: 33 | AF169: 15 | AG169: 24 | AH169: 4 | AI169: 14 | AJ169: 22 | AK169: 21 | AL169: 48 | AM169: 20 | AN169: 16 | AO169: 49
K170: 7 | L170: 39 | M170: 45 | N170: 37 | O170: 34 | P170: 30 | Q170: 48 | R170: 43 | S170: 9 | T170: 27 | U170: 9 | V170: 14 | W170: 45 | X170: 50 | Y170: 12 | Z170: 36 | AA170: 34 | AB170: 16 | AC170: 29 | AD170: 25 | AE170: 14 | AF170: 41 | AG170: 36 | AH170: 34 | AI170: 39 | AJ170: 45 | AK170: 23 | AL170: 11 | AM170: 17 | AN170: 15 | AO170: 41
K171: 46 | L171: 46 | M171: 2 | N171: 40 | O171: 40 | P171: 44 | Q171: 28 | R171: 38 | S171: 14 | T171: 9 | U171: 17 | V171: 27 | W171: 20 | X171: 27 | Y171: 49 | Z171: 33 | AA171: 23 | AB171: 42 | AC171: 3 | AD171: 48 | AE171: 36 | AF171: 42 | AG171: 43 | AH171: 43 | AI171: 17 | AJ171: 18 | AK171: 50 | AL171: 49 | AM171: 29 | AN171: 20 | AO171: 41
K172: 27 | L172: 42 | M172: 18 | N172: 32 | O172: 1 | P172: 46 | Q172: 47 | R172: 47 | S172: 45 | T172: 33 | U172: 45 | V172: 38 | W172: 44 | X172: 1 | Y172: 15 | Z172: 47 | AA172: 25 | AB172: 1 | AC172: 40 | AD172: 41 | AE172: 10 | AF172: 48 | AG172: 46 | AH172: 46 | AI172: 1 | AJ172: 10 | AK172: 32 | AL172: 27 | AM172: 16 | AN172: 26 | AO172: 18
K173: 5 | L173: 5 | M173: 34 | N173: 6 | O173: 14 | P173: 41 | Q173: 10 | R173: 24 | S173: 10 | T173: 16 | U173: 30 | V173: 27 | W173: 49 | X173: 38 | Y173: 9 | Z173: 48 | AA173: 49 | AB173: 41 | AC173: 46 | AD173: 5 | AE173: 39 | AF173: 47 | AG173: 34 | AH173: 34 | AI173: 14 | AJ173: 49 | AK173: 42 | AL173: 41 | AM173: 31 | AN173: 27 | AO173: 22
K174: 5 | L174: 37 | M174: 31 | N174: 48 | O174: 39 | P174: 24 | Q174: 17 | R174: 40 | S174: 30 | T174: 47 | U174: 33 | V174: 30 | W174: 9 | X174: 33 | Y174: 6 | Z174: 35 | AA174: 15 | AB174: 6 | AC174: 45 | AD174: 13 | AE174: 37 | AF174: 24 | AG174: 29 | AH174: 2 | AI174: 30 | AJ174: 41 | AK174: 13 | AL174: 34 | AM174: 14 | AN174: 41 | AO174: 25
K175: 22 | L175: 41 | M175: 46 | N175: 25 | O175: 41 | P175: 26 | Q175: 32 | R175: 32 | S175: 7 | T175: 36 | U175: 17 | V175: 5 | W175: 34 | X175: 23 | Y175: 3 | Z175: 7 | AA175: 5 | AB175: 8 | AC175: 36 | AD175: 5 | AE175: 44 | AF175: 3 | AG175: 14 | AH175: 43 | AI175: 11 | AJ175: 49 | AK175: 11 | AL175: 35 | AM175: 22 | AN175: 22 | AO175: 24
K176: 14 | L176: 11 | M176: 18 | N176: 34 | O176: 16 | P176: 5 | Q176: 24 | R176: 8 | S176: 50 | T176: 13 | U176: 3 | V176: 27 | W176: 29 | X176: 40 | Y176: 41 | Z176: 23 | AA176: 42 | AB176: 21 | AC176: 2 | AD176: 25 | AE176: 33 | AF176: 6 | AG176: 44 | AH176: 37 | AI176: 33 | AJ176: 32 | AK176: 48 | AL176: 14 | AM176: 25 | AN176: 49 | AO176: 31
K177: 9 | L177: 27 | M177: 10 | N177: 25 | O177: 49 | P177: 7 | Q177: 10 | R177: 17 | S177: 3 | T177: 4 | U177: 15 | V177: 41 | W177: 21 | X177: 27 | Y177: 40 | Z177: 46 | AA177: 34 | AB177: 42 | AC177: 30 | AD177: 15 | AE177: 33 | AF177: 26 | AG177: 5 | AH177: 44 | AI177: 17 | AJ177: 6 | AK177: 32 | AL177: 28 | AM177: 27 | AN177: 29 | AO177: 24
K178: 18 | L178: 45 | M178: 14 | N178: 24 | O178: 49 | P178: 22 | Q178: 27 | R178: 21 | S178: 31 | T178: 3 | U178: 10 | V178: 6 | W178: 11 | X178: 26 | Y178: 42 | Z178: 18 | AA178: 25 | AB178: 23 | AC178: 21 | AD178: 29 | AE178: 3 | AF178: 3 | AG178: 35 | AH178: 38 | AI178: 34 | AJ178: 41 | AK178: 25 | AL178: 45 | AM178: 50 | AN178: 48 | AO178: 13
K179: 45 | L179: 21 | M179: 15 | N179: 6 | O179: 50 | P179: 11 | Q179: 19 | R179: 11 | S179: 18 | T179: 2 | U179: 45 | V179: 37 | W179: 14 | X179: 28 | Y179: 25 | Z179: 21 | AA179: 5 | AB179: 19 | AC179: 28 | AD179: 42 | AE179: 30 | AF179: 41 | AG179: 45 | AH179: 34 | AI179: 20 | AJ179: 33 | AK179: 1 | AL179: 41 | AM179: 26 | AN179: 39 | AO179: 42
K180: 19 | L180: 25 | M180: 20 | N180: 49 | O180: 21 | P180: 14 | Q180: 47 | R180: 13 | S180: 9 | T180: 44 | U180: 17 | V180: 28 | W180: 20 | X180: 10 | Y180: 47 | Z180: 48 | AA180: 10 | AB180: 4 | AC180: 30 | AD180: 24 | AE180: 46 | AF180: 32 | AG180: 38 | AH180: 14 | AI180: 25 | AJ180: 36 | AK180: 20 | AL180: 1 | AM180: 27 | AN180: 30 | AO180: 29
K181: 1 | L181: 46 | M181: 28 | N181: 33 | O181: 27 | P181: 50 | Q181: 35 | R181: 29 | S181: 21 | T181: 24 | U181: 32 | V181: 12 | W181: 4 | X181: 6 | Y181: 8 | Z181: 9 | AA181: 10 | AB181: 2 | AC181: 21 | AD181: 2 | AE181: 11 | AF181: 30 | AG181: 5 | AH181: 29 | AI181: 40 | AJ181: 13 | AK181: 6 | AL181: 18 | AM181: 13 | AN181: 27 | AO181: 40
K182: 25 | L182: 47 | M182: 12 | N182: 28 | O182: 19 | P182: 32 | Q182: 39 | R182: 48 | S182: 35 | T182: 42 | U182: 14 | V182: 20 | W182: 9 | X182: 21 | Y182: 26 | Z182: 20 | AA182: 41 | AB182: 21 | AC182: 22 | AD182: 49 | AE182: 10 | AF182: 8 | AG182: 13 | AH182: 6 | AI182: 17 | AJ182: 23 | AK182: 33 | AL182: 29 | AM182: 44 | AN182: 50 | AO182: 50
K183: 31 | L183: 44 | M183: 22 | N183: 36 | O183: 22 | P183: 38 | Q183: 40 | R183: 35 | S183: 21 | T183: 50 | U183: 4 | V183: 28 | W183: 39 | X183: 16 | Y183: 48 | Z183: 15 | AA183: 27 | AB183: 40 | AC183: 15 | AD183: 21 | AE183: 44 | AF183: 38 | AG183: 42 | AH183: 8 | AI183: 42 | AJ183: 33 | AK183: 7 | AL183: 45 | AM183: 18 | AN183: 40 | AO183: 27
K184: 10 | L184: 44 | M184: 3 | N184: 41 | O184: 21 | P184: 29 | Q184: 44 | R184: 6 | S184: 41 | T184: 9 | U184: 1 | V184: 50 | W184: 24 | X184: 19 | Y184: 6 | Z184: 27 | AA184: 47 | AB184: 14 | AC184: 24 | AD184: 16 | AE184: 5 | AF184: 23 | AG184: 6 | AH184: 26 | AI184: 26 | AJ184: 24 | AK184: 43 | AL184: 42 | AM184: 21 | AN184: 29 | AO184: 18
K185: 33 | L185: 16 | M185: 3 | N185: 43 | O185: 5 | P185: 27 | Q185: 33 | R185: 6 | S185: 5 | T185: 48 | U185: 21 | V185: 34 | W185: 48 | X185: 38 | Y185: 30 | Z185: 4 | AA185: 42 | AB185: 26 | AC185: 7 | AD185: 15 | AE185: 24 | AF185: 34 | AG185: 6 | AH185: 29 | AI185: 37 | AJ185: 23 | AK185: 19 | AL185: 7 | AM185: 10 | AN185: 27 | AO185: 12
K186: 25 | L186: 45 | M186: 24 | N186: 17 | O186: 28 | P186: 25 | Q186: 29 | R186: 11 | S186: 31 | T186: 4 | U186: 5 | V186: 50 | W186: 7 | X186: 9 | Y186: 2 | Z186: 26 | AA186: 23 | AB186: 5 | AC186: 11 | AD186: 10 | AE186: 35 | AF186: 7 | AG186: 43 | AH186: 35 | AI186: 46 | AJ186: 43 | AK186: 40 | AL186: 41 | AM186: 15 | AN186: 31 | AO186: 10
K187: 9 | L187: 33 | M187: 29 | N187: 15 | O187: 14 | P187: 39 | Q187: 40 | R187: 34 | S187: 24 | T187: 24 | U187: 32 | V187: 44 | W187: 8 | X187: 37 | Y187: 49 | Z187: 18 | AA187: 8 | AB187: 50 | AC187: 40 | AD187: 25 | AE187: 1 | AF187: 1 | AG187: 49 | AH187: 18 | AI187: 16 | AJ187: 11 | AK187: 41 | AL187: 10 | AM187: 5 | AN187: 15 | AO187: 25
K188: 12 | L188: 25 | M188: 50 | N188: 31 | O188: 31 | P188: 5 | Q188: 43 | R188: 35 | S188: 17 | T188: 40 | U188: 12 | V188: 24 | W188: 27 | X188: 21 | Y188: 36 | Z188: 41 | AA188: 8 | AB188: 3 | AC188: 9 | AD188: 2 | AE188: 15 | AF188: 23 | AG188: 44 | AH188: 29 | AI188: 34 | AJ188: 33 | AK188: 24 | AL188: 40 | AM188: 33 | AN188: 12 | AO188: 42
K189: 25 | L189: 8 | M189: 19 | N189: 41 | O189: 13 | P189: 32 | Q189: 14 | R189: 13 | S189: 25 | T189: 30 | U189: 14 | V189: 32 | W189: 20 | X189: 42 | Y189: 13 | Z189: 21 | AA189: 14 | AB189: 35 | AC189: 41 | AD189: 36 | AE189: 21 | AF189: 18 | AG189: 10 | AH189: 9 | AI189: 47 | AJ189: 19 | AK189: 43 | AL189: 50 | AM189: 41 | AN189: 38 | AO189: 24
K190: 40 | L190: 27 | M190: 46 | N190: 28 | O190: 24 | P190: 34 | Q190: 40 | R190: 45 | S190: 33 | T190: 31 | U190: 46 | V190: 37 | W190: 41 | X190: 48 | Y190: 45 | Z190: 30 | AA190: 14 | AB190: 14 | AC190: 8 | AD190: 41 | AE190: 11 | AF190: 3 | AG190: 11 | AH190: 47 | AI190: 5 | AJ190: 37 | AK190: 6 | AL190: 48 | AM190: 27 | AN190: 43 | AO190: 38
K191: 29 | L191: 11 | M191: 42 | N191: 27 | O191: 38 | P191: 44 | Q191: 5 | R191: 7 | S191: 6 | T191: 47 | U191: 5 | V191: 42 | W191: 17 | X191: 45 | Y191: 29 | Z191: 22 | AA191: 30 | AB191: 2 | AC191: 2 | AD191: 9 | AE191: 5 | AF191: 16 | AG191: 42 | AH191: 20 | AI191: 14 | AJ191: 33 | AK191: 3 | AL191: 32 | AM191: 23 | AN191: 35 | AO191: 3
K192: 23 | L192: 35 | M192: 45 | N192: 24 | O192: 8 | P192: 22 | Q192: 6 | R192: 25 | S192: 40 | T192: 33 | U192: 42 | V192: 43 | W192: 31 | X192: 11 | Y192: 48 | Z192: 2 | AA192: 2 | AB192: 40 | AC192: 1 | AD192: 13 | AE192: 21 | AF192: 24 | AG192: 8 | AH192: 32 | AI192: 15 | AJ192: 3 | AK192: 44 | AL192: 36 | AM192: 14 | AN192: 22 | AO192: 38
K193: 41 | L193: 50 | M193: 8 | N193: 36 | O193: 10 | P193: 23 | Q193: 18 | R193: 36 | S193: 31 | T193: 24 | U193: 17 | V193: 6 | W193: 36 | X193: 28 | Y193: 24 | Z193: 23 | AA193: 42 | AB193: 48 | AC193: 43 | AD193: 45 | AE193: 41 | AF193: 28 | AG193: 11 | AH193: 38 | AI193: 21 | AJ193: 30 | AK193: 45 | AL193: 11 | AM193: 42 | AN193: 45 | AO193: 2
K194: 42 | L194: 31 | M194: 10 | N194: 33 | O194: 48 | P194: 47 | Q194: 4 | R194: 23 | S194: 27 | T194: 16 | U194: 21 | V194: 1 | W194: 43 | X194: 6 | Y194: 3 | Z194: 2 | AA194: 13 | AB194: 38 | AC194: 13 | AD194: 16 | AE194: 36 | AF194: 31 | AG194: 42 | AH194: 11 | AI194: 46 | AJ194: 8 | AK194: 6 | AL194: 20 | AM194: 18 | AN194: 22 | AO194: 34
K195: 38 | L195: 29 | M195: 13 | N195: 12 | O195: 30 | P195: 48 | Q195: 11 | R195: 2 | S195: 38 | T195: 50 | U195: 15 | V195: 9 | W195: 48 | X195: 14 | Y195: 14 | Z195: 32 | AA195: 45 | AB195: 32 | AC195: 33 | AD195: 10 | AE195: 45 | AF195: 12 | AG195: 4 | AH195: 35 | AI195: 23 | AJ195: 32 | AK195: 16 | AL195: 15 | AM195: 44 | AN195: 14 | AO195: 44
K196: 1 | L196: 34 | M196: 39 | N196: 29 | O196: 36 | P196: 19 | Q196: 46 | R196: 7 | S196: 41 | T196: 50 | U196: 23 | V196: 12 | W196: 42 | X196: 19 | Y196: 46 | Z196: 44 | AA196: 13 | AB196: 2 | AC196: 13 | AD196: 45 | AE196: 11 | AF196: 37 | AG196: 30 | AH196: 50 | AI196: 29 | AJ196: 15 | AK196: 2 | AL196: 37 | AM196: 9 | AN196: 36 | AO196: 18
K197: 38 | L197: 11 | M197: 33 | N197: 32 | O197: 18 | P197: 32 | Q197: 7 | R197: 22 | S197: 46 | T197: 7 | U197: 11 | V197: 5 | W197: 31 | X197: 41 | Y197: 17 | Z197: 6 | AA197: 29 | AB197: 10 | AC197: 32 | AD197: 26 | AE197: 28 | AF197: 16 | AG197: 3 | AH197: 24 | AI197: 12 | AJ197: 6 | AK197: 22 | AL197: 32 | AM197: 47 | AN197: 39 | AO197: 38
K198: 25 | L198: 41 | M198: 39 | N198: 11 | O198: 18 | P198: 43 | Q198: 10 | R198: 48 | S198: 6 | T198: 4 | U198: 19 | V198: 15 | W198: 21 | X198: 15 | Y198: 13 | Z198: 3 | AA198: 18 | AB198: 49 | AC198: 50 | AD198: 10 | AE198: 4 | AF198: 36 | AG198: 49 | AH198: 5 | AI198: 11 | AJ198: 21 | AK198: 22 | AL198: 14 | AM198: 9 | AN198: 38 | AO198: 10
K199: 40 | L199: 4 | M199: 32 | N199: 49 | O199: 19 | P199: 21 | Q199: 50 | R199: 33 | S199: 47 | T199: 47 | U199: 21 | V199: 5 | W199: 31 | X199: 14 | Y199: 33 | Z199: 35 | AA199: 35 | AB199: 3 | AC199: 43 | AD199: 48 | AE199: 46 | AF199: 1 | AG199: 39 | AH199: 5 | AI199: 29 | AJ199: 28 | AK199: 7 | AL199: 20 | AM199: 45 | AN199: 35 | AO199: 7
K200: 30 | L200: 17 | M200: 11 | N200: 19 | O200: 5 | P200: 22 | Q200: 38 | R200: 2 | S200: 11 | T200: 16 | U200: 44 | V200: 37 | W200: 15 | X200: 29 | Y200: 38 | Z200: 42 | AA200: 40 | AB200: 24 | AC200: 10 | AD200: 6 | AE200: 13 | AF200: 40 | AG200: 44 | AH200: 22 | AI200: 42 | AJ200: 7 | AK200: 47 | AL200: 2 | AM200: 19 | AN200: 16 | AO200: 18
K201: 29 | L201: 21 | M201: 26 | N201: 18 | O201: 16 | P201: 14 | Q201: 42 | R201: 29 | S201: 29 | T201: 32 | U201: 37 | V201: 30 | W201: 17 | X201: 20 | Y201: 15 | Z201: 49 | AA201: 4 | AB201: 34 | AC201: 4 | AD201: 34 | AE201: 24 | AF201: 44 | AG201: 2 | AH201: 7 | AI201: 7 | AJ201: 25 | AK201: 22 | AL201: 30 | AM201: 3 | AN201: 25 | AO201: 35
K202: 21 | L202: 25 | M202: 44 | N202: 42 | O202: 13 | P202: 34 | Q202: 6 | R202: 42 | S202: 5 | T202: 47 | U202: 13 | V202: 37 | W202: 9 | X202: 19 | Y202: 21 | Z202: 24 | AA202: 21 | AB202: 48 | AC202: 26 | AD202: 20 | AE202: 28 | AF202: 30 | AG202: 1 | AH202: 17 | AI202: 3 | AJ202: 25 | AK202: 22 | AL202: 18 | AM202: 46 | AN202: 41 | AO202: 38
K203: 27 | L203: 37 | M203: 26 | N203: 15 | O203: 37 | P203: 8 | Q203: 36 | R203: 42 | S203: 7 | T203: 15 | U203: 48 | V203: 2 | W203: 14 | X203: 36 | Y203: 8 | Z203: 13 | AA203: 34 | AB203: 36 | AC203: 35 | AD203: 50 | AE203: 44 | AF203: 10 | AG203: 33 | AH203: 21 | AI203: 16 | AJ203: 11 | AK203: 40 | AL203: 30 | AM203: 42 | AN203: 35 | AO203: 30
K204: 23 | L204: 27 | M204: 22 | N204: 34 | O204: 16 | P204: 50 | Q204: 23 | R204: 2 | S204: 29 | T204: 13 | U204: 21 | V204: 32 | W204: 35 | X204: 44 | Y204: 11 | Z204: 39 | AA204: 11 | AB204: 36 | AC204: 36 | AD204: 31 | AE204: 34 | AF204: 30 | AG204: 38 | AH204: 8 | AI204: 34 | AJ204: 50 | AK204: 46 | AL204: 24 | AM204: 37 | AN204: 41 | AO204: 33
K205: 26 | L205: 27 | M205: 1 | N205: 24 | O205: 47 | P205: 27 | Q205: 21 | R205: 26 | S205: 1 | T205: 9 | U205: 24 | V205: 25 | W205: 41 | X205: 47 | Y205: 21 | Z205: 32 | AA205: 28 | AB205: 49 | AC205: 6 | AD205: 36 | AE205: 50 | AF205: 35 | AG205: 31 | AH205: 37 | AI205: 1 | AJ205: 8 | AK205: 36 | AL205: 19 | AM205: 2 | AN205: 36 | AO205: 7
K206: 6 | L206: 49 | M206: 46 | N206: 35 | O206: 29 | P206: 13 | Q206: 15 | R206: 13 | S206: 46 | T206: 9 | U206: 14 | V206: 21 | W206: 36 | X206: 38 | Y206: 12 | Z206: 30 | AA206: 26 | AB206: 38 | AC206: 34 | AD206: 25 | AE206: 30 | AF206: 23 | AG206: 5 | AH206: 25 | AI206: 44 | AJ206: 1 | AK206: 23 | AL206: 43 | AM206: 7 | AN206: 24 | AO206: 49
K207: 23 | L207: 44 | M207: 42 | N207: 14 | O207: 47 | P207: 17 | Q207: 14 | R207: 8 | S207: 48 | T207: 20 | U207: 5 | V207: 7 | W207: 41 | X207: 12 | Y207: 21 | Z207: 24 | AA207: 24 | AB207: 30 | AC207: 21 | AD207: 45 | AE207: 42 | AF207: 30 | AG207: 8 | AH207: 10 | AI207: 24 | AJ207: 28 | AK207: 31 | AL207: 40 | AM207: 21 | AN207: 24 | AO207: 27
K208: 18 | L208: 16 | M208: 20 | N208: 32 | O208: 45 | P208: 16 | Q208: 9 | R208: 50 | S208: 12 | T208: 4 | U208: 4 | V208: 23 | W208: 34 | X208: 45 | Y208: 14 | Z208: 45 | AA208: 44 | AB208: 6 | AC208: 25 | AD208: 26 | AE208: 18 | AF208: 33 | AG208: 47 | AH208: 26 | AI208: 20 | AJ208: 21 | AK208: 18 | AL208: 32 | AM208: 32 | AN208: 14 | AO208: 40
K209: 44 | L209: 9 | M209: 38 | N209: 40 | O209: 35 | P209: 1 | Q209: 27 | R209: 47 | S209: 18 | T209: 14 | U209: 16 | V209: 47 | W209: 43 | X209: 46 | Y209: 25 | Z209: 32 | AA209: 19 | AB209: 2 | AC209: 12 | AD209: 9 | AE209: 29 | AF209: 2 | AG209: 42 | AH209: 47 | AI209: 17 | AJ209: 9 | AK209: 8 | AL209: 1 | AM209: 39 | AN209: 27 | AO209: 30
K210: 50 | L210: 7 | M210: 49 | N210: 3 | O210: 20 | P210: 34 | Q210: 21 | R210: 37 | S210: 26 | T210: 33 | U210: 35 | V210: 40 | W210: 32 | X210: 5 | Y210: 23 | Z210: 8 | AA210: 41 | AB210: 44 | AC210: 11 | AD210: 42 | AE210: 25 | AF210: 36 | AG210: 9 | AH210: 23 | AI210: 20 | AJ210: 29 | AK210: 27 | AL210: 50 | AM210: 20 | AN210: 33 | AO210: 42
K211: 31 | L211: 33 | M211: 49 | N211: 15 | O211: 30 | P211: 9 | Q211: 44 | R211: 49 | S211: 32 | T211: 12 | U211: 12 | V211: 35 | W211: 14 | X211: 32 | Y211: 12 | Z211: 26 | AA211: 14 | AB211: 15 | AC211: 38 | AD211: 41 | AE211: 21 | AF211: 34 | AG211: 5 | AH211: 35 | AI211: 30 | AJ211: 25 | AK211: 20 | AL211: 18 | AM211: 30 | AN211: 5 | AO211: 23
K212: 7 | L212: 13 | M212: 13 | N212: 20 | O212: 21 | P212: 28 | Q212: 25 | R212: 25 | S212: 15 | T212: 30 | U212: 48 | V212: 13 | W212: 14 | X212: 37 | Y212: 30 | Z212: 50 | AA212: 34 | AB212: 45 | AC212: 19 | AD212: 34 | AE212: 42 | AF212: 38 | AG212: 41 | AH212: 3 | AI212: 14 | AJ212: 27 | AK212: 20 | AL212: 27 | AM212: 25 | AN212: 18 | AO212: 47
K213: 31 | L213: 38 | M213: 10 | N213: 16 | O213: 35 | P213: 31 | Q213: 46 | R213: 42 | S213: 41 | T213: 29 | U213: 34 | V213: 23 | W213: 32 | X213: 35 | Y213: 23 | Z213: 42 | AA213: 5 | AB213: 47 | AC213: 33 | AD213: 48 | AE213: 22 | AF213: 47 | AG213: 46 | AH213: 45 | AI213: 47 | AJ213: 40 | AK213: 4 | AL213: 49 | AM213: 47 | AN213: 27 | AO213: 39
K214: 37 | L214: 21 | M214: 8 | N214: 47 | O214: 28 | P214: 12 | Q214: 9 | R214: 47 | S214: 25 | T214: 10 | U214: 41 | V214: 19 | W214: 37 | X214: 40 | Y214: 20 | Z214: 7 | AA214: 30 | AB214: 14 | AC214: 48 | AD214: 34 | AE214: 28 | AF214: 45 | AG214: 1 | AH214: 24 | AI214: 9 | AJ214: 2 | AK214: 28 | AL214: 36 | AM214: 33 | AN214: 7 | AO214: 41
K215: 9 | L215: 26 | M215: 22 | N215: 16 | O215: 5 | P215: 27 | Q215: 10 | R215: 1 | S215: 40 | T215: 4 | U215: 12 | V215: 4 | W215: 49 | X215: 34 | Y215: 32 | Z215: 5 | AA215: 34 | AB215: 22 | AC215: 35 | AD215: 33 | AE215: 30 | AF215: 40 | AG215: 39 | AH215: 15 | AI215: 19 | AJ215: 41 | AK215: 17 | AL215: 31 | AM215: 35 | AN215: 40 | AO215: 49
K216: 20 | L216: 7 | M216: 33 | N216: 24 | O216: 33 | P216: 50 | Q216: 31 | R216: 15 | S216: 21 | T216: 36 | U216: 39 | V216: 21 | W216: 21 | X216: 23 | Y216: 11 | Z216: 12 | AA216: 13 | AB216: 39 | AC216: 46 | AD216: 36 | AE216: 47 | AF216: 6 | AG216: 3 | AH216: 9 | AI216: 49 | AJ216: 7 | AK216: 40 | AL216: 9 | AM216: 37 | AN216: 12 | AO216: 26
K217: 37 | L217: 25 | M217: 35 | N217: 29 | O217: 13 | P217: 38 | Q217: 37 | R217: 26 | S217: 45 | T217: 1 | U217: 33 | V217: 49 | W217: 41 | X217: 28 | Y217: 21 | Z217: 29 | AA217: 1 | AB217: 4 | AC217: 49 | AD217: 2 | AE217: 39 | AF217: 27 | AG217: 44 | AH217: 7 | AI217: 8 | AJ217: 42 | AK217: 48 | AL217: 46 | AM217: 3 | AN217: 28 | AO217: 40
K218: 28 | L218: 28 | M218: 8 | N218: 19 | O218: 16 | P218: 4 | Q218: 23 | R218: 42 | S218: 30 | T218: 49 | U218: 21 | V218: 31 | W218: 21 | X218: 24 | Y218: 48 | Z218: 24 | AA218: 17 | AB218: 27 | AC218: 34 | AD218: 24 | AE218: 29 | AF218: 24 | AG218: 10 | AH218: 37 | AI218: 8 | AJ218: 19 | AK218: 7 | AL218: 37 | AM218: 3 | AN218: 12 | AO218: 38
K219: 47 | L219: 23 | M219: 47 | N219: 49 | O219: 23 | P219: 45 | Q219: 6 | R219: 41 | S219: 39 | T219: 19 | U219: 28 | V219: 7 | W219: 1 | X219: 9 | Y219: 1 | Z219: 49 | AA219: 46 | AB219: 31 | AC219: 38 | AD219: 40 | AE219: 2 | AF219: 49 | AG219: 48 | AH219: 15 | AI219: 15 | AJ219: 27 | AK219: 18 | AL219: 33 | AM219: 25 | AN219: 27 | AO219: 2
K220: 37 | L220: 8 | M220: 25 | N220: 11 | O220: 26 | P220: 46 | Q220: 16 | R220: 43 | S220: 26 | T220: 50 | U220: 32 | V220: 2 | W220: 28 | X220: 36 | Y220: 16 | Z220: 7 | AA220: 47 | AB220: 31 | AC220: 10 | AD220: 25 | AE220: 19 | AF220: 1 | AG220: 26 | AH220: 39 | AI220: 2 | AJ220: 44 | AK220: 44 | AL220: 37 | AM220: 28 | AN220: 5 | AO220: 9
K221: 1 | L221: 28 | M221: 15 | N221: 25 | O221: 40 | P221: 33 | Q221: 12 | R221: 42 | S221: 19 | T221: 26 | U221: 45 | V221: 38 | W221: 27 | X221: 8 | Y221: 18 | Z221: 42 | AA221: 47 | AB221: 34 | AC221: 39 | AD221: 23 | AE221: 23 | AF221: 10 | AG221: 1 | AH221: 48 | AI221: 36 | AJ221: 13 | AK221: 28 | AL221: 46 | AM221: 14 | AN221: 45 | AO221: 18
K222: 21 | L222: 11 | M222: 2 | N222: 18 | O222: 35 | P222: 34 | Q222: 42 | R222: 47 | S222: 21 | T222: 21 | U222: 49 | V222: 18 | W222: 43 | X222: 33 | Y222: 41 | Z222: 1 | AA222: 38 | AB222: 8 | AC222: 1 | AD222: 35 | AE222: 10 | AF222: 1 | AG222: 18 | AH222: 38 | AI222: 19 | AJ222: 38 | AK222: 44 | AL222: 6 | AM222: 22 | AN222: 46 | AO222: 8
K223: 38 | L223: 39 | M223: 11 | N223: 32 | O223: 29 | P223: 24 | Q223: 12 | R223: 13 | S223: 12 | T223: 22 | U223: 38 | V223: 36 | W223: 45 | X223: 39 | Y223: 18 | Z223: 37 | AA223: 26 | AB223: 7 | AC223: 39 | AD223: 13 | AE223: 20 | AF223: 44 | AG223: 3 | AH223: 26 | AI223: 38 | AJ223: 22 | AK223: 35 | AL223: 46 | AM223: 31 | AN223: 42 | AO223: 27
K224: 1 | L224: 7 | M224: 22 | N224: 47 | O224: 36 | P224: 25 | Q224: 30 | R224: 45 | S224: 23 | T224: 27 | U224: 1 | V224: 10 | W224: 21 | X224: 50 | Y224: 17 | Z224: 15 | AA224: 4 | AB224: 11 | AC224: 12 | AD224: 4 | AE224: 35 | AF224: 1 | AG224: 17 | AH224: 33 | AI224: 10 | AJ224: 36 | AK224: 17 | AL224: 15 | AM224: 42 | AN224: 14 | AO224: 34
K225: 46 | L225: 41 | M225: 36 | N225: 48 | O225: 39 | P225: 45 | Q225: 49 | R225: 11 | S225: 18 | T225: 8 | U225: 28 | V225: 35 | W225: 46 | X225: 9 | Y225: 15 | Z225: 45 | AA225: 28 | AB225: 24 | AC225: 2 | AD225: 15 | AE225: 32 | AF225: 37 | AG225: 48 | AH225: 43 | AI225: 36 | AJ225: 6 | AK225: 29 | AL225: 20 | AM225: 49 | AN225: 18 | AO225: 25
K226: 10 | L226: 44 | M226: 35 | N226: 37 | O226: 2 | P226: 29 | Q226: 17 | R226: 32 | S226: 44 | T226: 30 | U226: 5 | V226: 25 | W226: 29 | X226: 32 | Y226: 48 | Z226: 10 | AA226: 46 | AB226: 3 | AC226: 19 | AD226: 10 | AE226: 17 | AF226: 5 | AG226: 17 | AH226: 39 | AI226: 40 | AJ226: 47 | AK226: 45 | AL226: 29 | AM226: 27 | AN226: 16 | AO226: 6
K227: 47 | L227: 35 | M227: 12 | N227: 28 | O227: 45 | P227: 36 | Q227: 39 | R227: 33 | S227: 33 | T227: 3 | U227: 40 | V227: 31 | W227: 45 | X227: 21 | Y227: 35 | Z227: 17 | AA227: 45 | AB227: 23 | AC227: 42 | AD227: 28 | AE227: 24 | AF227: 24 | AG227: 12 | AH227: 35 | AI227: 7 | AJ227: 34 | AK227: 9 | AL227: 14 | AM227: 2 | AN227: 34 | AO227: 16
K228: 27 | L228: 24 | M228: 14 | N228: 2 | O228: 48 | P228: 46 | Q228: 40 | R228: 35 | S228: 17 | T228: 30 | U228: 26 | V228: 42 | W228: 50 | X228: 15 | Y228: 15 | Z228: 24 | AA228: 28 | AB228: 2 | AC228: 1 | AD228: 38 | AE228: 30 | AF228: 37 | AG228: 3 | AH228: 17 | AI228: 35 | AJ228: 34 | AK228: 35 | AL228: 48 | AM228: 33 | AN228: 10 | AO228: 15
... 2022 more rows

Sheet LotteryPredictionAlgorithm(3)
B2: Building Lottery Prediction Algorithm
B4: Serial Number | C4: Lottery Number
B5: 6 | C5: =COUNTIF($K$56:$AO$6000,B5) -> 3778
B6: 7 | C6: =COUNTIF($K$56:$AO$6000,B6) -> 3615
B7: 8 | C7: 3650
B8: 25 | C8: 3719
B9: 27 | C9: 3756
B10: 28 | C10: 3673
B11: 38 | C11: 3693
B12: 41 | C12: 3615
B13: 44 | C13: 3809
B14: 49 | C14: 3670
B15: 50 | C15: 3635
K55: =RANDBETWEEN(1,50) -> 13
K56: 10 | L56: 44 | M56: 39 | N56: 30 | O56: 34 | P56: 26 | Q56: 4 | R56: 44 | S56: 22 | T56: 43 | U56: 43 | V56: 13 | W56: 27 | X56: 17 | Y56: 47 | Z56: 4 | AA56: 40 | AB56: 47 | AC56: 37 | AD56: 47 | AE56: 33 | AF56: 10 | AG56: 2 | AH56: 48 | AI56: 42 | AJ56: 10 | AK56: 17 | AL56: 13 | AM56: 23 | AN56: 35 | AO56: 47
K57: 9 | L57: 50 | M57: 21 | N57: 5 | O57: 49 | P57: 18 | Q57: 38 | R57: 25 | S57: 34 | T57: 41 | U57: 33 | V57: 17 | W57: 29 | X57: 42 | Y57: 49 | Z57: 26 | AA57: 39 | AB57: 10 | AC57: 13 | AD57: 45 | AE57: 8 | AF57: 32 | AG57: 17 | AH57: 28 | AI57: 39 | AJ57: 34 | AK57: 33 | AL57: 42 | AM57: 6 | AN57: 26 | AO57: 7
K58: 47 | L58: 17 | M58: 15 | N58: 21 | O58: 5 | P58: 36 | Q58: 4 | R58: 39 | S58: 2 | T58: 18 | U58: 25 | V58: 46 | W58: 38 | X58: 23 | Y58: 23 | Z58: 33 | AA58: 9 | AB58: 10 | AC58: 28 | AD58: 40 | AE58: 42 | AF58: 15 | AG58: 12 | AH58: 10 | AI58: 24 | AJ58: 17 | AK58: 25 | AL58: 2 | AM58: 29 | AN58: 28 | AO58: 16
K59: 26 | L59: 5 | M59: 41 | N59: 35 | O59: 7 | P59: 11 | Q59: 46 | R59: 46 | S59: 38 | T59: 38 | U59: 21 | V59: 4 | W59: 7 | X59: 19 | Y59: 26 | Z59: 46 | AA59: 47 | AB59: 26 | AC59: 25 | AD59: 21 | AE59: 20 | AF59: 23 | AG59: 6 | AH59: 27 | AI59: 48 | AJ59: 16 | AK59: 16 | AL59: 4 | AM59: 15 | AN59: 40 | AO59: 15
K60: 34 | L60: 16 | M60: 43 | N60: 43 | O60: 36 | P60: 34 | Q60: 14 | R60: 27 | S60: 40 | T60: 22 | U60: 37 | V60: 44 | W60: 34 | X60: 6 | Y60: 26 | Z60: 43 | AA60: 27 | AB60: 18 | AC60: 8 | AD60: 43 | AE60: 35 | AF60: 4 | AG60: 35 | AH60: 32 | AI60: 23 | AJ60: 41 | AK60: 42 | AL60: 36 | AM60: 8 | AN60: 15 | AO60: 8
K61: 48 | L61: 37 | M61: 27 | N61: 22 | O61: 6 | P61: 34 | Q61: 23 | R61: 12 | S61: 20 | T61: 16 | U61: 43 | V61: 23 | W61: 3 | X61: 39 | Y61: 31 | Z61: 47 | AA61: 46 | AB61: 32 | AC61: 22 | AD61: 24 | AE61: 36 | AF61: 29 | AG61: 32 | AH61: 22 | AI61: 49 | AJ61: 21 | AK61: 16 | AL61: 41 | AM61: 21 | AN61: 28 | AO61: 11
K62: 22 | L62: 23 | M62: 23 | N62: 8 | O62: 38 | P62: 37 | Q62: 23 | R62: 26 | S62: 25 | T62: 45 | U62: 26 | V62: 35 | W62: 11 | X62: 18 | Y62: 7 | Z62: 6 | AA62: 33 | AB62: 6 | AC62: 27 | AD62: 13 | AE62: 23 | AF62: 27 | AG62: 49 | AH62: 26 | AI62: 8 | AJ62: 36 | AK62: 50 | AL62: 41 | AM62: 36 | AN62: 13 | AO62: 29
K63: 37 | L63: 37 | M63: 3 | N63: 12 | O63: 41 | P63: 27 | Q63: 36 | R63: 33 | S63: 14 | T63: 18 | U63: 41 | V63: 36 | W63: 43 | X63: 34 | Y63: 18 | Z63: 27 | AA63: 14 | AB63: 7 | AC63: 46 | AD63: 19 | AE63: 43 | AF63: 24 | AG63: 39 | AH63: 36 | AI63: 26 | AJ63: 43 | AK63: 41 | AL63: 5 | AM63: 17 | AN63: 19 | AO63: 42
K64: 21 | L64: 3 | M64: 28 | N64: 39 | O64: 10 | P64: 38 | Q64: 49 | R64: 46 | S64: 47 | T64: 45 | U64: 50 | V64: 29 | W64: 5 | X64: 16 | Y64: 5 | Z64: 8 | AA64: 29 | AB64: 32 | AC64: 50 | AD64: 28 | AE64: 14 | AF64: 35 | AG64: 4 | AH64: 25 | AI64: 15 | AJ64: 28 | AK64: 50 | AL64: 33 | AM64: 2 | AN64: 43 | AO64: 41
K65: 35 | L65: 24 | M65: 40 | N65: 18 | O65: 19 | P65: 13 | Q65: 23 | R65: 7 | S65: 50 | T65: 37 | U65: 29 | V65: 4 | W65: 42 | X65: 25 | Y65: 31 | Z65: 37 | AA65: 5 | AB65: 21 | AC65: 16 | AD65: 6 | AE65: 36 | AF65: 14 | AG65: 39 | AH65: 42 | AI65: 7 | AJ65: 5 | AK65: 15 | AL65: 41 | AM65: 40 | AN65: 20 | AO65: 1
K66: 29 | L66: 46 | M66: 9 | N66: 1 | O66: 16 | P66: 24 | Q66: 4 | R66: 39 | S66: 23 | T66: 45 | U66: 48 | V66: 9 | W66: 17 | X66: 47 | Y66: 9 | Z66: 15 | AA66: 47 | AB66: 10 | AC66: 20 | AD66: 13 | AE66: 3 | AF66: 27 | AG66: 37 | AH66: 10 | AI66: 1 | AJ66: 16 | AK66: 8 | AL66: 38 | AM66: 19 | AN66: 33 | AO66: 41
K67: 16 | L67: 21 | M67: 25 | N67: 15 | O67: 43 | P67: 49 | Q67: 13 | R67: 25 | S67: 5 | T67: 11 | U67: 30 | V67: 36 | W67: 50 | X67: 30 | Y67: 19 | Z67: 13 | AA67: 15 | AB67: 4 | AC67: 49 | AD67: 29 | AE67: 37 | AF67: 12 | AG67: 3 | AH67: 31 | AI67: 2 | AJ67: 37 | AK67: 46 | AL67: 46 | AM67: 1 | AN67: 18 | AO67: 4
K68: 45 | L68: 31 | M68: 19 | N68: 38 | O68: 9 | P68: 25 | Q68: 20 | R68: 18 | S68: 50 | T68: 41 | U68: 6 | V68: 34 | W68: 30 | X68: 29 | Y68: 1 | Z68: 50 | AA68: 43 | AB68: 33 | AC68: 2 | AD68: 49 | AE68: 26 | AF68: 39 | AG68: 15 | AH68: 1 | AI68: 21 | AJ68: 15 | AK68: 42 | AL68: 37 | AM68: 9 | AN68: 29 | AO68: 28
K69: 38 | L69: 11 | M69: 31 | N69: 3 | O69: 13 | P69: 41 | Q69: 33 | R69: 17 | S69: 25 | T69: 5 | U69: 33 | V69: 45 | W69: 2 | X69: 6 | Y69: 2 | Z69: 1 | AA69: 28 | AB69: 36 | AC69: 9 | AD69: 20 | AE69: 35 | AF69: 26 | AG69: 27 | AH69: 43 | AI69: 6 | AJ69: 48 | AK69: 14 | AL69: 47 | AM69: 40 | AN69: 46 | AO69: 23
K70: 17 | L70: 43 | M70: 47 | N70: 5 | O70: 50 | P70: 28 | Q70: 24 | R70: 25 | S70: 46 | T70: 12 | U70: 16 | V70: 39 | W70: 23 | X70: 18 | Y70: 30 | Z70: 43 | AA70: 7 | AB70: 15 | AC70: 14 | AD70: 44 | AE70: 9 | AF70: 44 | AG70: 1 | AH70: 40 | AI70: 5 | AJ70: 8 | AK70: 23 | AL70: 2 | AM70: 10 | AN70: 7 | AO70: 39
K71: 42 | L71: 30 | M71: 50 | N71: 45 | O71: 38 | P71: 34 | Q71: 38 | R71: 11 | S71: 26 | T71: 31 | U71: 37 | V71: 15 | W71: 3 | X71: 23 | Y71: 17 | Z71: 16 | AA71: 32 | AB71: 32 | AC71: 48 | AD71: 10 | AE71: 26 | AF71: 7 | AG71: 9 | AH71: 45 | AI71: 6 | AJ71: 39 | AK71: 37 | AL71: 44 | AM71: 14 | AN71: 20 | AO71: 41
K72: 32 | L72: 33 | M72: 30 | N72: 19 | O72: 18 | P72: 4 | Q72: 36 | R72: 31 | S72: 49 | T72: 34 | U72: 17 | V72: 50 | W72: 8 | X72: 44 | Y72: 12 | Z72: 19 | AA72: 9 | AB72: 39 | AC72: 2 | AD72: 25 | AE72: 15 | AF72: 19 | AG72: 34 | AH72: 32 | AI72: 33 | AJ72: 24 | AK72: 23 | AL72: 47 | AM72: 23 | AN72: 16 | AO72: 21
K73: 11 | L73: 15 | M73: 11 | N73: 2 | O73: 19 | P73: 39 | Q73: 14 | R73: 37 | S73: 4 | T73: 33 | U73: 17 | V73: 38 | W73: 46 | X73: 26 | Y73: 5 | Z73: 37 | AA73: 39 | AB73: 14 | AC73: 14 | AD73: 3 | AE73: 3 | AF73: 34 | AG73: 44 | AH73: 24 | AI73: 9 | AJ73: 8 | AK73: 24 | AL73: 49 | AM73: 2 | AN73: 29 | AO73: 32
K74: 49 | L74: 1 | M74: 22 | N74: 42 | O74: 50 | P74: 39 | Q74: 27 | R74: 38 | S74: 16 | T74: 50 | U74: 49 | V74: 7 | W74: 5 | X74: 6 | Y74: 7 | Z74: 20 | AA74: 36 | AB74: 28 | AC74: 36 | AD74: 6 | AE74: 37 | AF74: 23 | AG74: 18 | AH74: 36 | AI74: 15 | AJ74: 6 | AK74: 5 | AL74: 22 | AM74: 50 | AN74: 23 | AO74: 5
K75: 21 | L75: 44 | M75: 48 | N75: 28 | O75: 15 | P75: 44 | Q75: 15 | R75: 12 | S75: 42 | T75: 6 | U75: 11 | V75: 19 | W75: 12 | X75: 33 | Y75: 24 | Z75: 37 | AA75: 6 | AB75: 32 | AC75: 22 | AD75: 1 | AE75: 34 | AF75: 43 | AG75: 28 | AH75: 27 | AI75: 32 | AJ75: 18 | AK75: 7 | AL75: 16 | AM75: 33 | AN75: 31 | AO75: 28
K76: 29 | L76: 31 | M76: 28 | N76: 11 | O76: 41 | P76: 23 | Q76: 37 | R76: 29 | S76: 33 | T76: 50 | U76: 3 | V76: 10 | W76: 42 | X76: 44 | Y76: 21 | Z76: 3 | AA76: 31 | AB76: 25 | AC76: 42 | AD76: 15 | AE76: 3 | AF76: 13 | AG76: 25 | AH76: 44 | AI76: 27 | AJ76: 30 | AK76: 27 | AL76: 18 | AM76: 23 | AN76: 46 | AO76: 13
K77: 29 | L77: 40 | M77: 32 | N77: 14 | O77: 35 | P77: 15 | Q77: 11 | R77: 1 | S77: 22 | T77: 41 | U77: 8 | V77: 10 | W77: 19 | X77: 11 | Y77: 48 | Z77: 32 | AA77: 19 | AB77: 13 | AC77: 38 | AD77: 19 | AE77: 14 | AF77: 10 | AG77: 8 | AH77: 18 | AI77: 12 | AJ77: 28 | AK77: 37 | AL77: 47 | AM77: 45 | AN77: 5 | AO77: 28
K78: 16 | L78: 24 | M78: 11 | N78: 41 | O78: 6 | P78: 13 | Q78: 45 | R78: 38 | S78: 17 | T78: 13 | U78: 10 | V78: 22 | W78: 1 | X78: 13 | Y78: 38 | Z78: 4 | AA78: 19 | AB78: 31 | AC78: 25 | AD78: 6 | AE78: 15 | AF78: 8 | AG78: 46 | AH78: 28 | AI78: 13 | AJ78: 10 | AK78: 1 | AL78: 18 | AM78: 46 | AN78: 37 | AO78: 37
K79: 9 | L79: 43 | M79: 6 | N79: 40 | O79: 43 | P79: 17 | Q79: 39 | R79: 28 | S79: 4 | T79: 13 | U79: 35 | V79: 5 | W79: 8 | X79: 14 | Y79: 36 | Z79: 40 | AA79: 12 | AB79: 43 | AC79: 31 | AD79: 3 | AE79: 45 | AF79: 42 | AG79: 14 | AH79: 20 | AI79: 16 | AJ79: 41 | AK79: 11 | AL79: 34 | AM79: 2 | AN79: 22 | AO79: 41
K80: 50 | L80: 30 | M80: 36 | N80: 33 | O80: 1 | P80: 7 | Q80: 15 | R80: 6 | S80: 15 | T80: 26 | U80: 18 | V80: 30 | W80: 28 | X80: 9 | Y80: 41 | Z80: 9 | AA80: 37 | AB80: 37 | AC80: 35 | AD80: 28 | AE80: 35 | AF80: 30 | AG80: 50 | AH80: 19 | AI80: 48 | AJ80: 50 | AK80: 25 | AL80: 47 | AM80: 29 | AN80: 21 | AO80: 20
K81: 48 | L81: 9 | M81: 36 | N81: 28 | O81: 29 | P81: 2 | Q81: 13 | R81: 50 | S81: 9 | T81: 20 | U81: 16 | V81: 16 | W81: 36 | X81: 20 | Y81: 10 | Z81: 28 | AA81: 35 | AB81: 44 | AC81: 32 | AD81: 44 | AE81: 10 | AF81: 48 | AG81: 16 | AH81: 34 | AI81: 21 | AJ81: 48 | AK81: 12 | AL81: 35 | AM81: 23 | AN81: 31 | AO81: 22
K82: 44 | L82: 1 | M82: 26 | N82: 41 | O82: 40 | P82: 31 | Q82: 47 | R82: 22 | S82: 48 | T82: 33 | U82: 1 | V82: 40 | W82: 35 | X82: 14 | Y82: 2 | Z82: 39 | AA82: 22 | AB82: 27 | AC82: 46 | AD82: 16 | AE82: 8 | AF82: 23 | AG82: 25 | AH82: 12 | AI82: 13 | AJ82: 12 | AK82: 7 | AL82: 50 | AM82: 33 | AN82: 48 | AO82: 18
K83: 17 | L83: 4 | M83: 5 | N83: 29 | O83: 44 | P83: 16 | Q83: 40 | R83: 46 | S83: 39 | T83: 37 | U83: 29 | V83: 22 | W83: 33 | X83: 28 | Y83: 11 | Z83: 29 | AA83: 29 | AB83: 23 | AC83: 18 | AD83: 23 | AE83: 50 | AF83: 16 | AG83: 6 | AH83: 12 | AI83: 38 | AJ83: 1 | AK83: 49 | AL83: 50 | AM83: 1 | AN83: 15 | AO83: 31
K84: 12 | L84: 38 | M84: 6 | N84: 8 | O84: 3 | P84: 3 | Q84: 19 | R84: 27 | S84: 17 | T84: 27 | U84: 8 | V84: 13 | W84: 34 | X84: 49 | Y84: 7 | Z84: 10 | AA84: 10 | AB84: 9 | AC84: 25 | AD84: 11 | AE84: 4 | AF84: 14 | AG84: 11 | AH84: 41 | AI84: 19 | AJ84: 37 | AK84: 2 | AL84: 24 | AM84: 29 | AN84: 11 | AO84: 3
K85: 3 | L85: 13 | M85: 13 | N85: 36 | O85: 4 | P85: 49 | Q85: 29 | R85: 42 | S85: 9 | T85: 15 | U85: 41 | V85: 12 | W85: 47 | X85: 49 | Y85: 35 | Z85: 40 | AA85: 16 | AB85: 47 | AC85: 36 | AD85: 44 | AE85: 25 | AF85: 45 | AG85: 15 | AH85: 40 | AI85: 3 | AJ85: 13 | AK85: 2 | AL85: 40 | AM85: 43 | AN85: 3 | AO85: 27
K86: 38 | L86: 17 | M86: 2 | N86: 23 | O86: 33 | P86: 1 | Q86: 29 | R86: 24 | S86: 44 | T86: 33 | U86: 4 | V86: 9 | W86: 15 | X86: 12 | Y86: 22 | Z86: 33 | AA86: 45 | AB86: 17 | AC86: 37 | AD86: 35 | AE86: 2 | AF86: 6 | AG86: 1 | AH86: 23 | AI86: 29 | AJ86: 23 | AK86: 29 | AL86: 33 | AM86: 44 | AN86: 6 | AO86: 6
K87: 50 | L87: 33 | M87: 29 | N87: 49 | O87: 15 | P87: 3 | Q87: 3 | R87: 31 | S87: 6 | T87: 13 | U87: 10 | V87: 36 | W87: 22 | X87: 29 | Y87: 16 | Z87: 18 | AA87: 34 | AB87: 43 | AC87: 21 | AD87: 21 | AE87: 6 | AF87: 11 | AG87: 15 | AH87: 38 | AI87: 15 | AJ87: 2 | AK87: 6 | AL87: 24 | AM87: 39 | AN87: 19 | AO87: 10
K88: 27 | L88: 35 | M88: 13 | N88: 29 | O88: 48 | P88: 39 | Q88: 23 | R88: 21 | S88: 4 | T88: 17 | U88: 2 | V88: 50 | W88: 47 | X88: 20 | Y88: 46 | Z88: 14 | AA88: 4 | AB88: 5 | AC88: 31 | AD88: 18 | AE88: 50 | AF88: 7 | AG88: 25 | AH88: 8 | AI88: 7 | AJ88: 30 | AK88: 19 | AL88: 19 | AM88: 26 | AN88: 18 | AO88: 48
K89: 43 | L89: 26 | M89: 14 | N89: 47 | O89: 15 | P89: 28 | Q89: 39 | R89: 12 | S89: 6 | T89: 24 | U89: 5 | V89: 30 | W89: 50 | X89: 32 | Y89: 48 | Z89: 12 | AA89: 8 | AB89: 47 | AC89: 34 | AD89: 26 | AE89: 46 | AF89: 18 | AG89: 1 | AH89: 16 | AI89: 46 | AJ89: 1 | AK89: 40 | AL89: 1 | AM89: 16 | AN89: 50 | AO89: 49
K90: 2 | L90: 23 | M90: 7 | N90: 45 | O90: 23 | P90: 34 | Q90: 30 | R90: 15 | S90: 32 | T90: 37 | U90: 40 | V90: 16 | W90: 19 | X90: 1 | Y90: 32 | Z90: 35 | AA90: 46 | AB90: 19 | AC90: 31 | AD90: 27 | AE90: 48 | AF90: 14 | AG90: 18 | AH90: 9 | AI90: 26 | AJ90: 33 | AK90: 15 | AL90: 15 | AM90: 49 | AN90: 32 | AO90: 2
K91: 24 | L91: 42 | M91: 16 | N91: 19 | O91: 42 | P91: 47 | Q91: 24 | R91: 33 | S91: 2 | T91: 42 | U91: 3 | V91: 9 | W91: 34 | X91: 7 | Y91: 35 | Z91: 35 | AA91: 23 | AB91: 12 | AC91: 33 | AD91: 37 | AE91: 18 | AF91: 3 | AG91: 49 | AH91: 49 | AI91: 50 | AJ91: 36 | AK91: 18 | AL91: 34 | AM91: 4 | AN91: 30 | AO91: 6
K92: 40 | L92: 5 | M92: 7 | N92: 14 | O92: 46 | P92: 19 | Q92: 32 | R92: 30 | S92: 43 | T92: 15 | U92: 14 | V92: 4 | W92: 23 | X92: 37 | Y92: 35 | Z92: 38 | AA92: 20 | AB92: 49 | AC92: 22 | AD92: 24 | AE92: 13 | AF92: 4 | AG92: 43 | AH92: 21 | AI92: 23 | AJ92: 35 | AK92: 48 | AL92: 49 | AM92: 48 | AN92: 19 | AO92: 22
K93: 29 | L93: 43 | M93: 32 | N93: 2 | O93: 17 | P93: 7 | Q93: 44 | R93: 19 | S93: 18 | T93: 20 | U93: 25 | V93: 46 | W93: 37 | X93: 19 | Y93: 10 | Z93: 44 | AA93: 12 | AB93: 39 | AC93: 12 | AD93: 15 | AE93: 40 | AF93: 8 | AG93: 44 | AH93: 31 | AI93: 6 | AJ93: 48 | AK93: 7 | AL93: 47 | AM93: 37 | AN93: 17 | AO93: 8
K94: 35 | L94: 29 | M94: 38 | N94: 14 | O94: 44 | P94: 2 | Q94: 25 | R94: 3 | S94: 31 | T94: 37 | U94: 40 | V94: 47 | W94: 48 | X94: 31 | Y94: 43 | Z94: 19 | AA94: 30 | AB94: 7 | AC94: 19 | AD94: 50 | AE94: 50 | AF94: 7 | AG94: 43 | AH94: 34 | AI94: 28 | AJ94: 4 | AK94: 8 | AL94: 31 | AM94: 11 | AN94: 30 | AO94: 12
K95: 17 | L95: 3 | M95: 17 | N95: 30 | O95: 8 | P95: 27 | Q95: 7 | R95: 15 | S95: 9 | T95: 39 | U95: 21 | V95: 2 | W95: 50 | X95: 40 | Y95: 39 | Z95: 36 | AA95: 30 | AB95: 33 | AC95: 36 | AD95: 16 | AE95: 4 | AF95: 42 | AG95: 44 | AH95: 50 | AI95: 30 | AJ95: 33 | AK95: 25 | AL95: 40 | AM95: 39 | AN95: 17 | AO95: 26
K96: 4 | L96: 26 | M96: 36 | N96: 40 | O96: 11 | P96: 5 | Q96: 42 | R96: 18 | S96: 19 | T96: 47 | U96: 13 | V96: 49 | W96: 1 | X96: 49 | Y96: 28 | Z96: 9 | AA96: 20 | AB96: 29 | AC96: 33 | AD96: 46 | AE96: 12 | AF96: 46 | AG96: 24 | AH96: 43 | AI96: 3 | AJ96: 16 | AK96: 50 | AL96: 16 | AM96: 42 | AN96: 5 | AO96: 5
K97: 43 | L97: 19 | M97: 31 | N97: 43 | O97: 49 | P97: 5 | Q97: 40 | R97: 40 | S97: 11 | T97: 45 | U97: 19 | V97: 6 | W97: 8 | X97: 19 | Y97: 42 | Z97: 30 | AA97: 34 | AB97: 2 | AC97: 16 | AD97: 28 | AE97: 17 | AF97: 43 | AG97: 40 | AH97: 7 | AI97: 41 | AJ97: 4 | AK97: 30 | AL97: 23 | AM97: 24 | AN97: 4 | AO97: 3
K98: 33 | L98: 10 | M98: 15 | N98: 3 | O98: 23 | P98: 21 | Q98: 1 | R98: 22 | S98: 3 | T98: 1 | U98: 5 | V98: 11 | W98: 35 | X98: 10 | Y98: 39 | Z98: 13 | AA98: 27 | AB98: 50 | AC98: 22 | AD98: 50 | AE98: 4 | AF98: 45 | AG98: 17 | AH98: 47 | AI98: 27 | AJ98: 37 | AK98: 27 | AL98: 27 | AM98: 33 | AN98: 21 | AO98: 30
K99: 20 | L99: 24 | M99: 35 | N99: 39 | O99: 10 | P99: 30 | Q99: 48 | R99: 17 | S99: 38 | T99: 11 | U99: 21 | V99: 47 | W99: 7 | X99: 39 | Y99: 43 | Z99: 28 | AA99: 24 | AB99: 25 | AC99: 17 | AD99: 39 | AE99: 41 | AF99: 24 | AG99: 7 | AH99: 46 | AI99: 12 | AJ99: 36 | AK99: 44 | AL99: 43 | AM99: 10 | AN99: 28 | AO99: 34
K100: 7 | L100: 34 | M100: 1 | N100: 9 | O100: 24 | P100: 49 | Q100: 34 | R100: 14 | S100: 21 | T100: 32 | U100: 12 | V100: 39 | W100: 38 | X100: 7 | Y100: 41 | Z100: 18 | AA100: 35 | AB100: 26 | AC100: 27 | AD100: 24 | AE100: 19 | AF100: 20 | AG100: 34 | AH100: 44 | AI100: 16 | AJ100: 7 | AK100: 16 | AL100: 21 | AM100: 40 | AN100: 9 | AO100: 16
K101: 50 | L101: 40 | M101: 13 | N101: 31 | O101: 11 | P101: 29 | Q101: 9 | R101: 22 | S101: 14 | T101: 31 | U101: 26 | V101: 30 | W101: 4 | X101: 46 | Y101: 45 | Z101: 19 | AA101: 26 | AB101: 40 | AC101: 24 | AD101: 4 | AE101: 3 | AF101: 32 | AG101: 23 | AH101: 45 | AI101: 24 | AJ101: 9 | AK101: 42 | AL101: 9 | AM101: 43 | AN101: 9 | AO101: 27
K102: 34 | L102: 40 | M102: 1 | N102: 49 | O102: 9 | P102: 29 | Q102: 49 | R102: 21 | S102: 36 | T102: 5 | U102: 31 | V102: 21 | W102: 10 | X102: 20 | Y102: 48 | Z102: 30 | AA102: 44 | AB102: 40 | AC102: 24 | AD102: 42 | AE102: 35 | AF102: 20 | AG102: 31 | AH102: 13 | AI102: 36 | AJ102: 15 | AK102: 47 | AL102: 4 | AM102: 6 | AN102: 31 | AO102: 24
K103: 43 | L103: 4 | M103: 47 | N103: 16 | O103: 4 | P103: 39 | Q103: 6 | R103: 20 | S103: 26 | T103: 6 | U103: 41 | V103: 27 | W103: 47 | X103: 2 | Y103: 49 | Z103: 35 | AA103: 2 | AB103: 4 | AC103: 20 | AD103: 21 | AE103: 3 | AF103: 42 | AG103: 32 | AH103: 41 | AI103: 27 | AJ103: 43 | AK103: 44 | AL103: 41 | AM103: 47 | AN103: 32 | AO103: 11
K104: 20 | L104: 30 | M104: 38 | N104: 20 | O104: 30 | P104: 25 | Q104: 29 | R104: 20 | S104: 42 | T104: 19 | U104: 47 | V104: 9 | W104: 32 | X104: 32 | Y104: 17 | Z104: 18 | AA104: 33 | AB104: 21 | AC104: 44 | AD104: 20 | AE104: 3 | AF104: 9 | AG104: 48 | AH104: 15 | AI104: 31 | AJ104: 19 | AK104: 32 | AL104: 40 | AM104: 19 | AN104: 7 | AO104: 14
K105: 39 | L105: 29 | M105: 44 | N105: 12 | O105: 11 | P105: 28 | Q105: 20 | R105: 25 | S105: 17 | T105: 36 | U105: 38 | V105: 43 | W105: 9 | X105: 5 | Y105: 34 | Z105: 1 | AA105: 8 | AB105: 5 | AC105: 30 | AD105: 35 | AE105: 47 | AF105: 22 | AG105: 5 | AH105: 29 | AI105: 45 | AJ105: 49 | AK105: 6 | AL105: 15 | AM105: 15 | AN105: 12 | AO105: 30
K106: 27 | L106: 31 | M106: 13 | N106: 37 | O106: 16 | P106: 5 | Q106: 23 | R106: 3 | S106: 41 | T106: 40 | U106: 18 | V106: 47 | W106: 34 | X106: 45 | Y106: 35 | Z106: 1 | AA106: 42 | AB106: 37 | AC106: 5 | AD106: 5 | AE106: 25 | AF106: 26 | AG106: 44 | AH106: 28 | AI106: 47 | AJ106: 22 | AK106: 28 | AL106: 25 | AM106: 37 | AN106: 22 | AO106: 46
K107: 32 | L107: 28 | M107: 1 | N107: 10 | O107: 44 | P107: 12 | Q107: 3 | R107: 17 | S107: 17 | T107: 31 | U107: 6 | V107: 13 | W107: 23 | X107: 44 | Y107: 32 | Z107: 24 | AA107: 13 | AB107: 17 | AC107: 46 | AD107: 2 | AE107: 19 | AF107: 39 | AG107: 16 | AH107: 45 | AI107: 19 | AJ107: 48 | AK107: 14 | AL107: 7 | AM107: 34 | AN107: 48 | AO107: 48
K108: 12 | L108: 14 | M108: 6 | N108: 1 | O108: 35 | P108: 6 | Q108: 44 | R108: 45 | S108: 9 | T108: 27 | U108: 47 | V108: 14 | W108: 34 | X108: 49 | Y108: 4 | Z108: 41 | AA108: 10 | AB108: 46 | AC108: 35 | AD108: 13 | AE108: 25 | AF108: 33 | AG108: 1 | AH108: 35 | AI108: 41 | AJ108: 10 | AK108: 19 | AL108: 45 | AM108: 47 | AN108: 33 | AO108: 10
K109: 50 | L109: 12 | M109: 27 | N109: 28 | O109: 44 | P109: 29 | Q109: 29 | R109: 28 | S109: 32 | T109: 17 | U109: 22 | V109: 38 | W109: 41 | X109: 14 | Y109: 25 | Z109: 6 | AA109: 42 | AB109: 37 | AC109: 3 | AD109: 13 | AE109: 42 | AF109: 26 | AG109: 36 | AH109: 33 | AI109: 21 | AJ109: 20 | AK109: 41 | AL109: 6 | AM109: 4 | AN109: 46 | AO109: 20
K110: 38 | L110: 31 | M110: 20 | N110: 19 | O110: 21 | P110: 44 | Q110: 20 | R110: 38 | S110: 26 | T110: 29 | U110: 16 | V110: 37 | W110: 39 | X110: 12 | Y110: 16 | Z110: 43 | AA110: 28 | AB110: 22 | AC110: 8 | AD110: 43 | AE110: 24 | AF110: 47 | AG110: 38 | AH110: 17 | AI110: 18 | AJ110: 45 | AK110: 50 | AL110: 43 | AM110: 49 | AN110: 9 | AO110: 28
K111: 31 | L111: 25 | M111: 23 | N111: 26 | O111: 34 | P111: 45 | Q111: 13 | R111: 5 | S111: 43 | T111: 27 | U111: 18 | V111: 33 | W111: 21 | X111: 46 | Y111: 25 | Z111: 16 | AA111: 43 | AB111: 19 | AC111: 9 | AD111: 24 | AE111: 19 | AF111: 41 | AG111: 45 | AH111: 45 | AI111: 23 | AJ111: 2 | AK111: 33 | AL111: 25 | AM111: 24 | AN111: 37 | AO111: 35
K112: 33 | L112: 34 | M112: 12 | N112: 42 | O112: 30 | P112: 41 | Q112: 28 | R112: 14 | S112: 47 | T112: 4 | U112: 44 | V112: 27 | W112: 36 | X112: 47 | Y112: 37 | Z112: 8 | AA112: 3 | AB112: 42 | AC112: 48 | AD112: 10 | AE112: 22 | AF112: 42 | AG112: 14 | AH112: 43 | AI112: 25 | AJ112: 29 | AK112: 46 | AL112: 2 | AM112: 1 | AN112: 17 | AO112: 6
K113: 3 | L113: 48 | M113: 6 | N113: 10 | O113: 35 | P113: 18 | Q113: 11 | R113: 14 | S113: 11 | T113: 47 | U113: 6 | V113: 21 | W113: 14 | X113: 31 | Y113: 2 | Z113: 4 | AA113: 40 | AB113: 40 | AC113: 3 | AD113: 6 | AE113: 40 | AF113: 15 | AG113: 32 | AH113: 36 | AI113: 40 | AJ113: 7 | AK113: 34 | AL113: 43 | AM113: 49 | AN113: 50 | AO113: 33
K114: 12 | L114: 44 | M114: 46 | N114: 4 | O114: 19 | P114: 47 | Q114: 30 | R114: 44 | S114: 2 | T114: 36 | U114: 10 | V114: 33 | W114: 9 | X114: 45 | Y114: 35 | Z114: 21 | AA114: 30 | AB114: 1 | AC114: 25 | AD114: 43 | AE114: 30 | AF114: 12 | AG114: 22 | AH114: 50 | AI114: 33 | AJ114: 10 | AK114: 15 | AL114: 7 | AM114: 35 | AN114: 13 | AO114: 33
K115: 25 | L115: 19 | M115: 45 | N115: 26 | O115: 4 | P115: 23 | Q115: 5 | R115: 15 | S115: 24 | T115: 6 | U115: 22 | V115: 31 | W115: 9 | X115: 4 | Y115: 17 | Z115: 10 | AA115: 43 | AB115: 17 | AC115: 17 | AD115: 32 | AE115: 18 | AF115: 12 | AG115: 22 | AH115: 18 | AI115: 13 | AJ115: 16 | AK115: 42 | AL115: 47 | AM115: 28 | AN115: 33 | AO115: 41
K116: 11 | L116: 47 | M116: 23 | N116: 9 | O116: 41 | P116: 37 | Q116: 1 | R116: 17 | S116: 21 | T116: 2 | U116: 41 | V116: 16 | W116: 34 | X116: 12 | Y116: 49 | Z116: 14 | AA116: 9 | AB116: 36 | AC116: 47 | AD116: 31 | AE116: 12 | AF116: 8 | AG116: 3 | AH116: 15 | AI116: 30 | AJ116: 33 | AK116: 29 | AL116: 1 | AM116: 36 | AN116: 8 | AO116: 11
K117: 43 | L117: 39 | M117: 46 | N117: 17 | O117: 22 | P117: 2 | Q117: 31 | R117: 8 | S117: 24 | T117: 17 | U117: 30 | V117: 28 | W117: 13 | X117: 9 | Y117: 29 | Z117: 17 | AA117: 15 | AB117: 22 | AC117: 25 | AD117: 23 | AE117: 48 | AF117: 9 | AG117: 15 | AH117: 39 | AI117: 16 | AJ117: 37 | AK117: 35 | AL117: 20 | AM117: 41 | AN117: 15 | AO117: 18
K118: 4 | L118: 4 | M118: 29 | N118: 32 | O118: 49 | P118: 28 | Q118: 14 | R118: 8 | S118: 28 | T118: 24 | U118: 34 | V118: 19 | W118: 47 | X118: 48 | Y118: 29 | Z118: 28 | AA118: 19 | AB118: 15 | AC118: 16 | AD118: 3 | AE118: 21 | AF118: 3 | AG118: 25 | AH118: 17 | AI118: 43 | AJ118: 16 | AK118: 21 | AL118: 24 | AM118: 50 | AN118: 32 | AO118: 28
K119: 44 | L119: 4 | M119: 4 | N119: 28 | O119: 19 | P119: 13 | Q119: 4 | R119: 18 | S119: 22 | T119: 7 | U119: 47 | V119: 30 | W119: 23 | X119: 17 | Y119: 42 | Z119: 47 | AA119: 42 | AB119: 47 | AC119: 36 | AD119: 15 | AE119: 49 | AF119: 46 | AG119: 32 | AH119: 2 | AI119: 11 | AJ119: 36 | AK119: 12 | AL119: 35 | AM119: 22 | AN119: 15 | AO119: 41
K120: 17 | L120: 16 | M120: 18 | N120: 49 | O120: 35 | P120: 29 | Q120: 26 | R120: 35 | S120: 47 | T120: 28 | U120: 35 | V120: 6 | W120: 11 | X120: 31 | Y120: 21 | Z120: 38 | AA120: 34 | AB120: 27 | AC120: 35 | AD120: 44 | AE120: 39 | AF120: 41 | AG120: 4 | AH120: 30 | AI120: 43 | AJ120: 32 | AK120: 32 | AL120: 32 | AM120: 22 | AN120: 30 | AO120: 22
K121: 25 | L121: 6 | M121: 40 | N121: 22 | O121: 37 | P121: 9 | Q121: 25 | R121: 34 | S121: 16 | T121: 35 | U121: 35 | V121: 16 | W121: 38 | X121: 29 | Y121: 14 | Z121: 43 | AA121: 40 | AB121: 50 | AC121: 36 | AD121: 48 | AE121: 19 | AF121: 10 | AG121: 41 | AH121: 14 | AI121: 34 | AJ121: 17 | AK121: 22 | AL121: 50 | AM121: 8 | AN121: 32 | AO121: 42
K122: 21 | L122: 9 | M122: 31 | N122: 1 | O122: 18 | P122: 48 | Q122: 2 | R122: 28 | S122: 1 | T122: 49 | U122: 38 | V122: 12 | W122: 50 | X122: 12 | Y122: 39 | Z122: 46 | AA122: 41 | AB122: 28 | AC122: 48 | AD122: 2 | AE122: 41 | AF122: 20 | AG122: 15 | AH122: 27 | AI122: 38 | AJ122: 22 | AK122: 19 | AL122: 30 | AM122: 27 | AN122: 15 | AO122: 1
K123: 23 | L123: 49 | M123: 40 | N123: 47 | O123: 5 | P123: 36 | Q123: 47 | R123: 45 | S123: 22 | T123: 22 | U123: 17 | V123: 16 | W123: 30 | X123: 38 | Y123: 4 | Z123: 39 | AA123: 13 | AB123: 4 | AC123: 11 | AD123: 44 | AE123: 46 | AF123: 32 | AG123: 44 | AH123: 7 | AI123: 13 | AJ123: 3 | AK123: 18 | AL123: 8 | AM123: 48 | AN123: 27 | AO123: 35
K124: 29 | L124: 15 | M124: 19 | N124: 9 | O124: 36 | P124: 6 | Q124: 17 | R124: 23 | S124: 29 | T124: 2 | U124: 28 | V124: 28 | W124: 3 | X124: 22 | Y124: 41 | Z124: 16 | AA124: 29 | AB124: 1 | AC124: 48 | AD124: 7 | AE124: 24 | AF124: 23 | AG124: 8 | AH124: 26 | AI124: 14 | AJ124: 41 | AK124: 37 | AL124: 28 | AM124: 31 | AN124: 45 | AO124: 34
K125: 13 | L125: 2 | M125: 47 | N125: 41 | O125: 6 | P125: 39 | Q125: 39 | R125: 10 | S125: 34 | T125: 15 | U125: 36 | V125: 45 | W125: 20 | X125: 30 | Y125: 50 | Z125: 29 | AA125: 44 | AB125: 14 | AC125: 27 | AD125: 40 | AE125: 8 | AF125: 30 | AG125: 11 | AH125: 23 | AI125: 12 | AJ125: 6 | AK125: 28 | AL125: 23 | AM125: 4 | AN125: 9 | AO125: 9
K126: 49 | L126: 40 | M126: 32 | N126: 20 | O126: 39 | P126: 20 | Q126: 6 | R126: 38 | S126: 31 | T126: 31 | U126: 20 | V126: 44 | W126: 39 | X126: 7 | Y126: 31 | Z126: 33 | AA126: 41 | AB126: 30 | AC126: 28 | AD126: 29 | AE126: 48 | AF126: 44 | AG126: 46 | AH126: 1 | AI126: 49 | AJ126: 38 | AK126: 5 | AL126: 36 | AM126: 33 | AN126: 12 | AO126: 32
K127: 39 | L127: 20 | M127: 8 | N127: 38 | O127: 5 | P127: 1 | Q127: 28 | R127: 20 | S127: 42 | T127: 18 | U127: 46 | V127: 1 | W127: 15 | X127: 36 | Y127: 31 | Z127: 50 | AA127: 41 | AB127: 47 | AC127: 31 | AD127: 47 | AE127: 44 | AF127: 21 | AG127: 42 | AH127: 10 | AI127: 5 | AJ127: 44 | AK127: 32 | AL127: 14 | AM127: 15 | AN127: 14 | AO127: 16
K128: 41 | L128: 16 | M128: 47 | N128: 2 | O128: 37 | P128: 24 | Q128: 34 | R128: 9 | S128: 6 | T128: 20 | U128: 4 | V128: 7 | W128: 5 | X128: 17 | Y128: 44 | Z128: 24 | AA128: 45 | AB128: 16 | AC128: 2 | AD128: 11 | AE128: 6 | AF128: 25 | AG128: 14 | AH128: 11 | AI128: 15 | AJ128: 16 | AK128: 36 | AL128: 36 | AM128: 40 | AN128: 9 | AO128: 1
K129: 39 | L129: 15 | M129: 2 | N129: 35 | O129: 27 | P129: 22 | Q129: 23 | R129: 17 | S129: 45 | T129: 47 | U129: 38 | V129: 11 | W129: 13 | X129: 18 | Y129: 13 | Z129: 50 | AA129: 42 | AB129: 11 | AC129: 13 | AD129: 48 | AE129: 35 | AF129: 8 | AG129: 5 | AH129: 5 | AI129: 5 | AJ129: 24 | AK129: 2 | AL129: 1 | AM129: 11 | AN129: 11 | AO129: 30
K130: 4 | L130: 25 | M130: 40 | N130: 21 | O130: 18 | P130: 5 | Q130: 15 | R130: 44 | S130: 40 | T130: 27 | U130: 38 | V130: 17 | W130: 21 | X130: 1 | Y130: 21 | Z130: 31 | AA130: 14 | AB130: 25 | AC130: 14 | AD130: 49 | AE130: 26 | AF130: 30 | AG130: 15 | AH130: 34 | AI130: 4 | AJ130: 11 | AK130: 26 | AL130: 42 | AM130: 41 | AN130: 14 | AO130: 25
K131: 46 | L131: 21 | M131: 28 | N131: 29 | O131: 39 | P131: 11 | Q131: 10 | R131: 31 | S131: 35 | T131: 31 | U131: 23 | V131: 28 | W131: 29 | X131: 16 | Y131: 14 | Z131: 14 | AA131: 13 | AB131: 47 | AC131: 12 | AD131: 47 | AE131: 49 | AF131: 35 | AG131: 17 | AH131: 35 | AI131: 19 | AJ131: 44 | AK131: 6 | AL131: 40 | AM131: 29 | AN131: 41 | AO131: 32
K132: 32 | L132: 12 | M132: 1 | N132: 47 | O132: 38 | P132: 24 | Q132: 3 | R132: 44 | S132: 10 | T132: 11 | U132: 35 | V132: 36 | W132: 30 | X132: 3 | Y132: 38 | Z132: 19 | AA132: 32 | AB132: 37 | AC132: 25 | AD132: 6 | AE132: 12 | AF132: 14 | AG132: 21 | AH132: 12 | AI132: 28 | AJ132: 31 | AK132: 48 | AL132: 26 | AM132: 9 | AN132: 30 | AO132: 2
K133: 50 | L133: 4 | M133: 8 | N133: 8 | O133: 45 | P133: 41 | Q133: 19 | R133: 4 | S133: 32 | T133: 41 | U133: 21 | V133: 50 | W133: 8 | X133: 39 | Y133: 8 | Z133: 45 | AA133: 2 | AB133: 26 | AC133: 38 | AD133: 40 | AE133: 9 | AF133: 1 | AG133: 45 | AH133: 26 | AI133: 32 | AJ133: 8 | AK133: 37 | AL133: 1 | AM133: 39 | AN133: 8 | AO133: 15
K134: 11 | L134: 35 | M134: 1 | N134: 10 | O134: 5 | P134: 32 | Q134: 20 | R134: 23 | S134: 25 | T134: 50 | U134: 24 | V134: 18 | W134: 3 | X134: 33 | Y134: 3 | Z134: 18 | AA134: 2 | AB134: 7 | AC134: 42 | AD134: 22 | AE134: 7 | AF134: 42 | AG134: 21 | AH134: 15 | AI134: 19 | AJ134: 32 | AK134: 21 | AL134: 2 | AM134: 12 | AN134: 33 | AO134: 6
K135: 25 | L135: 44 | M135: 50 | N135: 44 | O135: 11 | P135: 39 | Q135: 41 | R135: 38 | S135: 48 | T135: 48 | U135: 40 | V135: 36 | W135: 32 | X135: 8 | Y135: 13 | Z135: 40 | AA135: 20 | AB135: 26 | AC135: 20 | AD135: 40 | AE135: 43 | AF135: 18 | AG135: 38 | AH135: 36 | AI135: 4 | AJ135: 3 | AK135: 39 | AL135: 4 | AM135: 27 | AN135: 37 | AO135: 11
K136: 11 | L136: 48 | M136: 23 | N136: 29 | O136: 26 | P136: 6 | Q136: 10 | R136: 32 | S136: 26 | T136: 27 | U136: 14 | V136: 24 | W136: 24 | X136: 23 | Y136: 6 | Z136: 20 | AA136: 44 | AB136: 9 | AC136: 32 | AD136: 40 | AE136: 8 | AF136: 14 | AG136: 38 | AH136: 1 | AI136: 45 | AJ136: 38 | AK136: 14 | AL136: 11 | AM136: 5 | AN136: 20 | AO136: 8
K137: 23 | L137: 45 | M137: 37 | N137: 44 | O137: 29 | P137: 25 | Q137: 33 | R137: 31 | S137: 31 | T137: 11 | U137: 6 | V137: 14 | W137: 19 | X137: 28 | Y137: 50 | Z137: 35 | AA137: 42 | AB137: 28 | AC137: 35 | AD137: 19 | AE137: 18 | AF137: 42 | AG137: 39 | AH137: 42 | AI137: 17 | AJ137: 33 | AK137: 42 | AL137: 43 | AM137: 24 | AN137: 28 | AO137: 2
K138: 36 | L138: 14 | M138: 21 | N138: 11 | O138: 16 | P138: 45 | Q138: 15 | R138: 5 | S138: 4 | T138: 36 | U138: 47 | V138: 29 | W138: 26 | X138: 22 | Y138: 6 | Z138: 38 | AA138: 30 | AB138: 18 | AC138: 34 | AD138: 9 | AE138: 33 | AF138: 15 | AG138: 40 | AH138: 45 | AI138: 41 | AJ138: 25 | AK138: 14 | AL138: 32 | AM138: 19 | AN138: 10 | AO138: 47
K139: 33 | L139: 23 | M139: 28 | N139: 50 | O139: 46 | P139: 35 | Q139: 45 | R139: 14 | S139: 46 | T139: 47 | U139: 41 | V139: 50 | W139: 9 | X139: 8 | Y139: 7 | Z139: 40 | AA139: 11 | AB139: 12 | AC139: 10 | AD139: 26 | AE139: 14 | AF139: 11 | AG139: 9 | AH139: 44 | AI139: 48 | AJ139: 28 | AK139: 5 | AL139: 25 | AM139: 26 | AN139: 26 | AO139: 44
K140: 8 | L140: 2 | M140: 45 | N140: 1 | O140: 43 | P140: 21 | Q140: 20 | R140: 42 | S140: 8 | T140: 30 | U140: 48 | V140: 45 | W140: 7 | X140: 20 | Y140: 22 | Z140: 44 | AA140: 8 | AB140: 28 | AC140: 29 | AD140: 28 | AE140: 50 | AF140: 5 | AG140: 18 | AH140: 16 | AI140: 43 | AJ140: 49 | AK140: 9 | AL140: 32 | AM140: 41 | AN140: 28 | AO140: 25
K141: 31 | L141: 22 | M141: 31 | N141: 48 | O141: 17 | P141: 1 | Q141: 24 | R141: 23 | S141: 23 | T141: 7 | U141: 25 | V141: 10 | W141: 9 | X141: 40 | Y141: 26 | Z141: 23 | AA141: 44 | AB141: 5 | AC141: 48 | AD141: 6 | AE141: 35 | AF141: 25 | AG141: 20 | AH141: 33 | AI141: 11 | AJ141: 27 | AK141: 3 | AL141: 34 | AM141: 23 | AN141: 43 | AO141: 50
K142: 21 | L142: 40 | M142: 48 | N142: 3 | O142: 26 | P142: 21 | Q142: 40 | R142: 21 | S142: 29 | T142: 32 | U142: 36 | V142: 26 | W142: 44 | X142: 22 | Y142: 49 | Z142: 8 | AA142: 43 | AB142: 12 | AC142: 32 | AD142: 1 | AE142: 31 | AF142: 3 | AG142: 26 | AH142: 25 | AI142: 32 | AJ142: 24 | AK142: 30 | AL142: 37 | AM142: 14 | AN142: 18 | AO142: 19
K143: 19 | L143: 41 | M143: 31 | N143: 38 | O143: 30 | P143: 44 | Q143: 4 | R143: 5 | S143: 12 | T143: 2 | U143: 26 | V143: 7 | W143: 38 | X143: 16 | Y143: 5 | Z143: 26 | AA143: 3 | AB143: 11 | AC143: 14 | AD143: 23 | AE143: 48 | AF143: 47 | AG143: 44 | AH143: 24 | AI143: 14 | AJ143: 39 | AK143: 18 | AL143: 9 | AM143: 6 | AN143: 37 | AO143: 7
K144: 1 | L144: 20 | M144: 46 | N144: 30 | O144: 42 | P144: 41 | Q144: 2 | R144: 34 | S144: 47 | T144: 25 | U144: 5 | V144: 11 | W144: 20 | X144: 33 | Y144: 20 | Z144: 17 | AA144: 49 | AB144: 36 | AC144: 29 | AD144: 21 | AE144: 22 | AF144: 14 | AG144: 22 | AH144: 4 | AI144: 47 | AJ144: 1 | AK144: 11 | AL144: 18 | AM144: 46 | AN144: 12 | AO144: 17
K145: 22 | L145: 49 | M145: 29 | N145: 35 | O145: 3 | P145: 46 | Q145: 39 | R145: 26 | S145: 48 | T145: 9 | U145: 29 | V145: 8 | W145: 47 | X145: 46 | Y145: 38 | Z145: 50 | AA145: 10 | AB145: 24 | AC145: 8 | AD145: 14 | AE145: 25 | AF145: 45 | AG145: 50 | AH145: 47 | AI145: 17 | AJ145: 35 | AK145: 9 | AL145: 20 | AM145: 43 | AN145: 38 | AO145: 10
K146: 10 | L146: 50 | M146: 25 | N146: 2 | O146: 34 | P146: 5 | Q146: 4 | R146: 1 | S146: 26 | T146: 33 | U146: 17 | V146: 30 | W146: 25 | X146: 3 | Y146: 38 | Z146: 39 | AA146: 47 | AB146: 50 | AC146: 15 | AD146: 4 | AE146: 30 | AF146: 9 | AG146: 48 | AH146: 8 | AI146: 46 | AJ146: 40 | AK146: 7 | AL146: 3 | AM146: 9 | AN146: 30 | AO146: 13
K147: 1 | L147: 47 | M147: 1 | N147: 14 | O147: 16 | P147: 33 | Q147: 42 | R147: 21 | S147: 20 | T147: 2 | U147: 27 | V147: 42 | W147: 42 | X147: 12 | Y147: 16 | Z147: 4 | AA147: 32 | AB147: 7 | AC147: 13 | AD147: 34 | AE147: 7 | AF147: 17 | AG147: 16 | AH147: 49 | AI147: 13 | AJ147: 46 | AK147: 50 | AL147: 42 | AM147: 39 | AN147: 44 | AO147: 30
K148: 6 | L148: 4 | M148: 14 | N148: 50 | O148: 1 | P148: 11 | Q148: 42 | R148: 43 | S148: 18 | T148: 16 | U148: 25 | V148: 29 | W148: 48 | X148: 44 | Y148: 6 | Z148: 19 | AA148: 23 | AB148: 19 | AC148: 17 | AD148: 17 | AE148: 5 | AF148: 16 | AG148: 39 | AH148: 1 | AI148: 17 | AJ148: 35 | AK148: 44 | AL148: 50 | AM148: 6 | AN148: 13 | AO148: 50
K149: 6 | L149: 40 | M149: 50 | N149: 48 | O149: 16 | P149: 14 | Q149: 37 | R149: 7 | S149: 2 | T149: 14 | U149: 27 | V149: 27 | W149: 25 | X149: 8 | Y149: 4 | Z149: 20 | AA149: 40 | AB149: 34 | AC149: 30 | AD149: 28 | AE149: 37 | AF149: 44 | AG149: 21 | AH149: 7 | AI149: 8 | AJ149: 44 | AK149: 21 | AL149: 41 | AM149: 23 | AN149: 25 | AO149: 43
K150: 6 | L150: 24 | M150: 13 | N150: 43 | O150: 9 | P150: 36 | Q150: 44 | R150: 44 | S150: 40 | T150: 46 | U150: 26 | V150: 5 | W150: 20 | X150: 18 | Y150: 4 | Z150: 47 | AA150: 20 | AB150: 18 | AC150: 42 | AD150: 10 | AE150: 31 | AF150: 9 | AG150: 35 | AH150: 3 | AI150: 26 | AJ150: 3 | AK150: 24 | AL150: 8 | AM150: 49 | AN150: 1 | AO150: 2
K151: 4 | L151: 8 | M151: 37 | N151: 22 | O151: 31 | P151: 28 | Q151: 50 | R151: 50 | S151: 19 | T151: 30 | U151: 40 | V151: 16 | W151: 1 | X151: 19 | Y151: 18 | Z151: 24 | AA151: 27 | AB151: 46 | AC151: 5 | AD151: 30 | AE151: 33 | AF151: 42 | AG151: 48 | AH151: 45 | AI151: 30 | AJ151: 7 | AK151: 43 | AL151: 4 | AM151: 29 | AN151: 47 | AO151: 27
K152: 18 | L152: 13 | M152: 16 | N152: 49 | O152: 1 | P152: 14 | Q152: 9 | R152: 20 | S152: 15 | T152: 31 | U152: 48 | V152: 50 | W152: 44 | X152: 48 | Y152: 14 | Z152: 11 | AA152: 13 | AB152: 44 | AC152: 40 | AD152: 15 | AE152: 34 | AF152: 40 | AG152: 44 | AH152: 38 | AI152: 21 | AJ152: 20 | AK152: 24 | AL152: 30 | AM152: 36 | AN152: 19 | AO152: 42
K153: 47 | L153: 1 | M153: 30 | N153: 21 | O153: 22 | P153: 15 | Q153: 48 | R153: 29 | S153: 37 | T153: 18 | U153: 8 | V153: 33 | W153: 42 | X153: 31 | Y153: 46 | Z153: 17 | AA153: 37 | AB153: 46 | AC153: 44 | AD153: 29 | AE153: 45 | AF153: 7 | AG153: 27 | AH153: 41 | AI153: 22 | AJ153: 6 | AK153: 22 | AL153: 36 | AM153: 20 | AN153: 20 | AO153: 26
K154: 35 | L154: 36 | M154: 39 | N154: 49 | O154: 35 | P154: 27 | Q154: 49 | R154: 38 | S154: 22 | T154: 21 | U154: 40 | V154: 37 | W154: 17 | X154: 7 | Y154: 39 | Z154: 43 | AA154: 11 | AB154: 12 | AC154: 45 | AD154: 27 | AE154: 43 | AF154: 21 | AG154: 15 | AH154: 24 | AI154: 21 | AJ154: 5 | AK154: 25 | AL154: 4 | AM154: 23 | AN154: 34 | AO154: 34
K155: 11 | L155: 23 | M155: 5 | N155: 40 | O155: 49 | P155: 14 | Q155: 32 | R155: 32 | S155: 44 | T155: 15 | U155: 43 | V155: 19 | W155: 38 | X155: 20 | Y155: 43 | Z155: 4 | AA155: 45 | AB155: 34 | AC155: 24 | AD155: 1 | AE155: 27 | AF155: 18 | AG155: 39 | AH155: 28 | AI155: 19 | AJ155: 18 | AK155: 6 | AL155: 45 | AM155: 28 | AN155: 4 | AO155: 38
K156: 50 | L156: 47 | M156: 34 | N156: 23 | O156: 6 | P156: 28 | Q156: 41 | R156: 43 | S156: 20 | T156: 24 | U156: 33 | V156: 45 | W156: 8 | X156: 33 | Y156: 11 | Z156: 10 | AA156: 36 | AB156: 39 | AC156: 17 | AD156: 1 | AE156: 12 | AF156: 26 | AG156: 46 | AH156: 19 | AI156: 48 | AJ156: 35 | AK156: 41 | AL156: 11 | AM156: 14 | AN156: 32 | AO156: 3
K157: 16 | L157: 28 | M157: 11 | N157: 14 | O157: 26 | P157: 14 | Q157: 34 | R157: 30 | S157: 14 | T157: 9 | U157: 44 | V157: 28 | W157: 18 | X157: 20 | Y157: 1 | Z157: 6 | AA157: 18 | AB157: 13 | AC157: 14 | AD157: 23 | AE157: 24 | AF157: 49 | AG157: 9 | AH157: 16 | AI157: 30 | AJ157: 26 | AK157: 40 | AL157: 21 | AM157: 48 | AN157: 38 | AO157: 29
K158: 44 | L158: 3 | M158: 9 | N158: 49 | O158: 7 | P158: 7 | Q158: 39 | R158: 24 | S158: 43 | T158: 25 | U158: 13 | V158: 26 | W158: 30 | X158: 50 | Y158: 12 | Z158: 47 | AA158: 30 | AB158: 28 | AC158: 33 | AD158: 2 | AE158: 44 | AF158: 45 | AG158: 23 | AH158: 27 | AI158: 38 | AJ158: 26 | AK158: 12 | AL158: 9 | AM158: 19 | AN158: 15 | AO158: 15
K159: 22 | L159: 35 | M159: 17 | N159: 22 | O159: 8 | P159: 18 | Q159: 17 | R159: 2 | S159: 12 | T159: 18 | U159: 35 | V159: 19 | W159: 2 | X159: 10 | Y159: 29 | Z159: 45 | AA159: 33 | AB159: 29 | AC159: 4 | AD159: 15 | AE159: 41 | AF159: 47 | AG159: 4 | AH159: 21 | AI159: 20 | AJ159: 17 | AK159: 10 | AL159: 11 | AM159: 14 | AN159: 45 | AO159: 13
K160: 24 | L160: 25 | M160: 10 | N160: 23 | O160: 9 | P160: 31 | Q160: 29 | R160: 8 | S160: 34 | T160: 22 | U160: 26 | V160: 35 | W160: 11 | X160: 5 | Y160: 6 | Z160: 2 | AA160: 24 | AB160: 45 | AC160: 42 | AD160: 42 | AE160: 44 | AF160: 46 | AG160: 33 | AH160: 21 | AI160: 33 | AJ160: 45 | AK160: 9 | AL160: 39 | AM160: 9 | AN160: 22 | AO160: 9
K161: 15 | L161: 31 | M161: 3 | N161: 18 | O161: 15 | P161: 12 | Q161: 33 | R161: 37 | S161: 22 | T161: 36 | U161: 19 | V161: 21 | W161: 17 | X161: 2 | Y161: 31 | Z161: 25 | AA161: 28 | AB161: 48 | AC161: 3 | AD161: 1 | AE161: 36 | AF161: 40 | AG161: 24 | AH161: 19 | AI161: 25 | AJ161: 4 | AK161: 35 | AL161: 11 | AM161: 34 | AN161: 4 | AO161: 28
K162: 28 | L162: 43 | M162: 43 | N162: 21 | O162: 35 | P162: 15 | Q162: 47 | R162: 30 | S162: 19 | T162: 20 | U162: 10 | V162: 23 | W162: 20 | X162: 7 | Y162: 27 | Z162: 7 | AA162: 24 | AB162: 34 | AC162: 4 | AD162: 46 | AE162: 35 | AF162: 35 | AG162: 29 | AH162: 26 | AI162: 13 | AJ162: 8 | AK162: 24 | AL162: 50 | AM162: 25 | AN162: 38 | AO162: 7
K163: 15 | L163: 5 | M163: 26 | N163: 47 | O163: 1 | P163: 24 | Q163: 20 | R163: 42 | S163: 24 | T163: 39 | U163: 14 | V163: 19 | W163: 1 | X163: 38 | Y163: 50 | Z163: 36 | AA163: 34 | AB163: 31 | AC163: 25 | AD163: 44 | AE163: 41 | AF163: 32 | AG163: 23 | AH163: 10 | AI163: 13 | AJ163: 49 | AK163: 42 | AL163: 47 | AM163: 46 | AN163: 35 | AO163: 47
K164: 7 | L164: 21 | M164: 42 | N164: 27 | O164: 3 | P164: 14 | Q164: 1 | R164: 49 | S164: 32 | T164: 37 | U164: 47 | V164: 49 | W164: 26 | X164: 35 | Y164: 35 | Z164: 35 | AA164: 41 | AB164: 6 | AC164: 23 | AD164: 44 | AE164: 12 | AF164: 20 | AG164: 37 | AH164: 28 | AI164: 15 | AJ164: 43 | AK164: 50 | AL164: 40 | AM164: 13 | AN164: 23 | AO164: 40
K165: 9 | L165: 24 | M165: 7 | N165: 34 | O165: 8 | P165: 2 | Q165: 6 | R165: 17 | S165: 11 | T165: 9 | U165: 28 | V165: 35 | W165: 49 | X165: 36 | Y165: 45 | Z165: 39 | AA165: 35 | AB165: 31 | AC165: 29 | AD165: 20 | AE165: 7 | AF165: 11 | AG165: 10 | AH165: 39 | AI165: 36 | AJ165: 5 | AK165: 17 | AL165: 37 | AM165: 37 | AN165: 46 | AO165: 28
K166: 37 | L166: 7 | M166: 50 | N166: 41 | O166: 50 | P166: 36 | Q166: 11 | R166: 45 | S166: 21 | T166: 27 | U166: 48 | V166: 34 | W166: 10 | X166: 13 | Y166: 20 | Z166: 9 | AA166: 24 | AB166: 18 | AC166: 6 | AD166: 7 | AE166: 41 | AF166: 24 | AG166: 30 | AH166: 2 | AI166: 16 | AJ166: 48 | AK166: 6 | AL166: 34 | AM166: 42 | AN166: 29 | AO166: 41
K167: 3 | L167: 18 | M167: 23 | N167: 9 | O167: 9 | P167: 2 | Q167: 24 | R167: 24 | S167: 49 | T167: 18 | U167: 45 | V167: 38 | W167: 2 | X167: 14 | Y167: 30 | Z167: 20 | AA167: 17 | AB167: 3 | AC167: 4 | AD167: 20 | AE167: 45 | AF167: 34 | AG167: 27 | AH167: 40 | AI167: 39 | AJ167: 23 | AK167: 8 | AL167: 48 | AM167: 49 | AN167: 39 | AO167: 16
K168: 25 | L168: 47 | M168: 48 | N168: 40 | O168: 37 | P168: 18 | Q168: 21 | R168: 43 | S168: 44 | T168: 21 | U168: 31 | V168: 49 | W168: 19 | X168: 33 | Y168: 2 | Z168: 37 | AA168: 30 | AB168: 11 | AC168: 34 | AD168: 33 | AE168: 23 | AF168: 50 | AG168: 23 | AH168: 21 | AI168: 15 | AJ168: 37 | AK168: 13 | AL168: 14 | AM168: 30 | AN168: 9 | AO168: 39
K169: 6 | L169: 48 | M169: 37 | N169: 15 | O169: 36 | P169: 15 | Q169: 14 | R169: 48 | S169: 39 | T169: 1 | U169: 24 | V169: 1 | W169: 12 | X169: 46 | Y169: 19 | Z169: 9 | AA169: 33 | AB169: 46 | AC169: 25 | AD169: 27 | AE169: 30 | AF169: 2 | AG169: 29 | AH169: 18 | AI169: 29 | AJ169: 35 | AK169: 9 | AL169: 1 | AM169: 32 | AN169: 5 | AO169: 13
K170: 14 | L170: 14 | M170: 49 | N170: 13 | O170: 20 | P170: 17 | Q170: 29 | R170: 43 | S170: 27 | T170: 9 | U170: 6 | V170: 13 | W170: 31 | X170: 49 | Y170: 3 | Z170: 11 | AA170: 10 | AB170: 40 | AC170: 44 | AD170: 15 | AE170: 9 | AF170: 22 | AG170: 11 | AH170: 2 | AI170: 38 | AJ170: 9 | AK170: 15 | AL170: 5 | AM170: 2 | AN170: 39 | AO170: 10
K171: 21 | L171: 13 | M171: 29 | N171: 34 | O171: 27 | P171: 32 | Q171: 42 | R171: 16 | S171: 47 | T171: 49 | U171: 21 | V171: 9 | W171: 22 | X171: 49 | Y171: 36 | Z171: 41 | AA171: 29 | AB171: 22 | AC171: 26 | AD171: 29 | AE171: 27 | AF171: 24 | AG171: 48 | AH171: 37 | AI171: 28 | AJ171: 7 | AK171: 4 | AL171: 45 | AM171: 33 | AN171: 33 | AO171: 20
K172: 33 | L172: 45 | M172: 33 | N172: 25 | O172: 33 | P172: 13 | Q172: 24 | R172: 5 | S172: 15 | T172: 43 | U172: 16 | V172: 49 | W172: 24 | X172: 50 | Y172: 7 | Z172: 19 | AA172: 36 | AB172: 28 | AC172: 46 | AD172: 36 | AE172: 32 | AF172: 43 | AG172: 16 | AH172: 29 | AI172: 45 | AJ172: 46 | AK172: 46 | AL172: 15 | AM172: 46 | AN172: 32 | AO172: 20
K173: 28 | L173: 19 | M173: 37 | N173: 31 | O173: 29 | P173: 29 | Q173: 4 | R173: 8 | S173: 39 | T173: 35 | U173: 37 | V173: 17 | W173: 13 | X173: 10 | Y173: 49 | Z173: 3 | AA173: 3 | AB173: 50 | AC173: 7 | AD173: 47 | AE173: 17 | AF173: 17 | AG173: 48 | AH173: 6 | AI173: 19 | AJ173: 47 | AK173: 50 | AL173: 50 | AM173: 14 | AN173: 3 | AO173: 39
K174: 2 | L174: 42 | M174: 6 | N174: 34 | O174: 34 | P174: 50 | Q174: 36 | R174: 34 | S174: 5 | T174: 15 | U174: 15 | V174: 5 | W174: 34 | X174: 21 | Y174: 49 | Z174: 29 | AA174: 41 | AB174: 15 | AC174: 50 | AD174: 7 | AE174: 41 | AF174: 35 | AG174: 38 | AH174: 37 | AI174: 1 | AJ174: 49 | AK174: 35 | AL174: 35 | AM174: 45 | AN174: 37 | AO174: 4
K175: 41 | L175: 50 | M175: 4 | N175: 1 | O175: 21 | P175: 31 | Q175: 25 | R175: 16 | S175: 3 | T175: 34 | U175: 6 | V175: 49 | W175: 20 | X175: 34 | Y175: 11 | Z175: 31 | AA175: 39 | AB175: 26 | AC175: 39 | AD175: 11 | AE175: 41 | AF175: 19 | AG175: 50 | AH175: 38 | AI175: 46 | AJ175: 33 | AK175: 48 | AL175: 4 | AM175: 21 | AN175: 48 | AO175: 30
K176: 26 | L176: 47 | M176: 23 | N176: 47 | O176: 4 | P176: 7 | Q176: 41 | R176: 26 | S176: 13 | T176: 12 | U176: 5 | V176: 15 | W176: 2 | X176: 1 | Y176: 49 | Z176: 16 | AA176: 41 | AB176: 8 | AC176: 23 | AD176: 24 | AE176: 34 | AF176: 41 | AG176: 6 | AH176: 32 | AI176: 1 | AJ176: 17 | AK176: 49 | AL176: 14 | AM176: 34 | AN176: 9 | AO176: 47
K177: 49 | L177: 35 | M177: 32 | N177: 45 | O177: 14 | P177: 38 | Q177: 10 | R177: 49 | S177: 49 | T177: 48 | U177: 4 | V177: 14 | W177: 24 | X177: 9 | Y177: 46 | Z177: 35 | AA177: 35 | AB177: 40 | AC177: 10 | AD177: 47 | AE177: 13 | AF177: 45 | AG177: 24 | AH177: 19 | AI177: 16 | AJ177: 5 | AK177: 45 | AL177: 31 | AM177: 41 | AN177: 19 | AO177: 8
K178: 45 | L178: 34 | M178: 49 | N178: 39 | O178: 10 | P178: 17 | Q178: 13 | R178: 48 | S178: 39 | T178: 44 | U178: 43 | V178: 20 | W178: 12 | X178: 44 | Y178: 31 | Z178: 33 | AA178: 23 | AB178: 25 | AC178: 48 | AD178: 49 | AE178: 4 | AF178: 41 | AG178: 8 | AH178: 41 | AI178: 18 | AJ178: 50 | AK178: 28 | AL178: 8 | AM178: 32 | AN178: 47 | AO178: 49
K179: 35 | L179: 17 | M179: 19 | N179: 15 | O179: 8 | P179: 27 | Q179: 37 | R179: 28 | S179: 2 | T179: 47 | U179: 37 | V179: 2 | W179: 29 | X179: 48 | Y179: 38 | Z179: 34 | AA179: 27 | AB179: 9 | AC179: 49 | AD179: 7 | AE179: 45 | AF179: 34 | AG179: 15 | AH179: 20 | AI179: 50 | AJ179: 11 | AK179: 39 | AL179: 12 | AM179: 36 | AN179: 12 | AO179: 26
K180: 47 | L180: 37 | M180: 7 | N180: 9 | O180: 29 | P180: 47 | Q180: 38 | R180: 4 | S180: 39 | T180: 44 | U180: 29 | V180: 47 | W180: 14 | X180: 35 | Y180: 9 | Z180: 28 | AA180: 13 | AB180: 37 | AC180: 40 | AD180: 27 | AE180: 10 | AF180: 45 | AG180: 31 | AH180: 17 | AI180: 42 | AJ180: 33 | AK180: 24 | AL180: 24 | AM180: 13 | AN180: 49 | AO180: 37
K181: 22 | L181: 8 | M181: 33 | N181: 31 | O181: 24 | P181: 34 | Q181: 36 | R181: 7 | S181: 42 | T181: 37 | U181: 44 | V181: 31 | W181: 22 | X181: 12 | Y181: 9 | Z181: 18 | AA181: 32 | AB181: 40 | AC181: 14 | AD181: 50 | AE181: 30 | AF181: 26 | AG181: 12 | AH181: 48 | AI181: 18 | AJ181: 12 | AK181: 20 | AL181: 11 | AM181: 15 | AN181: 2 | AO181: 20
K182: 8 | L182: 7 | M182: 39 | N182: 43 | O182: 25 | P182: 50 | Q182: 8 | R182: 34 | S182: 13 | T182: 49 | U182: 15 | V182: 37 | W182: 31 | X182: 6 | Y182: 13 | Z182: 27 | AA182: 33 | AB182: 49 | AC182: 10 | AD182: 36 | AE182: 37 | AF182: 49 | AG182: 9 | AH182: 21 | AI182: 26 | AJ182: 1 | AK182: 23 | AL182: 27 | AM182: 38 | AN182: 38 | AO182: 38
K183: 45 | L183: 34 | M183: 17 | N183: 32 | O183: 47 | P183: 22 | Q183: 30 | R183: 14 | S183: 18 | T183: 20 | U183: 31 | V183: 1 | W183: 49 | X183: 31 | Y183: 8 | Z183: 21 | AA183: 20 | AB183: 33 | AC183: 48 | AD183: 28 | AE183: 41 | AF183: 10 | AG183: 28 | AH183: 16 | AI183: 18 | AJ183: 10 | AK183: 1 | AL183: 48 | AM183: 8 | AN183: 19 | AO183: 18
K184: 44 | L184: 24 | M184: 42 | N184: 46 | O184: 50 | P184: 41 | Q184: 24 | R184: 31 | S184: 49 | T184: 12 | U184: 3 | V184: 38 | W184: 5 | X184: 48 | Y184: 31 | Z184: 16 | AA184: 21 | AB184: 50 | AC184: 33 | AD184: 32 | AE184: 13 | AF184: 49 | AG184: 1 | AH184: 23 | AI184: 39 | AJ184: 4 | AK184: 1 | AL184: 41 | AM184: 1 | AN184: 44 | AO184: 2
K185: 24 | L185: 19 | M185: 15 | N185: 27 | O185: 29 | P185: 35 | Q185: 33 | R185: 14 | S185: 23 | T185: 3 | U185: 21 | V185: 10 | W185: 49 | X185: 38 | Y185: 10 | Z185: 46 | AA185: 37 | AB185: 22 | AC185: 24 | AD185: 37 | AE185: 10 | AF185: 30 | AG185: 38 | AH185: 7 | AI185: 32 | AJ185: 40 | AK185: 15 | AL185: 15 | AM185: 47 | AN185: 30 | AO185: 39
K186: 49 | L186: 24 | M186: 1 | N186: 11 | O186: 49 | P186: 2 | Q186: 3 | R186: 19 | S186: 20 | T186: 32 | U186: 9 | V186: 19 | W186: 45 | X186: 49 | Y186: 19 | Z186: 25 | AA186: 2 | AB186: 30 | AC186: 17 | AD186: 12 | AE186: 18 | AF186: 7 | AG186: 23 | AH186: 46 | AI186: 50 | AJ186: 46 | AK186: 50 | AL186: 5 | AM186: 7 | AN186: 11 | AO186: 35
K187: 19 | L187: 26 | M187: 25 | N187: 43 | O187: 10 | P187: 34 | Q187: 31 | R187: 3 | S187: 39 | T187: 20 | U187: 16 | V187: 8 | W187: 9 | X187: 34 | Y187: 25 | Z187: 23 | AA187: 8 | AB187: 2 | AC187: 37 | AD187: 4 | AE187: 16 | AF187: 35 | AG187: 9 | AH187: 8 | AI187: 46 | AJ187: 9 | AK187: 1 | AL187: 43 | AM187: 41 | AN187: 40 | AO187: 50
K188: 5 | L188: 25 | M188: 23 | N188: 7 | O188: 49 | P188: 6 | Q188: 13 | R188: 46 | S188: 41 | T188: 47 | U188: 29 | V188: 17 | W188: 49 | X188: 35 | Y188: 2 | Z188: 26 | AA188: 19 | AB188: 7 | AC188: 16 | AD188: 5 | AE188: 21 | AF188: 46 | AG188: 25 | AH188: 25 | AI188: 32 | AJ188: 49 | AK188: 36 | AL188: 10 | AM188: 32 | AN188: 45 | AO188: 39
K189: 25 | L189: 38 | M189: 19 | N189: 22 | O189: 35 | P189: 7 | Q189: 35 | R189: 5 | S189: 26 | T189: 7 | U189: 10 | V189: 7 | W189: 48 | X189: 49 | Y189: 18 | Z189: 49 | AA189: 44 | AB189: 8 | AC189: 10 | AD189: 3 | AE189: 47 | AF189: 35 | AG189: 7 | AH189: 39 | AI189: 22 | AJ189: 43 | AK189: 35 | AL189: 16 | AM189: 33 | AN189: 13 | AO189: 34
K190: 48 | L190: 10 | M190: 35 | N190: 9 | O190: 9 | P190: 45 | Q190: 39 | R190: 20 | S190: 38 | T190: 27 | U190: 36 | V190: 47 | W190: 45 | X190: 48 | Y190: 5 | Z190: 7 | AA190: 29 | AB190: 20 | AC190: 20 | AD190: 40 | AE190: 20 | AF190: 5 | AG190: 44 | AH190: 48 | AI190: 33 | AJ190: 2 | AK190: 2 | AL190: 19 | AM190: 30 | AN190: 26 | AO190: 39
K191: 21 | L191: 1 | M191: 2 | N191: 47 | O191: 7 | P191: 45 | Q191: 8 | R191: 46 | S191: 41 | T191: 9 | U191: 50 | V191: 10 | W191: 3 | X191: 40 | Y191: 22 | Z191: 3 | AA191: 5 | AB191: 50 | AC191: 44 | AD191: 8 | AE191: 35 | AF191: 1 | AG191: 48 | AH191: 38 | AI191: 14 | AJ191: 7 | AK191: 30 | AL191: 39 | AM191: 45 | AN191: 12 | AO191: 50
K192: 9 | L192: 25 | M192: 24 | N192: 38 | O192: 36 | P192: 5 | Q192: 34 | R192: 20 | S192: 10 | T192: 6 | U192: 24 | V192: 43 | W192: 11 | X192: 4 | Y192: 20 | Z192: 45 | AA192: 43 | AB192: 48 | AC192: 24 | AD192: 35 | AE192: 5 | AF192: 12 | AG192: 24 | AH192: 2 | AI192: 19 | AJ192: 36 | AK192: 38 | AL192: 34 | AM192: 32 | AN192: 21 | AO192: 20
K193: 16 | L193: 32 | M193: 9 | N193: 15 | O193: 15 | P193: 18 | Q193: 37 | R193: 10 | S193: 5 | T193: 37 | U193: 2 | V193: 12 | W193: 22 | X193: 35 | Y193: 5 | Z193: 38 | AA193: 6 | AB193: 2 | AC193: 33 | AD193: 33 | AE193: 44 | AF193: 14 | AG193: 24 | AH193: 15 | AI193: 35 | AJ193: 34 | AK193: 26 | AL193: 37 | AM193: 17 | AN193: 46 | AO193: 12
K194: 43 | L194: 12 | M194: 10 | N194: 7 | O194: 39 | P194: 3 | Q194: 36 | R194: 50 | S194: 18 | T194: 49 | U194: 38 | V194: 26 | W194: 7 | X194: 2 | Y194: 2 | Z194: 49 | AA194: 33 | AB194: 34 | AC194: 48 | AD194: 17 | AE194: 12 | AF194: 21 | AG194: 26 | AH194: 20 | AI194: 29 | AJ194: 22 | AK194: 42 | AL194: 7 | AM194: 35 | AN194: 30 | AO194: 38
K195: 27 | L195: 28 | M195: 36 | N195: 49 | O195: 38 | P195: 48 | Q195: 15 | R195: 12 | S195: 42 | T195: 40 | U195: 26 | V195: 40 | W195: 48 | X195: 38 | Y195: 40 | Z195: 9 | AA195: 22 | AB195: 11 | AC195: 30 | AD195: 38 | AE195: 35 | AF195: 13 | AG195: 5 | AH195: 6 | AI195: 24 | AJ195: 19 | AK195: 42 | AL195: 36 | AM195: 10 | AN195: 45 | AO195: 48
K196: 37 | L196: 15 | M196: 47 | N196: 8 | O196: 15 | P196: 37 | Q196: 1 | R196: 32 | S196: 27 | T196: 28 | U196: 19 | V196: 31 | W196: 40 | X196: 6 | Y196: 48 | Z196: 33 | AA196: 27 | AB196: 5 | AC196: 38 | AD196: 41 | AE196: 21 | AF196: 25 | AG196: 32 | AH196: 22 | AI196: 7 | AJ196: 25 | AK196: 3 | AL196: 50 | AM196: 4 | AN196: 25 | AO196: 49
K197: 46 | L197: 24 | M197: 30 | N197: 37 | O197: 47 | P197: 40 | Q197: 32 | R197: 2 | S197: 6 | T197: 20 | U197: 31 | V197: 26 | W197: 23 | X197: 18 | Y197: 30 | Z197: 6 | AA197: 33 | AB197: 40 | AC197: 6 | AD197: 35 | AE197: 15 | AF197: 6 | AG197: 24 | AH197: 40 | AI197: 31 | AJ197: 44 | AK197: 4 | AL197: 42 | AM197: 32 | AN197: 34 | AO197: 6
K198: 1 | L198: 48 | M198: 15 | N198: 43 | O198: 34 | P198: 3 | Q198: 30 | R198: 10 | S198: 29 | T198: 27 | U198: 20 | V198: 21 | W198: 9 | X198: 40 | Y198: 16 | Z198: 27 | AA198: 13 | AB198: 37 | AC198: 25 | AD198: 18 | AE198: 22 | AF198: 40 | AG198: 21 | AH198: 5 | AI198: 40 | AJ198: 41 | AK198: 14 | AL198: 5 | AM198: 16 | AN198: 3 | AO198: 9
K199: 26 | L199: 16 | M199: 8 | N199: 35 | O199: 24 | P199: 46 | Q199: 35 | R199: 50 | S199: 23 | T199: 41 | U199: 24 | V199: 13 | W199: 39 | X199: 45 | Y199: 32 | Z199: 30 | AA199: 31 | AB199: 23 | AC199: 41 | AD199: 11 | AE199: 32 | AF199: 27 | AG199: 16 | AH199: 8 | AI199: 14 | AJ199: 48 | AK199: 43 | AL199: 42 | AM199: 9 | AN199: 13 | AO199: 43
K200: 21 | L200: 13 | M200: 16 | N200: 35 | O200: 50 | P200: 48 | Q200: 38 | R200: 39 | S200: 31 | T200: 41 | U200: 27 | V200: 33 | W200: 17 | X200: 33 | Y200: 29 | Z200: 11 | AA200: 18 | AB200: 30 | AC200: 16 | AD200: 30 | AE200: 3 | AF200: 19 | AG200: 14 | AH200: 49 | AI200: 10 | AJ200: 3 | AK200: 4 | AL200: 43 | AM200: 47 | AN200: 44 | AO200: 20
K201: 6 | L201: 30 | M201: 20 | N201: 16 | O201: 35 | P201: 10 | Q201: 29 | R201: 24 | S201: 31 | T201: 48 | U201: 46 | V201: 39 | W201: 49 | X201: 2 | Y201: 24 | Z201: 11 | AA201: 4 | AB201: 42 | AC201: 20 | AD201: 23 | AE201: 25 | AF201: 37 | AG201: 50 | AH201: 15 | AI201: 5 | AJ201: 25 | AK201: 36 | AL201: 44 | AM201: 45 | AN201: 50 | AO201: 21
K202: 2 | L202: 28 | M202: 43 | N202: 20 | O202: 49 | P202: 1 | Q202: 33 | R202: 26 | S202: 41 | T202: 2 | U202: 1 | V202: 9 | W202: 26 | X202: 31 | Y202: 49 | Z202: 47 | AA202: 24 | AB202: 47 | AC202: 14 | AD202: 11 | AE202: 37 | AF202: 47 | AG202: 27 | AH202: 35 | AI202: 20 | AJ202: 31 | AK202: 21 | AL202: 23 | AM202: 7 | AN202: 41 | AO202: 12
K203: 30 | L203: 19 | M203: 19 | N203: 21 | O203: 8 | P203: 4 | Q203: 47 | R203: 25 | S203: 22 | T203: 48 | U203: 24 | V203: 3 | W203: 27 | X203: 42 | Y203: 6 | Z203: 5 | AA203: 48 | AB203: 47 | AC203: 16 | AD203: 10 | AE203: 1 | AF203: 34 | AG203: 16 | AH203: 14 | AI203: 16 | AJ203: 13 | AK203: 24 | AL203: 31 | AM203: 31 | AN203: 4 | AO203: 40
K204: 14 | L204: 24 | M204: 26 | N204: 28 | O204: 8 | P204: 38 | Q204: 24 | R204: 39 | S204: 2 | T204: 33 | U204: 21 | V204: 27 | W204: 49 | X204: 17 | Y204: 33 | Z204: 5 | AA204: 35 | AB204: 20 | AC204: 46 | AD204: 34 | AE204: 23 | AF204: 27 | AG204: 30 | AH204: 27 | AI204: 29 | AJ204: 30 | AK204: 43 | AL204: 42 | AM204: 26 | AN204: 40 | AO204: 30
K205: 9 | L205: 7 | M205: 36 | N205: 30 | O205: 4 | P205: 4 | Q205: 29 | R205: 35 | S205: 47 | T205: 3 | U205: 6 | V205: 26 | W205: 32 | X205: 25 | Y205: 18 | Z205: 3 | AA205: 15 | AB205: 1 | AC205: 17 | AD205: 45 | AE205: 50 | AF205: 2 | AG205: 18 | AH205: 43 | AI205: 28 | AJ205: 28 | AK205: 21 | AL205: 6 | AM205: 47 | AN205: 5 | AO205: 9
K206: 42 | L206: 37 | M206: 39 | N206: 19 | O206: 7 | P206: 8 | Q206: 26 | R206: 38 | S206: 9 | T206: 7 | U206: 25 | V206: 13 | W206: 48 | X206: 11 | Y206: 40 | Z206: 17 | AA206: 20 | AB206: 16 | AC206: 14 | AD206: 10 | AE206: 28 | AF206: 37 | AG206: 25 | AH206: 4 | AI206: 18 | AJ206: 20 | AK206: 17 | AL206: 6 | AM206: 26 | AN206: 50 | AO206: 11
K207: 9 | L207: 20 | M207: 13 | N207: 36 | O207: 9 | P207: 33 | Q207: 38 | R207: 24 | S207: 13 | T207: 8 | U207: 36 | V207: 46 | W207: 2 | X207: 28 | Y207: 50 | Z207: 15 | AA207: 9 | AB207: 46 | AC207: 20 | AD207: 17 | AE207: 25 | AF207: 24 | AG207: 21 | AH207: 36 | AI207: 2 | AJ207: 15 | AK207: 11 | AL207: 5 | AM207: 10 | AN207: 37 | AO207: 40
K208: 44 | L208: 36 | M208: 34 | N208: 16 | O208: 27 | P208: 43 | Q208: 30 | R208: 12 | S208: 32 | T208: 31 | U208: 25 | V208: 4 | W208: 4 | X208: 42 | Y208: 27 | Z208: 19 | AA208: 23 | AB208: 24 | AC208: 42 | AD208: 25 | AE208: 27 | AF208: 34 | AG208: 20 | AH208: 43 | AI208: 25 | AJ208: 33 | AK208: 36 | AL208: 23 | AM208: 15 | AN208: 42 | AO208: 38
K209: 21 | L209: 29 | M209: 14 | N209: 23 | O209: 9 | P209: 13 | Q209: 44 | R209: 22 | S209: 15 | T209: 7 | U209: 28 | V209: 26 | W209: 2 | X209: 29 | Y209: 12 | Z209: 9 | AA209: 9 | AB209: 31 | AC209: 47 | AD209: 43 | AE209: 15 | AF209: 8 | AG209: 48 | AH209: 5 | AI209: 49 | AJ209: 9 | AK209: 27 | AL209: 38 | AM209: 5 | AN209: 30 | AO209: 19
K210: 31 | L210: 47 | M210: 42 | N210: 33 | O210: 31 | P210: 1 | Q210: 2 | R210: 26 | S210: 33 | T210: 13 | U210: 9 | V210: 30 | W210: 5 | X210: 24 | Y210: 1 | Z210: 31 | AA210: 3 | AB210: 46 | AC210: 38 | AD210: 35 | AE210: 50 | AF210: 9 | AG210: 34 | AH210: 4 | AI210: 21 | AJ210: 42 | AK210: 37 | AL210: 45 | AM210: 32 | AN210: 20 | AO210: 20
K211: 42 | L211: 40 | M211: 12 | N211: 41 | O211: 38 | P211: 34 | Q211: 5 | R211: 39 | S211: 37 | T211: 20 | U211: 6 | V211: 27 | W211: 23 | X211: 16 | Y211: 36 | Z211: 38 | AA211: 30 | AB211: 2 | AC211: 35 | AD211: 21 | AE211: 38 | AF211: 18 | AG211: 15 | AH211: 40 | AI211: 28 | AJ211: 25 | AK211: 43 | AL211: 13 | AM211: 13 | AN211: 45 | AO211: 33
K212: 46 | L212: 26 | M212: 17 | N212: 15 | O212: 14 | P212: 48 | Q212: 32 | R212: 6 | S212: 46 | T212: 40 | U212: 1 | V212: 45 | W212: 39 | X212: 29 | Y212: 37 | Z212: 32 | AA212: 23 | AB212: 12 | AC212: 2 | AD212: 35 | AE212: 35 | AF212: 11 | AG212: 36 | AH212: 17 | AI212: 9 | AJ212: 11 | AK212: 18 | AL212: 27 | AM212: 7 | AN212: 27 | AO212: 34
K213: 20 | L213: 40 | M213: 41 | N213: 28 | O213: 34 | P213: 39 | Q213: 43 | R213: 41 | S213: 34 | T213: 25 | U213: 19 | V213: 40 | W213: 27 | X213: 4 | Y213: 34 | Z213: 1 | AA213: 45 | AB213: 44 | AC213: 16 | AD213: 1 | AE213: 44 | AF213: 26 | AG213: 37 | AH213: 5 | AI213: 28 | AJ213: 46 | AK213: 27 | AL213: 35 | AM213: 19 | AN213: 26 | AO213: 5
K214: 19 | L214: 16 | M214: 28 | N214: 33 | O214: 6 | P214: 50 | Q214: 22 | R214: 46 | S214: 37 | T214: 32 | U214: 34 | V214: 10 | W214: 38 | X214: 44 | Y214: 21 | Z214: 17 | AA214: 47 | AB214: 30 | AC214: 50 | AD214: 28 | AE214: 25 | AF214: 34 | AG214: 8 | AH214: 50 | AI214: 14 | AJ214: 45 | AK214: 42 | AL214: 23 | AM214: 42 | AN214: 12 | AO214: 28
K215: 15 | L215: 8 | M215: 19 | N215: 48 | O215: 37 | P215: 8 | Q215: 24 | R215: 12 | S215: 27 | T215: 14 | U215: 22 | V215: 20 | W215: 34 | X215: 6 | Y215: 2 | Z215: 39 | AA215: 3 | AB215: 23 | AC215: 4 | AD215: 31 | AE215: 39 | AF215: 33 | AG215: 21 | AH215: 43 | AI215: 42 | AJ215: 42 | AK215: 46 | AL215: 35 | AM215: 22 | AN215: 1 | AO215: 10
K216: 26 | L216: 2 | M216: 15 | N216: 14 | O216: 19 | P216: 18 | Q216: 4 | R216: 12 | S216: 1 | T216: 41 | U216: 39 | V216: 14 | W216: 22 | X216: 38 | Y216: 25 | Z216: 45 | AA216: 35 | AB216: 32 | AC216: 42 | AD216: 29 | AE216: 11 | AF216: 15 | AG216: 41 | AH216: 15 | AI216: 26 | AJ216: 9 | AK216: 17 | AL216: 6 | AM216: 43 | AN216: 16 | AO216: 19
K217: 16 | L217: 37 | M217: 28 | N217: 6 | O217: 9 | P217: 20 | Q217: 1 | R217: 10 | S217: 6 | T217: 11 | U217: 47 | V217: 38 | W217: 46 | X217: 33 | Y217: 20 | Z217: 17 | AA217: 46 | AB217: 39 | AC217: 2 | AD217: 30 | AE217: 33 | AF217: 38 | AG217: 5 | AH217: 50 | AI217: 29 | AJ217: 1 | AK217: 49 | AL217: 14 | AM217: 28 | AN217: 36 | AO217: 22
K218: 34 | L218: 21 | M218: 10 | N218: 31 | O218: 38 | P218: 10 | Q218: 49 | R218: 21 | S218: 21 | T218: 45 | U218: 21 | V218: 38 | W218: 41 | X218: 5 | Y218: 46 | Z218: 36 | AA218: 4 | AB218: 40 | AC218: 44 | AD218: 50 | AE218: 47 | AF218: 42 | AG218: 33 | AH218: 29 | AI218: 22 | AJ218: 47 | AK218: 6 | AL218: 46 | AM218: 45 | AN218: 22 | AO218: 2
K219: 18 | L219: 3 | M219: 3 | N219: 17 | O219: 4 | P219: 21 | Q219: 46 | R219: 18 | S219: 23 | T219: 20 | U219: 12 | V219: 9 | W219: 44 | X219: 13 | Y219: 20 | Z219: 24 | AA219: 45 | AB219: 22 | AC219: 33 | AD219: 17 | AE219: 37 | AF219: 7 | AG219: 26 | AH219: 33 | AI219: 2 | AJ219: 49 | AK219: 50 | AL219: 6 | AM219: 38 | AN219: 47 | AO219: 33
K220: 22 | L220: 26 | M220: 12 | N220: 50 | O220: 3 | P220: 27 | Q220: 23 | R220: 28 | S220: 48 | T220: 11 | U220: 20 | V220: 31 | W220: 22 | X220: 2 | Y220: 19 | Z220: 48 | AA220: 19 | AB220: 35 | AC220: 20 | AD220: 7 | AE220: 20 | AF220: 40 | AG220: 26 | AH220: 3 | AI220: 27 | AJ220: 12 | AK220: 44 | AL220: 36 | AM220: 46 | AN220: 50 | AO220: 23
K221: 12 | L221: 48 | M221: 26 | N221: 47 | O221: 1 | P221: 35 | Q221: 33 | R221: 49 | S221: 29 | T221: 44 | U221: 15 | V221: 40 | W221: 26 | X221: 29 | Y221: 25 | Z221: 42 | AA221: 19 | AB221: 22 | AC221: 27 | AD221: 46 | AE221: 29 | AF221: 45 | AG221: 44 | AH221: 15 | AI221: 45 | AJ221: 1 | AK221: 44 | AL221: 48 | AM221: 22 | AN221: 48 | AO221: 6
K222: 47 | L222: 20 | M222: 15 | N222: 18 | O222: 26 | P222: 14 | Q222: 21 | R222: 11 | S222: 31 | T222: 8 | U222: 18 | V222: 19 | W222: 9 | X222: 46 | Y222: 15 | Z222: 20 | AA222: 22 | AB222: 33 | AC222: 26 | AD222: 40 | AE222: 34 | AF222: 46 | AG222: 21 | AH222: 49 | AI222: 32 | AJ222: 37 | AK222: 44 | AL222: 50 | AM222: 35 | AN222: 40 | AO222: 43
K223: 31 | L223: 24 | M223: 38 | N223: 26 | O223: 33 | P223: 28 | Q223: 3 | R223: 34 | S223: 13 | T223: 50 | U223: 4 | V223: 50 | W223: 42 | X223: 32 | Y223: 27 | Z223: 48 | AA223: 31 | AB223: 17 | AC223: 43 | AD223: 4 | AE223: 25 | AF223: 8 | AG223: 43 | AH223: 29 | AI223: 46 | AJ223: 3 | AK223: 16 | AL223: 17 | AM223: 35 | AN223: 34 | AO223: 27
K224: 23 | L224: 14 | M224: 19 | N224: 35 | O224: 6 | P224: 4 | Q224: 41 | R224: 29 | S224: 4 | T224: 7 | U224: 8 | V224: 48 | W224: 5 | X224: 24 | Y224: 28 | Z224: 38 | AA224: 38 | AB224: 1 | AC224: 48 | AD224: 17 | AE224: 20 | AF224: 30 | AG224: 28 | AH224: 49 | AI224: 43 | AJ224: 7 | AK224: 31 | AL224: 43 | AM224: 31 | AN224: 3 | AO224: 20
K225: 24 | L225: 39 | M225: 40 | N225: 44 | O225: 8 | P225: 44 | Q225: 39 | R225: 6 | S225: 11 | T225: 16 | U225: 35 | V225: 42 | W225: 33 | X225: 50 | Y225: 45 | Z225: 4 | AA225: 45 | AB225: 45 | AC225: 24 | AD225: 12 | AE225: 41 | AF225: 2 | AG225: 10 | AH225: 18 | AI225: 33 | AJ225: 50 | AK225: 16 | AL225: 45 | AM225: 13 | AN225: 8 | AO225: 37
K226: 5 | L226: 11 | M226: 40 | N226: 10 | O226: 49 | P226: 7 | Q226: 18 | R226: 43 | S226: 38 | T226: 38 | U226: 1 | V226: 35 | W226: 5 | X226: 50 | Y226: 16 | Z226: 32 | AA226: 27 | AB226: 22 | AC226: 37 | AD226: 9 | AE226: 5 | AF226: 43 | AG226: 47 | AH226: 5 | AI226: 21 | AJ226: 5 | AK226: 17 | AL226: 48 | AM226: 28 | AN226: 48 | AO226: 8
K227: 23 | L227: 33 | M227: 15 | N227: 14 | O227: 31 | P227: 18 | Q227: 40 | R227: 16 | S227: 48 | T227: 18 | U227: 2 | V227: 21 | W227: 39 | X227: 7 | Y227: 4 | Z227: 31 | AA227: 43 | AB227: 39 | AC227: 21 | AD227: 10 | AE227: 45 | AF227: 19 | AG227: 15 | AH227: 20 | AI227: 33 | AJ227: 28 | AK227: 37 | AL227: 26 | AM227: 14 | AN227: 13 | AO227: 38
K228: 6 | L228: 1 | M228: 32 | N228: 14 | O228: 16 | P228: 22 | Q228: 21 | R228: 30 | S228: 27 | T228: 20 | U228: 18 | V228: 22 | W228: 1 | X228: 8 | Y228: 9 | Z228: 2 | AA228: 26 | AB228: 6 | AC228: 39 | AD228: 46 | AE228: 39 | AF228: 39 | AG228: 22 | AH228: 10 | AI228: 44 | AJ228: 22 | AK228: 19 | AL228: 20 | AM228: 5 | AN228: 3 | AO228: 47
K229: 19 | L229: 3 | M229: 33 | N229: 8 | O229: 12 | P229: 29 | Q229: 40 | R229: 36 | S229: 19 | T229: 16 | U229: 40 | V229: 21 | W229: 45 | X229: 38 | Y229: 18 | Z229: 46 | AA229: 25 | AB229: 36 | AC229: 23 | AD229: 35 | AE229: 50 | AF229: 20 | AG229: 25 | AH229: 23 | AI229: 19 | AJ229: 31 | AK229: 30 | AL229: 50 | AM229: 28 | AN229: 9 | AO229: 35
K230: 4 | L230: 7 | M230: 9 | N230: 44 | O230: 18 | P230: 10 | Q230: 5 | R230: 2 | S230: 29 | T230: 40 | U230: 36 | V230: 34 | W230: 23 | X230: 16 | Y230: 45 | Z230: 22 | AA230: 2 | AB230: 24 | AC230: 29 | AD230: 44 | AE230: 28 | AF230: 22 | AG230: 20 | AH230: 42 | AI230: 44 | AJ230: 41 | AK230: 8 | AL230: 50 | AM230: 18 | AN230: 26 | AO230: 22
K231: 17 | L231: 13 | M231: 8 | N231: 14 | O231: 26 | P231: 36 | Q231: 13 | R231: 45 | S231: 12 | T231: 22 | U231: 22 | V231: 19 | W231: 28 | X231: 8 | Y231: 1 | Z231: 45 | AA231: 39 | AB231: 24 | AC231: 10 | AD231: 27 | AE231: 3 | AF231: 3 | AG231: 18 | AH231: 13 | AI231: 22 | AJ231: 13 | AK231: 4 | AL231: 4 | AM231: 18 | AN231: 32 | AO231: 34
K232: 6 | L232: 35 | M232: 29 | N232: 39 | O232: 33 | P232: 28 | Q232: 21 | R232: 23 | S232: 48 | T232: 26 | U232: 44 | V232: 33 | W232: 20 | X232: 49 | Y232: 27 | Z232: 30 | AA232: 44 | AB232: 44 | AC232: 30 | AD232: 44 | AE232: 17 | AF232: 4 | AG232: 46 | AH232: 14 | AI232: 48 | AJ232: 40 | AK232: 44 | AL232: 25 | AM232: 12 | AN232: 9 | AO232: 1
K233: 12 | L233: 8 | M233: 1 | N233: 28 | O233: 29 | P233: 19 | Q233: 21 | R233: 32 | S233: 5 | T233: 38 | U233: 2 | V233: 47 | W233: 31 | X233: 25 | Y233: 3 | Z233: 17 | AA233: 8 | AB233: 20 | AC233: 37 | AD233: 19 | AE233: 8 | AF233: 44 | AG233: 5 | AH233: 28 | AI233: 45 | AJ233: 18 | AK233: 4 | AL233: 3 | AM233: 11 | AN233: 39 | AO233: 6
K234: 47 | L234: 2 | M234: 8 | N234: 23 | O234: 24 | P234: 37 | Q234: 28 | R234: 37 | S234: 22 | T234: 30 | U234: 35 | V234: 24 | W234: 11 | X234: 11 | Y234: 45 | Z234: 32 | AA234: 3 | AB234: 14 | AC234: 36 | AD234: 50 | AE234: 42 | AF234: 12 | AG234: 12 | AH234: 13 | AI234: 17 | AJ234: 30 | AK234: 9 | AL234: 17 | AM234: 16 | AN234: 41 | AO234: 21
K235: 45 | L235: 43 | M235: 46 | N235: 6 | O235: 31 | P235: 38 | Q235: 1 | R235: 19 | S235: 42 | T235: 50 | U235: 39 | V235: 34 | W235: 27 | X235: 45 | Y235: 27 | Z235: 15 | AA235: 20 | AB235: 42 | AC235: 19 | AD235: 3 | AE235: 5 | AF235: 17 | AG235: 44 | AH235: 7 | AI235: 3 | AJ235: 19 | AK235: 14 | AL235: 7 | AM235: 20 | AN235: 2 | AO235: 8
K236: 24 | L236: 37 | M236: 46 | N236: 40 | O236: 12 | P236: 46 | Q236: 49 | R236: 11 | S236: 43 | T236: 9 | U236: 47 | V236: 47 | W236: 35 | X236: 26 | Y236: 21 | Z236: 46 | AA236: 15 | AB236: 17 | AC236: 50 | AD236: 30 | AE236: 10 | AF236: 3 | AG236: 13 | AH236: 30 | AI236: 47 | AJ236: 42 | AK236: 43 | AL236: 30 | AM236: 50 | AN236: 10 | AO236: 44
K237: 17 | L237: 34 | M237: 17 | N237: 37 | O237: 40 | P237: 26 | Q237: 17 | R237: 22 | S237: 10 | T237: 23 | U237: 23 | V237: 23 | W237: 27 | X237: 36 | Y237: 44 | Z237: 8 | AA237: 16 | AB237: 50 | AC237: 7 | AD237: 43 | AE237: 42 | AF237: 36 | AG237: 21 | AH237: 19 | AI237: 10 | AJ237: 50 | AK237: 20 | AL237: 24 | AM237: 11 | AN237: 4 | AO237: 16
K238: 46 | L238: 15 | M238: 13 | N238: 27 | O238: 3 | P238: 39 | Q238: 43 | R238: 6 | S238: 32 | T238: 22 | U238: 36 | V238: 33 | W238: 49 | X238: 37 | Y238: 15 | Z238: 9 | AA238: 38 | AB238: 35 | AC238: 50 | AD238: 6 | AE238: 41 | AF238: 13 | AG238: 39 | AH238: 15 | AI238: 36 | AJ238: 34 | AK238: 7 | AL238: 32 | AM238: 49 | AN238: 28 | AO238: 15
K239: 6 | L239: 31 | M239: 4 | N239: 25 | O239: 48 | P239: 49 | Q239: 36 | R239: 38 | S239: 36 | T239: 3 | U239: 39 | V239: 36 | W239: 32 | X239: 10 | Y239: 48 | Z239: 46 | AA239: 39 | AB239: 6 | AC239: 21 | AD239: 11 | AE239: 8 | AF239: 12 | AG239: 5 | AH239: 50 | AI239: 32 | AJ239: 50 | AK239: 10 | AL239: 50 | AM239: 27 | AN239: 47 | AO239: 26
K240: 4 | L240: 31 | M240: 42 | N240: 35 | O240: 3 | P240: 29 | Q240: 31 | R240: 42 | S240: 8 | T240: 2 | U240: 31 | V240: 24 | W240: 19 | X240: 13 | Y240: 11 | Z240: 26 | AA240: 33 | AB240: 3 | AC240: 47 | AD240: 10 | AE240: 38 | AF240: 45 | AG240: 1 | AH240: 17 | AI240: 41 | AJ240: 36 | AK240: 18 | AL240: 24 | AM240: 9 | AN240: 39 | AO240: 23
K241: 36 | L241: 23 | M241: 12 | N241: 9 | O241: 24 | P241: 12 | Q241: 10 | R241: 8 | S241: 24 | T241: 20 | U241: 42 | V241: 33 | W241: 9 | X241: 15 | Y241: 42 | Z241: 20 | AA241: 25 | AB241: 1 | AC241: 25 | AD241: 38 | AE241: 50 | AF241: 2 | AG241: 18 | AH241: 13 | AI241: 48 | AJ241: 41 | AK241: 17 | AL241: 39 | AM241: 35 | AN241: 23 | AO241: 28
... 2009 more rows

Sheet LotteryPredictionAlgorithm(4)
B2: Building Lottery Prediction Algorithm
B4: Serial Number | C4: Lottery Number
B5: 6 | C5: =COUNTIF($K$56:$AO$6000,B5) -> 3684
B6: 25 | C6: =COUNTIF($K$56:$AO$6000,B6) -> 3774
B7: 27 | C7: =COUNTIF($K$56:$AO$6000,B7) -> 3664
B8: 38 | C8: =COUNTIF($K$56:$AO$6000,B8) -> 3749
B9: 44 | C9: =COUNTIF($K$56:$AO$6000,B9) -> 3623
P11: `
K55: =RANDBETWEEN(1,50) -> 5
K56: 19 | L56: 45 | M56: 35 | N56: 5 | O56: 34 | P56: 29 | Q56: 19 | R56: 10 | S56: 7 | T56: 36 | U56: 50 | V56: 19 | W56: 22 | X56: 32 | Y56: 19 | Z56: 20 | AA56: 16 | AB56: 29 | AC56: 46 | AD56: 39 | AE56: 2 | AF56: 7 | AG56: 3 | AH56: 17 | AI56: 2 | AJ56: 13 | AK56: 41 | AL56: 24 | AM56: 9 | AN56: 11 | AO56: 41
K57: 24 | L57: 21 | M57: 3 | N57: 3 | O57: 29 | P57: 3 | Q57: 16 | R57: 47 | S57: 19 | T57: 12 | U57: 47 | V57: 4 | W57: 2 | X57: 38 | Y57: 13 | Z57: 22 | AA57: 39 | AB57: 4 | AC57: 32 | AD57: 48 | AE57: 50 | AF57: 38 | AG57: 44 | AH57: 18 | AI57: 12 | AJ57: 19 | AK57: 32 | AL57: 36 | AM57: 24 | AN57: 36 | AO57: 25
K58: 6 | L58: 48 | M58: 22 | N58: 23 | O58: 34 | P58: 9 | Q58: 20 | R58: 36 | S58: 24 | T58: 43 | U58: 43 | V58: 23 | W58: 3 | X58: 46 | Y58: 25 | Z58: 45 | AA58: 34 | AB58: 2 | AC58: 32 | AD58: 11 | AE58: 6 | AF58: 44 | AG58: 33 | AH58: 9 | AI58: 40 | AJ58: 35 | AK58: 2 | AL58: 35 | AM58: 30 | AN58: 19 | AO58: 7
K59: 18 | L59: 1 | M59: 30 | N59: 5 | O59: 49 | P59: 25 | Q59: 13 | R59: 50 | S59: 8 | T59: 9 | U59: 36 | V59: 22 | W59: 1 | X59: 28 | Y59: 33 | Z59: 3 | AA59: 42 | AB59: 8 | AC59: 31 | AD59: 29 | AE59: 9 | AF59: 26 | AG59: 14 | AH59: 13 | AI59: 20 | AJ59: 4 | AK59: 43 | AL59: 40 | AM59: 46 | AN59: 44 | AO59: 25
K60: 41 | L60: 13 | M60: 16 | N60: 12 | O60: 42 | P60: 17 | Q60: 25 | R60: 41 | S60: 27 | T60: 13 | U60: 28 | V60: 41 | W60: 45 | X60: 28 | Y60: 48 | Z60: 35 | AA60: 14 | AB60: 25 | AC60: 33 | AD60: 17 | AE60: 31 | AF60: 32 | AG60: 30 | AH60: 6 | AI60: 32 | AJ60: 3 | AK60: 37 | AL60: 43 | AM60: 2 | AN60: 27 | AO60: 6
K61: 42 | L61: 32 | M61: 16 | N61: 17 | O61: 48 | P61: 34 | Q61: 4 | R61: 26 | S61: 34 | T61: 22 | U61: 29 | V61: 11 | W61: 41 | X61: 45 | Y61: 26 | Z61: 48 | AA61: 39 | AB61: 9 | AC61: 46 | AD61: 16 | AE61: 37 | AF61: 45 | AG61: 3 | AH61: 21 | AI61: 19 | AJ61: 40 | AK61: 20 | AL61: 41 | AM61: 21 | AN61: 30 | AO61: 3
K62: 4 | L62: 22 | M62: 41 | N62: 41 | O62: 32 | P62: 16 | Q62: 9 | R62: 4 | S62: 34 | T62: 49 | U62: 21 | V62: 29 | W62: 3 | X62: 3 | Y62: 43 | Z62: 33 | AA62: 35 | AB62: 18 | AC62: 12 | AD62: 30 | AE62: 30 | AF62: 15 | AG62: 44 | AH62: 39 | AI62: 28 | AJ62: 1 | AK62: 28 | AL62: 9 | AM62: 3 | AN62: 3 | AO62: 9
K63: 12 | L63: 29 | M63: 20 | N63: 5 | O63: 2 | P63: 42 | Q63: 22 | R63: 16 | S63: 3 | T63: 35 | U63: 28 | V63: 25 | W63: 11 | X63: 34 | Y63: 44 | Z63: 3 | AA63: 20 | AB63: 27 | AC63: 31 | AD63: 46 | AE63: 25 | AF63: 47 | AG63: 14 | AH63: 25 | AI63: 36 | AJ63: 16 | AK63: 12 | AL63: 38 | AM63: 28 | AN63: 26 | AO63: 41
K64: 50 | L64: 18 | M64: 33 | N64: 2 | O64: 21 | P64: 8 | Q64: 13 | R64: 30 | S64: 21 | T64: 14 | U64: 35 | V64: 34 | W64: 22 | X64: 36 | Y64: 23 | Z64: 4 | AA64: 30 | AB64: 15 | AC64: 20 | AD64: 10 | AE64: 48 | AF64: 3 | AG64: 19 | AH64: 50 | AI64: 2 | AJ64: 40 | AK64: 4 | AL64: 36 | AM64: 22 | AN64: 25 | AO64: 24
K65: 42 | L65: 11 | M65: 12 | N65: 50 | O65: 47 | P65: 49 | Q65: 27 | R65: 5 | S65: 8 | T65: 45 | U65: 2 | V65: 33 | W65: 31 | X65: 38 | Y65: 14 | Z65: 11 | AA65: 46 | AB65: 14 | AC65: 21 | AD65: 22 | AE65: 43 | AF65: 41 | AG65: 23 | AH65: 50 | AI65: 5 | AJ65: 26 | AK65: 5 | AL65: 41 | AM65: 34 | AN65: 24 | AO65: 25
K66: 38 | L66: 10 | M66: 37 | N66: 27 | O66: 10 | P66: 25 | Q66: 2 | R66: 26 | S66: 14 | T66: 26 | U66: 24 | V66: 47 | W66: 2 | X66: 44 | Y66: 31 | Z66: 29 | AA66: 27 | AB66: 42 | AC66: 19 | AD66: 6 | AE66: 5 | AF66: 11 | AG66: 30 | AH66: 19 | AI66: 20 | AJ66: 50 | AK66: 36 | AL66: 14 | AM66: 24 | AN66: 27 | AO66: 39
K67: 32 | L67: 34 | M67: 35 | N67: 34 | O67: 47 | P67: 20 | Q67: 35 | R67: 39 | S67: 38 | T67: 26 | U67: 35 | V67: 22 | W67: 12 | X67: 15 | Y67: 34 | Z67: 42 | AA67: 39 | AB67: 5 | AC67: 47 | AD67: 43 | AE67: 45 | AF67: 8 | AG67: 33 | AH67: 17 | AI67: 25 | AJ67: 40 | AK67: 47 | AL67: 50 | AM67: 40 | AN67: 10 | AO67: 35
K68: 12 | L68: 45 | M68: 48 | N68: 10 | O68: 27 | P68: 26 | Q68: 2 | R68: 49 | S68: 33 | T68: 19 | U68: 32 | V68: 13 | W68: 7 | X68: 22 | Y68: 23 | Z68: 30 | AA68: 27 | AB68: 28 | AC68: 24 | AD68: 11 | AE68: 28 | AF68: 28 | AG68: 30 | AH68: 26 | AI68: 41 | AJ68: 17 | AK68: 49 | AL68: 41 | AM68: 47 | AN68: 48 | AO68: 2
K69: 43 | L69: 45 | M69: 42 | N69: 22 | O69: 46 | P69: 11 | Q69: 28 | R69: 39 | S69: 24 | T69: 26 | U69: 43 | V69: 49 | W69: 36 | X69: 18 | Y69: 15 | Z69: 33 | AA69: 10 | AB69: 46 | AC69: 4 | AD69: 37 | AE69: 41 | AF69: 12 | AG69: 13 | AH69: 31 | AI69: 9 | AJ69: 32 | AK69: 42 | AL69: 12 | AM69: 6 | AN69: 49 | AO69: 30
K70: 23 | L70: 2 | M70: 17 | N70: 30 | O70: 45 | P70: 12 | Q70: 12 | R70: 3 | S70: 13 | T70: 2 | U70: 5 | V70: 35 | W70: 31 | X70: 38 | Y70: 15 | Z70: 25 | AA70: 49 | AB70: 12 | AC70: 10 | AD70: 33 | AE70: 17 | AF70: 14 | AG70: 41 | AH70: 36 | AI70: 42 | AJ70: 13 | AK70: 30 | AL70: 15 | AM70: 29 | AN70: 14 | AO70: 4
K71: 4 | L71: 11 | M71: 28 | N71: 49 | O71: 5 | P71: 4 | Q71: 22 | R71: 36 | S71: 46 | T71: 23 | U71: 20 | V71: 50 | W71: 50 | X71: 10 | Y71: 13 | Z71: 34 | AA71: 6 | AB71: 49 | AC71: 42 | AD71: 19 | AE71: 19 | AF71: 47 | AG71: 37 | AH71: 4 | AI71: 18 | AJ71: 24 | AK71: 21 | AL71: 13 | AM71: 43 | AN71: 46 | AO71: 21
K72: 6 | L72: 35 | M72: 12 | N72: 23 | O72: 45 | P72: 48 | Q72: 40 | R72: 16 | S72: 48 | T72: 27 | U72: 38 | V72: 48 | W72: 24 | X72: 28 | Y72: 3 | Z72: 16 | AA72: 43 | AB72: 20 | AC72: 14 | AD72: 26 | AE72: 47 | AF72: 4 | AG72: 31 | AH72: 16 | AI72: 21 | AJ72: 8 | AK72: 39 | AL72: 10 | AM72: 4 | AN72: 12 | AO72: 8
K73: 22 | L73: 5 | M73: 9 | N73: 16 | O73: 2 | P73: 44 | Q73: 38 | R73: 31 | S73: 12 | T73: 41 | U73: 39 | V73: 5 | W73: 10 | X73: 34 | Y73: 2 | Z73: 23 | AA73: 25 | AB73: 21 | AC73: 33 | AD73: 37 | AE73: 44 | AF73: 34 | AG73: 5 | AH73: 11 | AI73: 34 | AJ73: 8 | AK73: 27 | AL73: 49 | AM73: 29 | AN73: 25 | AO73: 13
K74: 23 | L74: 31 | M74: 42 | N74: 27 | O74: 16 | P74: 35 | Q74: 32 | R74: 2 | S74: 24 | T74: 11 | U74: 37 | V74: 23 | W74: 50 | X74: 44 | Y74: 23 | Z74: 46 | AA74: 6 | AB74: 30 | AC74: 15 | AD74: 34 | AE74: 33 | AF74: 32 | AG74: 40 | AH74: 2 | AI74: 2 | AJ74: 7 | AK74: 44 | AL74: 18 | AM74: 23 | AN74: 26 | AO74: 37
K75: 9 | L75: 8 | M75: 20 | N75: 9 | O75: 47 | P75: 49 | Q75: 13 | R75: 49 | S75: 17 | T75: 23 | U75: 33 | V75: 16 | W75: 12 | X75: 28 | Y75: 13 | Z75: 47 | AA75: 1 | AB75: 23 | AC75: 46 | AD75: 13 | AE75: 27 | AF75: 5 | AG75: 43 | AH75: 13 | AI75: 24 | AJ75: 14 | AK75: 1 | AL75: 17 | AM75: 33 | AN75: 9 | AO75: 34
K76: 46 | L76: 40 | M76: 28 | N76: 10 | O76: 47 | P76: 30 | Q76: 7 | R76: 46 | S76: 38 | T76: 36 | U76: 48 | V76: 7 | W76: 44 | X76: 35 | Y76: 27 | Z76: 40 | AA76: 8 | AB76: 10 | AC76: 5 | AD76: 17 | AE76: 41 | AF76: 5 | AG76: 12 | AH76: 46 | AI76: 25 | AJ76: 4 | AK76: 24 | AL76: 36 | AM76: 6 | AN76: 5 | AO76: 38
K77: 8 | L77: 39 | M77: 2 | N77: 31 | O77: 45 | P77: 29 | Q77: 39 | R77: 23 | S77: 38 | T77: 29 | U77: 12 | V77: 39 | W77: 10 | X77: 2 | Y77: 30 | Z77: 30 | AA77: 12 | AB77: 15 | AC77: 19 | AD77: 13 | AE77: 6 | AF77: 32 | AG77: 42 | AH77: 46 | AI77: 21 | AJ77: 32 | AK77: 37 | AL77: 7 | AM77: 29 | AN77: 3 | AO77: 23
K78: 48 | L78: 41 | M78: 1 | N78: 42 | O78: 4 | P78: 42 | Q78: 21 | R78: 37 | S78: 11 | T78: 1 | U78: 18 | V78: 13 | W78: 3 | X78: 33 | Y78: 34 | Z78: 5 | AA78: 29 | AB78: 24 | AC78: 45 | AD78: 24 | AE78: 47 | AF78: 6 | AG78: 23 | AH78: 39 | AI78: 38 | AJ78: 23 | AK78: 32 | AL78: 34 | AM78: 9 | AN78: 41 | AO78: 35
K79: 37 | L79: 46 | M79: 34 | N79: 18 | O79: 29 | P79: 26 | Q79: 49 | R79: 5 | S79: 13 | T79: 8 | U79: 32 | V79: 37 | W79: 9 | X79: 34 | Y79: 1 | Z79: 18 | AA79: 47 | AB79: 8 | AC79: 25 | AD79: 22 | AE79: 34 | AF79: 28 | AG79: 20 | AH79: 22 | AI79: 46 | AJ79: 29 | AK79: 8 | AL79: 5 | AM79: 27 | AN79: 35 | AO79: 50
K80: 5 | L80: 27 | M80: 11 | N80: 28 | O80: 13 | P80: 24 | Q80: 3 | R80: 50 | S80: 21 | T80: 14 | U80: 2 | V80: 30 | W80: 17 | X80: 12 | Y80: 32 | Z80: 26 | AA80: 49 | AB80: 36 | AC80: 45 | AD80: 14 | AE80: 24 | AF80: 22 | AG80: 20 | AH80: 38 | AI80: 1 | AJ80: 30 | AK80: 17 | AL80: 9 | AM80: 3 | AN80: 46 | AO80: 7
K81: 9 | L81: 48 | M81: 26 | N81: 29 | O81: 19 | P81: 10 | Q81: 40 | R81: 8 | S81: 28 | T81: 41 | U81: 47 | V81: 25 | W81: 42 | X81: 2 | Y81: 22 | Z81: 23 | AA81: 26 | AB81: 6 | AC81: 39 | AD81: 8 | AE81: 33 | AF81: 36 | AG81: 49 | AH81: 48 | AI81: 15 | AJ81: 16 | AK81: 12 | AL81: 38 | AM81: 39 | AN81: 34 | AO81: 6
K82: 38 | L82: 40 | M82: 27 | N82: 20 | O82: 36 | P82: 17 | Q82: 36 | R82: 41 | S82: 31 | T82: 38 | U82: 23 | V82: 17 | W82: 3 | X82: 13 | Y82: 47 | Z82: 9 | AA82: 22 | AB82: 44 | AC82: 18 | AD82: 40 | AE82: 48 | AF82: 25 | AG82: 17 | AH82: 41 | AI82: 41 | AJ82: 33 | AK82: 45 | AL82: 9 | AM82: 36 | AN82: 18 | AO82: 41
K83: 32 | L83: 2 | M83: 44 | N83: 23 | O83: 48 | P83: 44 | Q83: 36 | R83: 29 | S83: 18 | T83: 31 | U83: 35 | V83: 15 | W83: 48 | X83: 21 | Y83: 21 | Z83: 6 | AA83: 14 | AB83: 8 | AC83: 33 | AD83: 6 | AE83: 7 | AF83: 27 | AG83: 6 | AH83: 25 | AI83: 35 | AJ83: 33 | AK83: 11 | AL83: 12 | AM83: 8 | AN83: 44 | AO83: 31
K84: 26 | L84: 4 | M84: 7 | N84: 42 | O84: 37 | P84: 8 | Q84: 4 | R84: 10 | S84: 15 | T84: 18 | U84: 4 | V84: 12 | W84: 43 | X84: 39 | Y84: 21 | Z84: 37 | AA84: 21 | AB84: 14 | AC84: 42 | AD84: 31 | AE84: 37 | AF84: 22 | AG84: 25 | AH84: 44 | AI84: 49 | AJ84: 50 | AK84: 28 | AL84: 35 | AM84: 35 | AN84: 47 | AO84: 41
K85: 14 | L85: 37 | M85: 29 | N85: 44 | O85: 14 | P85: 31 | Q85: 8 | R85: 43 | S85: 42 | T85: 33 | U85: 36 | V85: 35 | W85: 14 | X85: 20 | Y85: 33 | Z85: 44 | AA85: 20 | AB85: 15 | AC85: 43 | AD85: 1 | AE85: 44 | AF85: 37 | AG85: 7 | AH85: 15 | AI85: 6 | AJ85: 48 | AK85: 19 | AL85: 48 | AM85: 13 | AN85: 19 | AO85: 30
K86: 23 | L86: 3 | M86: 41 | N86: 18 | O86: 41 | P86: 8 | Q86: 24 | R86: 18 | S86: 50 | T86: 50 | U86: 5 | V86: 30 | W86: 39 | X86: 3 | Y86: 26 | Z86: 26 | AA86: 24 | AB86: 22 | AC86: 12 | AD86: 27 | AE86: 47 | AF86: 4 | AG86: 25 | AH86: 50 | AI86: 34 | AJ86: 5 | AK86: 8 | AL86: 1 | AM86: 3 | AN86: 36 | AO86: 35
K87: 8 | L87: 25 | M87: 9 | N87: 27 | O87: 22 | P87: 19 | Q87: 31 | R87: 21 | S87: 23 | T87: 38 | U87: 4 | V87: 47 | W87: 16 | X87: 7 | Y87: 19 | Z87: 36 | AA87: 7 | AB87: 7 | AC87: 22 | AD87: 50 | AE87: 34 | AF87: 32 | AG87: 15 | AH87: 48 | AI87: 33 | AJ87: 1 | AK87: 30 | AL87: 42 | AM87: 24 | AN87: 17 | AO87: 17
K88: 30 | L88: 6 | M88: 26 | N88: 1 | O88: 16 | P88: 19 | Q88: 13 | R88: 1 | S88: 19 | T88: 12 | U88: 1 | V88: 45 | W88: 45 | X88: 36 | Y88: 35 | Z88: 31 | AA88: 29 | AB88: 14 | AC88: 11 | AD88: 14 | AE88: 24 | AF88: 46 | AG88: 44 | AH88: 45 | AI88: 44 | AJ88: 14 | AK88: 3 | AL88: 26 | AM88: 48 | AN88: 41 | AO88: 19
K89: 39 | L89: 41 | M89: 5 | N89: 18 | O89: 19 | P89: 19 | Q89: 16 | R89: 18 | S89: 13 | T89: 4 | U89: 36 | V89: 15 | W89: 3 | X89: 42 | Y89: 24 | Z89: 50 | AA89: 46 | AB89: 49 | AC89: 14 | AD89: 8 | AE89: 9 | AF89: 35 | AG89: 3 | AH89: 12 | AI89: 2 | AJ89: 18 | AK89: 41 | AL89: 5 | AM89: 8 | AN89: 49 | AO89: 16
K90: 29 | L90: 18 | M90: 32 | N90: 25 | O90: 34 | P90: 36 | Q90: 34 | R90: 10 | S90: 38 | T90: 26 | U90: 32 | V90: 5 | W90: 23 | X90: 19 | Y90: 8 | Z90: 29 | AA90: 45 | AB90: 45 | AC90: 36 | AD90: 10 | AE90: 26 | AF90: 26 | AG90: 28 | AH90: 36 | AI90: 46 | AJ90: 5 | AK90: 34 | AL90: 16 | AM90: 38 | AN90: 3 | AO90: 47
K91: 33 | L91: 49 | M91: 33 | N91: 32 | O91: 10 | P91: 33 | Q91: 4 | R91: 26 | S91: 9 | T91: 33 | U91: 40 | V91: 14 | W91: 50 | X91: 15 | Y91: 48 | Z91: 3 | AA91: 1 | AB91: 33 | AC91: 50 | AD91: 2 | AE91: 36 | AF91: 4 | AG91: 50 | AH91: 39 | AI91: 46 | AJ91: 45 | AK91: 12 | AL91: 2 | AM91: 31 | AN91: 40 | AO91: 43
K92: 27 | L92: 19 | M92: 15 | N92: 25 | O92: 47 | P92: 48 | Q92: 23 | R92: 33 | S92: 27 | T92: 48 | U92: 29 | V92: 29 | W92: 20 | X92: 33 | Y92: 41 | Z92: 48 | AA92: 26 | AB92: 50 | AC92: 17 | AD92: 45 | AE92: 5 | AF92: 14 | AG92: 39 | AH92: 42 | AI92: 48 | AJ92: 24 | AK92: 46 | AL92: 4 | AM92: 11 | AN92: 28 | AO92: 20
K93: 39 | L93: 40 | M93: 50 | N93: 18 | O93: 38 | P93: 40 | Q93: 43 | R93: 20 | S93: 10 | T93: 4 | U93: 32 | V93: 29 | W93: 19 | X93: 12 | Y93: 28 | Z93: 45 | AA93: 20 | AB93: 37 | AC93: 26 | AD93: 31 | AE93: 6 | AF93: 1 | AG93: 3 | AH93: 48 | AI93: 47 | AJ93: 12 | AK93: 42 | AL93: 14 | AM93: 21 | AN93: 20 | AO93: 10
K94: 47 | L94: 9 | M94: 49 | N94: 42 | O94: 33 | P94: 15 | Q94: 7 | R94: 10 | S94: 35 | T94: 18 | U94: 7 | V94: 11 | W94: 23 | X94: 47 | Y94: 48 | Z94: 32 | AA94: 39 | AB94: 44 | AC94: 34 | AD94: 37 | AE94: 10 | AF94: 4 | AG94: 13 | AH94: 45 | AI94: 30 | AJ94: 43 | AK94: 37 | AL94: 6 | AM94: 32 | AN94: 46 | AO94: 20
K95: 25 | L95: 31 | M95: 41 | N95: 45 | O95: 10 | P95: 3 | Q95: 48 | R95: 50 | S95: 47 | T95: 11 | U95: 32 | V95: 32 | W95: 31 | X95: 35 | Y95: 16 | Z95: 22 | AA95: 31 | AB95: 30 | AC95: 45 | AD95: 14 | AE95: 18 | AF95: 22 | AG95: 10 | AH95: 36 | AI95: 39 | AJ95: 20 | AK95: 8 | AL95: 11 | AM95: 43 | AN95: 8 | AO95: 20
K96: 21 | L96: 32 | M96: 50 | N96: 7 | O96: 12 | P96: 21 | Q96: 16 | R96: 23 | S96: 27 | T96: 20 | U96: 29 | V96: 6 | W96: 12 | X96: 21 | Y96: 20 | Z96: 17 | AA96: 5 | AB96: 31 | AC96: 10 | AD96: 8 | AE96: 42 | AF96: 28 | AG96: 45 | AH96: 50 | AI96: 43 | AJ96: 3 | AK96: 24 | AL96: 49 | AM96: 29 | AN96: 15 | AO96: 20
K97: 33 | L97: 11 | M97: 7 | N97: 46 | O97: 23 | P97: 36 | Q97: 48 | R97: 38 | S97: 29 | T97: 22 | U97: 6 | V97: 40 | W97: 33 | X97: 1 | Y97: 29 | Z97: 34 | AA97: 26 | AB97: 32 | AC97: 39 | AD97: 21 | AE97: 30 | AF97: 4 | AG97: 14 | AH97: 1 | AI97: 26 | AJ97: 27 | AK97: 2 | AL97: 50 | AM97: 32 | AN97: 3 | AO97: 24
K98: 39 | L98: 30 | M98: 30 | N98: 48 | O98: 30 | P98: 29 | Q98: 50 | R98: 44 | S98: 16 | T98: 4 | U98: 15 | V98: 41 | W98: 26 | X98: 29 | Y98: 47 | Z98: 42 | AA98: 6 | AB98: 20 | AC98: 44 | AD98: 14 | AE98: 4 | AF98: 10 | AG98: 36 | AH98: 49 | AI98: 29 | AJ98: 29 | AK98: 29 | AL98: 18 | AM98: 41 | AN98: 8 | AO98: 5
K99: 29 | L99: 15 | M99: 14 | N99: 5 | O99: 31 | P99: 8 | Q99: 38 | R99: 9 | S99: 33 | T99: 14 | U99: 5 | V99: 20 | W99: 19 | X99: 21 | Y99: 48 | Z99: 47 | AA99: 24 | AB99: 19 | AC99: 50 | AD99: 7 | AE99: 47 | AF99: 39 | AG99: 12 | AH99: 47 | AI99: 8 | AJ99: 19 | AK99: 2 | AL99: 29 | AM99: 18 | AN99: 18 | AO99: 14
K100: 33 | L100: 45 | M100: 45 | N100: 27 | O100: 37 | P100: 33 | Q100: 44 | R100: 17 | S100: 24 | T100: 41 | U100: 13 | V100: 30 | W100: 42 | X100: 46 | Y100: 12 | Z100: 32 | AA100: 32 | AB100: 20 | AC100: 9 | AD100: 41 | AE100: 13 | AF100: 21 | AG100: 35 | AH100: 43 | AI100: 17 | AJ100: 24 | AK100: 27 | AL100: 21 | AM100: 22 | AN100: 7 | AO100: 4
K101: 28 | L101: 4 | M101: 34 | N101: 42 | O101: 27 | P101: 32 | Q101: 5 | R101: 40 | S101: 42 | T101: 16 | U101: 50 | V101: 7 | W101: 39 | X101: 2 | Y101: 35 | Z101: 27 | AA101: 46 | AB101: 33 | AC101: 13 | AD101: 28 | AE101: 46 | AF101: 43 | AG101: 45 | AH101: 28 | AI101: 18 | AJ101: 2 | AK101: 10 | AL101: 8 | AM101: 21 | AN101: 3 | AO101: 28
K102: 26 | L102: 32 | M102: 27 | N102: 3 | O102: 43 | P102: 26 | Q102: 35 | R102: 30 | S102: 13 | T102: 4 | U102: 7 | V102: 46 | W102: 21 | X102: 6 | Y102: 9 | Z102: 38 | AA102: 45 | AB102: 26 | AC102: 12 | AD102: 22 | AE102: 14 | AF102: 25 | AG102: 32 | AH102: 6 | AI102: 27 | AJ102: 6 | AK102: 8 | AL102: 32 | AM102: 42 | AN102: 45 | AO102: 50
K103: 17 | L103: 36 | M103: 33 | N103: 3 | O103: 34 | P103: 17 | Q103: 44 | R103: 24 | S103: 43 | T103: 30 | U103: 25 | V103: 17 | W103: 14 | X103: 3 | Y103: 23 | Z103: 2 | AA103: 1 | AB103: 39 | AC103: 16 | AD103: 31 | AE103: 23 | AF103: 33 | AG103: 33 | AH103: 1 | AI103: 49 | AJ103: 47 | AK103: 9 | AL103: 39 | AM103: 29 | AN103: 49 | AO103: 2
K104: 24 | L104: 34 | M104: 4 | N104: 8 | O104: 8 | P104: 4 | Q104: 14 | R104: 28 | S104: 41 | T104: 45 | U104: 19 | V104: 7 | W104: 7 | X104: 34 | Y104: 50 | Z104: 1 | AA104: 50 | AB104: 34 | AC104: 1 | AD104: 5 | AE104: 8 | AF104: 18 | AG104: 39 | AH104: 49 | AI104: 14 | AJ104: 16 | AK104: 49 | AL104: 14 | AM104: 1 | AN104: 11 | AO104: 46
K105: 19 | L105: 9 | M105: 44 | N105: 41 | O105: 5 | P105: 36 | Q105: 1 | R105: 32 | S105: 14 | T105: 38 | U105: 6 | V105: 7 | W105: 12 | X105: 20 | Y105: 45 | Z105: 38 | AA105: 41 | AB105: 46 | AC105: 8 | AD105: 49 | AE105: 28 | AF105: 42 | AG105: 34 | AH105: 10 | AI105: 18 | AJ105: 33 | AK105: 8 | AL105: 26 | AM105: 11 | AN105: 5 | AO105: 10
K106: 5 | L106: 42 | M106: 3 | N106: 29 | O106: 22 | P106: 2 | Q106: 4 | R106: 7 | S106: 22 | T106: 10 | U106: 48 | V106: 6 | W106: 27 | X106: 2 | Y106: 19 | Z106: 10 | AA106: 21 | AB106: 46 | AC106: 1 | AD106: 2 | AE106: 19 | AF106: 36 | AG106: 2 | AH106: 17 | AI106: 46 | AJ106: 42 | AK106: 29 | AL106: 29 | AM106: 29 | AN106: 20 | AO106: 42
K107: 31 | L107: 42 | M107: 38 | N107: 11 | O107: 33 | P107: 44 | Q107: 49 | R107: 29 | S107: 20 | T107: 49 | U107: 12 | V107: 45 | W107: 41 | X107: 41 | Y107: 34 | Z107: 30 | AA107: 11 | AB107: 48 | AC107: 15 | AD107: 39 | AE107: 17 | AF107: 39 | AG107: 7 | AH107: 9 | AI107: 3 | AJ107: 16 | AK107: 1 | AL107: 18 | AM107: 40 | AN107: 27 | AO107: 38
K108: 39 | L108: 2 | M108: 1 | N108: 6 | O108: 40 | P108: 28 | Q108: 14 | R108: 18 | S108: 21 | T108: 20 | U108: 23 | V108: 42 | W108: 34 | X108: 12 | Y108: 48 | Z108: 14 | AA108: 31 | AB108: 30 | AC108: 31 | AD108: 14 | AE108: 50 | AF108: 29 | AG108: 6 | AH108: 30 | AI108: 31 | AJ108: 49 | AK108: 42 | AL108: 32 | AM108: 7 | AN108: 41 | AO108: 26
K109: 27 | L109: 24 | M109: 30 | N109: 28 | O109: 8 | P109: 45 | Q109: 47 | R109: 42 | S109: 28 | T109: 34 | U109: 28 | V109: 29 | W109: 7 | X109: 13 | Y109: 14 | Z109: 21 | AA109: 28 | AB109: 21 | AC109: 50 | AD109: 46 | AE109: 24 | AF109: 30 | AG109: 8 | AH109: 35 | AI109: 29 | AJ109: 2 | AK109: 5 | AL109: 33 | AM109: 30 | AN109: 39 | AO109: 30
K110: 40 | L110: 44 | M110: 48 | N110: 7 | O110: 17 | P110: 27 | Q110: 38 | R110: 49 | S110: 23 | T110: 44 | U110: 48 | V110: 25 | W110: 43 | X110: 40 | Y110: 18 | Z110: 16 | AA110: 26 | AB110: 39 | AC110: 5 | AD110: 33 | AE110: 25 | AF110: 1 | AG110: 27 | AH110: 31 | AI110: 9 | AJ110: 8 | AK110: 28 | AL110: 11 | AM110: 9 | AN110: 36 | AO110: 12
K111: 13 | L111: 27 | M111: 42 | N111: 19 | O111: 18 | P111: 44 | Q111: 37 | R111: 15 | S111: 32 | T111: 40 | U111: 20 | V111: 24 | W111: 42 | X111: 29 | Y111: 6 | Z111: 12 | AA111: 38 | AB111: 19 | AC111: 19 | AD111: 35 | AE111: 41 | AF111: 45 | AG111: 26 | AH111: 46 | AI111: 47 | AJ111: 6 | AK111: 8 | AL111: 46 | AM111: 22 | AN111: 14 | AO111: 15
K112: 45 | L112: 23 | M112: 24 | N112: 32 | O112: 50 | P112: 43 | Q112: 32 | R112: 19 | S112: 14 | T112: 49 | U112: 17 | V112: 7 | W112: 33 | X112: 30 | Y112: 7 | Z112: 23 | AA112: 10 | AB112: 37 | AC112: 45 | AD112: 13 | AE112: 39 | AF112: 33 | AG112: 46 | AH112: 11 | AI112: 26 | AJ112: 43 | AK112: 24 | AL112: 24 | AM112: 7 | AN112: 44 | AO112: 16
K113: 45 | L113: 26 | M113: 14 | N113: 8 | O113: 6 | P113: 23 | Q113: 4 | R113: 43 | S113: 46 | T113: 31 | U113: 8 | V113: 43 | W113: 21 | X113: 18 | Y113: 48 | Z113: 27 | AA113: 18 | AB113: 27 | AC113: 23 | AD113: 37 | AE113: 49 | AF113: 30 | AG113: 9 | AH113: 15 | AI113: 39 | AJ113: 49 | AK113: 35 | AL113: 31 | AM113: 34 | AN113: 3 | AO113: 28
K114: 40 | L114: 47 | M114: 23 | N114: 27 | O114: 4 | P114: 11 | Q114: 32 | R114: 36 | S114: 43 | T114: 1 | U114: 36 | V114: 48 | W114: 40 | X114: 25 | Y114: 15 | Z114: 2 | AA114: 8 | AB114: 1 | AC114: 2 | AD114: 3 | AE114: 33 | AF114: 12 | AG114: 48 | AH114: 24 | AI114: 28 | AJ114: 42 | AK114: 50 | AL114: 29 | AM114: 18 | AN114: 42 | AO114: 32
K115: 32 | L115: 27 | M115: 37 | N115: 35 | O115: 22 | P115: 41 | Q115: 46 | R115: 34 | S115: 29 | T115: 38 | U115: 21 | V115: 25 | W115: 13 | X115: 48 | Y115: 19 | Z115: 5 | AA115: 19 | AB115: 11 | AC115: 36 | AD115: 27 | AE115: 32 | AF115: 35 | AG115: 6 | AH115: 37 | AI115: 42 | AJ115: 1 | AK115: 33 | AL115: 18 | AM115: 39 | AN115: 4 | AO115: 46
K116: 44 | L116: 18 | M116: 35 | N116: 26 | O116: 46 | P116: 16 | Q116: 26 | R116: 39 | S116: 24 | T116: 33 | U116: 27 | V116: 25 | W116: 20 | X116: 7 | Y116: 3 | Z116: 5 | AA116: 32 | AB116: 8 | AC116: 29 | AD116: 48 | AE116: 22 | AF116: 42 | AG116: 2 | AH116: 18 | AI116: 15 | AJ116: 9 | AK116: 10 | AL116: 22 | AM116: 17 | AN116: 11 | AO116: 25
K117: 13 | L117: 5 | M117: 35 | N117: 5 | O117: 5 | P117: 32 | Q117: 38 | R117: 26 | S117: 28 | T117: 40 | U117: 23 | V117: 21 | W117: 40 | X117: 41 | Y117: 5 | Z117: 18 | AA117: 44 | AB117: 25 | AC117: 35 | AD117: 8 | AE117: 11 | AF117: 45 | AG117: 13 | AH117: 7 | AI117: 43 | AJ117: 9 | AK117: 13 | AL117: 17 | AM117: 1 | AN117: 39 | AO117: 9
K118: 42 | L118: 23 | M118: 16 | N118: 37 | O118: 11 | P118: 18 | Q118: 40 | R118: 36 | S118: 4 | T118: 40 | U118: 49 | V118: 22 | W118: 22 | X118: 40 | Y118: 33 | Z118: 46 | AA118: 14 | AB118: 28 | AC118: 11 | AD118: 20 | AE118: 33 | AF118: 2 | AG118: 24 | AH118: 14 | AI118: 28 | AJ118: 11 | AK118: 22 | AL118: 9 | AM118: 38 | AN118: 12 | AO118: 40
K119: 35 | L119: 18 | M119: 30 | N119: 16 | O119: 42 | P119: 38 | Q119: 10 | R119: 19 | S119: 16 | T119: 7 | U119: 43 | V119: 13 | W119: 21 | X119: 15 | Y119: 22 | Z119: 17 | AA119: 12 | AB119: 50 | AC119: 31 | AD119: 1 | AE119: 24 | AF119: 28 | AG119: 4 | AH119: 14 | AI119: 4 | AJ119: 50 | AK119: 19 | AL119: 38 | AM119: 8 | AN119: 32 | AO119: 25
K120: 15 | L120: 17 | M120: 18 | N120: 14 | O120: 46 | P120: 44 | Q120: 19 | R120: 12 | S120: 13 | T120: 9 | U120: 38 | V120: 48 | W120: 1 | X120: 3 | Y120: 31 | Z120: 24 | AA120: 35 | AB120: 50 | AC120: 14 | AD120: 40 | AE120: 35 | AF120: 45 | AG120: 32 | AH120: 14 | AI120: 47 | AJ120: 15 | AK120: 40 | AL120: 36 | AM120: 11 | AN120: 8 | AO120: 23
K121: 38 | L121: 19 | M121: 20 | N121: 14 | O121: 3 | P121: 33 | Q121: 46 | R121: 21 | S121: 17 | T121: 40 | U121: 37 | V121: 47 | W121: 7 | X121: 49 | Y121: 44 | Z121: 7 | AA121: 14 | AB121: 2 | AC121: 41 | AD121: 46 | AE121: 20 | AF121: 34 | AG121: 25 | AH121: 13 | AI121: 9 | AJ121: 34 | AK121: 7 | AL121: 48 | AM121: 33 | AN121: 19 | AO121: 31
K122: 29 | L122: 46 | M122: 14 | N122: 6 | O122: 17 | P122: 44 | Q122: 3 | R122: 16 | S122: 23 | T122: 3 | U122: 37 | V122: 18 | W122: 48 | X122: 14 | Y122: 46 | Z122: 25 | AA122: 44 | AB122: 38 | AC122: 40 | AD122: 7 | AE122: 20 | AF122: 7 | AG122: 35 | AH122: 42 | AI122: 37 | AJ122: 39 | AK122: 41 | AL122: 24 | AM122: 11 | AN122: 45 | AO122: 47
K123: 20 | L123: 44 | M123: 40 | N123: 44 | O123: 46 | P123: 6 | Q123: 25 | R123: 7 | S123: 30 | T123: 34 | U123: 6 | V123: 9 | W123: 39 | X123: 14 | Y123: 9 | Z123: 20 | AA123: 37 | AB123: 4 | AC123: 14 | AD123: 39 | AE123: 26 | AF123: 8 | AG123: 35 | AH123: 16 | AI123: 12 | AJ123: 15 | AK123: 12 | AL123: 23 | AM123: 50 | AN123: 16 | AO123: 13
K124: 40 | L124: 41 | M124: 18 | N124: 25 | O124: 44 | P124: 11 | Q124: 28 | R124: 36 | S124: 47 | T124: 41 | U124: 6 | V124: 11 | W124: 16 | X124: 24 | Y124: 20 | Z124: 40 | AA124: 30 | AB124: 41 | AC124: 5 | AD124: 9 | AE124: 18 | AF124: 47 | AG124: 10 | AH124: 15 | AI124: 32 | AJ124: 24 | AK124: 40 | AL124: 1 | AM124: 33 | AN124: 34 | AO124: 43
K125: 22 | L125: 23 | M125: 20 | N125: 13 | O125: 21 | P125: 35 | Q125: 48 | R125: 36 | S125: 10 | T125: 44 | U125: 15 | V125: 38 | W125: 37 | X125: 17 | Y125: 26 | Z125: 24 | AA125: 16 | AB125: 27 | AC125: 4 | AD125: 20 | AE125: 28 | AF125: 22 | AG125: 9 | AH125: 15 | AI125: 29 | AJ125: 2 | AK125: 41 | AL125: 24 | AM125: 39 | AN125: 38 | AO125: 24
K126: 37 | L126: 1 | M126: 39 | N126: 34 | O126: 18 | P126: 8 | Q126: 32 | R126: 14 | S126: 31 | T126: 29 | U126: 44 | V126: 37 | W126: 6 | X126: 34 | Y126: 21 | Z126: 43 | AA126: 34 | AB126: 13 | AC126: 21 | AD126: 36 | AE126: 13 | AF126: 36 | AG126: 9 | AH126: 45 | AI126: 9 | AJ126: 31 | AK126: 44 | AL126: 7 | AM126: 4 | AN126: 21 | AO126: 49
K127: 30 | L127: 27 | M127: 25 | N127: 30 | O127: 4 | P127: 9 | Q127: 13 | R127: 12 | S127: 24 | T127: 17 | U127: 22 | V127: 9 | W127: 21 | X127: 33 | Y127: 24 | Z127: 36 | AA127: 27 | AB127: 9 | AC127: 15 | AD127: 38 | AE127: 36 | AF127: 11 | AG127: 43 | AH127: 37 | AI127: 32 | AJ127: 33 | AK127: 45 | AL127: 31 | AM127: 8 | AN127: 7 | AO127: 41
K128: 9 | L128: 20 | M128: 35 | N128: 8 | O128: 40 | P128: 26 | Q128: 34 | R128: 24 | S128: 37 | T128: 3 | U128: 20 | V128: 31 | W128: 25 | X128: 48 | Y128: 37 | Z128: 6 | AA128: 1 | AB128: 17 | AC128: 18 | AD128: 40 | AE128: 34 | AF128: 24 | AG128: 10 | AH128: 7 | AI128: 2 | AJ128: 20 | AK128: 47 | AL128: 26 | AM128: 17 | AN128: 50 | AO128: 3
K129: 40 | L129: 21 | M129: 41 | N129: 19 | O129: 42 | P129: 21 | Q129: 24 | R129: 21 | S129: 46 | T129: 46 | U129: 32 | V129: 32 | W129: 6 | X129: 42 | Y129: 43 | Z129: 17 | AA129: 45 | AB129: 9 | AC129: 23 | AD129: 33 | AE129: 42 | AF129: 36 | AG129: 9 | AH129: 13 | AI129: 8 | AJ129: 10 | AK129: 26 | AL129: 27 | AM129: 43 | AN129: 42 | AO129: 28
K130: 38 | L130: 37 | M130: 4 | N130: 48 | O130: 26 | P130: 21 | Q130: 15 | R130: 23 | S130: 9 | T130: 35 | U130: 37 | V130: 39 | W130: 7 | X130: 21 | Y130: 8 | Z130: 5 | AA130: 17 | AB130: 48 | AC130: 11 | AD130: 10 | AE130: 39 | AF130: 16 | AG130: 29 | AH130: 37 | AI130: 48 | AJ130: 42 | AK130: 41 | AL130: 36 | AM130: 4 | AN130: 30 | AO130: 8
K131: 48 | L131: 11 | M131: 14 | N131: 17 | O131: 23 | P131: 20 | Q131: 45 | R131: 14 | S131: 1 | T131: 6 | U131: 17 | V131: 34 | W131: 15 | X131: 2 | Y131: 46 | Z131: 44 | AA131: 25 | AB131: 10 | AC131: 9 | AD131: 25 | AE131: 14 | AF131: 22 | AG131: 41 | AH131: 36 | AI131: 37 | AJ131: 43 | AK131: 21 | AL131: 26 | AM131: 32 | AN131: 20 | AO131: 12
K132: 38 | L132: 34 | M132: 15 | N132: 50 | O132: 1 | P132: 9 | Q132: 13 | R132: 32 | S132: 6 | T132: 4 | U132: 23 | V132: 14 | W132: 8 | X132: 24 | Y132: 39 | Z132: 2 | AA132: 29 | AB132: 10 | AC132: 47 | AD132: 13 | AE132: 12 | AF132: 38 | AG132: 31 | AH132: 9 | AI132: 1 | AJ132: 49 | AK132: 1 | AL132: 15 | AM132: 32 | AN132: 3 | AO132: 9
K133: 5 | L133: 42 | M133: 35 | N133: 44 | O133: 9 | P133: 7 | Q133: 14 | R133: 16 | S133: 25 | T133: 42 | U133: 32 | V133: 47 | W133: 10 | X133: 6 | Y133: 3 | Z133: 45 | AA133: 48 | AB133: 49 | AC133: 40 | AD133: 39 | AE133: 5 | AF133: 21 | AG133: 7 | AH133: 29 | AI133: 20 | AJ133: 44 | AK133: 24 | AL133: 44 | AM133: 24 | AN133: 5 | AO133: 22
K134: 9 | L134: 35 | M134: 42 | N134: 45 | O134: 28 | P134: 33 | Q134: 15 | R134: 20 | S134: 31 | T134: 16 | U134: 42 | V134: 14 | W134: 48 | X134: 16 | Y134: 11 | Z134: 23 | AA134: 5 | AB134: 27 | AC134: 42 | AD134: 15 | AE134: 7 | AF134: 48 | AG134: 11 | AH134: 18 | AI134: 41 | AJ134: 16 | AK134: 26 | AL134: 39 | AM134: 8 | AN134: 2 | AO134: 25
K135: 29 | L135: 21 | M135: 39 | N135: 46 | O135: 8 | P135: 23 | Q135: 17 | R135: 49 | S135: 10 | T135: 8 | U135: 11 | V135: 15 | W135: 3 | X135: 29 | Y135: 7 | Z135: 28 | AA135: 47 | AB135: 25 | AC135: 36 | AD135: 42 | AE135: 40 | AF135: 1 | AG135: 3 | AH135: 22 | AI135: 5 | AJ135: 43 | AK135: 18 | AL135: 18 | AM135: 26 | AN135: 13 | AO135: 23
K136: 45 | L136: 48 | M136: 34 | N136: 19 | O136: 39 | P136: 12 | Q136: 26 | R136: 46 | S136: 2 | T136: 46 | U136: 30 | V136: 32 | W136: 46 | X136: 19 | Y136: 22 | Z136: 13 | AA136: 9 | AB136: 14 | AC136: 4 | AD136: 1 | AE136: 45 | AF136: 37 | AG136: 37 | AH136: 25 | AI136: 34 | AJ136: 46 | AK136: 34 | AL136: 49 | AM136: 39 | AN136: 42 | AO136: 28
K137: 4 | L137: 4 | M137: 22 | N137: 16 | O137: 39 | P137: 14 | Q137: 41 | R137: 48 | S137: 4 | T137: 43 | U137: 15 | V137: 13 | W137: 50 | X137: 24 | Y137: 12 | Z137: 22 | AA137: 47 | AB137: 48 | AC137: 29 | AD137: 9 | AE137: 26 | AF137: 12 | AG137: 9 | AH137: 31 | AI137: 37 | AJ137: 43 | AK137: 3 | AL137: 35 | AM137: 48 | AN137: 15 | AO137: 49
K138: 42 | L138: 41 | M138: 27 | N138: 32 | O138: 45 | P138: 36 | Q138: 32 | R138: 9 | S138: 42 | T138: 48 | U138: 29 | V138: 7 | W138: 47 | X138: 16 | Y138: 7 | Z138: 38 | AA138: 22 | AB138: 20 | AC138: 29 | AD138: 46 | AE138: 39 | AF138: 45 | AG138: 17 | AH138: 29 | AI138: 31 | AJ138: 26 | AK138: 1 | AL138: 40 | AM138: 12 | AN138: 33 | AO138: 41
K139: 49 | L139: 11 | M139: 47 | N139: 5 | O139: 12 | P139: 23 | Q139: 20 | R139: 19 | S139: 31 | T139: 24 | U139: 38 | V139: 36 | W139: 20 | X139: 12 | Y139: 14 | Z139: 39 | AA139: 19 | AB139: 6 | AC139: 20 | AD139: 33 | AE139: 4 | AF139: 31 | AG139: 6 | AH139: 28 | AI139: 7 | AJ139: 47 | AK139: 12 | AL139: 33 | AM139: 26 | AN139: 38 | AO139: 29
K140: 6 | L140: 2 | M140: 2 | N140: 6 | O140: 30 | P140: 31 | Q140: 34 | R140: 46 | S140: 37 | T140: 24 | U140: 50 | V140: 8 | W140: 38 | X140: 48 | Y140: 42 | Z140: 35 | AA140: 9 | AB140: 7 | AC140: 30 | AD140: 28 | AE140: 30 | AF140: 9 | AG140: 35 | AH140: 36 | AI140: 16 | AJ140: 49 | AK140: 14 | AL140: 25 | AM140: 30 | AN140: 24 | AO140: 25
K141: 31 | L141: 35 | M141: 49 | N141: 49 | O141: 38 | P141: 7 | Q141: 18 | R141: 24 | S141: 48 | T141: 38 | U141: 39 | V141: 13 | W141: 19 | X141: 23 | Y141: 13 | Z141: 49 | AA141: 11 | AB141: 44 | AC141: 13 | AD141: 10 | AE141: 42 | AF141: 5 | AG141: 30 | AH141: 32 | AI141: 45 | AJ141: 50 | AK141: 48 | AL141: 21 | AM141: 21 | AN141: 13 | AO141: 19
K142: 2 | L142: 5 | M142: 33 | N142: 16 | O142: 27 | P142: 24 | Q142: 29 | R142: 48 | S142: 25 | T142: 6 | U142: 42 | V142: 12 | W142: 50 | X142: 44 | Y142: 40 | Z142: 29 | AA142: 49 | AB142: 39 | AC142: 45 | AD142: 4 | AE142: 1 | AF142: 1 | AG142: 4 | AH142: 5 | AI142: 43 | AJ142: 9 | AK142: 47 | AL142: 27 | AM142: 12 | AN142: 29 | AO142: 8
K143: 3 | L143: 37 | M143: 49 | N143: 41 | O143: 37 | P143: 29 | Q143: 14 | R143: 26 | S143: 32 | T143: 37 | U143: 13 | V143: 16 | W143: 4 | X143: 23 | Y143: 11 | Z143: 22 | AA143: 30 | AB143: 17 | AC143: 30 | AD143: 3 | AE143: 37 | AF143: 16 | AG143: 20 | AH143: 38 | AI143: 32 | AJ143: 26 | AK143: 49 | AL143: 1 | AM143: 40 | AN143: 4 | AO143: 1
K144: 29 | L144: 36 | M144: 18 | N144: 24 | O144: 45 | P144: 40 | Q144: 49 | R144: 1 | S144: 32 | T144: 49 | U144: 40 | V144: 27 | W144: 44 | X144: 23 | Y144: 16 | Z144: 35 | AA144: 8 | AB144: 34 | AC144: 33 | AD144: 45 | AE144: 15 | AF144: 31 | AG144: 33 | AH144: 7 | AI144: 8 | AJ144: 26 | AK144: 9 | AL144: 28 | AM144: 27 | AN144: 42 | AO144: 10
K145: 7 | L145: 17 | M145: 36 | N145: 36 | O145: 24 | P145: 34 | Q145: 48 | R145: 25 | S145: 30 | T145: 35 | U145: 19 | V145: 25 | W145: 35 | X145: 8 | Y145: 44 | Z145: 22 | AA145: 24 | AB145: 19 | AC145: 31 | AD145: 7 | AE145: 45 | AF145: 49 | AG145: 28 | AH145: 13 | AI145: 9 | AJ145: 6 | AK145: 19 | AL145: 8 | AM145: 43 | AN145: 24 | AO145: 48
K146: 29 | L146: 37 | M146: 22 | N146: 50 | O146: 45 | P146: 46 | Q146: 28 | R146: 13 | S146: 16 | T146: 48 | U146: 25 | V146: 30 | W146: 21 | X146: 19 | Y146: 25 | Z146: 26 | AA146: 21 | AB146: 48 | AC146: 16 | AD146: 25 | AE146: 14 | AF146: 35 | AG146: 33 | AH146: 48 | AI146: 25 | AJ146: 15 | AK146: 44 | AL146: 40 | AM146: 29 | AN146: 26 | AO146: 16
K147: 2 | L147: 38 | M147: 6 | N147: 38 | O147: 9 | P147: 19 | Q147: 45 | R147: 8 | S147: 34 | T147: 43 | U147: 34 | V147: 39 | W147: 7 | X147: 27 | Y147: 44 | Z147: 35 | AA147: 32 | AB147: 43 | AC147: 6 | AD147: 35 | AE147: 8 | AF147: 44 | AG147: 43 | AH147: 28 | AI147: 10 | AJ147: 17 | AK147: 22 | AL147: 49 | AM147: 45 | AN147: 39 | AO147: 13
K148: 35 | L148: 32 | M148: 32 | N148: 2 | O148: 4 | P148: 1 | Q148: 24 | R148: 17 | S148: 8 | T148: 46 | U148: 46 | V148: 8 | W148: 29 | X148: 38 | Y148: 46 | Z148: 26 | AA148: 33 | AB148: 6 | AC148: 27 | AD148: 40 | AE148: 5 | AF148: 35 | AG148: 47 | AH148: 43 | AI148: 47 | AJ148: 5 | AK148: 47 | AL148: 49 | AM148: 25 | AN148: 1 | AO148: 29
K149: 45 | L149: 40 | M149: 7 | N149: 7 | O149: 2 | P149: 25 | Q149: 25 | R149: 49 | S149: 50 | T149: 23 | U149: 15 | V149: 1 | W149: 44 | X149: 9 | Y149: 5 | Z149: 19 | AA149: 9 | AB149: 40 | AC149: 30 | AD149: 27 | AE149: 14 | AF149: 37 | AG149: 26 | AH149: 36 | AI149: 23 | AJ149: 13 | AK149: 25 | AL149: 49 | AM149: 21 | AN149: 47 | AO149: 19
K150: 2 | L150: 2 | M150: 45 | N150: 25 | O150: 28 | P150: 22 | Q150: 13 | R150: 41 | S150: 30 | T150: 34 | U150: 50 | V150: 32 | W150: 31 | X150: 8 | Y150: 39 | Z150: 42 | AA150: 4 | AB150: 22 | AC150: 5 | AD150: 1 | AE150: 17 | AF150: 20 | AG150: 12 | AH150: 39 | AI150: 44 | AJ150: 25 | AK150: 9 | AL150: 18 | AM150: 26 | AN150: 5 | AO150: 13
K151: 33 | L151: 10 | M151: 5 | N151: 17 | O151: 20 | P151: 33 | Q151: 17 | R151: 40 | S151: 37 | T151: 4 | U151: 36 | V151: 49 | W151: 40 | X151: 10 | Y151: 41 | Z151: 10 | AA151: 31 | AB151: 46 | AC151: 4 | AD151: 1 | AE151: 8 | AF151: 10 | AG151: 7 | AH151: 50 | AI151: 3 | AJ151: 35 | AK151: 2 | AL151: 28 | AM151: 48 | AN151: 21 | AO151: 21
K152: 7 | L152: 32 | M152: 28 | N152: 33 | O152: 35 | P152: 47 | Q152: 31 | R152: 26 | S152: 37 | T152: 50 | U152: 45 | V152: 32 | W152: 33 | X152: 2 | Y152: 7 | Z152: 44 | AA152: 4 | AB152: 16 | AC152: 49 | AD152: 35 | AE152: 30 | AF152: 27 | AG152: 43 | AH152: 34 | AI152: 44 | AJ152: 2 | AK152: 7 | AL152: 4 | AM152: 40 | AN152: 38 | AO152: 39
K153: 6 | L153: 42 | M153: 49 | N153: 11 | O153: 5 | P153: 50 | Q153: 47 | R153: 24 | S153: 28 | T153: 19 | U153: 41 | V153: 49 | W153: 48 | X153: 34 | Y153: 3 | Z153: 38 | AA153: 24 | AB153: 16 | AC153: 36 | AD153: 39 | AE153: 8 | AF153: 39 | AG153: 7 | AH153: 31 | AI153: 14 | AJ153: 17 | AK153: 12 | AL153: 23 | AM153: 34 | AN153: 45 | AO153: 10
K154: 5 | L154: 3 | M154: 40 | N154: 34 | O154: 37 | P154: 44 | Q154: 26 | R154: 41 | S154: 47 | T154: 43 | U154: 42 | V154: 14 | W154: 35 | X154: 25 | Y154: 29 | Z154: 50 | AA154: 30 | AB154: 48 | AC154: 7 | AD154: 45 | AE154: 1 | AF154: 49 | AG154: 36 | AH154: 36 | AI154: 23 | AJ154: 27 | AK154: 39 | AL154: 10 | AM154: 24 | AN154: 7 | AO154: 34
K155: 50 | L155: 6 | M155: 8 | N155: 11 | O155: 36 | P155: 27 | Q155: 47 | R155: 43 | S155: 47 | T155: 14 | U155: 19 | V155: 37 | W155: 3 | X155: 38 | Y155: 14 | Z155: 42 | AA155: 33 | AB155: 17 | AC155: 50 | AD155: 39 | AE155: 37 | AF155: 4 | AG155: 14 | AH155: 30 | AI155: 44 | AJ155: 36 | AK155: 44 | AL155: 40 | AM155: 40 | AN155: 43 | AO155: 1
K156: 45 | L156: 42 | M156: 12 | N156: 44 | O156: 39 | P156: 22 | Q156: 39 | R156: 16 | S156: 16 | T156: 18 | U156: 18 | V156: 19 | W156: 33 | X156: 38 | Y156: 3 | Z156: 43 | AA156: 12 | AB156: 40 | AC156: 37 | AD156: 9 | AE156: 34 | AF156: 14 | AG156: 42 | AH156: 43 | AI156: 9 | AJ156: 31 | AK156: 25 | AL156: 49 | AM156: 44 | AN156: 21 | AO156: 6
K157: 5 | L157: 46 | M157: 42 | N157: 12 | O157: 15 | P157: 1 | Q157: 17 | R157: 26 | S157: 1 | T157: 23 | U157: 48 | V157: 3 | W157: 14 | X157: 35 | Y157: 33 | Z157: 26 | AA157: 17 | AB157: 27 | AC157: 18 | AD157: 18 | AE157: 42 | AF157: 33 | AG157: 18 | AH157: 37 | AI157: 38 | AJ157: 21 | AK157: 24 | AL157: 15 | AM157: 36 | AN157: 25 | AO157: 24
K158: 10 | L158: 20 | M158: 27 | N158: 22 | O158: 18 | P158: 32 | Q158: 11 | R158: 19 | S158: 45 | T158: 17 | U158: 29 | V158: 13 | W158: 29 | X158: 14 | Y158: 9 | Z158: 39 | AA158: 3 | AB158: 29 | AC158: 19 | AD158: 18 | AE158: 41 | AF158: 28 | AG158: 23 | AH158: 34 | AI158: 11 | AJ158: 27 | AK158: 41 | AL158: 24 | AM158: 33 | AN158: 20 | AO158: 47
K159: 14 | L159: 6 | M159: 9 | N159: 29 | O159: 16 | P159: 36 | Q159: 37 | R159: 17 | S159: 46 | T159: 39 | U159: 24 | V159: 39 | W159: 48 | X159: 45 | Y159: 27 | Z159: 47 | AA159: 43 | AB159: 3 | AC159: 7 | AD159: 28 | AE159: 48 | AF159: 5 | AG159: 32 | AH159: 48 | AI159: 46 | AJ159: 21 | AK159: 39 | AL159: 41 | AM159: 1 | AN159: 45 | AO159: 41
K160: 40 | L160: 17 | M160: 6 | N160: 7 | O160: 41 | P160: 35 | Q160: 22 | R160: 30 | S160: 40 | T160: 22 | U160: 23 | V160: 21 | W160: 21 | X160: 36 | Y160: 16 | Z160: 24 | AA160: 42 | AB160: 14 | AC160: 44 | AD160: 6 | AE160: 11 | AF160: 14 | AG160: 40 | AH160: 15 | AI160: 44 | AJ160: 48 | AK160: 27 | AL160: 30 | AM160: 42 | AN160: 30 | AO160: 47
K161: 47 | L161: 41 | M161: 21 | N161: 24 | O161: 50 | P161: 17 | Q161: 49 | R161: 4 | S161: 39 | T161: 14 | U161: 42 | V161: 33 | W161: 16 | X161: 15 | Y161: 16 | Z161: 22 | AA161: 21 | AB161: 41 | AC161: 37 | AD161: 31 | AE161: 48 | AF161: 40 | AG161: 39 | AH161: 41 | AI161: 33 | AJ161: 10 | AK161: 6 | AL161: 41 | AM161: 32 | AN161: 10 | AO161: 20
K162: 33 | L162: 7 | M162: 26 | N162: 36 | O162: 37 | P162: 1 | Q162: 31 | R162: 20 | S162: 34 | T162: 50 | U162: 28 | V162: 18 | W162: 19 | X162: 3 | Y162: 23 | Z162: 47 | AA162: 19 | AB162: 32 | AC162: 50 | AD162: 12 | AE162: 28 | AF162: 21 | AG162: 41 | AH162: 23 | AI162: 30 | AJ162: 26 | AK162: 14 | AL162: 14 | AM162: 4 | AN162: 5 | AO162: 46
K163: 39 | L163: 34 | M163: 32 | N163: 49 | O163: 16 | P163: 1 | Q163: 18 | R163: 50 | S163: 47 | T163: 44 | U163: 38 | V163: 40 | W163: 6 | X163: 18 | Y163: 20 | Z163: 42 | AA163: 24 | AB163: 1 | AC163: 33 | AD163: 40 | AE163: 25 | AF163: 22 | AG163: 20 | AH163: 44 | AI163: 33 | AJ163: 45 | AK163: 4 | AL163: 1 | AM163: 49 | AN163: 2 | AO163: 8
K164: 45 | L164: 27 | M164: 32 | N164: 12 | O164: 38 | P164: 23 | Q164: 8 | R164: 7 | S164: 1 | T164: 2 | U164: 34 | V164: 24 | W164: 18 | X164: 46 | Y164: 42 | Z164: 43 | AA164: 20 | AB164: 35 | AC164: 42 | AD164: 29 | AE164: 39 | AF164: 9 | AG164: 17 | AH164: 47 | AI164: 47 | AJ164: 29 | AK164: 27 | AL164: 12 | AM164: 40 | AN164: 8 | AO164: 33
K165: 6 | L165: 13 | M165: 35 | N165: 48 | O165: 23 | P165: 33 | Q165: 10 | R165: 17 | S165: 33 | T165: 28 | U165: 5 | V165: 18 | W165: 2 | X165: 25 | Y165: 12 | Z165: 14 | AA165: 42 | AB165: 40 | AC165: 12 | AD165: 2 | AE165: 36 | AF165: 35 | AG165: 38 | AH165: 38 | AI165: 30 | AJ165: 16 | AK165: 32 | AL165: 6 | AM165: 46 | AN165: 25 | AO165: 25
K166: 18 | L166: 19 | M166: 38 | N166: 28 | O166: 5 | P166: 10 | Q166: 19 | R166: 3 | S166: 37 | T166: 2 | U166: 6 | V166: 2 | W166: 8 | X166: 2 | Y166: 39 | Z166: 32 | AA166: 49 | AB166: 40 | AC166: 18 | AD166: 47 | AE166: 49 | AF166: 13 | AG166: 13 | AH166: 2 | AI166: 23 | AJ166: 10 | AK166: 44 | AL166: 41 | AM166: 49 | AN166: 47 | AO166: 4
K167: 50 | L167: 24 | M167: 39 | N167: 29 | O167: 2 | P167: 24 | Q167: 38 | R167: 39 | S167: 33 | T167: 24 | U167: 7 | V167: 18 | W167: 35 | X167: 45 | Y167: 19 | Z167: 43 | AA167: 42 | AB167: 26 | AC167: 12 | AD167: 47 | AE167: 15 | AF167: 16 | AG167: 48 | AH167: 5 | AI167: 31 | AJ167: 35 | AK167: 36 | AL167: 13 | AM167: 41 | AN167: 47 | AO167: 23
K168: 25 | L168: 45 | M168: 26 | N168: 40 | O168: 23 | P168: 19 | Q168: 38 | R168: 36 | S168: 5 | T168: 28 | U168: 16 | V168: 16 | W168: 24 | X168: 18 | Y168: 35 | Z168: 34 | AA168: 28 | AB168: 10 | AC168: 37 | AD168: 48 | AE168: 9 | AF168: 47 | AG168: 7 | AH168: 3 | AI168: 4 | AJ168: 23 | AK168: 38 | AL168: 26 | AM168: 33 | AN168: 45 | AO168: 26
K169: 17 | L169: 3 | M169: 8 | N169: 33 | O169: 41 | P169: 25 | Q169: 44 | R169: 8 | S169: 29 | T169: 11 | U169: 42 | V169: 37 | W169: 15 | X169: 45 | Y169: 50 | Z169: 22 | AA169: 9 | AB169: 21 | AC169: 30 | AD169: 38 | AE169: 14 | AF169: 37 | AG169: 1 | AH169: 33 | AI169: 48 | AJ169: 45 | AK169: 43 | AL169: 7 | AM169: 1 | AN169: 21 | AO169: 32
K170: 7 | L170: 24 | M170: 43 | N170: 17 | O170: 7 | P170: 17 | Q170: 6 | R170: 29 | S170: 33 | T170: 41 | U170: 44 | V170: 20 | W170: 36 | X170: 8 | Y170: 46 | Z170: 50 | AA170: 35 | AB170: 9 | AC170: 44 | AD170: 2 | AE170: 35 | AF170: 47 | AG170: 49 | AH170: 24 | AI170: 50 | AJ170: 12 | AK170: 4 | AL170: 1 | AM170: 14 | AN170: 49 | AO170: 47
K171: 35 | L171: 14 | M171: 49 | N171: 21 | O171: 44 | P171: 31 | Q171: 37 | R171: 12 | S171: 42 | T171: 45 | U171: 12 | V171: 13 | W171: 40 | X171: 26 | Y171: 44 | Z171: 48 | AA171: 18 | AB171: 26 | AC171: 41 | AD171: 10 | AE171: 31 | AF171: 38 | AG171: 35 | AH171: 35 | AI171: 40 | AJ171: 46 | AK171: 4 | AL171: 26 | AM171: 8 | AN171: 49 | AO171: 2
K172: 46 | L172: 32 | M172: 5 | N172: 31 | O172: 13 | P172: 8 | Q172: 35 | R172: 27 | S172: 46 | T172: 33 | U172: 20 | V172: 12 | W172: 10 | X172: 49 | Y172: 14 | Z172: 34 | AA172: 34 | AB172: 18 | AC172: 35 | AD172: 26 | AE172: 43 | AF172: 50 | AG172: 29 | AH172: 4 | AI172: 47 | AJ172: 50 | AK172: 28 | AL172: 21 | AM172: 35 | AN172: 33 | AO172: 27
K173: 32 | L173: 32 | M173: 14 | N173: 23 | O173: 46 | P173: 42 | Q173: 50 | R173: 47 | S173: 28 | T173: 23 | U173: 13 | V173: 41 | W173: 27 | X173: 6 | Y173: 40 | Z173: 22 | AA173: 12 | AB173: 15 | AC173: 19 | AD173: 31 | AE173: 8 | AF173: 22 | AG173: 21 | AH173: 8 | AI173: 6 | AJ173: 15 | AK173: 3 | AL173: 40 | AM173: 47 | AN173: 19 | AO173: 20
K174: 11 | L174: 44 | M174: 3 | N174: 19 | O174: 40 | P174: 20 | Q174: 42 | R174: 47 | S174: 32 | T174: 21 | U174: 10 | V174: 25 | W174: 32 | X174: 22 | Y174: 43 | Z174: 38 | AA174: 6 | AB174: 41 | AC174: 49 | AD174: 10 | AE174: 27 | AF174: 1 | AG174: 43 | AH174: 40 | AI174: 45 | AJ174: 40 | AK174: 1 | AL174: 39 | AM174: 29 | AN174: 29 | AO174: 46
K175: 22 | L175: 7 | M175: 49 | N175: 36 | O175: 4 | P175: 48 | Q175: 22 | R175: 36 | S175: 39 | T175: 11 | U175: 45 | V175: 23 | W175: 45 | X175: 8 | Y175: 47 | Z175: 28 | AA175: 39 | AB175: 25 | AC175: 48 | AD175: 47 | AE175: 29 | AF175: 39 | AG175: 47 | AH175: 50 | AI175: 13 | AJ175: 17 | AK175: 5 | AL175: 13 | AM175: 37 | AN175: 27 | AO175: 33
K176: 10 | L176: 15 | M176: 21 | N176: 3 | O176: 10 | P176: 39 | Q176: 15 | R176: 20 | S176: 25 | T176: 1 | U176: 28 | V176: 28 | W176: 22 | X176: 17 | Y176: 48 | Z176: 7 | AA176: 1 | AB176: 6 | AC176: 46 | AD176: 49 | AE176: 42 | AF176: 3 | AG176: 7 | AH176: 29 | AI176: 33 | AJ176: 38 | AK176: 35 | AL176: 19 | AM176: 2 | AN176: 20 | AO176: 18
K177: 2 | L177: 44 | M177: 49 | N177: 8 | O177: 10 | P177: 6 | Q177: 48 | R177: 10 | S177: 36 | T177: 45 | U177: 43 | V177: 33 | W177: 2 | X177: 12 | Y177: 35 | Z177: 21 | AA177: 42 | AB177: 24 | AC177: 23 | AD177: 15 | AE177: 19 | AF177: 16 | AG177: 23 | AH177: 24 | AI177: 46 | AJ177: 29 | AK177: 50 | AL177: 48 | AM177: 42 | AN177: 19 | AO177: 33
K178: 38 | L178: 14 | M178: 46 | N178: 11 | O178: 40 | P178: 23 | Q178: 2 | R178: 9 | S178: 25 | T178: 9 | U178: 28 | V178: 46 | W178: 2 | X178: 46 | Y178: 29 | Z178: 45 | AA178: 8 | AB178: 10 | AC178: 45 | AD178: 44 | AE178: 15 | AF178: 3 | AG178: 7 | AH178: 28 | AI178: 13 | AJ178: 38 | AK178: 31 | AL178: 43 | AM178: 30 | AN178: 1 | AO178: 38
K179: 48 | L179: 17 | M179: 38 | N179: 27 | O179: 44 | P179: 17 | Q179: 21 | R179: 14 | S179: 28 | T179: 12 | U179: 38 | V179: 29 | W179: 7 | X179: 48 | Y179: 45 | Z179: 28 | AA179: 49 | AB179: 18 | AC179: 28 | AD179: 34 | AE179: 44 | AF179: 2 | AG179: 22 | AH179: 29 | AI179: 45 | AJ179: 29 | AK179: 36 | AL179: 5 | AM179: 50 | AN179: 15 | AO179: 47
K180: 32 | L180: 46 | M180: 16 | N180: 45 | O180: 27 | P180: 21 | Q180: 41 | R180: 35 | S180: 21 | T180: 49 | U180: 30 | V180: 49 | W180: 49 | X180: 12 | Y180: 38 | Z180: 37 | AA180: 7 | AB180: 18 | AC180: 49 | AD180: 41 | AE180: 22 | AF180: 2 | AG180: 42 | AH180: 30 | AI180: 24 | AJ180: 30 | AK180: 20 | AL180: 10 | AM180: 50 | AN180: 21 | AO180: 20
K181: 21 | L181: 21 | M181: 39 | N181: 26 | O181: 37 | P181: 26 | Q181: 19 | R181: 7 | S181: 19 | T181: 46 | U181: 14 | V181: 48 | W181: 6 | X181: 16 | Y181: 25 | Z181: 46 | AA181: 13 | AB181: 32 | AC181: 19 | AD181: 9 | AE181: 38 | AF181: 40 | AG181: 39 | AH181: 29 | AI181: 17 | AJ181: 47 | AK181: 15 | AL181: 31 | AM181: 32 | AN181: 33 | AO181: 46
K182: 26 | L182: 2 | M182: 28 | N182: 16 | O182: 47 | P182: 11 | Q182: 10 | R182: 10 | S182: 46 | T182: 44 | U182: 11 | V182: 7 | W182: 8 | X182: 41 | Y182: 41 | Z182: 20 | AA182: 40 | AB182: 23 | AC182: 4 | AD182: 3 | AE182: 44 | AF182: 26 | AG182: 37 | AH182: 41 | AI182: 32 | AJ182: 30 | AK182: 38 | AL182: 23 | AM182: 30 | AN182: 17 | AO182: 2
K183: 23 | L183: 47 | M183: 40 | N183: 18 | O183: 15 | P183: 16 | Q183: 37 | R183: 21 | S183: 1 | T183: 42 | U183: 4 | V183: 43 | W183: 39 | X183: 16 | Y183: 15 | Z183: 23 | AA183: 35 | AB183: 22 | AC183: 24 | AD183: 44 | AE183: 17 | AF183: 31 | AG183: 31 | AH183: 15 | AI183: 31 | AJ183: 37 | AK183: 13 | AL183: 5 | AM183: 42 | AN183: 31 | AO183: 30
K184: 21 | L184: 47 | M184: 30 | N184: 47 | O184: 14 | P184: 1 | Q184: 12 | R184: 19 | S184: 38 | T184: 15 | U184: 38 | V184: 36 | W184: 7 | X184: 29 | Y184: 46 | Z184: 28 | AA184: 22 | AB184: 7 | AC184: 26 | AD184: 1 | AE184: 13 | AF184: 1 | AG184: 21 | AH184: 5 | AI184: 42 | AJ184: 36 | AK184: 25 | AL184: 6 | AM184: 4 | AN184: 48 | AO184: 9
K185: 2 | L185: 47 | M185: 2 | N185: 24 | O185: 21 | P185: 21 | Q185: 38 | R185: 46 | S185: 50 | T185: 27 | U185: 38 | V185: 14 | W185: 42 | X185: 45 | Y185: 15 | Z185: 36 | AA185: 43 | AB185: 48 | AC185: 35 | AD185: 1 | AE185: 31 | AF185: 39 | AG185: 30 | AH185: 8 | AI185: 46 | AJ185: 36 | AK185: 7 | AL185: 40 | AM185: 41 | AN185: 10 | AO185: 33
K186: 31 | L186: 33 | M186: 11 | N186: 41 | O186: 4 | P186: 49 | Q186: 22 | R186: 16 | S186: 29 | T186: 21 | U186: 21 | V186: 15 | W186: 18 | X186: 32 | Y186: 34 | Z186: 15 | AA186: 29 | AB186: 47 | AC186: 44 | AD186: 21 | AE186: 10 | AF186: 21 | AG186: 29 | AH186: 27 | AI186: 31 | AJ186: 17 | AK186: 32 | AL186: 16 | AM186: 43 | AN186: 35 | AO186: 16
K187: 31 | L187: 25 | M187: 50 | N187: 24 | O187: 33 | P187: 47 | Q187: 10 | R187: 13 | S187: 20 | T187: 22 | U187: 20 | V187: 15 | W187: 5 | X187: 19 | Y187: 5 | Z187: 32 | AA187: 18 | AB187: 6 | AC187: 35 | AD187: 7 | AE187: 10 | AF187: 43 | AG187: 44 | AH187: 34 | AI187: 16 | AJ187: 24 | AK187: 35 | AL187: 31 | AM187: 44 | AN187: 25 | AO187: 4
K188: 25 | L188: 13 | M188: 32 | N188: 16 | O188: 28 | P188: 31 | Q188: 43 | R188: 20 | S188: 42 | T188: 42 | U188: 23 | V188: 3 | W188: 12 | X188: 26 | Y188: 16 | Z188: 47 | AA188: 7 | AB188: 38 | AC188: 11 | AD188: 6 | AE188: 12 | AF188: 22 | AG188: 3 | AH188: 43 | AI188: 39 | AJ188: 25 | AK188: 49 | AL188: 21 | AM188: 24 | AN188: 20 | AO188: 36
K189: 37 | L189: 9 | M189: 10 | N189: 17 | O189: 13 | P189: 13 | Q189: 43 | R189: 29 | S189: 29 | T189: 19 | U189: 38 | V189: 26 | W189: 36 | X189: 12 | Y189: 13 | Z189: 25 | AA189: 8 | AB189: 20 | AC189: 31 | AD189: 40 | AE189: 4 | AF189: 20 | AG189: 32 | AH189: 45 | AI189: 1 | AJ189: 14 | AK189: 44 | AL189: 25 | AM189: 6 | AN189: 26 | AO189: 6
K190: 6 | L190: 48 | M190: 48 | N190: 11 | O190: 41 | P190: 25 | Q190: 48 | R190: 50 | S190: 10 | T190: 35 | U190: 36 | V190: 23 | W190: 14 | X190: 19 | Y190: 41 | Z190: 29 | AA190: 41 | AB190: 33 | AC190: 17 | AD190: 44 | AE190: 18 | AF190: 33 | AG190: 49 | AH190: 35 | AI190: 7 | AJ190: 15 | AK190: 24 | AL190: 25 | AM190: 40 | AN190: 5 | AO190: 27
K191: 29 | L191: 48 | M191: 34 | N191: 19 | O191: 26 | P191: 25 | Q191: 18 | R191: 8 | S191: 36 | T191: 27 | U191: 39 | V191: 14 | W191: 15 | X191: 28 | Y191: 22 | Z191: 22 | AA191: 27 | AB191: 45 | AC191: 4 | AD191: 50 | AE191: 25 | AF191: 49 | AG191: 32 | AH191: 37 | AI191: 25 | AJ191: 4 | AK191: 34 | AL191: 32 | AM191: 46 | AN191: 45 | AO191: 27
K192: 8 | L192: 45 | M192: 46 | N192: 19 | O192: 33 | P192: 39 | Q192: 19 | R192: 18 | S192: 11 | T192: 15 | U192: 23 | V192: 13 | W192: 8 | X192: 26 | Y192: 3 | Z192: 11 | AA192: 3 | AB192: 6 | AC192: 12 | AD192: 48 | AE192: 12 | AF192: 39 | AG192: 36 | AH192: 20 | AI192: 22 | AJ192: 28 | AK192: 25 | AL192: 38 | AM192: 5 | AN192: 22 | AO192: 17
K193: 1 | L193: 16 | M193: 5 | N193: 26 | O193: 47 | P193: 27 | Q193: 7 | R193: 27 | S193: 21 | T193: 1 | U193: 14 | V193: 33 | W193: 31 | X193: 7 | Y193: 23 | Z193: 19 | AA193: 35 | AB193: 38 | AC193: 18 | AD193: 8 | AE193: 43 | AF193: 2 | AG193: 41 | AH193: 29 | AI193: 20 | AJ193: 42 | AK193: 14 | AL193: 11 | AM193: 27 | AN193: 27 | AO193: 1
K194: 19 | L194: 9 | M194: 12 | N194: 30 | O194: 8 | P194: 12 | Q194: 11 | R194: 37 | S194: 13 | T194: 28 | U194: 10 | V194: 26 | W194: 30 | X194: 44 | Y194: 43 | Z194: 18 | AA194: 41 | AB194: 35 | AC194: 35 | AD194: 12 | AE194: 45 | AF194: 17 | AG194: 33 | AH194: 48 | AI194: 6 | AJ194: 36 | AK194: 31 | AL194: 5 | AM194: 17 | AN194: 45 | AO194: 48
K195: 48 | L195: 1 | M195: 30 | N195: 30 | O195: 43 | P195: 12 | Q195: 41 | R195: 3 | S195: 39 | T195: 9 | U195: 23 | V195: 8 | W195: 20 | X195: 14 | Y195: 21 | Z195: 4 | AA195: 30 | AB195: 35 | AC195: 6 | AD195: 29 | AE195: 15 | AF195: 49 | AG195: 47 | AH195: 27 | AI195: 3 | AJ195: 37 | AK195: 38 | AL195: 2 | AM195: 21 | AN195: 18 | AO195: 27
K196: 46 | L196: 42 | M196: 20 | N196: 20 | O196: 23 | P196: 16 | Q196: 2 | R196: 7 | S196: 33 | T196: 11 | U196: 5 | V196: 21 | W196: 18 | X196: 27 | Y196: 30 | Z196: 22 | AA196: 9 | AB196: 30 | AC196: 5 | AD196: 31 | AE196: 19 | AF196: 38 | AG196: 43 | AH196: 27 | AI196: 36 | AJ196: 16 | AK196: 7 | AL196: 45 | AM196: 23 | AN196: 50 | AO196: 34
K197: 33 | L197: 6 | M197: 36 | N197: 29 | O197: 13 | P197: 12 | Q197: 49 | R197: 43 | S197: 10 | T197: 42 | U197: 30 | V197: 13 | W197: 47 | X197: 17 | Y197: 12 | Z197: 47 | AA197: 29 | AB197: 2 | AC197: 10 | AD197: 2 | AE197: 44 | AF197: 32 | AG197: 27 | AH197: 21 | AI197: 38 | AJ197: 28 | AK197: 36 | AL197: 48 | AM197: 19 | AN197: 14 | AO197: 32
K198: 24 | L198: 23 | M198: 45 | N198: 31 | O198: 25 | P198: 32 | Q198: 11 | R198: 6 | S198: 27 | T198: 2 | U198: 48 | V198: 35 | W198: 33 | X198: 26 | Y198: 33 | Z198: 34 | AA198: 38 | AB198: 7 | AC198: 34 | AD198: 1 | AE198: 20 | AF198: 27 | AG198: 14 | AH198: 43 | AI198: 44 | AJ198: 48 | AK198: 39 | AL198: 20 | AM198: 3 | AN198: 17 | AO198: 1
K199: 25 | L199: 22 | M199: 44 | N199: 50 | O199: 9 | P199: 28 | Q199: 4 | R199: 45 | S199: 33 | T199: 11 | U199: 16 | V199: 37 | W199: 27 | X199: 25 | Y199: 50 | Z199: 13 | AA199: 6 | AB199: 1 | AC199: 44 | AD199: 23 | AE199: 7 | AF199: 41 | AG199: 28 | AH199: 44 | AI199: 37 | AJ199: 41 | AK199: 33 | AL199: 7 | AM199: 25 | AN199: 5 | AO199: 10
K200: 36 | L200: 3 | M200: 25 | N200: 15 | O200: 6 | P200: 42 | Q200: 49 | R200: 43 | S200: 18 | T200: 7 | U200: 39 | V200: 39 | W200: 19 | X200: 45 | Y200: 15 | Z200: 48 | AA200: 40 | AB200: 36 | AC200: 30 | AD200: 15 | AE200: 24 | AF200: 14 | AG200: 13 | AH200: 49 | AI200: 22 | AJ200: 49 | AK200: 15 | AL200: 39 | AM200: 28 | AN200: 48 | AO200: 46
K201: 10 | L201: 22 | M201: 5 | N201: 37 | O201: 11 | P201: 6 | Q201: 14 | R201: 40 | S201: 31 | T201: 6 | U201: 36 | V201: 28 | W201: 19 | X201: 32 | Y201: 24 | Z201: 17 | AA201: 21 | AB201: 42 | AC201: 15 | AD201: 4 | AE201: 50 | AF201: 23 | AG201: 21 | AH201: 31 | AI201: 8 | AJ201: 3 | AK201: 24 | AL201: 38 | AM201: 8 | AN201: 33 | AO201: 14
K202: 36 | L202: 28 | M202: 14 | N202: 4 | O202: 28 | P202: 46 | Q202: 43 | R202: 50 | S202: 44 | T202: 14 | U202: 31 | V202: 40 | W202: 22 | X202: 14 | Y202: 45 | Z202: 42 | AA202: 1 | AB202: 42 | AC202: 21 | AD202: 27 | AE202: 43 | AF202: 38 | AG202: 17 | AH202: 38 | AI202: 29 | AJ202: 44 | AK202: 7 | AL202: 29 | AM202: 34 | AN202: 8 | AO202: 29
K203: 37 | L203: 28 | M203: 48 | N203: 27 | O203: 18 | P203: 42 | Q203: 14 | R203: 39 | S203: 49 | T203: 8 | U203: 26 | V203: 31 | W203: 49 | X203: 9 | Y203: 29 | Z203: 21 | AA203: 38 | AB203: 18 | AC203: 18 | AD203: 3 | AE203: 32 | AF203: 19 | AG203: 24 | AH203: 35 | AI203: 3 | AJ203: 50 | AK203: 30 | AL203: 33 | AM203: 22 | AN203: 40 | AO203: 26
K204: 23 | L204: 22 | M204: 45 | N204: 36 | O204: 11 | P204: 3 | Q204: 8 | R204: 8 | S204: 4 | T204: 20 | U204: 1 | V204: 29 | W204: 45 | X204: 28 | Y204: 40 | Z204: 12 | AA204: 26 | AB204: 19 | AC204: 16 | AD204: 2 | AE204: 35 | AF204: 2 | AG204: 7 | AH204: 21 | AI204: 23 | AJ204: 40 | AK204: 7 | AL204: 28 | AM204: 24 | AN204: 5 | AO204: 33
K205: 35 | L205: 22 | M205: 10 | N205: 31 | O205: 5 | P205: 37 | Q205: 4 | R205: 34 | S205: 7 | T205: 18 | U205: 22 | V205: 33 | W205: 48 | X205: 2 | Y205: 38 | Z205: 8 | AA205: 29 | AB205: 34 | AC205: 46 | AD205: 7 | AE205: 30 | AF205: 11 | AG205: 6 | AH205: 29 | AI205: 48 | AJ205: 46 | AK205: 14 | AL205: 30 | AM205: 7 | AN205: 2 | AO205: 40
K206: 16 | L206: 24 | M206: 7 | N206: 15 | O206: 13 | P206: 5 | Q206: 20 | R206: 42 | S206: 9 | T206: 45 | U206: 9 | V206: 13 | W206: 33 | X206: 18 | Y206: 31 | Z206: 18 | AA206: 15 | AB206: 33 | AC206: 8 | AD206: 15 | AE206: 26 | AF206: 24 | AG206: 40 | AH206: 47 | AI206: 42 | AJ206: 34 | AK206: 39 | AL206: 33 | AM206: 8 | AN206: 13 | AO206: 29
K207: 36 | L207: 30 | M207: 14 | N207: 17 | O207: 32 | P207: 30 | Q207: 12 | R207: 10 | S207: 30 | T207: 18 | U207: 38 | V207: 15 | W207: 42 | X207: 6 | Y207: 43 | Z207: 1 | AA207: 44 | AB207: 14 | AC207: 26 | AD207: 1 | AE207: 15 | AF207: 49 | AG207: 28 | AH207: 31 | AI207: 29 | AJ207: 20 | AK207: 28 | AL207: 7 | AM207: 44 | AN207: 12 | AO207: 22
K208: 6 | L208: 30 | M208: 24 | N208: 46 | O208: 43 | P208: 2 | Q208: 12 | R208: 6 | S208: 21 | T208: 49 | U208: 45 | V208: 11 | W208: 41 | X208: 8 | Y208: 24 | Z208: 16 | AA208: 25 | AB208: 1 | AC208: 46 | AD208: 49 | AE208: 13 | AF208: 2 | AG208: 38 | AH208: 46 | AI208: 6 | AJ208: 47 | AK208: 41 | AL208: 14 | AM208: 21 | AN208: 19 | AO208: 24
K209: 42 | L209: 47 | M209: 33 | N209: 2 | O209: 37 | P209: 31 | Q209: 2 | R209: 41 | S209: 46 | T209: 37 | U209: 30 | V209: 36 | W209: 30 | X209: 41 | Y209: 33 | Z209: 3 | AA209: 33 | AB209: 16 | AC209: 35 | AD209: 24 | AE209: 16 | AF209: 24 | AG209: 20 | AH209: 41 | AI209: 49 | AJ209: 10 | AK209: 17 | AL209: 23 | AM209: 28 | AN209: 35 | AO209: 24
K210: 25 | L210: 20 | M210: 3 | N210: 15 | O210: 1 | P210: 7 | Q210: 32 | R210: 22 | S210: 18 | T210: 15 | U210: 46 | V210: 41 | W210: 3 | X210: 21 | Y210: 1 | Z210: 24 | AA210: 16 | AB210: 4 | AC210: 34 | AD210: 17 | AE210: 35 | AF210: 9 | AG210: 24 | AH210: 10 | AI210: 11 | AJ210: 11 | AK210: 36 | AL210: 25 | AM210: 24 | AN210: 5 | AO210: 24
K211: 21 | L211: 34 | M211: 3 | N211: 22 | O211: 36 | P211: 45 | Q211: 14 | R211: 36 | S211: 14 | T211: 47 | U211: 27 | V211: 30 | W211: 43 | X211: 34 | Y211: 18 | Z211: 11 | AA211: 6 | AB211: 3 | AC211: 41 | AD211: 19 | AE211: 37 | AF211: 8 | AG211: 17 | AH211: 9 | AI211: 48 | AJ211: 15 | AK211: 29 | AL211: 1 | AM211: 6 | AN211: 14 | AO211: 23
K212: 48 | L212: 23 | M212: 20 | N212: 45 | O212: 25 | P212: 5 | Q212: 16 | R212: 14 | S212: 42 | T212: 27 | U212: 9 | V212: 36 | W212: 27 | X212: 49 | Y212: 22 | Z212: 27 | AA212: 41 | AB212: 37 | AC212: 25 | AD212: 50 | AE212: 30 | AF212: 19 | AG212: 13 | AH212: 49 | AI212: 22 | AJ212: 50 | AK212: 2 | AL212: 47 | AM212: 40 | AN212: 40 | AO212: 28
K213: 21 | L213: 23 | M213: 47 | N213: 45 | O213: 9 | P213: 1 | Q213: 10 | R213: 40 | S213: 13 | T213: 37 | U213: 50 | V213: 10 | W213: 29 | X213: 1 | Y213: 12 | Z213: 1 | AA213: 35 | AB213: 31 | AC213: 16 | AD213: 8 | AE213: 27 | AF213: 6 | AG213: 30 | AH213: 41 | AI213: 41 | AJ213: 18 | AK213: 48 | AL213: 24 | AM213: 48 | AN213: 24 | AO213: 18
K214: 22 | L214: 19 | M214: 6 | N214: 5 | O214: 44 | P214: 7 | Q214: 45 | R214: 16 | S214: 10 | T214: 46 | U214: 2 | V214: 46 | W214: 1 | X214: 4 | Y214: 31 | Z214: 32 | AA214: 32 | AB214: 34 | AC214: 36 | AD214: 3 | AE214: 44 | AF214: 3 | AG214: 27 | AH214: 16 | AI214: 42 | AJ214: 40 | AK214: 48 | AL214: 46 | AM214: 28 | AN214: 43 | AO214: 44
K215: 21 | L215: 22 | M215: 29 | N215: 40 | O215: 24 | P215: 3 | Q215: 38 | R215: 15 | S215: 29 | T215: 49 | U215: 9 | V215: 38 | W215: 14 | X215: 7 | Y215: 40 | Z215: 4 | AA215: 11 | AB215: 33 | AC215: 37 | AD215: 7 | AE215: 31 | AF215: 46 | AG215: 28 | AH215: 22 | AI215: 30 | AJ215: 15 | AK215: 19 | AL215: 1 | AM215: 29 | AN215: 7 | AO215: 25
K216: 39 | L216: 3 | M216: 43 | N216: 41 | O216: 6 | P216: 27 | Q216: 50 | R216: 46 | S216: 13 | T216: 38 | U216: 36 | V216: 49 | W216: 4 | X216: 7 | Y216: 28 | Z216: 22 | AA216: 14 | AB216: 44 | AC216: 41 | AD216: 35 | AE216: 29 | AF216: 11 | AG216: 37 | AH216: 22 | AI216: 44 | AJ216: 30 | AK216: 8 | AL216: 35 | AM216: 24 | AN216: 17 | AO216: 21
K217: 47 | L217: 14 | M217: 35 | N217: 5 | O217: 4 | P217: 49 | Q217: 23 | R217: 48 | S217: 46 | T217: 36 | U217: 50 | V217: 19 | W217: 27 | X217: 47 | Y217: 27 | Z217: 50 | AA217: 44 | AB217: 17 | AC217: 16 | AD217: 25 | AE217: 49 | AF217: 17 | AG217: 45 | AH217: 15 | AI217: 12 | AJ217: 18 | AK217: 43 | AL217: 4 | AM217: 13 | AN217: 38 | AO217: 49
K218: 30 | L218: 33 | M218: 50 | N218: 42 | O218: 45 | P218: 29 | Q218: 21 | R218: 46 | S218: 50 | T218: 17 | U218: 49 | V218: 47 | W218: 27 | X218: 10 | Y218: 33 | Z218: 23 | AA218: 33 | AB218: 17 | AC218: 38 | AD218: 47 | AE218: 38 | AF218: 46 | AG218: 2 | AH218: 11 | AI218: 18 | AJ218: 31 | AK218: 32 | AL218: 10 | AM218: 45 | AN218: 1 | AO218: 39
K219: 9 | L219: 44 | M219: 37 | N219: 4 | O219: 23 | P219: 14 | Q219: 16 | R219: 28 | S219: 7 | T219: 48 | U219: 30 | V219: 1 | W219: 2 | X219: 14 | Y219: 33 | Z219: 10 | AA219: 16 | AB219: 4 | AC219: 35 | AD219: 7 | AE219: 2 | AF219: 23 | AG219: 43 | AH219: 5 | AI219: 11 | AJ219: 25 | AK219: 7 | AL219: 45 | AM219: 19 | AN219: 43 | AO219: 44
K220: 17 | L220: 38 | M220: 1 | N220: 3 | O220: 2 | P220: 39 | Q220: 48 | R220: 19 | S220: 42 | T220: 9 | U220: 46 | V220: 10 | W220: 9 | X220: 34 | Y220: 9 | Z220: 42 | AA220: 37 | AB220: 41 | AC220: 31 | AD220: 43 | AE220: 46 | AF220: 21 | AG220: 45 | AH220: 5 | AI220: 31 | AJ220: 39 | AK220: 15 | AL220: 15 | AM220: 48 | AN220: 35 | AO220: 16
K221: 49 | L221: 12 | M221: 48 | N221: 11 | O221: 34 | P221: 23 | Q221: 25 | R221: 11 | S221: 38 | T221: 3 | U221: 27 | V221: 19 | W221: 46 | X221: 48 | Y221: 15 | Z221: 32 | AA221: 50 | AB221: 16 | AC221: 21 | AD221: 45 | AE221: 25 | AF221: 6 | AG221: 21 | AH221: 20 | AI221: 15 | AJ221: 38 | AK221: 2 | AL221: 16 | AM221: 4 | AN221: 13 | AO221: 11
K222: 36 | L222: 41 | M222: 26 | N222: 11 | O222: 48 | P222: 28 | Q222: 28 | R222: 11 | S222: 8 | T222: 40 | U222: 39 | V222: 7 | W222: 41 | X222: 19 | Y222: 13 | Z222: 1 | AA222: 29 | AB222: 17 | AC222: 1 | AD222: 42 | AE222: 35 | AF222: 8 | AG222: 49 | AH222: 35 | AI222: 26 | AJ222: 20 | AK222: 18 | AL222: 9 | AM222: 9 | AN222: 8 | AO222: 23
K223: 20 | L223: 8 | M223: 47 | N223: 40 | O223: 40 | P223: 18 | Q223: 40 | R223: 31 | S223: 21 | T223: 28 | U223: 27 | V223: 10 | W223: 13 | X223: 41 | Y223: 49 | Z223: 10 | AA223: 23 | AB223: 4 | AC223: 19 | AD223: 40 | AE223: 38 | AF223: 8 | AG223: 9 | AH223: 11 | AI223: 26 | AJ223: 49 | AK223: 34 | AL223: 47 | AM223: 12 | AN223: 39 | AO223: 18
K224: 19 | L224: 48 | M224: 49 | N224: 47 | O224: 39 | P224: 38 | Q224: 40 | R224: 1 | S224: 16 | T224: 13 | U224: 13 | V224: 48 | W224: 4 | X224: 6 | Y224: 42 | Z224: 18 | AA224: 8 | AB224: 5 | AC224: 44 | AD224: 11 | AE224: 35 | AF224: 5 | AG224: 41 | AH224: 27 | AI224: 16 | AJ224: 45 | AK224: 1 | AL224: 40 | AM224: 31 | AN224: 50 | AO224: 48
K225: 17 | L225: 17 | M225: 1 | N225: 6 | O225: 19 | P225: 36 | Q225: 47 | R225: 3 | S225: 12 | T225: 4 | U225: 48 | V225: 21 | W225: 8 | X225: 42 | Y225: 3 | Z225: 37 | AA225: 18 | AB225: 28 | AC225: 45 | AD225: 5 | AE225: 19 | AF225: 40 | AG225: 9 | AH225: 1 | AI225: 14 | AJ225: 5 | AK225: 34 | AL225: 45 | AM225: 5 | AN225: 28 | AO225: 4
K226: 38 | L226: 39 | M226: 7 | N226: 44 | O226: 45 | P226: 35 | Q226: 9 | R226: 2 | S226: 6 | T226: 5 | U226: 19 | V226: 50 | W226: 1 | X226: 44 | Y226: 14 | Z226: 42 | AA226: 16 | AB226: 9 | AC226: 38 | AD226: 19 | AE226: 32 | AF226: 35 | AG226: 42 | AH226: 35 | AI226: 37 | AJ226: 44 | AK226: 21 | AL226: 3 | AM226: 32 | AN226: 21 | AO226: 15
K227: 40 | L227: 36 | M227: 43 | N227: 37 | O227: 4 | P227: 38 | Q227: 2 | R227: 3 | S227: 20 | T227: 2 | U227: 19 | V227: 46 | W227: 28 | X227: 29 | Y227: 18 | Z227: 5 | AA227: 13 | AB227: 50 | AC227: 50 | AD227: 42 | AE227: 34 | AF227: 7 | AG227: 35 | AH227: 23 | AI227: 36 | AJ227: 39 | AK227: 27 | AL227: 11 | AM227: 4 | AN227: 21 | AO227: 33
K228: 28 | L228: 39 | M228: 13 | N228: 16 | O228: 22 | P228: 26 | Q228: 42 | R228: 41 | S228: 2 | T228: 18 | U228: 6 | V228: 44 | W228: 14 | X228: 31 | Y228: 26 | Z228: 22 | AA228: 36 | AB228: 35 | AC228: 11 | AD228: 49 | AE228: 48 | AF228: 16 | AG228: 25 | AH228: 3 | AI228: 2 | AJ228: 39 | AK228: 39 | AL228: 28 | AM228: 47 | AN228: 1 | AO228: 22
K229: 22 | L229: 15 | M229: 11 | N229: 38 | O229: 38 | P229: 27 | Q229: 20 | R229: 12 | S229: 15 | T229: 8 | U229: 26 | V229: 6 | W229: 41 | X229: 3 | Y229: 32 | Z229: 3 | AA229: 5 | AB229: 9 | AC229: 45 | AD229: 29 | AE229: 34 | AF229: 33 | AG229: 46 | AH229: 39 | AI229: 21 | AJ229: 22 | AK229: 27 | AL229: 30 | AM229: 15 | AN229: 46 | AO229: 15
K230: 45 | L230: 29 | M230: 26 | N230: 11 | O230: 27 | P230: 43 | Q230: 2 | R230: 14 | S230: 23 | T230: 10 | U230: 33 | V230: 27 | W230: 11 | X230: 27 | Y230: 21 | Z230: 24 | AA230: 6 | AB230: 22 | AC230: 40 | AD230: 29 | AE230: 3 | AF230: 37 | AG230: 18 | AH230: 50 | AI230: 36 | AJ230: 2 | AK230: 13 | AL230: 26 | AM230: 2 | AN230: 44 | AO230: 30
K231: 42 | L231: 5 | M231: 27 | N231: 36 | O231: 47 | P231: 7 | Q231: 5 | R231: 29 | S231: 46 | T231: 43 | U231: 9 | V231: 11 | W231: 22 | X231: 35 | Y231: 25 | Z231: 29 | AA231: 23 | AB231: 5 | AC231: 14 | AD231: 17 | AE231: 22 | AF231: 19 | AG231: 26 | AH231: 12 | AI231: 9 | AJ231: 49 | AK231: 3 | AL231: 50 | AM231: 10 | AN231: 15 | AO231: 29
K232: 28 | L232: 25 | M232: 22 | N232: 38 | O232: 22 | P232: 42 | Q232: 15 | R232: 20 | S232: 47 | T232: 40 | U232: 3 | V232: 11 | W232: 12 | X232: 32 | Y232: 36 | Z232: 49 | AA232: 31 | AB232: 22 | AC232: 34 | AD232: 14 | AE232: 50 | AF232: 19 | AG232: 31 | AH232: 1 | AI232: 8 | AJ232: 27 | AK232: 43 | AL232: 24 | AM232: 24 | AN232: 48 | AO232: 34
K233: 49 | L233: 5 | M233: 18 | N233: 19 | O233: 11 | P233: 40 | Q233: 7 | R233: 5 | S233: 11 | T233: 26 | U233: 34 | V233: 6 | W233: 32 | X233: 3 | Y233: 4 | Z233: 14 | AA233: 13 | AB233: 46 | AC233: 33 | AD233: 50 | AE233: 11 | AF233: 15 | AG233: 38 | AH233: 47 | AI233: 44 | AJ233: 14 | AK233: 25 | AL233: 19 | AM233: 37 | AN233: 27 | AO233: 10
K234: 41 | L234: 50 | M234: 35 | N234: 48 | O234: 8 | P234: 20 | Q234: 25 | R234: 40 | S234: 28 | T234: 8 | U234: 43 | V234: 44 | W234: 49 | X234: 3 | Y234: 31 | Z234: 33 | AA234: 33 | AB234: 11 | AC234: 28 | AD234: 12 | AE234: 24 | AF234: 35 | AG234: 1 | AH234: 49 | AI234: 22 | AJ234: 48 | AK234: 33 | AL234: 1 | AM234: 15 | AN234: 44 | AO234: 29
K235: 46 | L235: 4 | M235: 20 | N235: 33 | O235: 29 | P235: 12 | Q235: 10 | R235: 50 | S235: 24 | T235: 19 | U235: 46 | V235: 44 | W235: 2 | X235: 49 | Y235: 12 | Z235: 22 | AA235: 33 | AB235: 17 | AC235: 44 | AD235: 42 | AE235: 27 | AF235: 31 | AG235: 17 | AH235: 28 | AI235: 42 | AJ235: 24 | AK235: 21 | AL235: 48 | AM235: 50 | AN235: 2 | AO235: 11
K236: 15 | L236: 50 | M236: 13 | N236: 8 | O236: 13 | P236: 49 | Q236: 50 | R236: 49 | S236: 30 | T236: 18 | U236: 41 | V236: 37 | W236: 40 | X236: 43 | Y236: 12 | Z236: 38 | AA236: 22 | AB236: 47 | AC236: 31 | AD236: 36 | AE236: 45 | AF236: 9 | AG236: 19 | AH236: 29 | AI236: 49 | AJ236: 11 | AK236: 34 | AL236: 12 | AM236: 4 | AN236: 39 | AO236: 36
K237: 23 | L237: 17 | M237: 38 | N237: 36 | O237: 40 | P237: 18 | Q237: 18 | R237: 6 | S237: 20 | T237: 28 | U237: 46 | V237: 45 | W237: 4 | X237: 16 | Y237: 31 | Z237: 11 | AA237: 49 | AB237: 32 | AC237: 19 | AD237: 22 | AE237: 50 | AF237: 2 | AG237: 48 | AH237: 2 | AI237: 10 | AJ237: 41 | AK237: 41 | AL237: 43 | AM237: 30 | AN237: 17 | AO237: 10
K238: 30 | L238: 11 | M238: 7 | N238: 7 | O238: 39 | P238: 29 | Q238: 6 | R238: 32 | S238: 32 | T238: 49 | U238: 3 | V238: 24 | W238: 50 | X238: 20 | Y238: 27 | Z238: 19 | AA238: 11 | AB238: 30 | AC238: 43 | AD238: 6 | AE238: 10 | AF238: 22 | AG238: 36 | AH238: 35 | AI238: 50 | AJ238: 47 | AK238: 15 | AL238: 46 | AM238: 47 | AN238: 32 | AO238: 1
K239: 18 | L239: 50 | M239: 11 | N239: 49 | O239: 50 | P239: 25 | Q239: 10 | R239: 22 | S239: 15 | T239: 2 | U239: 44 | V239: 14 | W239: 29 | X239: 27 | Y239: 40 | Z239: 8 | AA239: 14 | AB239: 20 | AC239: 38 | AD239: 43 | AE239: 10 | AF239: 42 | AG239: 31 | AH239: 3 | AI239: 1 | AJ239: 34 | AK239: 1 | AL239: 45 | AM239: 21 | AN239: 14 | AO239: 14
K240: 33 | L240: 34 | M240: 44 | N240: 25 | O240: 19 | P240: 6 | Q240: 28 | R240: 28 | S240: 28 | T240: 43 | U240: 38 | V240: 32 | W240: 10 | X240: 21 | Y240: 47 | Z240: 26 | AA240: 43 | AB240: 6 | AC240: 42 | AD240: 23 | AE240: 40 | AF240: 13 | AG240: 38 | AH240: 43 | AI240: 42 | AJ240: 34 | AK240: 43 | AL240: 7 | AM240: 19 | AN240: 7 | AO240: 31
K241: 29 | L241: 48 | M241: 20 | N241: 46 | O241: 46 | P241: 41 | Q241: 21 | R241: 2 | S241: 27 | T241: 27 | U241: 33 | V241: 13 | W241: 37 | X241: 5 | Y241: 13 | Z241: 2 | AA241: 46 | AB241: 18 | AC241: 34 | AD241: 16 | AE241: 17 | AF241: 30 | AG241: 36 | AH241: 23 | AI241: 4 | AJ241: 20 | AK241: 14 | AL241: 5 | AM241: 46 | AN241: 50 | AO241: 30
K242: 32 | L242: 39 | M242: 46 | N242: 26 | O242: 17 | P242: 26 | Q242: 22 | R242: 41 | S242: 47 | T242: 27 | U242: 26 | V242: 21 | W242: 1 | X242: 17 | Y242: 32 | Z242: 6 | AA242: 23 | AB242: 26 | AC242: 6 | AD242: 34 | AE242: 3 | AF242: 16 | AG242: 12 | AH242: 40 | AI242: 19 | AJ242: 41 | AK242: 30 | AL242: 7 | AM242: 42 | AN242: 12 | AO242: 23
K243: 6 | L243: 24 | M243: 32 | N243: 22 | O243: 15 | P243: 42 | Q243: 9 | R243: 16 | S243: 34 | T243: 42 | U243: 36 | V243: 35 | W243: 5 | X243: 24 | Y243: 27 | Z243: 29 | AA243: 24 | AB243: 17 | AC243: 1 | AD243: 13 | AE243: 30 | AF243: 21 | AG243: 6 | AH243: 47 | AI243: 23 | AJ243: 48 | AK243: 40 | AL243: 8 | AM243: 23 | AN243: 3 | AO243: 22
K244: 50 | L244: 23 | M244: 28 | N244: 39 | O244: 44 | P244: 13 | Q244: 39 | R244: 3 | S244: 44 | T244: 6 | U244: 47 | V244: 45 | W244: 32 | X244: 10 | Y244: 44 | Z244: 40 | AA244: 33 | AB244: 47 | AC244: 45 | AD244: 42 | AE244: 16 | AF244: 8 | AG244: 48 | AH244: 44 | AI244: 6 | AJ244: 2 | AK244: 32 | AL244: 36 | AM244: 14 | AN244: 23 | AO244: 21
K245: 11 | L245: 46 | M245: 16 | N245: 37 | O245: 9 | P245: 16 | Q245: 12 | R245: 50 | S245: 20 | T245: 39 | U245: 48 | V245: 41 | W245: 18 | X245: 14 | Y245: 45 | Z245: 47 | AA245: 12 | AB245: 15 | AC245: 28 | AD245: 14 | AE245: 25 | AF245: 5 | AG245: 22 | AH245: 41 | AI245: 35 | AJ245: 44 | AK245: 12 | AL245: 47 | AM245: 25 | AN245: 8 | AO245: 43
K246: 26 | L246: 18 | M246: 35 | N246: 6 | O246: 7 | P246: 45 | Q246: 9 | R246: 29 | S246: 13 | T246: 22 | U246: 36 | V246: 5 | W246: 21 | X246: 44 | Y246: 6 | Z246: 48 | AA246: 24 | AB246: 33 | AC246: 33 | AD246: 50 | AE246: 43 | AF246: 26 | AG246: 8 | AH246: 20 | AI246: 32 | AJ246: 37 | AK246: 25 | AL246: 46 | AM246: 20 | AN246: 34 | AO246: 10
... 2004 more rows

Sheet LotteryPredictionAlgorithm(5)
B2: Building Lottery Prediction Algorithm
B4: Serial Number | C4: Lottery Number
B5: 25
B6: 38

Sheet DecisionTreeAlgorithm
B2: Product Price of ABC Beverage Limited
C4: Product 1 | D4: Product 2
B5: Probability | C5: 0.7 | D5: 0.3
B6: Decision 1 | C6: 410 | D6: 680 | E6: 820
B7: Decision 2 | C7: 560
ALS989: ID | ALT989: PARENT | ALU989: TYPE | ALV989: ROW | ALW989: COL | ALX989: LABEL | ALY989: VALUE | ALZ989: PROP
ALS990: 1 | ALT990: 5 | ALU990: T | ALV990: 2 | ALW990: 9 | ALX990: Event 1 | ALY990: 0 | ALZ990: 0.5
ALS991: 2 | ALT991: 4 | ALU991: T | ALV991: 7 | ALW991: 13 | ALX991: Decision 2 | ALY991: 0 | ALZ991: 0.5
ALS992: 3 | ALT992: 4 | ALU992: T | ALV992: 12 | ALW992: 13 | ALX992: Decision 3 | ALY992: 0 | ALZ992: 0.5
ALS993: 4 | ALT993: 5 | ALU993: D | ALV993: 9 | ALW993: 9 | ALX993: Event 2 | ALY993: 0 | ALZ993: 0.5
ALS994: 5 | ALT994: 7 | ALU994: E | ALV994: 5 | ALW994: 5 | ALX994: Decision 1 | ALY994: 0 | ALZ994: 0.5
ALS995: 6 | ALT995: 7 | ALU995: T | ALV995: 17 | ALW995: 5 | ALX995: Decision 2 | ALY995: 0 | ALZ995: 0.5
ALS996: 7 | ALT996: 0 | ALU996: D | ALV996: 11 | ALW996: 1 | ALZ996: 1

Sheet CreateDecisionTreeAlgorithm
B2: Creating Decision Tree for 4 Events
C4: Product 1 | D4: Product 2
B5: Probability | C5: 0.7 | D5: 0.3
B6: Decision 1 | C6: 410 | D6: 680 | E6: 820
B7: Decision 2 | C7: 560
O9: 0.7
O10: Product 1
U11: 410
P12: =U11 -> 410
K13: Decision 1
D14: Chance Node
L15: =IF(ABS(1-SUM(O9,O16))<=0.00001,SUM(O9 * P12,O16 * P19),NA()) -> 533 | S15: Sample 1
D16: Decision Node | O16: 0.3 | U16: 680
O17: Product 2 | T17: =U16 -> 680
D18: Decision To be Made
D19: Connector | P19: =MAX(T17,T22) -> 820
S20: Sample 2
D21: Probability | H21: =MAX(L15,L27) -> 560 | U21: 820
T22: =U21 -> 820
K25: Decision 2
U26: 560
L27: =U26 -> 560
ALA1009: ID | ALB1009: PARENT | ALC1009: TYPE | ALD1009: ROW | ALE1009: COL | ALF1009: LABEL | ALG1009: VALUE | ALH1009: PROP
ALA1010: 1 | ALB1010: 5 | ALC1010: T | ALD1010: 2 | ALE1010: 9 | ALF1010: Event 1 | ALG1010: 0 | ALH1010: 0.5
ALA1011: 2 | ALB1011: 4 | ALC1011: T | ALD1011: 7 | ALE1011: 13 | ALF1011: Decision 2 | ALG1011: 0 | ALH1011: 0.5
ALA1012: 3 | ALB1012: 4 | ALC1012: T | ALD1012: 12 | ALE1012: 13 | ALF1012: Decision 3 | ALG1012: 0 | ALH1012: 0.5
ALA1013: 4 | ALB1013: 5 | ALC1013: D | ALD1013: 9 | ALE1013: 9 | ALF1013: Event 2 | ALG1013: 0 | ALH1013: 0.5
ALA1014: 5 | ALB1014: 7 | ALC1014: E | ALD1014: 5 | ALE1014: 5 | ALF1014: Decision 1 | ALG1014: 0 | ALH1014: 0.5
ALA1015: 6 | ALB1015: 7 | ALC1015: T | ALD1015: 17 | ALE1015: 5 | ALF1015: Decision 2 | ALG1015: 0 | ALH1015: 0.5
ALA1016: 7 | ALB1016: 0 | ALC1016: D | ALD1016: 11 | ALE1016: 1 | ALH1016: 1

Sheet RainflowCountingAlgorithm
B2: Rainflow Counting Algorithm
B4: Indicator | C4: Damage-weight | D4: Time Interval | F4: Indicator | G4: Damage-weight | I4: Indicator | J4: Field | K4: Mean Value | L4: Cycle Count
B5: 0 | C5: 527.6100694 | D5: =IF(C5<>"",B5*$D$25,"") -> 0 | F5: 0 | G5: 597.0765345 | I5: 1 | J5: 94.1489484 | K5: 644.1510087 | L5: 0.5
B6: =IF(C6<>"",B5+1,"") -> 1 | C6: 597.0765345 | D6: =IF(C6<>"",B6*$D$25,"") -> 3 | F6: 1 | G6: 691.2254829 | I6: 2 | J6: 6.3687541 | K6: 623.080807 | L6: 1
B7: =IF(C7<>"",B6+1,"") -> 2 | C7: 691.2254829 | D7: 6 | F7: 2 | G7: 557.823671 | I7: 3 | J7: 33.4427481 | K7: 637.6556562 | L7: 1
B8: 3 | C8: 557.823671 | D8: 9 | F8: 3 | G8: 626.2651841 | I8: 4 | J8: 124.0815331 | K8: 619.8644376 | L8: 1
B9: 4 | C9: 626.2651841 | D9: 12 | F9: 4 | G9: 619.89643 | I9: 5 | J9: 144.7960987 | K9: 609.3401813 | L9: 1
B10: 5 | C10: 619.89643 | D10: 15 | F10: 5 | G10: 681.9052041 | I10: 6 | J10: 691.2254829 | K10: 345.6127414 | L10: 0.5
B11: 6 | C11: 681.9052041 | D11: 18 | F11: 6 | G11: 620.9342821
B12: 7 | C12: 620.9342821 | D12: 21 | F12: 7 | G12: 654.3770302
B13: 8 | C13: 641.5433489 | D13: =IF(C13<>"",B13*$D$25,"") -> 24 | F13: 8 | G13: 536.9421319
B14: 9 | C14: 654.3770302 | D14: 27 | F14: 9 | G14: 681.7382306
B15: 10 | C15: 536.9421319 | D15: 30 | F15: 10 | G15: 0
B16: 11 | C16: 657.7390985 | D16: 33
B17: 12 | C17: 681.7382306 | D17: 36
B18: 13 | C18: 678.9874504 | D18: 39
B19: 14 | C19: 624.5446805 | D19: 42
B20: 15 | C20: 580.2654504 | D20: 45
B22: Maximum Indicator Read | D22: =MAX(B5:B20) -> 15
B23: Total Time Amount | D23: =MAX(D5:D20) -> 45
B25: Time Accretion | D25: 3
B26: Damage Origin | D26: 0.75
